Workbook

Sheet Introduction
C4: Fixing Badly Structured Model
C5: It is Easier than Making a Bad Model
C6: Understand Structure

Sheet Summary
A2: Operations | I2: Credit Ratios
B3: Size of the Project | D3: kW | E3: =kw -> 2300 | I3: DSCR
B4: Tariff (Cents/kWh) | D4: Cents/kWh | E4: =Assumptions!F41 -> 8.74 | J4: Minimum DSCR | K4: ='Project Finance'!F210 -> 1.697800944
B5: Tariff Escalation | D5: % p.a. | E5: =Assumptions!F38 -> 0.02 | J5: LLCR | K5: ='Project Finance'!F217 -> 2.327262789
B6: O&M Expense per kW | D6: USD/kw-yr | E6: =Assumptions!F56 -> 9.286646267 | J6: PLCR | K6: ='Project Finance'!F223 -> 3.121426351
B7: Capacity Factor | D7: % p.a. | E7: =Assumptions!F13 -> 0.162
B8: LCOE | D8: Cents/kWh | E8: =Operations!H169 -> 8.633270391 | I8: IRR | K8: Nominal | L8: Real
J9: Pre-tax Project IRR | K9: =Operations!E95 -> 0.1502154052 | L9: =Operations!F156 -> 0.1276709378
A10: Uses of Funds | E10: Amount | F10: % | G10: USD/kW | J10: After-tax IRR | K10: =Operations!F148 -> 0.1298267186 | L10: =Operations!F160 -> 0.107681936
B11: Land | E11: ='Project Finance'!F18 -> 0 | F11: =E11/$E$17 -> 0 | G11: =E11/$E$3*1000 -> 0 | J11: Equity IRR | K11: ='Project Finance'!F201 -> 0.2205654323 | L11: ='Project Finance'!F205 -> 0.1966409981
B12: Material (Incl. tax) | E12: ='Project Finance'!F19 -> 1673.144102 | F12: =E12/$E$17 -> 0.8725459743 | G12: =E12/$E$3*1000 -> 727.4539576
B13: Services (Incl. tax) | E13: ='Project Finance'!F20 -> 177.9940535 | F13: 0.09282403982 | G13: 77.38871889
B14: Other Expenses | E14: ='Project Finance'!F21 -> 0 | F14: 0 | G14: 0
B15: Contingencies | E15: ='Project Finance'!F22 -> 57.25169554 | F15: 0.02985680456 | G15: 24.89204154
B16: Interest During Construction | E16: ='Project Finance'!F23 -> 9.152778661 | F16: 0.004773181319 | G16: 3.979468983
C17: Total | E17: =SUM(E11:E16) -> 1917.54263 | F17: 1 | G17: 833.714187
A19: Sources of Funds
B20: Equity Funding | D20: ='Project Finance'!D8 -> 0 | E20: ='Project Finance'!F27 -> 575.262789 | F20: =E20/$E$17 -> 0.3
B21: Debt Funding | E21: =E17-E20 -> 1342.279841 | F21: 0.7
C22: Total | E22: =SUM(E20:E21) -> 1917.54263 | F22: 1

Sheet Assumptions
A2: Assumptions
D3: Financial Close Date | E3: Date | F3: 2016-10-01
D4: Project Completion Date | E4: Date | F4: 2017-04-01
D5: Construction Months | E5: Months | F5: =DAYS360(F3,F4)/30 -> 6
D6: Operating Life | E6: Years | F6: 25
D7: Decommissioning Date | E7: Date | F7: =EDATE(F4,F6*12) -> 2042-04-01
A9: Generation
D10: Size of the Project | E10: MW | F10: 2.3
D11: Size of the Project | E11: kW | F11: =F10*1000 -> 2300
D13: Utilisation Factor | E13: % | F13: 0.162
D14: Degradation Factor | E14: % | F14: 0.005
D15: Auxiliary Consumption | E15: % | F15: 0
D16: AT&C Loss | E16: % | F16: 0
A18: Total Estimated Project Cost
F19: Per MW | G19: Total | H19: Pct
D20: Land | E20: USD 000's | F20: 0 | G20: =F20*$F$10 -> 0 | H20: =F20/$F$26 -> 0
D21: Material (Incl. tax) | E21: USD 000's | F21: 727453.9576 | G21: =F21*$F$10/1000 -> 1673.144102 | H21: =F21/$F$26 -> 0.8767307692
D22: Services (Incl. tax) | E22: USD 000's | F22: 77388.71889 | G22: =F22*$F$10/1000 -> 177.9940535 | H22: =F22/$F$26 -> 0.09326923077
D23: Other Expenses | E23: USD 000's | F23: 0 | G23: =F23*$F$10/1000 -> 0 | H23: =F23/$F$26 -> 0
D24: Sub-total Before Contingency | E24: USD 000's | F24: 804842.6765 | G24: =SUM(G20:G23) -> 1851.138156 | H24: =F24/$F$26 -> 0.97
D25: Contingencies | E25: USD 000's | F25: =F26*H25 -> 24892.04154 | G25: =F25*F10/1000 -> 57.25169554 | H25: 0.03
D26: Sub Total with Contengiencies | E26: USD 000's | F26: =F24/(1-H25) -> 829734.718 | G26: =G24+G25 -> 1908.389851 | H26: =F26/$F$26 -> 1
D27: Interest During Construction | E27: USD 000's | F27: =G27/F10 -> 3.979468983 | G27: ='Project Finance'!F23 -> 9.152778661 | H27: =F27/$F$28 -> 4.796050847e-06
D28: Total Project Cost | E28: USD 000's | F28: =F26+F27 -> 829738.6975 | G28: =G26+G27 -> 1917.54263 | H28: =F28/$F$26 -> 1.000004796
B30: S-Curve Assumptions | G30: 1 | H30: 2 | I30: 3 | J30: 4 | K30: 5 | L30: 6 | M30: 7 | N30: 8 | O30: 9 | P30: 10
C31: Land | E31: % | G31: 1
C32: Material Cost | E32: % | G32: 0.2 | H32: 0.3 | I32: 0.3 | J32: 0.1 | K32: 0.1
C33: Services Cost | E33: % | G33: 0.2 | H33: 0.3 | I33: 0.3 | J33: 0.1 | K33: 0.1
C34: Other Expenses | E34: % | G34: 0.2 | H34: 0.3 | I34: 0.3 | J34: 0.1 | K34: 0.1
C35: Contingencies | K35: 0.5 | L35: 0.5
A37: Tariff (Cents/kWh)
D38: Annual Inflation in PPA Price | E38: % | F38: 0.02
D40: REC | E40: USD Cents/kWh | F40: 0
D41: Base Tariff | E41: USD Cents/kWh | F41: =I41/100 -> 8.74 | I41: 874
D42: Total Single Price Tariff | E42: Total | F42: =F41 -> 8.74
D43: Generation Based Incentive | E43: USD Cents/kWh | F43: 0 | G43: Not Considered
C45: CDM
D46: CDM Selling Rate | E46: € | F46: 0 | G46: Not Considered
D47: Euro INR Exchange Rate | E47: USD | F47: 70
D48: CDM Selling Rate | E48: USD | F48: =F46*F47 -> 0
D49: CDM Baseline | E49: Carbon Credit / MWh | F49: 1
D50: CDM pass on to Consumers | E50: % | F50: 0.25
D51: CDM Retain by Owner | E51: % | F51: =1-F50 -> 0.75
D52: CDM Benefit Availability | E52: Years | F52: 5
A54: Operation and Maintenance
D55: Annual Operation and Maintenance | E55: USD/yr | F55: 21359.28641
D56: O&M per kW-yr | E56: USD/kW-yr | F56: =F55/kw -> 9.286646267 | G56: =F56/F28*1000 -> 0.01119225401
D57: Escalation on O & M Cost | E57: % | F57: 0.02
A59: Insurance
D60: Insurance Expense of Net Block | E60: % | F60: 0.0025
D61: Misc. Expense Per MW (p.a.) incl. Spares | E61: USD 000's | F61: 0
A63: Depreciation
D64: Depreciation Rate as per the Income Tax Act As per Section 32 (80%) + 20% addition Depriciation for new plant and Machinery. | E64: % | F64: 1 | G64: Tax Depreciation
D65: Depreciable Value as per the Income Tax Act | E65: % | F65: 1
D67: Tax Depreciation Quarter | F67: 0 | G67: 1 | H67: 2 | I67: 3 | J67: 4 | K67: 5 | L67: 6
D68: Depreciation Rate | F68: 0 | G68: 0.25 | H68: 0.25 | I68: 0.25 | J68: 0.25 | K68: 0 | L68: 0
D70: Depreciation Rate as per the Companies Act | E70: % | F70: 0.0528 | G70: Book Straight Line
D71: Depreciable Value as per the Companies Act | E71: % | F71: 0.95
A73: Tax Structure
E74: Normal | F74: Min Alt Tax | G74: DDT
D75: Basic Rate | E75: 0.3 | F75: 0.185 | G75: 0.15
D76: Surcharge | E76: 0.1 | F76: 0.05 | G76: 0.05
D77: EC | E77: 0.03 | F77: 0.03 | G77: 0.03
D78: Total Rate | E78: =E75*(1+E76)*(1+E77) -> 0.3399 | F78: 0.2000775 | G78: 0.162225
D80: 80 IA use years | E80: 10 | F80: 15
A81: Working Capital Norms
D82: O&M Expense | E82: Months | F82: 1
D83: Receivables | E83: Months | F83: 1
D84: Maintainance Spares | E84: % | F84: 0.01
D85: Interest on Working Capital | E85: % | F85: =Assumptions!F92 -> 0.04
A87: Finance
D88: Equity | E88: % | F88: 0.3
D89: Debt | E89: % | F89: =1-F88 -> 0.7
D91: Interest Rate During Construction Period | E91: % | F91: 0.03
D92: Interest Rate Post Construction Period | E92: % | F92: 0.04
D93: Interest Rate on Deficit/Surplus Cash Balance | E93: % | F93: 0.01
D95: Moratorium period | E95: Months | F95: 12
D96: Repayment (No. of quarterly instalments) | E96: Qtrs | F96: 60
D97: Repayment - Years | E97: Yrs | F97: =ROUND((F96-F95/3)/3,0) -> 19
D98: Repayment start date | F98: =EDATE(F3,F95) -> 2017-10-01
D99: Repayment end date | F99: =EDATE(F98,F96*3) -> 2032-10-01
D101: Discount Rate for LCOE | E101: % | F101: 0.06

Sheet Operations
A1: Timing
B2: Period | H2: 1 | I2: 2 | J2: 3 | K2: 4 | L2: 5 | M2: 6 | N2: 7 | O2: 8 | P2: 9 | Q2: 10 | R2: 11 | S2: 12 | T2: 13 | U2: 14 | V2: 15 | W2: 16 | X2: 17 | Y2: 18 | Z2: 19 | AA2: 20 | AB2: 21 | AC2: 22 | AD2: 23 | AE2: 24 | AF2: 25 | AG2: 26 | AH2: 27 | AI2: 28 | AJ2: 29 | AK2: 30 | AL2: 31 | AM2: 32 | AN2: 33 | AO2: 34 | AP2: 35 | AQ2: 36 | AR2: 37 | AS2: 38 | AT2: 39 | AU2: 40 | AV2: 41 | AW2: 42 | AX2: 43 | AY2: 44 | AZ2: 45 | BA2: 46 | BB2: 47 | BC2: 48 | BD2: 49 | BE2: 50 | BF2: 51 | BG2: 52 | BH2: 53 | BI2: 54 | BJ2: 55 | BK2: 56 | BL2: 57 | BM2: 58 | BN2: 59 | BO2: 60 | BP2: 61 | BQ2: 62 | BR2: 63 | BS2: 64 | BT2: 65 | BU2: 66 | BV2: 67 | BW2: 68 | BX2: 69 | BY2: 70 | BZ2: 71 | CA2: 72 | CB2: 73 | CC2: 74 | CD2: 75 | CE2: 76 | CF2: 77 | CG2: 78 | CH2: 79 | CI2: 80 | CJ2: 81 | CK2: 82 | CL2: 83 | CM2: 84 | CN2: 85 | CO2: 86 | CP2: 87 | CQ2: 88 | CR2: 89 | CS2: 90 | CT2: 91 | CU2: 92 | CV2: 93 | CW2: 94 | CX2: 95 | CY2: 96 | CZ2: 97 | DA2: 98 | DB2: 99 | DC2: 100 | DD2: 101 | DE2: 102 | DF2: 103 | DG2: 104 | DH2: 105 | DI2: 106 | DJ2: 107 | DK2: 108 | DL2: 109 | DM2: 110 | DN2: 111 | DO2: 112 | DP2: 113 | DQ2: 114 | DR2: 115 | DS2: 116 | DT2: 117 | DU2: 118 | DV2: 119 | DW2: 120 | DX2: 121 | DY2: 122 | DZ2: 123 | EA2: 124 | EB2: 125 | EC2: 126 | ED2: 127 | EE2: 128 | EF2: 129 | EG2: 130 | EH2: 131 | EI2: 132 | EJ2: 133 | EK2: 134 | EL2: 135 | EM2: 136 | EN2: 137 | EO2: 138 | EP2: 139 | EQ2: 140 | ER2: 141 | ES2: 142 | ET2: 143 | EU2: 144 | EV2: 145 | EW2: 146 | EX2: 147 | EY2: 148 | EZ2: 149 | FA2: 150 | FB2: 151 | FC2: 152 | FD2: 153 | FE2: 154 | FF2: 155 | FG2: 156 | FH2: 157 | FI2: 158 | FJ2: 159 | FK2: 160 | FL2: 161 | FM2: 162 | FN2: 163 | FO2: 164 | FP2: 165 | FQ2: 166 | FR2: 167 | FS2: 168 | FT2: 169 | FU2: 170 | FV2: 171 | FW2: 172 | FX2: 173 | FY2: 174 | FZ2: 175 | GA2: 176 | GB2: 177 | GC2: 178 | GD2: 179 | GE2: 180 | GF2: 181 | GG2: 182 | GH2: 183 | GI2: 184 | GJ2: 185 | GK2: 186 | GL2: 187 | GM2: 188 | GN2: 189 | GO2: 190 | GP2: 191 | GQ2: 192 | GR2: 193 | GS2: 194 | GT2: 195 | GU2: 196 | GV2: 197 | GW2: 198 | GX2: 199 | GY2: 200 | GZ2: 201 | HA2: 202 | HB2: 203 | HC2: 204 | HD2: 205 | HE2: 206 | HF2: 207 | HG2: 208 | HH2: 209 | HI2: 210 | HJ2: 211 | HK2: 212 | HL2: 213 | HM2: 214 | HN2: 215 | HO2: 216 | HP2: 217 | HQ2: 218 | HR2: 219 | HS2: 220 | HT2: 221 | HU2: 222 | HV2: 223 | HW2: 224 | HX2: 225 | HY2: 226 | HZ2: 227 | IA2: 228 | IB2: 229 | IC2: 230 | ID2: 231 | IE2: 232 | IF2: 233 | IG2: 234 | IH2: 235 | II2: 236 | IJ2: 237 | IK2: 238 | IL2: 239 | IM2: 240 | IN2: 241 | IO2: 242 | IP2: 243 | IQ2: 244 | IR2: 245 | IS2: 246 | IT2: 247 | IU2: 248 | IV2: 249 | IW2: 250 | IX2: 251 | IY2: 252 | IZ2: 253 | JA2: 254 | JB2: 255 | JC2: 256 | JD2: 257 | JE2: 258 | JF2: 259 | JG2: 260 | JH2: 261 | JI2: 262 | JJ2: 263 | JK2: 264 | JL2: 265 | JM2: 266 | JN2: 267 | JO2: 268 | JP2: 269 | JQ2: 270 | JR2: 271 | JS2: 272 | JT2: 273 | JU2: 274 | JV2: 275 | JW2: 276 | JX2: 277 | JY2: 278 | JZ2: 279 | KA2: 280 | KB2: 281 | KC2: 282 | KD2: 283 | KE2: 284 | KF2: 285 | KG2: 286 | KH2: 287 | KI2: 288 | KJ2: 289 | KK2: 290 | KL2: 291 | KM2: 292 | KN2: 293 | KO2: 294 | KP2: 295 | KQ2: 296 | KR2: 297 | KS2: 298 | KT2: 299 | KU2: 300
B3: Construction Period | F3: =Assumptions!F5 -> 6 | H3: =H2<=$F$3 -> TRUE | I3: =I2<=$F$3 -> TRUE | J3: TRUE | K3: TRUE | L3: TRUE | M3: TRUE | N3: FALSE | O3: FALSE | P3: FALSE | Q3: FALSE | R3: FALSE | S3: FALSE | T3: FALSE | U3: FALSE | V3: FALSE | W3: FALSE | X3: FALSE | Y3: FALSE | Z3: FALSE | AA3: FALSE | AB3: FALSE | AC3: FALSE | AD3: FALSE | AE3: FALSE | AF3: FALSE | AG3: FALSE | AH3: FALSE | AI3: FALSE | AJ3: FALSE | AK3: FALSE | AL3: FALSE | AM3: FALSE | AN3: FALSE | AO3: FALSE | AP3: FALSE | AQ3: FALSE | AR3: FALSE | AS3: FALSE | AT3: FALSE | AU3: FALSE | AV3: FALSE | AW3: FALSE | AX3: FALSE | AY3: FALSE | AZ3: FALSE | BA3: FALSE | BB3: FALSE | BC3: FALSE | BD3: FALSE | BE3: FALSE | BF3: FALSE | BG3: FALSE | BH3: FALSE | BI3: FALSE | BJ3: FALSE | BK3: FALSE | BL3: FALSE | BM3: FALSE | BN3: FALSE | BO3: FALSE | BP3: FALSE | BQ3: FALSE | BR3: FALSE | BS3: FALSE | BT3: =BT2<=$F$3 -> FALSE | BU3: FALSE | BV3: FALSE | BW3: FALSE | BX3: FALSE | BY3: FALSE | BZ3: FALSE | CA3: FALSE | CB3: FALSE | CC3: FALSE | CD3: FALSE | CE3: FALSE | CF3: FALSE | CG3: FALSE | CH3: FALSE | CI3: FALSE | CJ3: FALSE | CK3: FALSE | CL3: FALSE | CM3: FALSE | CN3: FALSE | CO3: FALSE | CP3: FALSE | CQ3: FALSE | CR3: FALSE | CS3: FALSE | CT3: FALSE | CU3: FALSE | CV3: FALSE | CW3: FALSE | CX3: FALSE | CY3: FALSE | CZ3: FALSE | DA3: FALSE | DB3: FALSE | DC3: FALSE | DD3: FALSE | DE3: FALSE | DF3: FALSE | DG3: FALSE | DH3: FALSE | DI3: FALSE | DJ3: FALSE | DK3: FALSE | DL3: FALSE | DM3: FALSE | DN3: FALSE | DO3: FALSE | DP3: FALSE | DQ3: FALSE | DR3: FALSE | DS3: FALSE | DT3: FALSE | DU3: FALSE | DV3: FALSE | DW3: FALSE | DX3: FALSE | DY3: FALSE | DZ3: FALSE | EA3: FALSE | EB3: FALSE | EC3: FALSE | ED3: FALSE | EE3: FALSE | EF3: =EF2<=$F$3 -> FALSE | EG3: FALSE | EH3: FALSE | EI3: FALSE | EJ3: FALSE | EK3: FALSE | EL3: FALSE | EM3: FALSE | EN3: FALSE | EO3: FALSE | EP3: FALSE | EQ3: FALSE | ER3: FALSE | ES3: FALSE | ET3: FALSE | EU3: FALSE | EV3: FALSE | EW3: FALSE | EX3: FALSE | EY3: FALSE | EZ3: FALSE | FA3: FALSE | FB3: FALSE | FC3: FALSE | FD3: FALSE | FE3: FALSE | FF3: FALSE | FG3: FALSE | FH3: FALSE | FI3: FALSE | FJ3: FALSE | FK3: FALSE | FL3: FALSE | FM3: FALSE | FN3: FALSE | FO3: FALSE | FP3: FALSE | FQ3: FALSE | FR3: FALSE | FS3: FALSE | FT3: FALSE | FU3: FALSE | FV3: FALSE | FW3: FALSE | FX3: FALSE | FY3: FALSE | FZ3: FALSE | GA3: FALSE | GB3: FALSE | GC3: FALSE | GD3: FALSE | GE3: FALSE | GF3: FALSE | GG3: FALSE | GH3: FALSE | GI3: FALSE | GJ3: FALSE | GK3: FALSE | GL3: FALSE | GM3: FALSE | GN3: FALSE | GO3: FALSE | GP3: FALSE | GQ3: FALSE | GR3: =GR2<=$F$3 -> FALSE | GS3: FALSE | GT3: FALSE | GU3: FALSE | GV3: FALSE | GW3: FALSE | GX3: FALSE | GY3: FALSE | GZ3: FALSE | HA3: FALSE | HB3: FALSE | HC3: FALSE | HD3: FALSE | HE3: FALSE | HF3: FALSE | HG3: FALSE | HH3: FALSE | HI3: FALSE | HJ3: FALSE | HK3: FALSE | HL3: FALSE | HM3: FALSE | HN3: FALSE | HO3: FALSE | HP3: FALSE | HQ3: FALSE | HR3: FALSE | HS3: FALSE | HT3: FALSE | HU3: FALSE | HV3: FALSE | HW3: FALSE | HX3: FALSE | HY3: FALSE | HZ3: FALSE | IA3: FALSE | IB3: FALSE | IC3: FALSE | ID3: FALSE | IE3: FALSE | IF3: FALSE | IG3: FALSE | IH3: FALSE | II3: FALSE | IJ3: FALSE | IK3: FALSE | IL3: FALSE | IM3: FALSE | IN3: FALSE | IO3: FALSE | IP3: FALSE | IQ3: FALSE | IR3: FALSE | IS3: FALSE | IT3: FALSE | IU3: FALSE | IV3: FALSE | IW3: FALSE | IX3: FALSE | IY3: FALSE | IZ3: FALSE | JA3: FALSE | JB3: FALSE | JC3: FALSE | JD3: =JD2<=$F$3 -> FALSE | JE3: FALSE | JF3: FALSE | JG3: FALSE | JH3: FALSE | JI3: FALSE | JJ3: FALSE | JK3: FALSE | JL3: FALSE | JM3: FALSE | JN3: FALSE | JO3: FALSE | JP3: FALSE | JQ3: FALSE | JR3: FALSE | JS3: FALSE | JT3: FALSE | JU3: FALSE | JV3: FALSE | JW3: FALSE | JX3: FALSE | JY3: FALSE | JZ3: FALSE | KA3: FALSE | KB3: FALSE | KC3: FALSE | KD3: FALSE | KE3: FALSE | KF3: FALSE | KG3: FALSE | KH3: FALSE | KI3: FALSE | KJ3: FALSE | KK3: FALSE | KL3: FALSE | KM3: FALSE | KN3: FALSE | KO3: FALSE | KP3: FALSE | KQ3: FALSE | KR3: FALSE | KS3: FALSE | KT3: FALSE | KU3: FALSE
B4: Months | E4: Months | F4: 1 | G4: 3 | H4: =IF(H3,$F$4,$G$4) -> 1 | I4: =IF(I3,$F$4,$G$4) -> 1 | J4: 1 | K4: 1 | L4: 1 | M4: 1 | N4: 3 | O4: 3 | P4: 3 | Q4: 3 | R4: 3 | S4: 3 | T4: 3 | U4: 3 | V4: 3 | W4: 3 | X4: 3 | Y4: 3 | Z4: 3 | AA4: 3 | AB4: 3 | AC4: 3 | AD4: 3 | AE4: 3 | AF4: 3 | AG4: 3 | AH4: 3 | AI4: 3 | AJ4: 3 | AK4: 3 | AL4: 3 | AM4: 3 | AN4: 3 | AO4: 3 | AP4: 3 | AQ4: 3 | AR4: 3 | AS4: 3 | AT4: 3 | AU4: 3 | AV4: 3 | AW4: 3 | AX4: 3 | AY4: 3 | AZ4: 3 | BA4: 3 | BB4: 3 | BC4: 3 | BD4: 3 | BE4: 3 | BF4: 3 | BG4: 3 | BH4: 3 | BI4: 3 | BJ4: 3 | BK4: 3 | BL4: 3 | BM4: 3 | BN4: 3 | BO4: 3 | BP4: 3 | BQ4: 3 | BR4: 3 | BS4: 3 | BT4: =IF(BT3,$F$4,$G$4) -> 3 | BU4: 3 | BV4: 3 | BW4: 3 | BX4: 3 | BY4: 3 | BZ4: 3 | CA4: 3 | CB4: 3 | CC4: 3 | CD4: 3 | CE4: 3 | CF4: 3 | CG4: 3 | CH4: 3 | CI4: 3 | CJ4: 3 | CK4: 3 | CL4: 3 | CM4: 3 | CN4: 3 | CO4: 3 | CP4: 3 | CQ4: 3 | CR4: 3 | CS4: 3 | CT4: 3 | CU4: 3 | CV4: 3 | CW4: 3 | CX4: 3 | CY4: 3 | CZ4: 3 | DA4: 3 | DB4: 3 | DC4: 3 | DD4: 3 | DE4: 3 | DF4: 3 | DG4: 3 | DH4: 3 | DI4: 3 | DJ4: 3 | DK4: 3 | DL4: 3 | DM4: 3 | DN4: 3 | DO4: 3 | DP4: 3 | DQ4: 3 | DR4: 3 | DS4: 3 | DT4: 3 | DU4: 3 | DV4: 3 | DW4: 3 | DX4: 3 | DY4: 3 | DZ4: 3 | EA4: 3 | EB4: 3 | EC4: 3 | ED4: 3 | EE4: 3 | EF4: =IF(EF3,$F$4,$G$4) -> 3 | EG4: 3 | EH4: 3 | EI4: 3 | EJ4: 3 | EK4: 3 | EL4: 3 | EM4: 3 | EN4: 3 | EO4: 3 | EP4: 3 | EQ4: 3 | ER4: 3 | ES4: 3 | ET4: 3 | EU4: 3 | EV4: 3 | EW4: 3 | EX4: 3 | EY4: 3 | EZ4: 3 | FA4: 3 | FB4: 3 | FC4: 3 | FD4: 3 | FE4: 3 | FF4: 3 | FG4: 3 | FH4: 3 | FI4: 3 | FJ4: 3 | FK4: 3 | FL4: 3 | FM4: 3 | FN4: 3 | FO4: 3 | FP4: 3 | FQ4: 3 | FR4: 3 | FS4: 3 | FT4: 3 | FU4: 3 | FV4: 3 | FW4: 3 | FX4: 3 | FY4: 3 | FZ4: 3 | GA4: 3 | GB4: 3 | GC4: 3 | GD4: 3 | GE4: 3 | GF4: 3 | GG4: 3 | GH4: 3 | GI4: 3 | GJ4: 3 | GK4: 3 | GL4: 3 | GM4: 3 | GN4: 3 | GO4: 3 | GP4: 3 | GQ4: 3 | GR4: =IF(GR3,$F$4,$G$4) -> 3 | GS4: 3 | GT4: 3 | GU4: 3 | GV4: 3 | GW4: 3 | GX4: 3 | GY4: 3 | GZ4: 3 | HA4: 3 | HB4: 3 | HC4: 3 | HD4: 3 | HE4: 3 | HF4: 3 | HG4: 3 | HH4: 3 | HI4: 3 | HJ4: 3 | HK4: 3 | HL4: 3 | HM4: 3 | HN4: 3 | HO4: 3 | HP4: 3 | HQ4: 3 | HR4: 3 | HS4: 3 | HT4: 3 | HU4: 3 | HV4: 3 | HW4: 3 | HX4: 3 | HY4: 3 | HZ4: 3 | IA4: 3 | IB4: 3 | IC4: 3 | ID4: 3 | IE4: 3 | IF4: 3 | IG4: 3 | IH4: 3 | II4: 3 | IJ4: 3 | IK4: 3 | IL4: 3 | IM4: 3 | IN4: 3 | IO4: 3 | IP4: 3 | IQ4: 3 | IR4: 3 | IS4: 3 | IT4: 3 | IU4: 3 | IV4: 3 | IW4: 3 | IX4: 3 | IY4: 3 | IZ4: 3 | JA4: 3 | JB4: 3 | JC4: 3 | JD4: =IF(JD3,$F$4,$G$4) -> 3 | JE4: 3 | JF4: 3 | JG4: 3 | JH4: 3 | JI4: 3 | JJ4: 3 | JK4: 3 | JL4: 3 | JM4: 3 | JN4: 3 | JO4: 3 | JP4: 3 | JQ4: 3 | JR4: 3 | JS4: 3 | JT4: 3 | JU4: 3 | JV4: 3 | JW4: 3 | JX4: 3 | JY4: 3 | JZ4: 3 | KA4: 3 | KB4: 3 | KC4: 3 | KD4: 3 | KE4: 3 | KF4: 3 | KG4: 3 | KH4: 3 | KI4: 3 | KJ4: 3 | KK4: 3 | KL4: 3 | KM4: 3 | KN4: 3 | KO4: 3 | KP4: 3 | KQ4: 3 | KR4: 3 | KS4: 3 | KT4: 3 | KU4: 3
B6: Start of Period | E6: Date | H6: =G7+1 -> 2016-10-01 | I6: 2016-11-01 | J6: 2016-12-01 | K6: 2017-01-01 | L6: 2017-02-01 | M6: 2017-03-01 | N6: 2017-04-01 | O6: 2017-07-01 | P6: 2017-10-01 | Q6: 2018-01-01 | R6: 2018-04-01 | S6: 2018-07-01 | T6: 2018-10-01 | U6: 2019-01-01 | V6: 2019-04-01 | W6: 2019-07-01 | X6: 2019-10-01 | Y6: 2020-01-01 | Z6: 2020-04-01 | AA6: 2020-07-01 | AB6: 2020-10-01 | AC6: 2021-01-01 | AD6: 2021-04-01 | AE6: 2021-07-01 | AF6: 2021-10-01 | AG6: 2022-01-01 | AH6: 2022-04-01 | AI6: 2022-07-01 | AJ6: 2022-10-01 | AK6: 2023-01-01 | AL6: 2023-04-01 | AM6: 2023-07-01 | AN6: 2023-10-01 | AO6: 2024-01-01 | AP6: 2024-04-01 | AQ6: 2024-07-01 | AR6: 2024-10-01 | AS6: 2025-01-01 | AT6: 2025-04-01 | AU6: 2025-07-01 | AV6: 2025-10-01 | AW6: 2026-01-01 | AX6: 2026-04-01 | AY6: 2026-07-01 | AZ6: 2026-10-01 | BA6: 2027-01-01 | BB6: 2027-04-01 | BC6: 2027-07-01 | BD6: 2027-10-01 | BE6: 2028-01-01 | BF6: 2028-04-01 | BG6: 2028-07-01 | BH6: 2028-10-01 | BI6: 2029-01-01 | BJ6: 2029-04-01 | BK6: 2029-07-01 | BL6: 2029-10-01 | BM6: 2030-01-01 | BN6: 2030-04-01 | BO6: 2030-07-01 | BP6: 2030-10-01 | BQ6: 2031-01-01 | BR6: 2031-04-01 | BS6: 2031-07-01 | BT6: =BS7+1 -> 2031-10-01 | BU6: 2032-01-01 | BV6: 2032-04-01 | BW6: 2032-07-01 | BX6: 2032-10-01 | BY6: 2033-01-01 | BZ6: 2033-04-01 | CA6: 2033-07-01 | CB6: 2033-10-01 | CC6: 2034-01-01 | CD6: 2034-04-01 | CE6: 2034-07-01 | CF6: 2034-10-01 | CG6: 2035-01-01 | CH6: 2035-04-01 | CI6: 2035-07-01 | CJ6: 2035-10-01 | CK6: 2036-01-01 | CL6: 2036-04-01 | CM6: 2036-07-01 | CN6: 2036-10-01 | CO6: 2037-01-01 | CP6: 2037-04-01 | CQ6: 2037-07-01 | CR6: 2037-10-01 | CS6: 2038-01-01 | CT6: 2038-04-01 | CU6: 2038-07-01 | CV6: 2038-10-01 | CW6: 2039-01-01 | CX6: 2039-04-01 | CY6: 2039-07-01 | CZ6: 2039-10-01 | DA6: 2040-01-01 | DB6: 2040-04-01 | DC6: 2040-07-01 | DD6: 2040-10-01 | DE6: 2041-01-01 | DF6: 2041-04-01 | DG6: 2041-07-01 | DH6: 2041-10-01 | DI6: 2042-01-01 | DJ6: 2042-04-01 | DK6: 2042-07-01 | DL6: 2042-10-01 | DM6: 2043-01-01 | DN6: 2043-04-01 | DO6: 2043-07-01 | DP6: 2043-10-01 | DQ6: 2044-01-01 | DR6: 2044-04-01 | DS6: 2044-07-01 | DT6: 2044-10-01 | DU6: 2045-01-01 | DV6: 2045-04-01 | DW6: 2045-07-01 | DX6: 2045-10-01 | DY6: 2046-01-01 | DZ6: 2046-04-01 | EA6: 2046-07-01 | EB6: 2046-10-01 | EC6: 2047-01-01 | ED6: 2047-04-01 | EE6: 2047-07-01 | EF6: =EE7+1 -> 2047-10-01 | EG6: 2048-01-01 | EH6: 2048-04-01 | EI6: 2048-07-01 | EJ6: 2048-10-01 | EK6: 2049-01-01 | EL6: 2049-04-01 | EM6: 2049-07-01 | EN6: 2049-10-01 | EO6: 2050-01-01 | EP6: 2050-04-01 | EQ6: 2050-07-01 | ER6: 2050-10-01 | ES6: 2051-01-01 | ET6: 2051-04-01 | EU6: 2051-07-01 | EV6: 2051-10-01 | EW6: 2052-01-01 | EX6: 2052-04-01 | EY6: 2052-07-01 | EZ6: 2052-10-01 | FA6: 2053-01-01 | FB6: 2053-04-01 | FC6: 2053-07-01 | FD6: 2053-10-01 | FE6: 2054-01-01 | FF6: 2054-04-01 | FG6: 2054-07-01 | FH6: 2054-10-01 | FI6: 2055-01-01 | FJ6: 2055-04-01 | FK6: 2055-07-01 | FL6: 2055-10-01 | FM6: 2056-01-01 | FN6: 2056-04-01 | FO6: 2056-07-01 | FP6: 2056-10-01 | FQ6: 2057-01-01 | FR6: 2057-04-01 | FS6: 2057-07-01 | FT6: 2057-10-01 | FU6: 2058-01-01 | FV6: 2058-04-01 | FW6: 2058-07-01 | FX6: 2058-10-01 | FY6: 2059-01-01 | FZ6: 2059-04-01 | GA6: 2059-07-01 | GB6: 2059-10-01 | GC6: 2060-01-01 | GD6: 2060-04-01 | GE6: 2060-07-01 | GF6: 2060-10-01 | GG6: 2061-01-01 | GH6: 2061-04-01 | GI6: 2061-07-01 | GJ6: 2061-10-01 | GK6: 2062-01-01 | GL6: 2062-04-01 | GM6: 2062-07-01 | GN6: 2062-10-01 | GO6: 2063-01-01 | GP6: 2063-04-01 | GQ6: 2063-07-01 | GR6: =GQ7+1 -> 2063-10-01 | GS6: 2064-01-01 | GT6: 2064-04-01 | GU6: 2064-07-01 | GV6: 2064-10-01 | GW6: 2065-01-01 | GX6: 2065-04-01 | GY6: 2065-07-01 | GZ6: 2065-10-01 | HA6: 2066-01-01 | HB6: 2066-04-01 | HC6: 2066-07-01 | HD6: 2066-10-01 | HE6: 2067-01-01 | HF6: 2067-04-01 | HG6: 2067-07-01 | HH6: 2067-10-01 | HI6: 2068-01-01 | HJ6: 2068-04-01 | HK6: 2068-07-01 | HL6: 2068-10-01 | HM6: 2069-01-01 | HN6: 2069-04-01 | HO6: 2069-07-01 | HP6: 2069-10-01 | HQ6: 2070-01-01 | HR6: 2070-04-01 | HS6: 2070-07-01 | HT6: 2070-10-01 | HU6: 2071-01-01 | HV6: 2071-04-01 | HW6: 2071-07-01 | HX6: 2071-10-01 | HY6: 2072-01-01 | HZ6: 2072-04-01 | IA6: 2072-07-01 | IB6: 2072-10-01 | IC6: 2073-01-01 | ID6: 2073-04-01 | IE6: 2073-07-01 | IF6: 2073-10-01 | IG6: 2074-01-01 | IH6: 2074-04-01 | II6: 2074-07-01 | IJ6: 2074-10-01 | IK6: 2075-01-01 | IL6: 2075-04-01 | IM6: 2075-07-01 | IN6: 2075-10-01 | IO6: 2076-01-01 | IP6: 2076-04-01 | IQ6: 2076-07-01 | IR6: 2076-10-01 | IS6: 2077-01-01 | IT6: 2077-04-01 | IU6: 2077-07-01 | IV6: 2077-10-01 | IW6: 2078-01-01 | IX6: 2078-04-01 | IY6: 2078-07-01 | IZ6: 2078-10-01 | JA6: 2079-01-01 | JB6: 2079-04-01 | JC6: 2079-07-01 | JD6: =JC7+1 -> 2079-10-01 | JE6: 2080-01-01 | JF6: 2080-04-01 | JG6: 2080-07-01 | JH6: 2080-10-01 | JI6: 2081-01-01 | JJ6: 2081-04-01 | JK6: 2081-07-01 | JL6: 2081-10-01 | JM6: 2082-01-01 | JN6: 2082-04-01 | JO6: 2082-07-01 | JP6: 2082-10-01 | JQ6: 2083-01-01 | JR6: 2083-04-01 | JS6: 2083-07-01 | JT6: 2083-10-01 | JU6: 2084-01-01 | JV6: 2084-04-01 | JW6: 2084-07-01 | JX6: 2084-10-01 | JY6: 2085-01-01 | JZ6: 2085-04-01 | KA6: 2085-07-01 | KB6: 2085-10-01 | KC6: 2086-01-01 | KD6: 2086-04-01 | KE6: 2086-07-01 | KF6: 2086-10-01 | KG6: 2087-01-01 | KH6: 2087-04-01 | KI6: 2087-07-01 | KJ6: 2087-10-01 | KK6: 2088-01-01 | KL6: 2088-04-01 | KM6: 2088-07-01 | KN6: 2088-10-01 | KO6: 2089-01-01 | KP6: 2089-04-01 | KQ6: 2089-07-01 | KR6: 2089-10-01 | KS6: 2090-01-01 | KT6: 2090-04-01 | KU6: 2090-07-01
B7: End of Period | E7: Date | G7: =Assumptions!F3-1 -> 2016-09-30 | H7: =EDATE(H6,H4)-1 -> 2016-10-31 | I7: =EDATE(I6,I4)-1 -> 2016-11-30 | J7: 2016-12-31 | K7: 2017-01-31 | L7: 2017-02-28 | M7: 2017-03-31 | N7: 2017-06-30 | O7: 2017-09-30 | P7: 2017-12-31 | Q7: 2018-03-31 | R7: 2018-06-30 | S7: 2018-09-30 | T7: 2018-12-31 | U7: 2019-03-31 | V7: 2019-06-30 | W7: 2019-09-30 | X7: 2019-12-31 | Y7: 2020-03-31 | Z7: 2020-06-30 | AA7: 2020-09-30 | AB7: 2020-12-31 | AC7: 2021-03-31 | AD7: 2021-06-30 | AE7: 2021-09-30 | AF7: 2021-12-31 | AG7: 2022-03-31 | AH7: 2022-06-30 | AI7: 2022-09-30 | AJ7: 2022-12-31 | AK7: 2023-03-31 | AL7: 2023-06-30 | AM7: 2023-09-30 | AN7: 2023-12-31 | AO7: 2024-03-31 | AP7: 2024-06-30 | AQ7: 2024-09-30 | AR7: 2024-12-31 | AS7: 2025-03-31 | AT7: 2025-06-30 | AU7: 2025-09-30 | AV7: 2025-12-31 | AW7: 2026-03-31 | AX7: 2026-06-30 | AY7: 2026-09-30 | AZ7: 2026-12-31 | BA7: 2027-03-31 | BB7: 2027-06-30 | BC7: 2027-09-30 | BD7: 2027-12-31 | BE7: 2028-03-31 | BF7: 2028-06-30 | BG7: 2028-09-30 | BH7: 2028-12-31 | BI7: 2029-03-31 | BJ7: 2029-06-30 | BK7: 2029-09-30 | BL7: 2029-12-31 | BM7: 2030-03-31 | BN7: 2030-06-30 | BO7: 2030-09-30 | BP7: 2030-12-31 | BQ7: 2031-03-31 | BR7: 2031-06-30 | BS7: 2031-09-30 | BT7: =EDATE(BT6,BT4)-1 -> 2031-12-31 | BU7: 2032-03-31 | BV7: 2032-06-30 | BW7: 2032-09-30 | BX7: 2032-12-31 | BY7: 2033-03-31 | BZ7: 2033-06-30 | CA7: 2033-09-30 | CB7: 2033-12-31 | CC7: 2034-03-31 | CD7: 2034-06-30 | CE7: 2034-09-30 | CF7: 2034-12-31 | CG7: 2035-03-31 | CH7: 2035-06-30 | CI7: 2035-09-30 | CJ7: 2035-12-31 | CK7: 2036-03-31 | CL7: 2036-06-30 | CM7: 2036-09-30 | CN7: 2036-12-31 | CO7: 2037-03-31 | CP7: 2037-06-30 | CQ7: 2037-09-30 | CR7: 2037-12-31 | CS7: 2038-03-31 | CT7: 2038-06-30 | CU7: 2038-09-30 | CV7: 2038-12-31 | CW7: 2039-03-31 | CX7: 2039-06-30 | CY7: 2039-09-30 | CZ7: 2039-12-31 | DA7: 2040-03-31 | DB7: 2040-06-30 | DC7: 2040-09-30 | DD7: 2040-12-31 | DE7: 2041-03-31 | DF7: 2041-06-30 | DG7: 2041-09-30 | DH7: 2041-12-31 | DI7: 2042-03-31 | DJ7: 2042-06-30 | DK7: 2042-09-30 | DL7: 2042-12-31 | DM7: 2043-03-31 | DN7: 2043-06-30 | DO7: 2043-09-30 | DP7: 2043-12-31 | DQ7: 2044-03-31 | DR7: 2044-06-30 | DS7: 2044-09-30 | DT7: 2044-12-31 | DU7: 2045-03-31 | DV7: 2045-06-30 | DW7: 2045-09-30 | DX7: 2045-12-31 | DY7: 2046-03-31 | DZ7: 2046-06-30 | EA7: 2046-09-30 | EB7: 2046-12-31 | EC7: 2047-03-31 | ED7: 2047-06-30 | EE7: 2047-09-30 | EF7: =EDATE(EF6,EF4)-1 -> 2047-12-31 | EG7: 2048-03-31 | EH7: 2048-06-30 | EI7: 2048-09-30 | EJ7: 2048-12-31 | EK7: 2049-03-31 | EL7: 2049-06-30 | EM7: 2049-09-30 | EN7: 2049-12-31 | EO7: 2050-03-31 | EP7: 2050-06-30 | EQ7: 2050-09-30 | ER7: 2050-12-31 | ES7: 2051-03-31 | ET7: 2051-06-30 | EU7: 2051-09-30 | EV7: 2051-12-31 | EW7: 2052-03-31 | EX7: 2052-06-30 | EY7: 2052-09-30 | EZ7: 2052-12-31 | FA7: 2053-03-31 | FB7: 2053-06-30 | FC7: 2053-09-30 | FD7: 2053-12-31 | FE7: 2054-03-31 | FF7: 2054-06-30 | FG7: 2054-09-30 | FH7: 2054-12-31 | FI7: 2055-03-31 | FJ7: 2055-06-30 | FK7: 2055-09-30 | FL7: 2055-12-31 | FM7: 2056-03-31 | FN7: 2056-06-30 | FO7: 2056-09-30 | FP7: 2056-12-31 | FQ7: 2057-03-31 | FR7: 2057-06-30 | FS7: 2057-09-30 | FT7: 2057-12-31 | FU7: 2058-03-31 | FV7: 2058-06-30 | FW7: 2058-09-30 | FX7: 2058-12-31 | FY7: 2059-03-31 | FZ7: 2059-06-30 | GA7: 2059-09-30 | GB7: 2059-12-31 | GC7: 2060-03-31 | GD7: 2060-06-30 | GE7: 2060-09-30 | GF7: 2060-12-31 | GG7: 2061-03-31 | GH7: 2061-06-30 | GI7: 2061-09-30 | GJ7: 2061-12-31 | GK7: 2062-03-31 | GL7: 2062-06-30 | GM7: 2062-09-30 | GN7: 2062-12-31 | GO7: 2063-03-31 | GP7: 2063-06-30 | GQ7: 2063-09-30 | GR7: =EDATE(GR6,GR4)-1 -> 2063-12-31 | GS7: 2064-03-31 | GT7: 2064-06-30 | GU7: 2064-09-30 | GV7: 2064-12-31 | GW7: 2065-03-31 | GX7: 2065-06-30 | GY7: 2065-09-30 | GZ7: 2065-12-31 | HA7: 2066-03-31 | HB7: 2066-06-30 | HC7: 2066-09-30 | HD7: 2066-12-31 | HE7: 2067-03-31 | HF7: 2067-06-30 | HG7: 2067-09-30 | HH7: 2067-12-31 | HI7: 2068-03-31 | HJ7: 2068-06-30 | HK7: 2068-09-30 | HL7: 2068-12-31 | HM7: 2069-03-31 | HN7: 2069-06-30 | HO7: 2069-09-30 | HP7: 2069-12-31 | HQ7: 2070-03-31 | HR7: 2070-06-30 | HS7: 2070-09-30 | HT7: 2070-12-31 | HU7: 2071-03-31 | HV7: 2071-06-30 | HW7: 2071-09-30 | HX7: 2071-12-31 | HY7: 2072-03-31 | HZ7: 2072-06-30 | IA7: 2072-09-30 | IB7: 2072-12-31 | IC7: 2073-03-31 | ID7: 2073-06-30 | IE7: 2073-09-30 | IF7: 2073-12-31 | IG7: 2074-03-31 | IH7: 2074-06-30 | II7: 2074-09-30 | IJ7: 2074-12-31 | IK7: 2075-03-31 | IL7: 2075-06-30 | IM7: 2075-09-30 | IN7: 2075-12-31 | IO7: 2076-03-31 | IP7: 2076-06-30 | IQ7: 2076-09-30 | IR7: 2076-12-31 | IS7: 2077-03-31 | IT7: 2077-06-30 | IU7: 2077-09-30 | IV7: 2077-12-31 | IW7: 2078-03-31 | IX7: 2078-06-30 | IY7: 2078-09-30 | IZ7: 2078-12-31 | JA7: 2079-03-31 | JB7: 2079-06-30 | JC7: 2079-09-30 | JD7: =EDATE(JD6,JD4)-1 -> 2079-12-31 | JE7: 2080-03-31 | JF7: 2080-06-30 | JG7: 2080-09-30 | JH7: 2080-12-31 | JI7: 2081-03-31 | JJ7: 2081-06-30 | JK7: 2081-09-30 | JL7: 2081-12-31 | JM7: 2082-03-31 | JN7: 2082-06-30 | JO7: 2082-09-30 | JP7: 2082-12-31 | JQ7: 2083-03-31 | JR7: 2083-06-30 | JS7: 2083-09-30 | JT7: 2083-12-31 | JU7: 2084-03-31 | JV7: 2084-06-30 | JW7: 2084-09-30 | JX7: 2084-12-31 | JY7: 2085-03-31 | JZ7: 2085-06-30 | KA7: 2085-09-30 | KB7: 2085-12-31 | KC7: 2086-03-31 | KD7: 2086-06-30 | KE7: 2086-09-30 | KF7: 2086-12-31 | KG7: 2087-03-31 | KH7: 2087-06-30 | KI7: 2087-09-30 | KJ7: 2087-12-31 | KK7: 2088-03-31 | KL7: 2088-06-30 | KM7: 2088-09-30 | KN7: 2088-12-31 | KO7: 2089-03-31 | KP7: 2089-06-30 | KQ7: 2089-09-30 | KR7: 2089-12-31 | KS7: 2090-03-31 | KT7: 2090-06-30 | KU7: 2090-09-30
B8: Year | E8: Year | H8: =YEAR(H7) -> 2016 | I8: =YEAR(I7) -> 2016 | J8: 2016 | K8: 2017 | L8: 2017 | M8: 2017 | N8: 2017 | O8: 2017 | P8: 2017 | Q8: 2018 | R8: 2018 | S8: 2018 | T8: 2018 | U8: 2019 | V8: 2019 | W8: 2019 | X8: 2019 | Y8: 2020 | Z8: 2020 | AA8: 2020 | AB8: 2020 | AC8: 2021 | AD8: 2021 | AE8: 2021 | AF8: 2021 | AG8: 2022 | AH8: 2022 | AI8: 2022 | AJ8: 2022 | AK8: 2023 | AL8: 2023 | AM8: 2023 | AN8: 2023 | AO8: 2024 | AP8: 2024 | AQ8: 2024 | AR8: 2024 | AS8: 2025 | AT8: 2025 | AU8: 2025 | AV8: 2025 | AW8: 2026 | AX8: 2026 | AY8: 2026 | AZ8: 2026 | BA8: 2027 | BB8: 2027 | BC8: 2027 | BD8: 2027 | BE8: 2028 | BF8: 2028 | BG8: 2028 | BH8: 2028 | BI8: 2029 | BJ8: 2029 | BK8: 2029 | BL8: 2029 | BM8: 2030 | BN8: 2030 | BO8: 2030 | BP8: 2030 | BQ8: 2031 | BR8: 2031 | BS8: 2031 | BT8: 2031 | BU8: =YEAR(BU7) -> 2032 | BV8: 2032 | BW8: 2032 | BX8: 2032 | BY8: 2033 | BZ8: 2033 | CA8: 2033 | CB8: 2033 | CC8: 2034 | CD8: 2034 | CE8: 2034 | CF8: 2034 | CG8: 2035 | CH8: 2035 | CI8: 2035 | CJ8: 2035 | CK8: 2036 | CL8: 2036 | CM8: 2036 | CN8: 2036 | CO8: 2037 | CP8: 2037 | CQ8: 2037 | CR8: 2037 | CS8: 2038 | CT8: 2038 | CU8: 2038 | CV8: 2038 | CW8: 2039 | CX8: 2039 | CY8: 2039 | CZ8: 2039 | DA8: 2040 | DB8: 2040 | DC8: 2040 | DD8: 2040 | DE8: 2041 | DF8: 2041 | DG8: 2041 | DH8: 2041 | DI8: 2042 | DJ8: 2042 | DK8: 2042 | DL8: 2042 | DM8: 2043 | DN8: 2043 | DO8: 2043 | DP8: 2043 | DQ8: 2044 | DR8: 2044 | DS8: 2044 | DT8: 2044 | DU8: 2045 | DV8: 2045 | DW8: 2045 | DX8: 2045 | DY8: 2046 | DZ8: 2046 | EA8: 2046 | EB8: 2046 | EC8: 2047 | ED8: 2047 | EE8: 2047 | EF8: 2047 | EG8: =YEAR(EG7) -> 2048 | EH8: 2048 | EI8: 2048 | EJ8: 2048 | EK8: 2049 | EL8: 2049 | EM8: 2049 | EN8: 2049 | EO8: 2050 | EP8: 2050 | EQ8: 2050 | ER8: 2050 | ES8: 2051 | ET8: 2051 | EU8: 2051 | EV8: 2051 | EW8: 2052 | EX8: 2052 | EY8: 2052 | EZ8: 2052 | FA8: 2053 | FB8: 2053 | FC8: 2053 | FD8: 2053 | FE8: 2054 | FF8: 2054 | FG8: 2054 | FH8: 2054 | FI8: 2055 | FJ8: 2055 | FK8: 2055 | FL8: 2055 | FM8: 2056 | FN8: 2056 | FO8: 2056 | FP8: 2056 | FQ8: 2057 | FR8: 2057 | FS8: 2057 | FT8: 2057 | FU8: 2058 | FV8: 2058 | FW8: 2058 | FX8: 2058 | FY8: 2059 | FZ8: 2059 | GA8: 2059 | GB8: 2059 | GC8: 2060 | GD8: 2060 | GE8: 2060 | GF8: 2060 | GG8: 2061 | GH8: 2061 | GI8: 2061 | GJ8: 2061 | GK8: 2062 | GL8: 2062 | GM8: 2062 | GN8: 2062 | GO8: 2063 | GP8: 2063 | GQ8: 2063 | GR8: 2063 | GS8: =YEAR(GS7) -> 2064 | GT8: 2064 | GU8: 2064 | GV8: 2064 | GW8: 2065 | GX8: 2065 | GY8: 2065 | GZ8: 2065 | HA8: 2066 | HB8: 2066 | HC8: 2066 | HD8: 2066 | HE8: 2067 | HF8: 2067 | HG8: 2067 | HH8: 2067 | HI8: 2068 | HJ8: 2068 | HK8: 2068 | HL8: 2068 | HM8: 2069 | HN8: 2069 | HO8: 2069 | HP8: 2069 | HQ8: 2070 | HR8: 2070 | HS8: 2070 | HT8: 2070 | HU8: 2071 | HV8: 2071 | HW8: 2071 | HX8: 2071 | HY8: 2072 | HZ8: 2072 | IA8: 2072 | IB8: 2072 | IC8: 2073 | ID8: 2073 | IE8: 2073 | IF8: 2073 | IG8: 2074 | IH8: 2074 | II8: 2074 | IJ8: 2074 | IK8: 2075 | IL8: 2075 | IM8: 2075 | IN8: 2075 | IO8: 2076 | IP8: 2076 | IQ8: 2076 | IR8: 2076 | IS8: 2077 | IT8: 2077 | IU8: 2077 | IV8: 2077 | IW8: 2078 | IX8: 2078 | IY8: 2078 | IZ8: 2078 | JA8: 2079 | JB8: 2079 | JC8: 2079 | JD8: 2079 | JE8: =YEAR(JE7) -> 2080 | JF8: 2080 | JG8: 2080 | JH8: 2080 | JI8: 2081 | JJ8: 2081 | JK8: 2081 | JL8: 2081 | JM8: 2082 | JN8: 2082 | JO8: 2082 | JP8: 2082 | JQ8: 2083 | JR8: 2083 | JS8: 2083 | JT8: 2083 | JU8: 2084 | JV8: 2084 | JW8: 2084 | JX8: 2084 | JY8: 2085 | JZ8: 2085 | KA8: 2085 | KB8: 2085 | KC8: 2086 | KD8: 2086 | KE8: 2086 | KF8: 2086 | KG8: 2087 | KH8: 2087 | KI8: 2087 | KJ8: 2087 | KK8: 2088 | KL8: 2088 | KM8: 2088 | KN8: 2088 | KO8: 2089 | KP8: 2089 | KQ8: 2089 | KR8: 2089 | KS8: 2090 | KT8: 2090 | KU8: 2090
B9: Operating Period | F9: =Assumptions!F4 -> 2017-04-01 | G9: =Assumptions!F7 -> 2042-04-01 | H9: =AND(H6>=$F$9,H6<$G$9) -> FALSE | I9: FALSE | J9: FALSE | K9: FALSE | L9: FALSE | M9: FALSE | N9: TRUE | O9: TRUE | P9: TRUE | Q9: TRUE | R9: TRUE | S9: TRUE | T9: TRUE | U9: TRUE | V9: TRUE | W9: TRUE | X9: TRUE | Y9: TRUE | Z9: TRUE | AA9: TRUE | AB9: TRUE | AC9: TRUE | AD9: TRUE | AE9: TRUE | AF9: TRUE | AG9: TRUE | AH9: TRUE | AI9: TRUE | AJ9: TRUE | AK9: TRUE | AL9: TRUE | AM9: TRUE | AN9: TRUE | AO9: TRUE | AP9: TRUE | AQ9: TRUE | AR9: TRUE | AS9: TRUE | AT9: TRUE | AU9: TRUE | AV9: TRUE | AW9: TRUE | AX9: TRUE | AY9: TRUE | AZ9: TRUE | BA9: TRUE | BB9: TRUE | BC9: TRUE | BD9: TRUE | BE9: TRUE | BF9: TRUE | BG9: TRUE | BH9: TRUE | BI9: TRUE | BJ9: TRUE | BK9: TRUE | BL9: TRUE | BM9: TRUE | BN9: TRUE | BO9: TRUE | BP9: TRUE | BQ9: TRUE | BR9: TRUE | BS9: TRUE | BT9: =AND(BT6>=$F$9,BT6<$G$9) -> TRUE | BU9: TRUE | BV9: TRUE | BW9: TRUE | BX9: TRUE | BY9: TRUE | BZ9: TRUE | CA9: TRUE | CB9: TRUE | CC9: TRUE | CD9: TRUE | CE9: TRUE | CF9: TRUE | CG9: TRUE | CH9: TRUE | CI9: TRUE | CJ9: TRUE | CK9: TRUE | CL9: TRUE | CM9: TRUE | CN9: TRUE | CO9: TRUE | CP9: TRUE | CQ9: TRUE | CR9: TRUE | CS9: TRUE | CT9: TRUE | CU9: TRUE | CV9: TRUE | CW9: TRUE | CX9: TRUE | CY9: TRUE | CZ9: TRUE | DA9: TRUE | DB9: TRUE | DC9: TRUE | DD9: TRUE | DE9: TRUE | DF9: TRUE | DG9: TRUE | DH9: TRUE | DI9: TRUE | DJ9: FALSE | DK9: FALSE | DL9: FALSE | DM9: FALSE | DN9: FALSE | DO9: FALSE | DP9: FALSE | DQ9: FALSE | DR9: FALSE | DS9: FALSE | DT9: FALSE | DU9: FALSE | DV9: FALSE | DW9: FALSE | DX9: FALSE | DY9: FALSE | DZ9: FALSE | EA9: FALSE | EB9: FALSE | EC9: FALSE | ED9: FALSE | EE9: FALSE | EF9: =AND(EF6>=$F$9,EF6<$G$9) -> FALSE | EG9: FALSE | EH9: FALSE | EI9: FALSE | EJ9: FALSE | EK9: FALSE | EL9: FALSE | EM9: FALSE | EN9: FALSE | EO9: FALSE | EP9: FALSE | EQ9: FALSE | ER9: FALSE | ES9: FALSE | ET9: FALSE | EU9: FALSE | EV9: FALSE | EW9: FALSE | EX9: FALSE | EY9: FALSE | EZ9: FALSE | FA9: FALSE | FB9: FALSE | FC9: FALSE | FD9: FALSE | FE9: FALSE | FF9: FALSE | FG9: FALSE | FH9: FALSE | FI9: FALSE | FJ9: FALSE | FK9: FALSE | FL9: FALSE | FM9: FALSE | FN9: FALSE | FO9: FALSE | FP9: FALSE | FQ9: FALSE | FR9: FALSE | FS9: FALSE | FT9: FALSE | FU9: FALSE | FV9: FALSE | FW9: FALSE | FX9: FALSE | FY9: FALSE | FZ9: FALSE | GA9: FALSE | GB9: FALSE | GC9: FALSE | GD9: FALSE | GE9: FALSE | GF9: FALSE | GG9: FALSE | GH9: FALSE | GI9: FALSE | GJ9: FALSE | GK9: FALSE | GL9: FALSE | GM9: FALSE | GN9: FALSE | GO9: FALSE | GP9: FALSE | GQ9: FALSE | GR9: =AND(GR6>=$F$9,GR6<$G$9) -> FALSE | GS9: FALSE | GT9: FALSE | GU9: FALSE | GV9: FALSE | GW9: FALSE | GX9: FALSE | GY9: FALSE | GZ9: FALSE | HA9: FALSE | HB9: FALSE | HC9: FALSE | HD9: FALSE | HE9: FALSE | HF9: FALSE | HG9: FALSE | HH9: FALSE | HI9: FALSE | HJ9: FALSE | HK9: FALSE | HL9: FALSE | HM9: FALSE | HN9: FALSE | HO9: FALSE | HP9: FALSE | HQ9: FALSE | HR9: FALSE | HS9: FALSE | HT9: FALSE | HU9: FALSE | HV9: FALSE | HW9: FALSE | HX9: FALSE | HY9: FALSE | HZ9: FALSE | IA9: FALSE | IB9: FALSE | IC9: FALSE | ID9: FALSE | IE9: FALSE | IF9: FALSE | IG9: FALSE | IH9: FALSE | II9: FALSE | IJ9: FALSE | IK9: FALSE | IL9: FALSE | IM9: FALSE | IN9: FALSE | IO9: FALSE | IP9: FALSE | IQ9: FALSE | IR9: FALSE | IS9: FALSE | IT9: FALSE | IU9: FALSE | IV9: FALSE | IW9: FALSE | IX9: FALSE | IY9: FALSE | IZ9: FALSE | JA9: FALSE | JB9: FALSE | JC9: FALSE | JD9: =AND(JD6>=$F$9,JD6<$G$9) -> FALSE | JE9: FALSE | JF9: FALSE | JG9: FALSE | JH9: FALSE | JI9: FALSE | JJ9: FALSE | JK9: FALSE | JL9: FALSE | JM9: FALSE | JN9: FALSE | JO9: FALSE | JP9: FALSE | JQ9: FALSE | JR9: FALSE | JS9: FALSE | JT9: FALSE | JU9: FALSE | JV9: FALSE | JW9: FALSE | JX9: FALSE | JY9: FALSE | JZ9: FALSE | KA9: FALSE | KB9: FALSE | KC9: FALSE | KD9: FALSE | KE9: FALSE | KF9: FALSE | KG9: FALSE | KH9: FALSE | KI9: FALSE | KJ9: FALSE | KK9: FALSE | KL9: FALSE | KM9: FALSE | KN9: FALSE | KO9: FALSE | KP9: FALSE | KQ9: FALSE | KR9: FALSE | KS9: FALSE | KT9: FALSE | KU9: FALSE
A11: Operations | E11: Date
B12: Plant Size | E12: MW | F12: =Assumptions!F10 -> 2.3 | H12: =$F$12*H9 -> 0 | I12: 0 | J12: 0 | K12: 0 | L12: 0 | M12: 0 | N12: 2.3 | O12: 2.3 | P12: 2.3 | Q12: 2.3 | R12: 2.3 | S12: 2.3 | T12: 2.3 | U12: 2.3 | V12: 2.3 | W12: 2.3 | X12: 2.3 | Y12: 2.3 | Z12: 2.3 | AA12: 2.3 | AB12: 2.3 | AC12: 2.3 | AD12: 2.3 | AE12: 2.3 | AF12: 2.3 | AG12: 2.3 | AH12: 2.3 | AI12: 2.3 | AJ12: 2.3 | AK12: 2.3 | AL12: 2.3 | AM12: 2.3 | AN12: 2.3 | AO12: 2.3 | AP12: 2.3 | AQ12: 2.3 | AR12: 2.3 | AS12: 2.3 | AT12: 2.3 | AU12: 2.3 | AV12: 2.3 | AW12: 2.3 | AX12: 2.3 | AY12: 2.3 | AZ12: 2.3 | BA12: 2.3 | BB12: 2.3 | BC12: 2.3 | BD12: 2.3 | BE12: 2.3 | BF12: 2.3 | BG12: 2.3 | BH12: 2.3 | BI12: 2.3 | BJ12: 2.3 | BK12: 2.3 | BL12: 2.3 | BM12: 2.3 | BN12: 2.3 | BO12: 2.3 | BP12: 2.3 | BQ12: 2.3 | BR12: 2.3 | BS12: 2.3 | BT12: =$F$12*BT9 -> 2.3 | BU12: 2.3 | BV12: 2.3 | BW12: 2.3 | BX12: 2.3 | BY12: 2.3 | BZ12: 2.3 | CA12: 2.3 | CB12: 2.3 | CC12: 2.3 | CD12: 2.3 | CE12: 2.3 | CF12: 2.3 | CG12: 2.3 | CH12: 2.3 | CI12: 2.3 | CJ12: 2.3 | CK12: 2.3 | CL12: 2.3 | CM12: 2.3 | CN12: 2.3 | CO12: 2.3 | CP12: 2.3 | CQ12: 2.3 | CR12: 2.3 | CS12: 2.3 | CT12: 2.3 | CU12: 2.3 | CV12: 2.3 | CW12: 2.3 | CX12: 2.3 | CY12: 2.3 | CZ12: 2.3 | DA12: 2.3 | DB12: 2.3 | DC12: 2.3 | DD12: 2.3 | DE12: 2.3 | DF12: 2.3 | DG12: 2.3 | DH12: 2.3 | DI12: 2.3 | DJ12: 0 | DK12: 0 | DL12: 0 | DM12: 0 | DN12: 0 | DO12: 0 | DP12: 0 | DQ12: 0 | DR12: 0 | DS12: 0 | DT12: 0 | DU12: 0 | DV12: 0 | DW12: 0 | DX12: 0 | DY12: 0 | DZ12: 0 | EA12: 0 | EB12: 0 | EC12: 0 | ED12: 0 | EE12: 0 | EF12: =$F$12*EF9 -> 0 | EG12: 0 | EH12: 0 | EI12: 0 | EJ12: 0 | EK12: 0 | EL12: 0 | EM12: 0 | EN12: 0 | EO12: 0 | EP12: 0 | EQ12: 0 | ER12: 0 | ES12: 0 | ET12: 0 | EU12: 0 | EV12: 0 | EW12: 0 | EX12: 0 | EY12: 0 | EZ12: 0 | FA12: 0 | FB12: 0 | FC12: 0 | FD12: 0 | FE12: 0 | FF12: 0 | FG12: 0 | FH12: 0 | FI12: 0 | FJ12: 0 | FK12: 0 | FL12: 0 | FM12: 0 | FN12: 0 | FO12: 0 | FP12: 0 | FQ12: 0 | FR12: 0 | FS12: 0 | FT12: 0 | FU12: 0 | FV12: 0 | FW12: 0 | FX12: 0 | FY12: 0 | FZ12: 0 | GA12: 0 | GB12: 0 | GC12: 0 | GD12: 0 | GE12: 0 | GF12: 0 | GG12: 0 | GH12: 0 | GI12: 0 | GJ12: 0 | GK12: 0 | GL12: 0 | GM12: 0 | GN12: 0 | GO12: 0 | GP12: 0 | GQ12: 0 | GR12: =$F$12*GR9 -> 0 | GS12: 0 | GT12: 0 | GU12: 0 | GV12: 0 | GW12: 0 | GX12: 0 | GY12: 0 | GZ12: 0 | HA12: 0 | HB12: 0 | HC12: 0 | HD12: 0 | HE12: 0 | HF12: 0 | HG12: 0 | HH12: 0 | HI12: 0 | HJ12: 0 | HK12: 0 | HL12: 0 | HM12: 0 | HN12: 0 | HO12: 0 | HP12: 0 | HQ12: 0 | HR12: 0 | HS12: 0 | HT12: 0 | HU12: 0 | HV12: 0 | HW12: 0 | HX12: 0 | HY12: 0 | HZ12: 0 | IA12: 0 | IB12: 0 | IC12: 0 | ID12: 0 | IE12: 0 | IF12: 0 | IG12: 0 | IH12: 0 | II12: 0 | IJ12: 0 | IK12: 0 | IL12: 0 | IM12: 0 | IN12: 0 | IO12: 0 | IP12: 0 | IQ12: 0 | IR12: 0 | IS12: 0 | IT12: 0 | IU12: 0 | IV12: 0 | IW12: 0 | IX12: 0 | IY12: 0 | IZ12: 0 | JA12: 0 | JB12: 0 | JC12: 0 | JD12: =$F$12*JD9 -> 0 | JE12: 0 | JF12: 0 | JG12: 0 | JH12: 0 | JI12: 0 | JJ12: 0 | JK12: 0 | JL12: 0 | JM12: 0 | JN12: 0 | JO12: 0 | JP12: 0 | JQ12: 0 | JR12: 0 | JS12: 0 | JT12: 0 | JU12: 0 | JV12: 0 | JW12: 0 | JX12: 0 | JY12: 0 | JZ12: 0 | KA12: 0 | KB12: 0 | KC12: 0 | KD12: 0 | KE12: 0 | KF12: 0 | KG12: 0 | KH12: 0 | KI12: 0 | KJ12: 0 | KK12: 0 | KL12: 0 | KM12: 0 | KN12: 0 | KO12: 0 | KP12: 0 | KQ12: 0 | KR12: 0 | KS12: 0 | KT12: 0 | KU12: 0
B13: Capacity Factor | E13: % | F13: =Assumptions!F13 -> 0.162 | H13: =$F$13*H9 -> 0 | I13: 0 | J13: 0 | K13: 0 | L13: 0 | M13: 0 | N13: 0.162 | O13: 0.162 | P13: 0.162 | Q13: 0.162 | R13: 0.162 | S13: 0.162 | T13: 0.162 | U13: 0.162 | V13: 0.162 | W13: 0.162 | X13: 0.162 | Y13: 0.162 | Z13: 0.162 | AA13: 0.162 | AB13: 0.162 | AC13: 0.162 | AD13: 0.162 | AE13: 0.162 | AF13: 0.162 | AG13: 0.162 | AH13: 0.162 | AI13: 0.162 | AJ13: 0.162 | AK13: 0.162 | AL13: 0.162 | AM13: 0.162 | AN13: 0.162 | AO13: 0.162 | AP13: 0.162 | AQ13: 0.162 | AR13: 0.162 | AS13: 0.162 | AT13: 0.162 | AU13: 0.162 | AV13: 0.162 | AW13: 0.162 | AX13: 0.162 | AY13: 0.162 | AZ13: 0.162 | BA13: 0.162 | BB13: 0.162 | BC13: 0.162 | BD13: 0.162 | BE13: 0.162 | BF13: 0.162 | BG13: 0.162 | BH13: 0.162 | BI13: 0.162 | BJ13: 0.162 | BK13: 0.162 | BL13: 0.162 | BM13: 0.162 | BN13: 0.162 | BO13: 0.162 | BP13: 0.162 | BQ13: 0.162 | BR13: 0.162 | BS13: 0.162 | BT13: =$F$13*BT9 -> 0.162 | BU13: 0.162 | BV13: 0.162 | BW13: 0.162 | BX13: 0.162 | BY13: 0.162 | BZ13: 0.162 | CA13: 0.162 | CB13: 0.162 | CC13: 0.162 | CD13: 0.162 | CE13: 0.162 | CF13: 0.162 | CG13: 0.162 | CH13: 0.162 | CI13: 0.162 | CJ13: 0.162 | CK13: 0.162 | CL13: 0.162 | CM13: 0.162 | CN13: 0.162 | CO13: 0.162 | CP13: 0.162 | CQ13: 0.162 | CR13: 0.162 | CS13: 0.162 | CT13: 0.162 | CU13: 0.162 | CV13: 0.162 | CW13: 0.162 | CX13: 0.162 | CY13: 0.162 | CZ13: 0.162 | DA13: 0.162 | DB13: 0.162 | DC13: 0.162 | DD13: 0.162 | DE13: 0.162 | DF13: 0.162 | DG13: 0.162 | DH13: 0.162 | DI13: 0.162 | DJ13: 0 | DK13: 0 | DL13: 0 | DM13: 0 | DN13: 0 | DO13: 0 | DP13: 0 | DQ13: 0 | DR13: 0 | DS13: 0 | DT13: 0 | DU13: 0 | DV13: 0 | DW13: 0 | DX13: 0 | DY13: 0 | DZ13: 0 | EA13: 0 | EB13: 0 | EC13: 0 | ED13: 0 | EE13: 0 | EF13: =$F$13*EF9 -> 0 | EG13: 0 | EH13: 0 | EI13: 0 | EJ13: 0 | EK13: 0 | EL13: 0 | EM13: 0 | EN13: 0 | EO13: 0 | EP13: 0 | EQ13: 0 | ER13: 0 | ES13: 0 | ET13: 0 | EU13: 0 | EV13: 0 | EW13: 0 | EX13: 0 | EY13: 0 | EZ13: 0 | FA13: 0 | FB13: 0 | FC13: 0 | FD13: 0 | FE13: 0 | FF13: 0 | FG13: 0 | FH13: 0 | FI13: 0 | FJ13: 0 | FK13: 0 | FL13: 0 | FM13: 0 | FN13: 0 | FO13: 0 | FP13: 0 | FQ13: 0 | FR13: 0 | FS13: 0 | FT13: 0 | FU13: 0 | FV13: 0 | FW13: 0 | FX13: 0 | FY13: 0 | FZ13: 0 | GA13: 0 | GB13: 0 | GC13: 0 | GD13: 0 | GE13: 0 | GF13: 0 | GG13: 0 | GH13: 0 | GI13: 0 | GJ13: 0 | GK13: 0 | GL13: 0 | GM13: 0 | GN13: 0 | GO13: 0 | GP13: 0 | GQ13: 0 | GR13: =$F$13*GR9 -> 0 | GS13: 0 | GT13: 0 | GU13: 0 | GV13: 0 | GW13: 0 | GX13: 0 | GY13: 0 | GZ13: 0 | HA13: 0 | HB13: 0 | HC13: 0 | HD13: 0 | HE13: 0 | HF13: 0 | HG13: 0 | HH13: 0 | HI13: 0 | HJ13: 0 | HK13: 0 | HL13: 0 | HM13: 0 | HN13: 0 | HO13: 0 | HP13: 0 | HQ13: 0 | HR13: 0 | HS13: 0 | HT13: 0 | HU13: 0 | HV13: 0 | HW13: 0 | HX13: 0 | HY13: 0 | HZ13: 0 | IA13: 0 | IB13: 0 | IC13: 0 | ID13: 0 | IE13: 0 | IF13: 0 | IG13: 0 | IH13: 0 | II13: 0 | IJ13: 0 | IK13: 0 | IL13: 0 | IM13: 0 | IN13: 0 | IO13: 0 | IP13: 0 | IQ13: 0 | IR13: 0 | IS13: 0 | IT13: 0 | IU13: 0 | IV13: 0 | IW13: 0 | IX13: 0 | IY13: 0 | IZ13: 0 | JA13: 0 | JB13: 0 | JC13: 0 | JD13: =$F$13*JD9 -> 0 | JE13: 0 | JF13: 0 | JG13: 0 | JH13: 0 | JI13: 0 | JJ13: 0 | JK13: 0 | JL13: 0 | JM13: 0 | JN13: 0 | JO13: 0 | JP13: 0 | JQ13: 0 | JR13: 0 | JS13: 0 | JT13: 0 | JU13: 0 | JV13: 0 | JW13: 0 | JX13: 0 | JY13: 0 | JZ13: 0 | KA13: 0 | KB13: 0 | KC13: 0 | KD13: 0 | KE13: 0 | KF13: 0 | KG13: 0 | KH13: 0 | KI13: 0 | KJ13: 0 | KK13: 0 | KL13: 0 | KM13: 0 | KN13: 0 | KO13: 0 | KP13: 0 | KQ13: 0 | KR13: 0 | KS13: 0 | KT13: 0 | KU13: 0
B15: Annual Degradation | E15: % p.a. | F15: =Assumptions!F14 -> 0.005 | H15: =$F$15*H9 -> 0 | I15: 0 | J15: 0 | K15: 0 | L15: 0 | M15: 0 | N15: 0.005 | O15: 0.005 | P15: 0.005 | Q15: 0.005 | R15: 0.005 | S15: 0.005 | T15: 0.005 | U15: 0.005 | V15: 0.005 | W15: 0.005 | X15: 0.005 | Y15: 0.005 | Z15: 0.005 | AA15: 0.005 | AB15: 0.005 | AC15: 0.005 | AD15: 0.005 | AE15: 0.005 | AF15: 0.005 | AG15: 0.005 | AH15: 0.005 | AI15: 0.005 | AJ15: 0.005 | AK15: 0.005 | AL15: 0.005 | AM15: 0.005 | AN15: 0.005 | AO15: 0.005 | AP15: 0.005 | AQ15: 0.005 | AR15: 0.005 | AS15: 0.005 | AT15: 0.005 | AU15: 0.005 | AV15: 0.005 | AW15: 0.005 | AX15: 0.005 | AY15: 0.005 | AZ15: 0.005 | BA15: 0.005 | BB15: 0.005 | BC15: 0.005 | BD15: 0.005 | BE15: 0.005 | BF15: 0.005 | BG15: 0.005 | BH15: 0.005 | BI15: 0.005 | BJ15: 0.005 | BK15: 0.005 | BL15: 0.005 | BM15: 0.005 | BN15: 0.005 | BO15: 0.005 | BP15: 0.005 | BQ15: 0.005 | BR15: 0.005 | BS15: 0.005 | BT15: =$F$15*BT9 -> 0.005 | BU15: 0.005 | BV15: 0.005 | BW15: 0.005 | BX15: 0.005 | BY15: 0.005 | BZ15: 0.005 | CA15: 0.005 | CB15: 0.005 | CC15: 0.005 | CD15: 0.005 | CE15: 0.005 | CF15: 0.005 | CG15: 0.005 | CH15: 0.005 | CI15: 0.005 | CJ15: 0.005 | CK15: 0.005 | CL15: 0.005 | CM15: 0.005 | CN15: 0.005 | CO15: 0.005 | CP15: 0.005 | CQ15: 0.005 | CR15: 0.005 | CS15: 0.005 | CT15: 0.005 | CU15: 0.005 | CV15: 0.005 | CW15: 0.005 | CX15: 0.005 | CY15: 0.005 | CZ15: 0.005 | DA15: 0.005 | DB15: 0.005 | DC15: 0.005 | DD15: 0.005 | DE15: 0.005 | DF15: 0.005 | DG15: 0.005 | DH15: 0.005 | DI15: 0.005 | DJ15: 0 | DK15: 0 | DL15: 0 | DM15: 0 | DN15: 0 | DO15: 0 | DP15: 0 | DQ15: 0 | DR15: 0 | DS15: 0 | DT15: 0 | DU15: 0 | DV15: 0 | DW15: 0 | DX15: 0 | DY15: 0 | DZ15: 0 | EA15: 0 | EB15: 0 | EC15: 0 | ED15: 0 | EE15: 0 | EF15: =$F$15*EF9 -> 0 | EG15: 0 | EH15: 0 | EI15: 0 | EJ15: 0 | EK15: 0 | EL15: 0 | EM15: 0 | EN15: 0 | EO15: 0 | EP15: 0 | EQ15: 0 | ER15: 0 | ES15: 0 | ET15: 0 | EU15: 0 | EV15: 0 | EW15: 0 | EX15: 0 | EY15: 0 | EZ15: 0 | FA15: 0 | FB15: 0 | FC15: 0 | FD15: 0 | FE15: 0 | FF15: 0 | FG15: 0 | FH15: 0 | FI15: 0 | FJ15: 0 | FK15: 0 | FL15: 0 | FM15: 0 | FN15: 0 | FO15: 0 | FP15: 0 | FQ15: 0 | FR15: 0 | FS15: 0 | FT15: 0 | FU15: 0 | FV15: 0 | FW15: 0 | FX15: 0 | FY15: 0 | FZ15: 0 | GA15: 0 | GB15: 0 | GC15: 0 | GD15: 0 | GE15: 0 | GF15: 0 | GG15: 0 | GH15: 0 | GI15: 0 | GJ15: 0 | GK15: 0 | GL15: 0 | GM15: 0 | GN15: 0 | GO15: 0 | GP15: 0 | GQ15: 0 | GR15: =$F$15*GR9 -> 0 | GS15: 0 | GT15: 0 | GU15: 0 | GV15: 0 | GW15: 0 | GX15: 0 | GY15: 0 | GZ15: 0 | HA15: 0 | HB15: 0 | HC15: 0 | HD15: 0 | HE15: 0 | HF15: 0 | HG15: 0 | HH15: 0 | HI15: 0 | HJ15: 0 | HK15: 0 | HL15: 0 | HM15: 0 | HN15: 0 | HO15: 0 | HP15: 0 | HQ15: 0 | HR15: 0 | HS15: 0 | HT15: 0 | HU15: 0 | HV15: 0 | HW15: 0 | HX15: 0 | HY15: 0 | HZ15: 0 | IA15: 0 | IB15: 0 | IC15: 0 | ID15: 0 | IE15: 0 | IF15: 0 | IG15: 0 | IH15: 0 | II15: 0 | IJ15: 0 | IK15: 0 | IL15: 0 | IM15: 0 | IN15: 0 | IO15: 0 | IP15: 0 | IQ15: 0 | IR15: 0 | IS15: 0 | IT15: 0 | IU15: 0 | IV15: 0 | IW15: 0 | IX15: 0 | IY15: 0 | IZ15: 0 | JA15: 0 | JB15: 0 | JC15: 0 | JD15: =$F$15*JD9 -> 0 | JE15: 0 | JF15: 0 | JG15: 0 | JH15: 0 | JI15: 0 | JJ15: 0 | JK15: 0 | JL15: 0 | JM15: 0 | JN15: 0 | JO15: 0 | JP15: 0 | JQ15: 0 | JR15: 0 | JS15: 0 | JT15: 0 | JU15: 0 | JV15: 0 | JW15: 0 | JX15: 0 | JY15: 0 | JZ15: 0 | KA15: 0 | KB15: 0 | KC15: 0 | KD15: 0 | KE15: 0 | KF15: 0 | KG15: 0 | KH15: 0 | KI15: 0 | KJ15: 0 | KK15: 0 | KL15: 0 | KM15: 0 | KN15: 0 | KO15: 0 | KP15: 0 | KQ15: 0 | KR15: 0 | KS15: 0 | KT15: 0 | KU15: 0
B16: Periodic Degradation | E16: % | H16: =(1+H15)^(H4/12)-1 -> 0 | I16: 0 | J16: 0 | K16: 0 | L16: 0 | M16: 0 | N16: 0.001247663063 | O16: 0.001247663063 | P16: 0.001247663063 | Q16: 0.001247663063 | R16: 0.001247663063 | S16: 0.001247663063 | T16: 0.001247663063 | U16: 0.001247663063 | V16: 0.001247663063 | W16: 0.001247663063 | X16: 0.001247663063 | Y16: 0.001247663063 | Z16: 0.001247663063 | AA16: 0.001247663063 | AB16: 0.001247663063 | AC16: 0.001247663063 | AD16: 0.001247663063 | AE16: 0.001247663063 | AF16: 0.001247663063 | AG16: 0.001247663063 | AH16: 0.001247663063 | AI16: 0.001247663063 | AJ16: 0.001247663063 | AK16: 0.001247663063 | AL16: 0.001247663063 | AM16: 0.001247663063 | AN16: 0.001247663063 | AO16: 0.001247663063 | AP16: 0.001247663063 | AQ16: 0.001247663063 | AR16: 0.001247663063 | AS16: 0.001247663063 | AT16: 0.001247663063 | AU16: 0.001247663063 | AV16: 0.001247663063 | AW16: 0.001247663063 | AX16: 0.001247663063 | AY16: 0.001247663063 | AZ16: 0.001247663063 | BA16: 0.001247663063 | BB16: 0.001247663063 | BC16: 0.001247663063 | BD16: 0.001247663063 | BE16: 0.001247663063 | BF16: 0.001247663063 | BG16: 0.001247663063 | BH16: 0.001247663063 | BI16: 0.001247663063 | BJ16: 0.001247663063 | BK16: 0.001247663063 | BL16: 0.001247663063 | BM16: 0.001247663063 | BN16: 0.001247663063 | BO16: 0.001247663063 | BP16: 0.001247663063 | BQ16: 0.001247663063 | BR16: 0.001247663063 | BS16: 0.001247663063 | BT16: =(1+BT15)^(BT4/12)-1 -> 0.001247663063 | BU16: 0.001247663063 | BV16: 0.001247663063 | BW16: 0.001247663063 | BX16: 0.001247663063 | BY16: 0.001247663063 | BZ16: 0.001247663063 | CA16: 0.001247663063 | CB16: 0.001247663063 | CC16: 0.001247663063 | CD16: 0.001247663063 | CE16: 0.001247663063 | CF16: 0.001247663063 | CG16: 0.001247663063 | CH16: 0.001247663063 | CI16: 0.001247663063 | CJ16: 0.001247663063 | CK16: 0.001247663063 | CL16: 0.001247663063 | CM16: 0.001247663063 | CN16: 0.001247663063 | CO16: 0.001247663063 | CP16: 0.001247663063 | CQ16: 0.001247663063 | CR16: 0.001247663063 | CS16: 0.001247663063 | CT16: 0.001247663063 | CU16: 0.001247663063 | CV16: 0.001247663063 | CW16: 0.001247663063 | CX16: 0.001247663063 | CY16: 0.001247663063 | CZ16: 0.001247663063 | DA16: 0.001247663063 | DB16: 0.001247663063 | DC16: 0.001247663063 | DD16: 0.001247663063 | DE16: 0.001247663063 | DF16: 0.001247663063 | DG16: 0.001247663063 | DH16: 0.001247663063 | DI16: 0.001247663063 | DJ16: 0 | DK16: 0 | DL16: 0 | DM16: 0 | DN16: 0 | DO16: 0 | DP16: 0 | DQ16: 0 | DR16: 0 | DS16: 0 | DT16: 0 | DU16: 0 | DV16: 0 | DW16: 0 | DX16: 0 | DY16: 0 | DZ16: 0 | EA16: 0 | EB16: 0 | EC16: 0 | ED16: 0 | EE16: 0 | EF16: =(1+EF15)^(EF4/12)-1 -> 0 | EG16: 0 | EH16: 0 | EI16: 0 | EJ16: 0 | EK16: 0 | EL16: 0 | EM16: 0 | EN16: 0 | EO16: 0 | EP16: 0 | EQ16: 0 | ER16: 0 | ES16: 0 | ET16: 0 | EU16: 0 | EV16: 0 | EW16: 0 | EX16: 0 | EY16: 0 | EZ16: 0 | FA16: 0 | FB16: 0 | FC16: 0 | FD16: 0 | FE16: 0 | FF16: 0 | FG16: 0 | FH16: 0 | FI16: 0 | FJ16: 0 | FK16: 0 | FL16: 0 | FM16: 0 | FN16: 0 | FO16: 0 | FP16: 0 | FQ16: 0 | FR16: 0 | FS16: 0 | FT16: 0 | FU16: 0 | FV16: 0 | FW16: 0 | FX16: 0 | FY16: 0 | FZ16: 0 | GA16: 0 | GB16: 0 | GC16: 0 | GD16: 0 | GE16: 0 | GF16: 0 | GG16: 0 | GH16: 0 | GI16: 0 | GJ16: 0 | GK16: 0 | GL16: 0 | GM16: 0 | GN16: 0 | GO16: 0 | GP16: 0 | GQ16: 0 | GR16: =(1+GR15)^(GR4/12)-1 -> 0 | GS16: 0 | GT16: 0 | GU16: 0 | GV16: 0 | GW16: 0 | GX16: 0 | GY16: 0 | GZ16: 0 | HA16: 0 | HB16: 0 | HC16: 0 | HD16: 0 | HE16: 0 | HF16: 0 | HG16: 0 | HH16: 0 | HI16: 0 | HJ16: 0 | HK16: 0 | HL16: 0 | HM16: 0 | HN16: 0 | HO16: 0 | HP16: 0 | HQ16: 0 | HR16: 0 | HS16: 0 | HT16: 0 | HU16: 0 | HV16: 0 | HW16: 0 | HX16: 0 | HY16: 0 | HZ16: 0 | IA16: 0 | IB16: 0 | IC16: 0 | ID16: 0 | IE16: 0 | IF16: 0 | IG16: 0 | IH16: 0 | II16: 0 | IJ16: 0 | IK16: 0 | IL16: 0 | IM16: 0 | IN16: 0 | IO16: 0 | IP16: 0 | IQ16: 0 | IR16: 0 | IS16: 0 | IT16: 0 | IU16: 0 | IV16: 0 | IW16: 0 | IX16: 0 | IY16: 0 | IZ16: 0 | JA16: 0 | JB16: 0 | JC16: 0 | JD16: =(1+JD15)^(JD4/12)-1 -> 0 | JE16: 0 | JF16: 0 | JG16: 0 | JH16: 0 | JI16: 0 | JJ16: 0 | JK16: 0 | JL16: 0 | JM16: 0 | JN16: 0 | JO16: 0 | JP16: 0 | JQ16: 0 | JR16: 0 | JS16: 0 | JT16: 0 | JU16: 0 | JV16: 0 | JW16: 0 | JX16: 0 | JY16: 0 | JZ16: 0 | KA16: 0 | KB16: 0 | KC16: 0 | KD16: 0 | KE16: 0 | KF16: 0 | KG16: 0 | KH16: 0 | KI16: 0 | KJ16: 0 | KK16: 0 | KL16: 0 | KM16: 0 | KN16: 0 | KO16: 0 | KP16: 0 | KQ16: 0 | KR16: 0 | KS16: 0 | KT16: 0 | KU16: 0
B17: Degradation Index | E17: Index | G17: 1 | H17: =G17*(1-H16) -> 1 | I17: 1 | J17: 1 | K17: 1 | L17: 1 | M17: 1 | N17: 0.9987523369 | O17: 0.9975062305 | P17: 0.9962616789 | Q17: 0.99501868 | R17: 0.9937772319 | S17: 0.9925373328 | T17: 0.9912989806 | U17: 0.9900621735 | V17: 0.9888269095 | W17: 0.9875931867 | X17: 0.9863610031 | Y17: 0.9851303569 | Z17: 0.9839012462 | AA17: 0.9826736689 | AB17: 0.9814476233 | AC17: 0.9802231073 | AD17: 0.9790001192 | AE17: 0.9777786569 | AF17: 0.9765587186 | AG17: 0.9753403023 | AH17: 0.9741234063 | AI17: 0.9729080285 | AJ17: 0.9716941671 | AK17: 0.9704818201 | AL17: 0.9692709858 | AM17: 0.9680616622 | AN17: 0.9668538474 | AO17: 0.9656475396 | AP17: 0.9644427368 | AQ17: 0.9632394373 | AR17: 0.962037639 | AS17: 0.9608373402 | AT17: 0.9596385389 | AU17: 0.9584412334 | AV17: 0.9572454216 | AW17: 0.9560511019 | AX17: 0.9548582722 | AY17: 0.9536669308 | AZ17: 0.9524770758 | BA17: 0.9512887054 | BB17: 0.9501018176 | BC17: 0.9489164106 | BD17: 0.9477324827 | BE17: 0.9465500319 | BF17: 0.9453690564 | BG17: 0.9441895543 | BH17: 0.9430115239 | BI17: 0.9418349632 | BJ17: 0.9406598705 | BK17: 0.939486244 | BL17: 0.9383140817 | BM17: 0.9371433819 | BN17: 0.9359741427 | BO17: 0.9348063623 | BP17: 0.9336400389 | BQ17: 0.9324751708 | BR17: 0.9313117559 | BS17: 0.9301497926 | BT17: =BS17*(1-BT16) -> 0.9289892791 | BU17: 0.9278302135 | BV17: 0.926672594 | BW17: 0.9255164188 | BX17: 0.9243616862 | BY17: 0.9232083943 | BZ17: 0.9220565413 | CA17: 0.9209061254 | CB17: 0.9197571448 | CC17: 0.9186095978 | CD17: 0.9174634825 | CE17: 0.9163187972 | CF17: 0.9151755401 | CG17: 0.9140337094 | CH17: 0.9128933033 | CI17: 0.91175432 | CJ17: 0.9106167579 | CK17: 0.909480615 | CL17: 0.9083458896 | CM17: 0.90721258 | CN17: 0.9060806844 | CO17: 0.904950201 | CP17: 0.903821128 | CQ17: 0.9026934638 | CR17: 0.9015672065 | CS17: 0.9004423544 | CT17: 0.8993189057 | CU17: 0.8981968587 | CV17: 0.8970762117 | CW17: 0.8959569628 | CX17: 0.8948391104 | CY17: 0.8937226527 | CZ17: 0.892607588 | DA17: 0.8914939145 | DB17: 0.8903816304 | DC17: 0.8892707342 | DD17: 0.8881612239 | DE17: 0.887053098 | DF17: 0.8859463546 | DG17: 0.884840992 | DH17: 0.8837370086 | DI17: 0.8826344026 | DJ17: 0.8826344026 | DK17: 0.8826344026 | DL17: 0.8826344026 | DM17: 0.8826344026 | DN17: 0.8826344026 | DO17: 0.8826344026 | DP17: 0.8826344026 | DQ17: 0.8826344026 | DR17: 0.8826344026 | DS17: 0.8826344026 | DT17: 0.8826344026 | DU17: 0.8826344026 | DV17: 0.8826344026 | DW17: 0.8826344026 | DX17: 0.8826344026 | DY17: 0.8826344026 | DZ17: 0.8826344026 | EA17: 0.8826344026 | EB17: 0.8826344026 | EC17: 0.8826344026 | ED17: 0.8826344026 | EE17: 0.8826344026 | EF17: =EE17*(1-EF16) -> 0.8826344026 | EG17: 0.8826344026 | EH17: 0.8826344026 | EI17: 0.8826344026 | EJ17: 0.8826344026 | EK17: 0.8826344026 | EL17: 0.8826344026 | EM17: 0.8826344026 | EN17: 0.8826344026 | EO17: 0.8826344026 | EP17: 0.8826344026 | EQ17: 0.8826344026 | ER17: 0.8826344026 | ES17: 0.8826344026 | ET17: 0.8826344026 | EU17: 0.8826344026 | EV17: 0.8826344026 | EW17: 0.8826344026 | EX17: 0.8826344026 | EY17: 0.8826344026 | EZ17: 0.8826344026 | FA17: 0.8826344026 | FB17: 0.8826344026 | FC17: 0.8826344026 | FD17: 0.8826344026 | FE17: 0.8826344026 | FF17: 0.8826344026 | FG17: 0.8826344026 | FH17: 0.8826344026 | FI17: 0.8826344026 | FJ17: 0.8826344026 | FK17: 0.8826344026 | FL17: 0.8826344026 | FM17: 0.8826344026 | FN17: 0.8826344026 | FO17: 0.8826344026 | FP17: 0.8826344026 | FQ17: 0.8826344026 | FR17: 0.8826344026 | FS17: 0.8826344026 | FT17: 0.8826344026 | FU17: 0.8826344026 | FV17: 0.8826344026 | FW17: 0.8826344026 | FX17: 0.8826344026 | FY17: 0.8826344026 | FZ17: 0.8826344026 | GA17: 0.8826344026 | GB17: 0.8826344026 | GC17: 0.8826344026 | GD17: 0.8826344026 | GE17: 0.8826344026 | GF17: 0.8826344026 | GG17: 0.8826344026 | GH17: 0.8826344026 | GI17: 0.8826344026 | GJ17: 0.8826344026 | GK17: 0.8826344026 | GL17: 0.8826344026 | GM17: 0.8826344026 | GN17: 0.8826344026 | GO17: 0.8826344026 | GP17: 0.8826344026 | GQ17: 0.8826344026 | GR17: =GQ17*(1-GR16) -> 0.8826344026 | GS17: 0.8826344026 | GT17: 0.8826344026 | GU17: 0.8826344026 | GV17: 0.8826344026 | GW17: 0.8826344026 | GX17: 0.8826344026 | GY17: 0.8826344026 | GZ17: 0.8826344026 | HA17: 0.8826344026 | HB17: 0.8826344026 | HC17: 0.8826344026 | HD17: 0.8826344026 | HE17: 0.8826344026 | HF17: 0.8826344026 | HG17: 0.8826344026 | HH17: 0.8826344026 | HI17: 0.8826344026 | HJ17: 0.8826344026 | HK17: 0.8826344026 | HL17: 0.8826344026 | HM17: 0.8826344026 | HN17: 0.8826344026 | HO17: 0.8826344026 | HP17: 0.8826344026 | HQ17: 0.8826344026 | HR17: 0.8826344026 | HS17: 0.8826344026 | HT17: 0.8826344026 | HU17: 0.8826344026 | HV17: 0.8826344026 | HW17: 0.8826344026 | HX17: 0.8826344026 | HY17: 0.8826344026 | HZ17: 0.8826344026 | IA17: 0.8826344026 | IB17: 0.8826344026 | IC17: 0.8826344026 | ID17: 0.8826344026 | IE17: 0.8826344026 | IF17: 0.8826344026 | IG17: 0.8826344026 | IH17: 0.8826344026 | II17: 0.8826344026 | IJ17: 0.8826344026 | IK17: 0.8826344026 | IL17: 0.8826344026 | IM17: 0.8826344026 | IN17: 0.8826344026 | IO17: 0.8826344026 | IP17: 0.8826344026 | IQ17: 0.8826344026 | IR17: 0.8826344026 | IS17: 0.8826344026 | IT17: 0.8826344026 | IU17: 0.8826344026 | IV17: 0.8826344026 | IW17: 0.8826344026 | IX17: 0.8826344026 | IY17: 0.8826344026 | IZ17: 0.8826344026 | JA17: 0.8826344026 | JB17: 0.8826344026 | JC17: 0.8826344026 | JD17: =JC17*(1-JD16) -> 0.8826344026 | JE17: 0.8826344026 | JF17: 0.8826344026 | JG17: 0.8826344026 | JH17: 0.8826344026 | JI17: 0.8826344026 | JJ17: 0.8826344026 | JK17: 0.8826344026 | JL17: 0.8826344026 | JM17: 0.8826344026 | JN17: 0.8826344026 | JO17: 0.8826344026 | JP17: 0.8826344026 | JQ17: 0.8826344026 | JR17: 0.8826344026 | JS17: 0.8826344026 | JT17: 0.8826344026 | JU17: 0.8826344026 | JV17: 0.8826344026 | JW17: 0.8826344026 | JX17: 0.8826344026 | JY17: 0.8826344026 | JZ17: 0.8826344026 | KA17: 0.8826344026 | KB17: 0.8826344026 | KC17: 0.8826344026 | KD17: 0.8826344026 | KE17: 0.8826344026 | KF17: 0.8826344026 | KG17: 0.8826344026 | KH17: 0.8826344026 | KI17: 0.8826344026 | KJ17: 0.8826344026 | KK17: 0.8826344026 | KL17: 0.8826344026 | KM17: 0.8826344026 | KN17: 0.8826344026 | KO17: 0.8826344026 | KP17: 0.8826344026 | KQ17: 0.8826344026 | KR17: 0.8826344026 | KS17: 0.8826344026 | KT17: 0.8826344026 | KU17: 0.8826344026
B19: Days in Period | E19: Days | H19: =H7-H6+1 -> 31 | I19: 30 | J19: 31 | K19: 31 | L19: 28 | M19: 31 | N19: 91 | O19: 92 | P19: 92 | Q19: 90 | R19: 91 | S19: 92 | T19: 92 | U19: 90 | V19: 91 | W19: 92 | X19: 92 | Y19: 91 | Z19: 91 | AA19: 92 | AB19: 92 | AC19: 90 | AD19: 91 | AE19: 92 | AF19: 92 | AG19: 90 | AH19: 91 | AI19: 92 | AJ19: 92 | AK19: 90 | AL19: 91 | AM19: 92 | AN19: 92 | AO19: 91 | AP19: 91 | AQ19: 92 | AR19: 92 | AS19: 90 | AT19: 91 | AU19: 92 | AV19: 92 | AW19: 90 | AX19: 91 | AY19: 92 | AZ19: 92 | BA19: 90 | BB19: 91 | BC19: 92 | BD19: 92 | BE19: 91 | BF19: 91 | BG19: 92 | BH19: 92 | BI19: 90 | BJ19: 91 | BK19: 92 | BL19: 92 | BM19: 90 | BN19: 91 | BO19: 92 | BP19: 92 | BQ19: 90 | BR19: 91 | BS19: 92 | BT19: =BT7-BT6+1 -> 92 | BU19: 91 | BV19: 91 | BW19: 92 | BX19: 92 | BY19: 90 | BZ19: 91 | CA19: 92 | CB19: 92 | CC19: 90 | CD19: 91 | CE19: 92 | CF19: 92 | CG19: 90 | CH19: 91 | CI19: 92 | CJ19: 92 | CK19: 91 | CL19: 91 | CM19: 92 | CN19: 92 | CO19: 90 | CP19: 91 | CQ19: 92 | CR19: 92 | CS19: 90 | CT19: 91 | CU19: 92 | CV19: 92 | CW19: 90 | CX19: 91 | CY19: 92 | CZ19: 92 | DA19: 91 | DB19: 91 | DC19: 92 | DD19: 92 | DE19: 90 | DF19: 91 | DG19: 92 | DH19: 92 | DI19: 90 | DJ19: 91 | DK19: 92 | DL19: 92 | DM19: 90 | DN19: 91 | DO19: 92 | DP19: 92 | DQ19: 91 | DR19: 91 | DS19: 92 | DT19: 92 | DU19: 90 | DV19: 91 | DW19: 92 | DX19: 92 | DY19: 90 | DZ19: 91 | EA19: 92 | EB19: 92 | EC19: 90 | ED19: 91 | EE19: 92 | EF19: =EF7-EF6+1 -> 92 | EG19: 91 | EH19: 91 | EI19: 92 | EJ19: 92 | EK19: 90 | EL19: 91 | EM19: 92 | EN19: 92 | EO19: 90 | EP19: 91 | EQ19: 92 | ER19: 92 | ES19: 90 | ET19: 91 | EU19: 92 | EV19: 92 | EW19: 91 | EX19: 91 | EY19: 92 | EZ19: 92 | FA19: 90 | FB19: 91 | FC19: 92 | FD19: 92 | FE19: 90 | FF19: 91 | FG19: 92 | FH19: 92 | FI19: 90 | FJ19: 91 | FK19: 92 | FL19: 92 | FM19: 91 | FN19: 91 | FO19: 92 | FP19: 92 | FQ19: 90 | FR19: 91 | FS19: 92 | FT19: 92 | FU19: 90 | FV19: 91 | FW19: 92 | FX19: 92 | FY19: 90 | FZ19: 91 | GA19: 92 | GB19: 92 | GC19: 91 | GD19: 91 | GE19: 92 | GF19: 92 | GG19: 90 | GH19: 91 | GI19: 92 | GJ19: 92 | GK19: 90 | GL19: 91 | GM19: 92 | GN19: 92 | GO19: 90 | GP19: 91 | GQ19: 92 | GR19: =GR7-GR6+1 -> 92 | GS19: 91 | GT19: 91 | GU19: 92 | GV19: 92 | GW19: 90 | GX19: 91 | GY19: 92 | GZ19: 92 | HA19: 90 | HB19: 91 | HC19: 92 | HD19: 92 | HE19: 90 | HF19: 91 | HG19: 92 | HH19: 92 | HI19: 91 | HJ19: 91 | HK19: 92 | HL19: 92 | HM19: 90 | HN19: 91 | HO19: 92 | HP19: 92 | HQ19: 90 | HR19: 91 | HS19: 92 | HT19: 92 | HU19: 90 | HV19: 91 | HW19: 92 | HX19: 92 | HY19: 91 | HZ19: 91 | IA19: 92 | IB19: 92 | IC19: 90 | ID19: 91 | IE19: 92 | IF19: 92 | IG19: 90 | IH19: 91 | II19: 92 | IJ19: 92 | IK19: 90 | IL19: 91 | IM19: 92 | IN19: 92 | IO19: 91 | IP19: 91 | IQ19: 92 | IR19: 92 | IS19: 90 | IT19: 91 | IU19: 92 | IV19: 92 | IW19: 90 | IX19: 91 | IY19: 92 | IZ19: 92 | JA19: 90 | JB19: 91 | JC19: 92 | JD19: =JD7-JD6+1 -> 92 | JE19: 91 | JF19: 91 | JG19: 92 | JH19: 92 | JI19: 90 | JJ19: 91 | JK19: 92 | JL19: 92 | JM19: 90 | JN19: 91 | JO19: 92 | JP19: 92 | JQ19: 90 | JR19: 91 | JS19: 92 | JT19: 92 | JU19: 91 | JV19: 91 | JW19: 92 | JX19: 92 | JY19: 90 | JZ19: 91 | KA19: 92 | KB19: 92 | KC19: 90 | KD19: 91 | KE19: 92 | KF19: 92 | KG19: 90 | KH19: 91 | KI19: 92 | KJ19: 92 | KK19: 91 | KL19: 91 | KM19: 92 | KN19: 92 | KO19: 90 | KP19: 91 | KQ19: 92 | KR19: 92 | KS19: 90 | KT19: 91 | KU19: 92
B20: Hours in Period | E20: Hours | H20: =H19*24 -> 744 | I20: 720 | J20: 744 | K20: 744 | L20: 672 | M20: 744 | N20: 2184 | O20: 2208 | P20: 2208 | Q20: 2160 | R20: 2184 | S20: 2208 | T20: 2208 | U20: 2160 | V20: 2184 | W20: 2208 | X20: 2208 | Y20: 2184 | Z20: 2184 | AA20: 2208 | AB20: 2208 | AC20: 2160 | AD20: 2184 | AE20: 2208 | AF20: 2208 | AG20: 2160 | AH20: 2184 | AI20: 2208 | AJ20: 2208 | AK20: 2160 | AL20: 2184 | AM20: 2208 | AN20: 2208 | AO20: 2184 | AP20: 2184 | AQ20: 2208 | AR20: 2208 | AS20: 2160 | AT20: 2184 | AU20: 2208 | AV20: 2208 | AW20: 2160 | AX20: 2184 | AY20: 2208 | AZ20: 2208 | BA20: 2160 | BB20: 2184 | BC20: 2208 | BD20: 2208 | BE20: 2184 | BF20: 2184 | BG20: 2208 | BH20: 2208 | BI20: 2160 | BJ20: 2184 | BK20: 2208 | BL20: 2208 | BM20: 2160 | BN20: 2184 | BO20: 2208 | BP20: 2208 | BQ20: 2160 | BR20: 2184 | BS20: 2208 | BT20: =BT19*24 -> 2208 | BU20: 2184 | BV20: 2184 | BW20: 2208 | BX20: 2208 | BY20: 2160 | BZ20: 2184 | CA20: 2208 | CB20: 2208 | CC20: 2160 | CD20: 2184 | CE20: 2208 | CF20: 2208 | CG20: 2160 | CH20: 2184 | CI20: 2208 | CJ20: 2208 | CK20: 2184 | CL20: 2184 | CM20: 2208 | CN20: 2208 | CO20: 2160 | CP20: 2184 | CQ20: 2208 | CR20: 2208 | CS20: 2160 | CT20: 2184 | CU20: 2208 | CV20: 2208 | CW20: 2160 | CX20: 2184 | CY20: 2208 | CZ20: 2208 | DA20: 2184 | DB20: 2184 | DC20: 2208 | DD20: 2208 | DE20: 2160 | DF20: 2184 | DG20: 2208 | DH20: 2208 | DI20: 2160 | DJ20: 2184 | DK20: 2208 | DL20: 2208 | DM20: 2160 | DN20: 2184 | DO20: 2208 | DP20: 2208 | DQ20: 2184 | DR20: 2184 | DS20: 2208 | DT20: 2208 | DU20: 2160 | DV20: 2184 | DW20: 2208 | DX20: 2208 | DY20: 2160 | DZ20: 2184 | EA20: 2208 | EB20: 2208 | EC20: 2160 | ED20: 2184 | EE20: 2208 | EF20: =EF19*24 -> 2208 | EG20: 2184 | EH20: 2184 | EI20: 2208 | EJ20: 2208 | EK20: 2160 | EL20: 2184 | EM20: 2208 | EN20: 2208 | EO20: 2160 | EP20: 2184 | EQ20: 2208 | ER20: 2208 | ES20: 2160 | ET20: 2184 | EU20: 2208 | EV20: 2208 | EW20: 2184 | EX20: 2184 | EY20: 2208 | EZ20: 2208 | FA20: 2160 | FB20: 2184 | FC20: 2208 | FD20: 2208 | FE20: 2160 | FF20: 2184 | FG20: 2208 | FH20: 2208 | FI20: 2160 | FJ20: 2184 | FK20: 2208 | FL20: 2208 | FM20: 2184 | FN20: 2184 | FO20: 2208 | FP20: 2208 | FQ20: 2160 | FR20: 2184 | FS20: 2208 | FT20: 2208 | FU20: 2160 | FV20: 2184 | FW20: 2208 | FX20: 2208 | FY20: 2160 | FZ20: 2184 | GA20: 2208 | GB20: 2208 | GC20: 2184 | GD20: 2184 | GE20: 2208 | GF20: 2208 | GG20: 2160 | GH20: 2184 | GI20: 2208 | GJ20: 2208 | GK20: 2160 | GL20: 2184 | GM20: 2208 | GN20: 2208 | GO20: 2160 | GP20: 2184 | GQ20: 2208 | GR20: =GR19*24 -> 2208 | GS20: 2184 | GT20: 2184 | GU20: 2208 | GV20: 2208 | GW20: 2160 | GX20: 2184 | GY20: 2208 | GZ20: 2208 | HA20: 2160 | HB20: 2184 | HC20: 2208 | HD20: 2208 | HE20: 2160 | HF20: 2184 | HG20: 2208 | HH20: 2208 | HI20: 2184 | HJ20: 2184 | HK20: 2208 | HL20: 2208 | HM20: 2160 | HN20: 2184 | HO20: 2208 | HP20: 2208 | HQ20: 2160 | HR20: 2184 | HS20: 2208 | HT20: 2208 | HU20: 2160 | HV20: 2184 | HW20: 2208 | HX20: 2208 | HY20: 2184 | HZ20: 2184 | IA20: 2208 | IB20: 2208 | IC20: 2160 | ID20: 2184 | IE20: 2208 | IF20: 2208 | IG20: 2160 | IH20: 2184 | II20: 2208 | IJ20: 2208 | IK20: 2160 | IL20: 2184 | IM20: 2208 | IN20: 2208 | IO20: 2184 | IP20: 2184 | IQ20: 2208 | IR20: 2208 | IS20: 2160 | IT20: 2184 | IU20: 2208 | IV20: 2208 | IW20: 2160 | IX20: 2184 | IY20: 2208 | IZ20: 2208 | JA20: 2160 | JB20: 2184 | JC20: 2208 | JD20: =JD19*24 -> 2208 | JE20: 2184 | JF20: 2184 | JG20: 2208 | JH20: 2208 | JI20: 2160 | JJ20: 2184 | JK20: 2208 | JL20: 2208 | JM20: 2160 | JN20: 2184 | JO20: 2208 | JP20: 2208 | JQ20: 2160 | JR20: 2184 | JS20: 2208 | JT20: 2208 | JU20: 2184 | JV20: 2184 | JW20: 2208 | JX20: 2208 | JY20: 2160 | JZ20: 2184 | KA20: 2208 | KB20: 2208 | KC20: 2160 | KD20: 2184 | KE20: 2208 | KF20: 2208 | KG20: 2160 | KH20: 2184 | KI20: 2208 | KJ20: 2208 | KK20: 2184 | KL20: 2184 | KM20: 2208 | KN20: 2208 | KO20: 2160 | KP20: 2184 | KQ20: 2208 | KR20: 2208 | KS20: 2160 | KT20: 2184 | KU20: 2208
B21: Gross generation | E21: MWH | H21: =H20*H12*H13 -> 0 | I21: 0 | J21: 0 | K21: 0 | L21: 0 | M21: 0 | N21: 813.7584 | O21: 822.7008 | P21: 822.7008 | Q21: 804.816 | R21: 813.7584 | S21: 822.7008 | T21: 822.7008 | U21: 804.816 | V21: 813.7584 | W21: 822.7008 | X21: 822.7008 | Y21: 813.7584 | Z21: 813.7584 | AA21: 822.7008 | AB21: 822.7008 | AC21: 804.816 | AD21: 813.7584 | AE21: 822.7008 | AF21: 822.7008 | AG21: 804.816 | AH21: 813.7584 | AI21: 822.7008 | AJ21: 822.7008 | AK21: 804.816 | AL21: 813.7584 | AM21: 822.7008 | AN21: 822.7008 | AO21: 813.7584 | AP21: 813.7584 | AQ21: 822.7008 | AR21: 822.7008 | AS21: 804.816 | AT21: 813.7584 | AU21: 822.7008 | AV21: 822.7008 | AW21: 804.816 | AX21: 813.7584 | AY21: 822.7008 | AZ21: 822.7008 | BA21: 804.816 | BB21: 813.7584 | BC21: 822.7008 | BD21: 822.7008 | BE21: 813.7584 | BF21: 813.7584 | BG21: 822.7008 | BH21: 822.7008 | BI21: 804.816 | BJ21: 813.7584 | BK21: 822.7008 | BL21: 822.7008 | BM21: 804.816 | BN21: 813.7584 | BO21: 822.7008 | BP21: 822.7008 | BQ21: 804.816 | BR21: 813.7584 | BS21: 822.7008 | BT21: =BT20*BT12*BT13 -> 822.7008 | BU21: 813.7584 | BV21: 813.7584 | BW21: 822.7008 | BX21: 822.7008 | BY21: 804.816 | BZ21: 813.7584 | CA21: 822.7008 | CB21: 822.7008 | CC21: 804.816 | CD21: 813.7584 | CE21: 822.7008 | CF21: 822.7008 | CG21: 804.816 | CH21: 813.7584 | CI21: 822.7008 | CJ21: 822.7008 | CK21: 813.7584 | CL21: 813.7584 | CM21: 822.7008 | CN21: 822.7008 | CO21: 804.816 | CP21: 813.7584 | CQ21: 822.7008 | CR21: 822.7008 | CS21: 804.816 | CT21: 813.7584 | CU21: 822.7008 | CV21: 822.7008 | CW21: 804.816 | CX21: 813.7584 | CY21: 822.7008 | CZ21: 822.7008 | DA21: 813.7584 | DB21: 813.7584 | DC21: 822.7008 | DD21: 822.7008 | DE21: 804.816 | DF21: 813.7584 | DG21: 822.7008 | DH21: 822.7008 | DI21: 804.816 | DJ21: 0 | DK21: 0 | DL21: 0 | DM21: 0 | DN21: 0 | DO21: 0 | DP21: 0 | DQ21: 0 | DR21: 0 | DS21: 0 | DT21: 0 | DU21: 0 | DV21: 0 | DW21: 0 | DX21: 0 | DY21: 0 | DZ21: 0 | EA21: 0 | EB21: 0 | EC21: 0 | ED21: 0 | EE21: 0 | EF21: =EF20*EF12*EF13 -> 0 | EG21: 0 | EH21: 0 | EI21: 0 | EJ21: 0 | EK21: 0 | EL21: 0 | EM21: 0 | EN21: 0 | EO21: 0 | EP21: 0 | EQ21: 0 | ER21: 0 | ES21: 0 | ET21: 0 | EU21: 0 | EV21: 0 | EW21: 0 | EX21: 0 | EY21: 0 | EZ21: 0 | FA21: 0 | FB21: 0 | FC21: 0 | FD21: 0 | FE21: 0 | FF21: 0 | FG21: 0 | FH21: 0 | FI21: 0 | FJ21: 0 | FK21: 0 | FL21: 0 | FM21: 0 | FN21: 0 | FO21: 0 | FP21: 0 | FQ21: 0 | FR21: 0 | FS21: 0 | FT21: 0 | FU21: 0 | FV21: 0 | FW21: 0 | FX21: 0 | FY21: 0 | FZ21: 0 | GA21: 0 | GB21: 0 | GC21: 0 | GD21: 0 | GE21: 0 | GF21: 0 | GG21: 0 | GH21: 0 | GI21: 0 | GJ21: 0 | GK21: 0 | GL21: 0 | GM21: 0 | GN21: 0 | GO21: 0 | GP21: 0 | GQ21: 0 | GR21: =GR20*GR12*GR13 -> 0 | GS21: 0 | GT21: 0 | GU21: 0 | GV21: 0 | GW21: 0 | GX21: 0 | GY21: 0 | GZ21: 0 | HA21: 0 | HB21: 0 | HC21: 0 | HD21: 0 | HE21: 0 | HF21: 0 | HG21: 0 | HH21: 0 | HI21: 0 | HJ21: 0 | HK21: 0 | HL21: 0 | HM21: 0 | HN21: 0 | HO21: 0 | HP21: 0 | HQ21: 0 | HR21: 0 | HS21: 0 | HT21: 0 | HU21: 0 | HV21: 0 | HW21: 0 | HX21: 0 | HY21: 0 | HZ21: 0 | IA21: 0 | IB21: 0 | IC21: 0 | ID21: 0 | IE21: 0 | IF21: 0 | IG21: 0 | IH21: 0 | II21: 0 | IJ21: 0 | IK21: 0 | IL21: 0 | IM21: 0 | IN21: 0 | IO21: 0 | IP21: 0 | IQ21: 0 | IR21: 0 | IS21: 0 | IT21: 0 | IU21: 0 | IV21: 0 | IW21: 0 | IX21: 0 | IY21: 0 | IZ21: 0 | JA21: 0 | JB21: 0 | JC21: 0 | JD21: =JD20*JD12*JD13 -> 0 | JE21: 0 | JF21: 0 | JG21: 0 | JH21: 0 | JI21: 0 | JJ21: 0 | JK21: 0 | JL21: 0 | JM21: 0 | JN21: 0 | JO21: 0 | JP21: 0 | JQ21: 0 | JR21: 0 | JS21: 0 | JT21: 0 | JU21: 0 | JV21: 0 | JW21: 0 | JX21: 0 | JY21: 0 | JZ21: 0 | KA21: 0 | KB21: 0 | KC21: 0 | KD21: 0 | KE21: 0 | KF21: 0 | KG21: 0 | KH21: 0 | KI21: 0 | KJ21: 0 | KK21: 0 | KL21: 0 | KM21: 0 | KN21: 0 | KO21: 0 | KP21: 0 | KQ21: 0 | KR21: 0 | KS21: 0 | KT21: 0 | KU21: 0
B22: Auxiliary Consumption | E22: MWH | F22: =Assumptions!F15 -> 0 | H22: =H21*$F$22 -> 0 | I22: 0 | J22: 0 | K22: 0 | L22: 0 | M22: 0 | N22: 0 | O22: 0 | P22: 0 | Q22: 0 | R22: 0 | S22: 0 | T22: 0 | U22: 0 | V22: 0 | W22: 0 | X22: 0 | Y22: 0 | Z22: 0 | AA22: 0 | AB22: 0 | AC22: 0 | AD22: 0 | AE22: 0 | AF22: 0 | AG22: 0 | AH22: 0 | AI22: 0 | AJ22: 0 | AK22: 0 | AL22: 0 | AM22: 0 | AN22: 0 | AO22: 0 | AP22: 0 | AQ22: 0 | AR22: 0 | AS22: 0 | AT22: 0 | AU22: 0 | AV22: 0 | AW22: 0 | AX22: 0 | AY22: 0 | AZ22: 0 | BA22: 0 | BB22: 0 | BC22: 0 | BD22: 0 | BE22: 0 | BF22: 0 | BG22: 0 | BH22: 0 | BI22: 0 | BJ22: 0 | BK22: 0 | BL22: 0 | BM22: 0 | BN22: 0 | BO22: 0 | BP22: 0 | BQ22: 0 | BR22: 0 | BS22: 0 | BT22: =BT21*$F$22 -> 0 | BU22: 0 | BV22: 0 | BW22: 0 | BX22: 0 | BY22: 0 | BZ22: 0 | CA22: 0 | CB22: 0 | CC22: 0 | CD22: 0 | CE22: 0 | CF22: 0 | CG22: 0 | CH22: 0 | CI22: 0 | CJ22: 0 | CK22: 0 | CL22: 0 | CM22: 0 | CN22: 0 | CO22: 0 | CP22: 0 | CQ22: 0 | CR22: 0 | CS22: 0 | CT22: 0 | CU22: 0 | CV22: 0 | CW22: 0 | CX22: 0 | CY22: 0 | CZ22: 0 | DA22: 0 | DB22: 0 | DC22: 0 | DD22: 0 | DE22: 0 | DF22: 0 | DG22: 0 | DH22: 0 | DI22: 0 | DJ22: 0 | DK22: 0 | DL22: 0 | DM22: 0 | DN22: 0 | DO22: 0 | DP22: 0 | DQ22: 0 | DR22: 0 | DS22: 0 | DT22: 0 | DU22: 0 | DV22: 0 | DW22: 0 | DX22: 0 | DY22: 0 | DZ22: 0 | EA22: 0 | EB22: 0 | EC22: 0 | ED22: 0 | EE22: 0 | EF22: =EF21*$F$22 -> 0 | EG22: 0 | EH22: 0 | EI22: 0 | EJ22: 0 | EK22: 0 | EL22: 0 | EM22: 0 | EN22: 0 | EO22: 0 | EP22: 0 | EQ22: 0 | ER22: 0 | ES22: 0 | ET22: 0 | EU22: 0 | EV22: 0 | EW22: 0 | EX22: 0 | EY22: 0 | EZ22: 0 | FA22: 0 | FB22: 0 | FC22: 0 | FD22: 0 | FE22: 0 | FF22: 0 | FG22: 0 | FH22: 0 | FI22: 0 | FJ22: 0 | FK22: 0 | FL22: 0 | FM22: 0 | FN22: 0 | FO22: 0 | FP22: 0 | FQ22: 0 | FR22: 0 | FS22: 0 | FT22: 0 | FU22: 0 | FV22: 0 | FW22: 0 | FX22: 0 | FY22: 0 | FZ22: 0 | GA22: 0 | GB22: 0 | GC22: 0 | GD22: 0 | GE22: 0 | GF22: 0 | GG22: 0 | GH22: 0 | GI22: 0 | GJ22: 0 | GK22: 0 | GL22: 0 | GM22: 0 | GN22: 0 | GO22: 0 | GP22: 0 | GQ22: 0 | GR22: =GR21*$F$22 -> 0 | GS22: 0 | GT22: 0 | GU22: 0 | GV22: 0 | GW22: 0 | GX22: 0 | GY22: 0 | GZ22: 0 | HA22: 0 | HB22: 0 | HC22: 0 | HD22: 0 | HE22: 0 | HF22: 0 | HG22: 0 | HH22: 0 | HI22: 0 | HJ22: 0 | HK22: 0 | HL22: 0 | HM22: 0 | HN22: 0 | HO22: 0 | HP22: 0 | HQ22: 0 | HR22: 0 | HS22: 0 | HT22: 0 | HU22: 0 | HV22: 0 | HW22: 0 | HX22: 0 | HY22: 0 | HZ22: 0 | IA22: 0 | IB22: 0 | IC22: 0 | ID22: 0 | IE22: 0 | IF22: 0 | IG22: 0 | IH22: 0 | II22: 0 | IJ22: 0 | IK22: 0 | IL22: 0 | IM22: 0 | IN22: 0 | IO22: 0 | IP22: 0 | IQ22: 0 | IR22: 0 | IS22: 0 | IT22: 0 | IU22: 0 | IV22: 0 | IW22: 0 | IX22: 0 | IY22: 0 | IZ22: 0 | JA22: 0 | JB22: 0 | JC22: 0 | JD22: =JD21*$F$22 -> 0 | JE22: 0 | JF22: 0 | JG22: 0 | JH22: 0 | JI22: 0 | JJ22: 0 | JK22: 0 | JL22: 0 | JM22: 0 | JN22: 0 | JO22: 0 | JP22: 0 | JQ22: 0 | JR22: 0 | JS22: 0 | JT22: 0 | JU22: 0 | JV22: 0 | JW22: 0 | JX22: 0 | JY22: 0 | JZ22: 0 | KA22: 0 | KB22: 0 | KC22: 0 | KD22: 0 | KE22: 0 | KF22: 0 | KG22: 0 | KH22: 0 | KI22: 0 | KJ22: 0 | KK22: 0 | KL22: 0 | KM22: 0 | KN22: 0 | KO22: 0 | KP22: 0 | KQ22: 0 | KR22: 0 | KS22: 0 | KT22: 0 | KU22: 0
B23: Net Generation | E23: MWH | H23: =H21-H22 -> 0 | I23: 0 | J23: 0 | K23: 0 | L23: 0 | M23: 0 | N23: 813.7584 | O23: 822.7008 | P23: 822.7008 | Q23: 804.816 | R23: 813.7584 | S23: 822.7008 | T23: 822.7008 | U23: 804.816 | V23: 813.7584 | W23: 822.7008 | X23: 822.7008 | Y23: 813.7584 | Z23: 813.7584 | AA23: 822.7008 | AB23: 822.7008 | AC23: 804.816 | AD23: 813.7584 | AE23: 822.7008 | AF23: 822.7008 | AG23: 804.816 | AH23: 813.7584 | AI23: 822.7008 | AJ23: 822.7008 | AK23: 804.816 | AL23: 813.7584 | AM23: 822.7008 | AN23: 822.7008 | AO23: 813.7584 | AP23: 813.7584 | AQ23: 822.7008 | AR23: 822.7008 | AS23: 804.816 | AT23: 813.7584 | AU23: 822.7008 | AV23: 822.7008 | AW23: 804.816 | AX23: 813.7584 | AY23: 822.7008 | AZ23: 822.7008 | BA23: 804.816 | BB23: 813.7584 | BC23: 822.7008 | BD23: 822.7008 | BE23: 813.7584 | BF23: 813.7584 | BG23: 822.7008 | BH23: 822.7008 | BI23: 804.816 | BJ23: 813.7584 | BK23: 822.7008 | BL23: 822.7008 | BM23: 804.816 | BN23: 813.7584 | BO23: 822.7008 | BP23: 822.7008 | BQ23: 804.816 | BR23: 813.7584 | BS23: 822.7008 | BT23: =BT21-BT22 -> 822.7008 | BU23: 813.7584 | BV23: 813.7584 | BW23: 822.7008 | BX23: 822.7008 | BY23: 804.816 | BZ23: 813.7584 | CA23: 822.7008 | CB23: 822.7008 | CC23: 804.816 | CD23: 813.7584 | CE23: 822.7008 | CF23: 822.7008 | CG23: 804.816 | CH23: 813.7584 | CI23: 822.7008 | CJ23: 822.7008 | CK23: 813.7584 | CL23: 813.7584 | CM23: 822.7008 | CN23: 822.7008 | CO23: 804.816 | CP23: 813.7584 | CQ23: 822.7008 | CR23: 822.7008 | CS23: 804.816 | CT23: 813.7584 | CU23: 822.7008 | CV23: 822.7008 | CW23: 804.816 | CX23: 813.7584 | CY23: 822.7008 | CZ23: 822.7008 | DA23: 813.7584 | DB23: 813.7584 | DC23: 822.7008 | DD23: 822.7008 | DE23: 804.816 | DF23: 813.7584 | DG23: 822.7008 | DH23: 822.7008 | DI23: 804.816 | DJ23: 0 | DK23: 0 | DL23: 0 | DM23: 0 | DN23: 0 | DO23: 0 | DP23: 0 | DQ23: 0 | DR23: 0 | DS23: 0 | DT23: 0 | DU23: 0 | DV23: 0 | DW23: 0 | DX23: 0 | DY23: 0 | DZ23: 0 | EA23: 0 | EB23: 0 | EC23: 0 | ED23: 0 | EE23: 0 | EF23: =EF21-EF22 -> 0 | EG23: 0 | EH23: 0 | EI23: 0 | EJ23: 0 | EK23: 0 | EL23: 0 | EM23: 0 | EN23: 0 | EO23: 0 | EP23: 0 | EQ23: 0 | ER23: 0 | ES23: 0 | ET23: 0 | EU23: 0 | EV23: 0 | EW23: 0 | EX23: 0 | EY23: 0 | EZ23: 0 | FA23: 0 | FB23: 0 | FC23: 0 | FD23: 0 | FE23: 0 | FF23: 0 | FG23: 0 | FH23: 0 | FI23: 0 | FJ23: 0 | FK23: 0 | FL23: 0 | FM23: 0 | FN23: 0 | FO23: 0 | FP23: 0 | FQ23: 0 | FR23: 0 | FS23: 0 | FT23: 0 | FU23: 0 | FV23: 0 | FW23: 0 | FX23: 0 | FY23: 0 | FZ23: 0 | GA23: 0 | GB23: 0 | GC23: 0 | GD23: 0 | GE23: 0 | GF23: 0 | GG23: 0 | GH23: 0 | GI23: 0 | GJ23: 0 | GK23: 0 | GL23: 0 | GM23: 0 | GN23: 0 | GO23: 0 | GP23: 0 | GQ23: 0 | GR23: =GR21-GR22 -> 0 | GS23: 0 | GT23: 0 | GU23: 0 | GV23: 0 | GW23: 0 | GX23: 0 | GY23: 0 | GZ23: 0 | HA23: 0 | HB23: 0 | HC23: 0 | HD23: 0 | HE23: 0 | HF23: 0 | HG23: 0 | HH23: 0 | HI23: 0 | HJ23: 0 | HK23: 0 | HL23: 0 | HM23: 0 | HN23: 0 | HO23: 0 | HP23: 0 | HQ23: 0 | HR23: 0 | HS23: 0 | HT23: 0 | HU23: 0 | HV23: 0 | HW23: 0 | HX23: 0 | HY23: 0 | HZ23: 0 | IA23: 0 | IB23: 0 | IC23: 0 | ID23: 0 | IE23: 0 | IF23: 0 | IG23: 0 | IH23: 0 | II23: 0 | IJ23: 0 | IK23: 0 | IL23: 0 | IM23: 0 | IN23: 0 | IO23: 0 | IP23: 0 | IQ23: 0 | IR23: 0 | IS23: 0 | IT23: 0 | IU23: 0 | IV23: 0 | IW23: 0 | IX23: 0 | IY23: 0 | IZ23: 0 | JA23: 0 | JB23: 0 | JC23: 0 | JD23: =JD21-JD22 -> 0 | JE23: 0 | JF23: 0 | JG23: 0 | JH23: 0 | JI23: 0 | JJ23: 0 | JK23: 0 | JL23: 0 | JM23: 0 | JN23: 0 | JO23: 0 | JP23: 0 | JQ23: 0 | JR23: 0 | JS23: 0 | JT23: 0 | JU23: 0 | JV23: 0 | JW23: 0 | JX23: 0 | JY23: 0 | JZ23: 0 | KA23: 0 | KB23: 0 | KC23: 0 | KD23: 0 | KE23: 0 | KF23: 0 | KG23: 0 | KH23: 0 | KI23: 0 | KJ23: 0 | KK23: 0 | KL23: 0 | KM23: 0 | KN23: 0 | KO23: 0 | KP23: 0 | KQ23: 0 | KR23: 0 | KS23: 0 | KT23: 0 | KU23: 0
B24: T & D Loss | E24: MWH | F24: =Assumptions!F16 -> 0 | H24: =$F$24*H23 -> 0 | I24: 0 | J24: 0 | K24: 0 | L24: 0 | M24: 0 | N24: 0 | O24: 0 | P24: 0 | Q24: 0 | R24: 0 | S24: 0 | T24: 0 | U24: 0 | V24: 0 | W24: 0 | X24: 0 | Y24: 0 | Z24: 0 | AA24: 0 | AB24: 0 | AC24: 0 | AD24: 0 | AE24: 0 | AF24: 0 | AG24: 0 | AH24: 0 | AI24: 0 | AJ24: 0 | AK24: 0 | AL24: 0 | AM24: 0 | AN24: 0 | AO24: 0 | AP24: 0 | AQ24: 0 | AR24: 0 | AS24: 0 | AT24: 0 | AU24: 0 | AV24: 0 | AW24: 0 | AX24: 0 | AY24: 0 | AZ24: 0 | BA24: 0 | BB24: 0 | BC24: 0 | BD24: 0 | BE24: 0 | BF24: 0 | BG24: 0 | BH24: 0 | BI24: 0 | BJ24: 0 | BK24: 0 | BL24: 0 | BM24: 0 | BN24: 0 | BO24: 0 | BP24: 0 | BQ24: 0 | BR24: 0 | BS24: 0 | BT24: =$F$24*BT23 -> 0 | BU24: 0 | BV24: 0 | BW24: 0 | BX24: 0 | BY24: 0 | BZ24: 0 | CA24: 0 | CB24: 0 | CC24: 0 | CD24: 0 | CE24: 0 | CF24: 0 | CG24: 0 | CH24: 0 | CI24: 0 | CJ24: 0 | CK24: 0 | CL24: 0 | CM24: 0 | CN24: 0 | CO24: 0 | CP24: 0 | CQ24: 0 | CR24: 0 | CS24: 0 | CT24: 0 | CU24: 0 | CV24: 0 | CW24: 0 | CX24: 0 | CY24: 0 | CZ24: 0 | DA24: 0 | DB24: 0 | DC24: 0 | DD24: 0 | DE24: 0 | DF24: 0 | DG24: 0 | DH24: 0 | DI24: 0 | DJ24: 0 | DK24: 0 | DL24: 0 | DM24: 0 | DN24: 0 | DO24: 0 | DP24: 0 | DQ24: 0 | DR24: 0 | DS24: 0 | DT24: 0 | DU24: 0 | DV24: 0 | DW24: 0 | DX24: 0 | DY24: 0 | DZ24: 0 | EA24: 0 | EB24: 0 | EC24: 0 | ED24: 0 | EE24: 0 | EF24: =$F$24*EF23 -> 0 | EG24: 0 | EH24: 0 | EI24: 0 | EJ24: 0 | EK24: 0 | EL24: 0 | EM24: 0 | EN24: 0 | EO24: 0 | EP24: 0 | EQ24: 0 | ER24: 0 | ES24: 0 | ET24: 0 | EU24: 0 | EV24: 0 | EW24: 0 | EX24: 0 | EY24: 0 | EZ24: 0 | FA24: 0 | FB24: 0 | FC24: 0 | FD24: 0 | FE24: 0 | FF24: 0 | FG24: 0 | FH24: 0 | FI24: 0 | FJ24: 0 | FK24: 0 | FL24: 0 | FM24: 0 | FN24: 0 | FO24: 0 | FP24: 0 | FQ24: 0 | FR24: 0 | FS24: 0 | FT24: 0 | FU24: 0 | FV24: 0 | FW24: 0 | FX24: 0 | FY24: 0 | FZ24: 0 | GA24: 0 | GB24: 0 | GC24: 0 | GD24: 0 | GE24: 0 | GF24: 0 | GG24: 0 | GH24: 0 | GI24: 0 | GJ24: 0 | GK24: 0 | GL24: 0 | GM24: 0 | GN24: 0 | GO24: 0 | GP24: 0 | GQ24: 0 | GR24: =$F$24*GR23 -> 0 | GS24: 0 | GT24: 0 | GU24: 0 | GV24: 0 | GW24: 0 | GX24: 0 | GY24: 0 | GZ24: 0 | HA24: 0 | HB24: 0 | HC24: 0 | HD24: 0 | HE24: 0 | HF24: 0 | HG24: 0 | HH24: 0 | HI24: 0 | HJ24: 0 | HK24: 0 | HL24: 0 | HM24: 0 | HN24: 0 | HO24: 0 | HP24: 0 | HQ24: 0 | HR24: 0 | HS24: 0 | HT24: 0 | HU24: 0 | HV24: 0 | HW24: 0 | HX24: 0 | HY24: 0 | HZ24: 0 | IA24: 0 | IB24: 0 | IC24: 0 | ID24: 0 | IE24: 0 | IF24: 0 | IG24: 0 | IH24: 0 | II24: 0 | IJ24: 0 | IK24: 0 | IL24: 0 | IM24: 0 | IN24: 0 | IO24: 0 | IP24: 0 | IQ24: 0 | IR24: 0 | IS24: 0 | IT24: 0 | IU24: 0 | IV24: 0 | IW24: 0 | IX24: 0 | IY24: 0 | IZ24: 0 | JA24: 0 | JB24: 0 | JC24: 0 | JD24: =$F$24*JD23 -> 0 | JE24: 0 | JF24: 0 | JG24: 0 | JH24: 0 | JI24: 0 | JJ24: 0 | JK24: 0 | JL24: 0 | JM24: 0 | JN24: 0 | JO24: 0 | JP24: 0 | JQ24: 0 | JR24: 0 | JS24: 0 | JT24: 0 | JU24: 0 | JV24: 0 | JW24: 0 | JX24: 0 | JY24: 0 | JZ24: 0 | KA24: 0 | KB24: 0 | KC24: 0 | KD24: 0 | KE24: 0 | KF24: 0 | KG24: 0 | KH24: 0 | KI24: 0 | KJ24: 0 | KK24: 0 | KL24: 0 | KM24: 0 | KN24: 0 | KO24: 0 | KP24: 0 | KQ24: 0 | KR24: 0 | KS24: 0 | KT24: 0 | KU24: 0
C25: Generation Available for Sale | E25: MWH | H25: =H23-H24 -> 0 | I25: 0 | J25: 0 | K25: 0 | L25: 0 | M25: 0 | N25: 813.7584 | O25: 822.7008 | P25: 822.7008 | Q25: 804.816 | R25: 813.7584 | S25: 822.7008 | T25: 822.7008 | U25: 804.816 | V25: 813.7584 | W25: 822.7008 | X25: 822.7008 | Y25: 813.7584 | Z25: 813.7584 | AA25: 822.7008 | AB25: 822.7008 | AC25: 804.816 | AD25: 813.7584 | AE25: 822.7008 | AF25: 822.7008 | AG25: 804.816 | AH25: 813.7584 | AI25: 822.7008 | AJ25: 822.7008 | AK25: 804.816 | AL25: 813.7584 | AM25: 822.7008 | AN25: 822.7008 | AO25: 813.7584 | AP25: 813.7584 | AQ25: 822.7008 | AR25: 822.7008 | AS25: 804.816 | AT25: 813.7584 | AU25: 822.7008 | AV25: 822.7008 | AW25: 804.816 | AX25: 813.7584 | AY25: 822.7008 | AZ25: 822.7008 | BA25: 804.816 | BB25: 813.7584 | BC25: 822.7008 | BD25: 822.7008 | BE25: 813.7584 | BF25: 813.7584 | BG25: 822.7008 | BH25: 822.7008 | BI25: 804.816 | BJ25: 813.7584 | BK25: 822.7008 | BL25: 822.7008 | BM25: 804.816 | BN25: 813.7584 | BO25: 822.7008 | BP25: 822.7008 | BQ25: 804.816 | BR25: 813.7584 | BS25: 822.7008 | BT25: =BT23-BT24 -> 822.7008 | BU25: 813.7584 | BV25: 813.7584 | BW25: 822.7008 | BX25: 822.7008 | BY25: 804.816 | BZ25: 813.7584 | CA25: 822.7008 | CB25: 822.7008 | CC25: 804.816 | CD25: 813.7584 | CE25: 822.7008 | CF25: 822.7008 | CG25: 804.816 | CH25: 813.7584 | CI25: 822.7008 | CJ25: 822.7008 | CK25: 813.7584 | CL25: 813.7584 | CM25: 822.7008 | CN25: 822.7008 | CO25: 804.816 | CP25: 813.7584 | CQ25: 822.7008 | CR25: 822.7008 | CS25: 804.816 | CT25: 813.7584 | CU25: 822.7008 | CV25: 822.7008 | CW25: 804.816 | CX25: 813.7584 | CY25: 822.7008 | CZ25: 822.7008 | DA25: 813.7584 | DB25: 813.7584 | DC25: 822.7008 | DD25: 822.7008 | DE25: 804.816 | DF25: 813.7584 | DG25: 822.7008 | DH25: 822.7008 | DI25: 804.816 | DJ25: 0 | DK25: 0 | DL25: 0 | DM25: 0 | DN25: 0 | DO25: 0 | DP25: 0 | DQ25: 0 | DR25: 0 | DS25: 0 | DT25: 0 | DU25: 0 | DV25: 0 | DW25: 0 | DX25: 0 | DY25: 0 | DZ25: 0 | EA25: 0 | EB25: 0 | EC25: 0 | ED25: 0 | EE25: 0 | EF25: =EF23-EF24 -> 0 | EG25: 0 | EH25: 0 | EI25: 0 | EJ25: 0 | EK25: 0 | EL25: 0 | EM25: 0 | EN25: 0 | EO25: 0 | EP25: 0 | EQ25: 0 | ER25: 0 | ES25: 0 | ET25: 0 | EU25: 0 | EV25: 0 | EW25: 0 | EX25: 0 | EY25: 0 | EZ25: 0 | FA25: 0 | FB25: 0 | FC25: 0 | FD25: 0 | FE25: 0 | FF25: 0 | FG25: 0 | FH25: 0 | FI25: 0 | FJ25: 0 | FK25: 0 | FL25: 0 | FM25: 0 | FN25: 0 | FO25: 0 | FP25: 0 | FQ25: 0 | FR25: 0 | FS25: 0 | FT25: 0 | FU25: 0 | FV25: 0 | FW25: 0 | FX25: 0 | FY25: 0 | FZ25: 0 | GA25: 0 | GB25: 0 | GC25: 0 | GD25: 0 | GE25: 0 | GF25: 0 | GG25: 0 | GH25: 0 | GI25: 0 | GJ25: 0 | GK25: 0 | GL25: 0 | GM25: 0 | GN25: 0 | GO25: 0 | GP25: 0 | GQ25: 0 | GR25: =GR23-GR24 -> 0 | GS25: 0 | GT25: 0 | GU25: 0 | GV25: 0 | GW25: 0 | GX25: 0 | GY25: 0 | GZ25: 0 | HA25: 0 | HB25: 0 | HC25: 0 | HD25: 0 | HE25: 0 | HF25: 0 | HG25: 0 | HH25: 0 | HI25: 0 | HJ25: 0 | HK25: 0 | HL25: 0 | HM25: 0 | HN25: 0 | HO25: 0 | HP25: 0 | HQ25: 0 | HR25: 0 | HS25: 0 | HT25: 0 | HU25: 0 | HV25: 0 | HW25: 0 | HX25: 0 | HY25: 0 | HZ25: 0 | IA25: 0 | IB25: 0 | IC25: 0 | ID25: 0 | IE25: 0 | IF25: 0 | IG25: 0 | IH25: 0 | II25: 0 | IJ25: 0 | IK25: 0 | IL25: 0 | IM25: 0 | IN25: 0 | IO25: 0 | IP25: 0 | IQ25: 0 | IR25: 0 | IS25: 0 | IT25: 0 | IU25: 0 | IV25: 0 | IW25: 0 | IX25: 0 | IY25: 0 | IZ25: 0 | JA25: 0 | JB25: 0 | JC25: 0 | JD25: =JD23-JD24 -> 0 | JE25: 0 | JF25: 0 | JG25: 0 | JH25: 0 | JI25: 0 | JJ25: 0 | JK25: 0 | JL25: 0 | JM25: 0 | JN25: 0 | JO25: 0 | JP25: 0 | JQ25: 0 | JR25: 0 | JS25: 0 | JT25: 0 | JU25: 0 | JV25: 0 | JW25: 0 | JX25: 0 | JY25: 0 | JZ25: 0 | KA25: 0 | KB25: 0 | KC25: 0 | KD25: 0 | KE25: 0 | KF25: 0 | KG25: 0 | KH25: 0 | KI25: 0 | KJ25: 0 | KK25: 0 | KL25: 0 | KM25: 0 | KN25: 0 | KO25: 0 | KP25: 0 | KQ25: 0 | KR25: 0 | KS25: 0 | KT25: 0 | KU25: 0
A27: Capital Expenditures
B28: S-Curve Assumptions
C29: Land | E29: % | H29: =LOOKUP(H$2,Assumptions!$30:$30,Assumptions!31:31) -> 1 | I29: =LOOKUP(I$2,Assumptions!$30:$30,Assumptions!31:31) -> 0 | J29: =LOOKUP(J$2,Assumptions!$30:$30,Assumptions!31:31) -> 0 | K29: =LOOKUP(K$2,Assumptions!$30:$30,Assumptions!31:31) -> 0 | L29: =LOOKUP(L$2,Assumptions!$30:$30,Assumptions!31:31) -> 0 | M29: =LOOKUP(M$2,Assumptions!$30:$30,Assumptions!31:31) -> 0 | N29: =LOOKUP(N$2,Assumptions!$30:$30,Assumptions!31:31) -> 0 | O29: =LOOKUP(O$2,Assumptions!$30:$30,Assumptions!31:31) -> 0 | P29: =LOOKUP(P$2,Assumptions!$30:$30,Assumptions!31:31) -> 0 | Q29: =LOOKUP(Q$2,Assumptions!$30:$30,Assumptions!31:31) -> 0 | R29: =LOOKUP(R$2,Assumptions!$30:$30,Assumptions!31:31) -> 0 | S29: =LOOKUP(S$2,Assumptions!$30:$30,Assumptions!31:31) -> 0 | T29: =LOOKUP(T$2,Assumptions!$30:$30,Assumptions!31:31) -> 0 | U29: =LOOKUP(U$2,Assumptions!$30:$30,Assumptions!31:31) -> 0 | V29: =LOOKUP(V$2,Assumptions!$30:$30,Assumptions!31:31) -> 0 | W29: =LOOKUP(W$2,Assumptions!$30:$30,Assumptions!31:31) -> 0 | X29: =LOOKUP(X$2,Assumptions!$30:$30,Assumptions!31:31) -> 0 | Y29: =LOOKUP(Y$2,Assumptions!$30:$30,Assumptions!31:31) -> 0 | Z29: =LOOKUP(Z$2,Assumptions!$30:$30,Assumptions!31:31) -> 0 | AA29: =LOOKUP(AA$2,Assumptions!$30:$30,Assumptions!31:31) -> 0 | AB29: =LOOKUP(AB$2,Assumptions!$30:$30,Assumptions!31:31) -> 0 | AC29: =LOOKUP(AC$2,Assumptions!$30:$30,Assumptions!31:31) -> 0 | AD29: =LOOKUP(AD$2,Assumptions!$30:$30,Assumptions!31:31) -> 0 | AE29: =LOOKUP(AE$2,Assumptions!$30:$30,Assumptions!31:31) -> 0 | AF29: =LOOKUP(AF$2,Assumptions!$30:$30,Assumptions!31:31) -> 0 | AG29: =LOOKUP(AG$2,Assumptions!$30:$30,Assumptions!31:31) -> 0 | AH29: =LOOKUP(AH$2,Assumptions!$30:$30,Assumptions!31:31) -> 0 | AI29: =LOOKUP(AI$2,Assumptions!$30:$30,Assumptions!31:31) -> 0 | AJ29: =LOOKUP(AJ$2,Assumptions!$30:$30,Assumptions!31:31) -> 0 | AK29: =LOOKUP(AK$2,Assumptions!$30:$30,Assumptions!31:31) -> 0 | AL29: =LOOKUP(AL$2,Assumptions!$30:$30,Assumptions!31:31) -> 0 | AM29: =LOOKUP(AM$2,Assumptions!$30:$30,Assumptions!31:31) -> 0 | AN29: =LOOKUP(AN$2,Assumptions!$30:$30,Assumptions!31:31) -> 0 | AO29: =LOOKUP(AO$2,Assumptions!$30:$30,Assumptions!31:31) -> 0 | AP29: =LOOKUP(AP$2,Assumptions!$30:$30,Assumptions!31:31) -> 0 | AQ29: =LOOKUP(AQ$2,Assumptions!$30:$30,Assumptions!31:31) -> 0 | AR29: =LOOKUP(AR$2,Assumptions!$30:$30,Assumptions!31:31) -> 0 | AS29: =LOOKUP(AS$2,Assumptions!$30:$30,Assumptions!31:31) -> 0 | AT29: =LOOKUP(AT$2,Assumptions!$30:$30,Assumptions!31:31) -> 0 | AU29: =LOOKUP(AU$2,Assumptions!$30:$30,Assumptions!31:31) -> 0 | AV29: =LOOKUP(AV$2,Assumptions!$30:$30,Assumptions!31:31) -> 0 | AW29: =LOOKUP(AW$2,Assumptions!$30:$30,Assumptions!31:31) -> 0 | AX29: =LOOKUP(AX$2,Assumptions!$30:$30,Assumptions!31:31) -> 0 | AY29: =LOOKUP(AY$2,Assumptions!$30:$30,Assumptions!31:31) -> 0 | AZ29: =LOOKUP(AZ$2,Assumptions!$30:$30,Assumptions!31:31) -> 0 | BA29: =LOOKUP(BA$2,Assumptions!$30:$30,Assumptions!31:31) -> 0 | BB29: =LOOKUP(BB$2,Assumptions!$30:$30,Assumptions!31:31) -> 0 | BC29: =LOOKUP(BC$2,Assumptions!$30:$30,Assumptions!31:31) -> 0 | BD29: =LOOKUP(BD$2,Assumptions!$30:$30,Assumptions!31:31) -> 0 | BE29: =LOOKUP(BE$2,Assumptions!$30:$30,Assumptions!31:31) -> 0 | BF29: =LOOKUP(BF$2,Assumptions!$30:$30,Assumptions!31:31) -> 0 | BG29: =LOOKUP(BG$2,Assumptions!$30:$30,Assumptions!31:31) -> 0 | BH29: =LOOKUP(BH$2,Assumptions!$30:$30,Assumptions!31:31) -> 0 | BI29: =LOOKUP(BI$2,Assumptions!$30:$30,Assumptions!31:31) -> 0 | BJ29: =LOOKUP(BJ$2,Assumptions!$30:$30,Assumptions!31:31) -> 0 | BK29: =LOOKUP(BK$2,Assumptions!$30:$30,Assumptions!31:31) -> 0 | BL29: =LOOKUP(BL$2,Assumptions!$30:$30,Assumptions!31:31) -> 0 | BM29: =LOOKUP(BM$2,Assumptions!$30:$30,Assumptions!31:31) -> 0 | BN29: =LOOKUP(BN$2,Assumptions!$30:$30,Assumptions!31:31) -> 0 | BO29: =LOOKUP(BO$2,Assumptions!$30:$30,Assumptions!31:31) -> 0 | BP29: =LOOKUP(BP$2,Assumptions!$30:$30,Assumptions!31:31) -> 0 | BQ29: =LOOKUP(BQ$2,Assumptions!$30:$30,Assumptions!31:31) -> 0 | BR29: =LOOKUP(BR$2,Assumptions!$30:$30,Assumptions!31:31) -> 0 | BS29: =LOOKUP(BS$2,Assumptions!$30:$30,Assumptions!31:31) -> 0 | BT29: =LOOKUP(BT$2,Assumptions!$30:$30,Assumptions!31:31) -> 0 | BU29: =LOOKUP(BU$2,Assumptions!$30:$30,Assumptions!31:31) -> 0 | BV29: =LOOKUP(BV$2,Assumptions!$30:$30,Assumptions!31:31) -> 0 | BW29: =LOOKUP(BW$2,Assumptions!$30:$30,Assumptions!31:31) -> 0 | BX29: =LOOKUP(BX$2,Assumptions!$30:$30,Assumptions!31:31) -> 0 | BY29: =LOOKUP(BY$2,Assumptions!$30:$30,Assumptions!31:31) -> 0 | BZ29: =LOOKUP(BZ$2,Assumptions!$30:$30,Assumptions!31:31) -> 0 | CA29: =LOOKUP(CA$2,Assumptions!$30:$30,Assumptions!31:31) -> 0 | CB29: =LOOKUP(CB$2,Assumptions!$30:$30,Assumptions!31:31) -> 0 | CC29: =LOOKUP(CC$2,Assumptions!$30:$30,Assumptions!31:31) -> 0 | CD29: =LOOKUP(CD$2,Assumptions!$30:$30,Assumptions!31:31) -> 0 | CE29: =LOOKUP(CE$2,Assumptions!$30:$30,Assumptions!31:31) -> 0 | CF29: =LOOKUP(CF$2,Assumptions!$30:$30,Assumptions!31:31) -> 0 | CG29: =LOOKUP(CG$2,Assumptions!$30:$30,Assumptions!31:31) -> 0 | CH29: =LOOKUP(CH$2,Assumptions!$30:$30,Assumptions!31:31) -> 0 | CI29: =LOOKUP(CI$2,Assumptions!$30:$30,Assumptions!31:31) -> 0 | CJ29: =LOOKUP(CJ$2,Assumptions!$30:$30,Assumptions!31:31) -> 0 | CK29: =LOOKUP(CK$2,Assumptions!$30:$30,Assumptions!31:31) -> 0 | CL29: =LOOKUP(CL$2,Assumptions!$30:$30,Assumptions!31:31) -> 0 | CM29: =LOOKUP(CM$2,Assumptions!$30:$30,Assumptions!31:31) -> 0 | CN29: =LOOKUP(CN$2,Assumptions!$30:$30,Assumptions!31:31) -> 0 | CO29: =LOOKUP(CO$2,Assumptions!$30:$30,Assumptions!31:31) -> 0 | CP29: =LOOKUP(CP$2,Assumptions!$30:$30,Assumptions!31:31) -> 0 | CQ29: =LOOKUP(CQ$2,Assumptions!$30:$30,Assumptions!31:31) -> 0 | CR29: =LOOKUP(CR$2,Assumptions!$30:$30,Assumptions!31:31) -> 0 | CS29: =LOOKUP(CS$2,Assumptions!$30:$30,Assumptions!31:31) -> 0 | CT29: =LOOKUP(CT$2,Assumptions!$30:$30,Assumptions!31:31) -> 0 | CU29: =LOOKUP(CU$2,Assumptions!$30:$30,Assumptions!31:31) -> 0 | CV29: =LOOKUP(CV$2,Assumptions!$30:$30,Assumptions!31:31) -> 0 | CW29: =LOOKUP(CW$2,Assumptions!$30:$30,Assumptions!31:31) -> 0 | CX29: =LOOKUP(CX$2,Assumptions!$30:$30,Assumptions!31:31) -> 0 | CY29: =LOOKUP(CY$2,Assumptions!$30:$30,Assumptions!31:31) -> 0 | CZ29: =LOOKUP(CZ$2,Assumptions!$30:$30,Assumptions!31:31) -> 0 | DA29: =LOOKUP(DA$2,Assumptions!$30:$30,Assumptions!31:31) -> 0 | DB29: =LOOKUP(DB$2,Assumptions!$30:$30,Assumptions!31:31) -> 0 | DC29: =LOOKUP(DC$2,Assumptions!$30:$30,Assumptions!31:31) -> 0 | DD29: =LOOKUP(DD$2,Assumptions!$30:$30,Assumptions!31:31) -> 0 | DE29: =LOOKUP(DE$2,Assumptions!$30:$30,Assumptions!31:31) -> 0 | DF29: =LOOKUP(DF$2,Assumptions!$30:$30,Assumptions!31:31) -> 0 | DG29: =LOOKUP(DG$2,Assumptions!$30:$30,Assumptions!31:31) -> 0 | DH29: =LOOKUP(DH$2,Assumptions!$30:$30,Assumptions!31:31) -> 0 | DI29: =LOOKUP(DI$2,Assumptions!$30:$30,Assumptions!31:31) -> 0 | DJ29: =LOOKUP(DJ$2,Assumptions!$30:$30,Assumptions!31:31) -> 0 | DK29: =LOOKUP(DK$2,Assumptions!$30:$30,Assumptions!31:31) -> 0 | DL29: =LOOKUP(DL$2,Assumptions!$30:$30,Assumptions!31:31) -> 0 | DM29: =LOOKUP(DM$2,Assumptions!$30:$30,Assumptions!31:31) -> 0 | DN29: =LOOKUP(DN$2,Assumptions!$30:$30,Assumptions!31:31) -> 0 | DO29: =LOOKUP(DO$2,Assumptions!$30:$30,Assumptions!31:31) -> 0 | DP29: =LOOKUP(DP$2,Assumptions!$30:$30,Assumptions!31:31) -> 0 | DQ29: =LOOKUP(DQ$2,Assumptions!$30:$30,Assumptions!31:31) -> 0 | DR29: =LOOKUP(DR$2,Assumptions!$30:$30,Assumptions!31:31) -> 0 | DS29: =LOOKUP(DS$2,Assumptions!$30:$30,Assumptions!31:31) -> 0 | DT29: =LOOKUP(DT$2,Assumptions!$30:$30,Assumptions!31:31) -> 0 | DU29: =LOOKUP(DU$2,Assumptions!$30:$30,Assumptions!31:31) -> 0 | DV29: =LOOKUP(DV$2,Assumptions!$30:$30,Assumptions!31:31) -> 0 | DW29: =LOOKUP(DW$2,Assumptions!$30:$30,Assumptions!31:31) -> 0 | DX29: =LOOKUP(DX$2,Assumptions!$30:$30,Assumptions!31:31) -> 0 | DY29: =LOOKUP(DY$2,Assumptions!$30:$30,Assumptions!31:31) -> 0 | DZ29: =LOOKUP(DZ$2,Assumptions!$30:$30,Assumptions!31:31) -> 0 | EA29: =LOOKUP(EA$2,Assumptions!$30:$30,Assumptions!31:31) -> 0 | EB29: =LOOKUP(EB$2,Assumptions!$30:$30,Assumptions!31:31) -> 0 | EC29: =LOOKUP(EC$2,Assumptions!$30:$30,Assumptions!31:31) -> 0 | ED29: =LOOKUP(ED$2,Assumptions!$30:$30,Assumptions!31:31) -> 0 | EE29: =LOOKUP(EE$2,Assumptions!$30:$30,Assumptions!31:31) -> 0 | EF29: =LOOKUP(EF$2,Assumptions!$30:$30,Assumptions!31:31) -> 0 | EG29: =LOOKUP(EG$2,Assumptions!$30:$30,Assumptions!31:31) -> 0 | EH29: =LOOKUP(EH$2,Assumptions!$30:$30,Assumptions!31:31) -> 0 | EI29: =LOOKUP(EI$2,Assumptions!$30:$30,Assumptions!31:31) -> 0 | EJ29: =LOOKUP(EJ$2,Assumptions!$30:$30,Assumptions!31:31) -> 0 | EK29: =LOOKUP(EK$2,Assumptions!$30:$30,Assumptions!31:31) -> 0 | EL29: =LOOKUP(EL$2,Assumptions!$30:$30,Assumptions!31:31) -> 0 | EM29: =LOOKUP(EM$2,Assumptions!$30:$30,Assumptions!31:31) -> 0 | EN29: =LOOKUP(EN$2,Assumptions!$30:$30,Assumptions!31:31) -> 0 | EO29: =LOOKUP(EO$2,Assumptions!$30:$30,Assumptions!31:31) -> 0 | EP29: =LOOKUP(EP$2,Assumptions!$30:$30,Assumptions!31:31) -> 0 | EQ29: =LOOKUP(EQ$2,Assumptions!$30:$30,Assumptions!31:31) -> 0 | ER29: =LOOKUP(ER$2,Assumptions!$30:$30,Assumptions!31:31) -> 0 | ES29: =LOOKUP(ES$2,Assumptions!$30:$30,Assumptions!31:31) -> 0 | ET29: =LOOKUP(ET$2,Assumptions!$30:$30,Assumptions!31:31) -> 0 | EU29: =LOOKUP(EU$2,Assumptions!$30:$30,Assumptions!31:31) -> 0 | EV29: =LOOKUP(EV$2,Assumptions!$30:$30,Assumptions!31:31) -> 0 | EW29: =LOOKUP(EW$2,Assumptions!$30:$30,Assumptions!31:31) -> 0 | EX29: =LOOKUP(EX$2,Assumptions!$30:$30,Assumptions!31:31) -> 0 | EY29: =LOOKUP(EY$2,Assumptions!$30:$30,Assumptions!31:31) -> 0 | EZ29: =LOOKUP(EZ$2,Assumptions!$30:$30,Assumptions!31:31) -> 0 | FA29: =LOOKUP(FA$2,Assumptions!$30:$30,Assumptions!31:31) -> 0 | FB29: =LOOKUP(FB$2,Assumptions!$30:$30,Assumptions!31:31) -> 0 | FC29: =LOOKUP(FC$2,Assumptions!$30:$30,Assumptions!31:31) -> 0 | FD29: =LOOKUP(FD$2,Assumptions!$30:$30,Assumptions!31:31) -> 0 | FE29: =LOOKUP(FE$2,Assumptions!$30:$30,Assumptions!31:31) -> 0 | FF29: =LOOKUP(FF$2,Assumptions!$30:$30,Assumptions!31:31) -> 0 | FG29: =LOOKUP(FG$2,Assumptions!$30:$30,Assumptions!31:31) -> 0 | FH29: =LOOKUP(FH$2,Assumptions!$30:$30,Assumptions!31:31) -> 0 | FI29: =LOOKUP(FI$2,Assumptions!$30:$30,Assumptions!31:31) -> 0 | FJ29: =LOOKUP(FJ$2,Assumptions!$30:$30,Assumptions!31:31) -> 0 | FK29: =LOOKUP(FK$2,Assumptions!$30:$30,Assumptions!31:31) -> 0 | FL29: =LOOKUP(FL$2,Assumptions!$30:$30,Assumptions!31:31) -> 0 | FM29: =LOOKUP(FM$2,Assumptions!$30:$30,Assumptions!31:31) -> 0 | FN29: =LOOKUP(FN$2,Assumptions!$30:$30,Assumptions!31:31) -> 0 | FO29: =LOOKUP(FO$2,Assumptions!$30:$30,Assumptions!31:31) -> 0 | FP29: =LOOKUP(FP$2,Assumptions!$30:$30,Assumptions!31:31) -> 0 | FQ29: =LOOKUP(FQ$2,Assumptions!$30:$30,Assumptions!31:31) -> 0 | FR29: =LOOKUP(FR$2,Assumptions!$30:$30,Assumptions!31:31) -> 0 | FS29: =LOOKUP(FS$2,Assumptions!$30:$30,Assumptions!31:31) -> 0 | FT29: =LOOKUP(FT$2,Assumptions!$30:$30,Assumptions!31:31) -> 0 | FU29: =LOOKUP(FU$2,Assumptions!$30:$30,Assumptions!31:31) -> 0 | FV29: =LOOKUP(FV$2,Assumptions!$30:$30,Assumptions!31:31) -> 0 | FW29: =LOOKUP(FW$2,Assumptions!$30:$30,Assumptions!31:31) -> 0 | FX29: =LOOKUP(FX$2,Assumptions!$30:$30,Assumptions!31:31) -> 0 | FY29: =LOOKUP(FY$2,Assumptions!$30:$30,Assumptions!31:31) -> 0 | FZ29: =LOOKUP(FZ$2,Assumptions!$30:$30,Assumptions!31:31) -> 0 | GA29: =LOOKUP(GA$2,Assumptions!$30:$30,Assumptions!31:31) -> 0 | GB29: =LOOKUP(GB$2,Assumptions!$30:$30,Assumptions!31:31) -> 0 | GC29: =LOOKUP(GC$2,Assumptions!$30:$30,Assumptions!31:31) -> 0 | GD29: =LOOKUP(GD$2,Assumptions!$30:$30,Assumptions!31:31) -> 0 | GE29: =LOOKUP(GE$2,Assumptions!$30:$30,Assumptions!31:31) -> 0 | GF29: =LOOKUP(GF$2,Assumptions!$30:$30,Assumptions!31:31) -> 0 | GG29: =LOOKUP(GG$2,Assumptions!$30:$30,Assumptions!31:31) -> 0 | GH29: =LOOKUP(GH$2,Assumptions!$30:$30,Assumptions!31:31) -> 0 | GI29: =LOOKUP(GI$2,Assumptions!$30:$30,Assumptions!31:31) -> 0 | GJ29: =LOOKUP(GJ$2,Assumptions!$30:$30,Assumptions!31:31) -> 0 | GK29: =LOOKUP(GK$2,Assumptions!$30:$30,Assumptions!31:31) -> 0 | GL29: =LOOKUP(GL$2,Assumptions!$30:$30,Assumptions!31:31) -> 0 | GM29: =LOOKUP(GM$2,Assumptions!$30:$30,Assumptions!31:31) -> 0 | GN29: =LOOKUP(GN$2,Assumptions!$30:$30,Assumptions!31:31) -> 0 | GO29: =LOOKUP(GO$2,Assumptions!$30:$30,Assumptions!31:31) -> 0 | GP29: =LOOKUP(GP$2,Assumptions!$30:$30,Assumptions!31:31) -> 0 | GQ29: =LOOKUP(GQ$2,Assumptions!$30:$30,Assumptions!31:31) -> 0 | GR29: =LOOKUP(GR$2,Assumptions!$30:$30,Assumptions!31:31) -> 0 | GS29: =LOOKUP(GS$2,Assumptions!$30:$30,Assumptions!31:31) -> 0 | GT29: =LOOKUP(GT$2,Assumptions!$30:$30,Assumptions!31:31) -> 0 | GU29: =LOOKUP(GU$2,Assumptions!$30:$30,Assumptions!31:31) -> 0 | GV29: =LOOKUP(GV$2,Assumptions!$30:$30,Assumptions!31:31) -> 0 | GW29: =LOOKUP(GW$2,Assumptions!$30:$30,Assumptions!31:31) -> 0 | GX29: =LOOKUP(GX$2,Assumptions!$30:$30,Assumptions!31:31) -> 0 | GY29: =LOOKUP(GY$2,Assumptions!$30:$30,Assumptions!31:31) -> 0 | GZ29: =LOOKUP(GZ$2,Assumptions!$30:$30,Assumptions!31:31) -> 0 | HA29: =LOOKUP(HA$2,Assumptions!$30:$30,Assumptions!31:31) -> 0 | HB29: =LOOKUP(HB$2,Assumptions!$30:$30,Assumptions!31:31) -> 0 | HC29: =LOOKUP(HC$2,Assumptions!$30:$30,Assumptions!31:31) -> 0 | HD29: =LOOKUP(HD$2,Assumptions!$30:$30,Assumptions!31:31) -> 0 | HE29: =LOOKUP(HE$2,Assumptions!$30:$30,Assumptions!31:31) -> 0 | HF29: =LOOKUP(HF$2,Assumptions!$30:$30,Assumptions!31:31) -> 0 | HG29: =LOOKUP(HG$2,Assumptions!$30:$30,Assumptions!31:31) -> 0 | HH29: =LOOKUP(HH$2,Assumptions!$30:$30,Assumptions!31:31) -> 0 | HI29: =LOOKUP(HI$2,Assumptions!$30:$30,Assumptions!31:31) -> 0 | HJ29: =LOOKUP(HJ$2,Assumptions!$30:$30,Assumptions!31:31) -> 0 | HK29: =LOOKUP(HK$2,Assumptions!$30:$30,Assumptions!31:31) -> 0 | HL29: =LOOKUP(HL$2,Assumptions!$30:$30,Assumptions!31:31) -> 0 | HM29: =LOOKUP(HM$2,Assumptions!$30:$30,Assumptions!31:31) -> 0 | HN29: =LOOKUP(HN$2,Assumptions!$30:$30,Assumptions!31:31) -> 0 | HO29: =LOOKUP(HO$2,Assumptions!$30:$30,Assumptions!31:31) -> 0 | HP29: =LOOKUP(HP$2,Assumptions!$30:$30,Assumptions!31:31) -> 0 | HQ29: =LOOKUP(HQ$2,Assumptions!$30:$30,Assumptions!31:31) -> 0 | HR29: =LOOKUP(HR$2,Assumptions!$30:$30,Assumptions!31:31) -> 0 | HS29: =LOOKUP(HS$2,Assumptions!$30:$30,Assumptions!31:31) -> 0 | HT29: =LOOKUP(HT$2,Assumptions!$30:$30,Assumptions!31:31) -> 0 | HU29: =LOOKUP(HU$2,Assumptions!$30:$30,Assumptions!31:31) -> 0 | HV29: =LOOKUP(HV$2,Assumptions!$30:$30,Assumptions!31:31) -> 0 | HW29: =LOOKUP(HW$2,Assumptions!$30:$30,Assumptions!31:31) -> 0 | HX29: =LOOKUP(HX$2,Assumptions!$30:$30,Assumptions!31:31) -> 0 | HY29: =LOOKUP(HY$2,Assumptions!$30:$30,Assumptions!31:31) -> 0 | HZ29: =LOOKUP(HZ$2,Assumptions!$30:$30,Assumptions!31:31) -> 0 | IA29: =LOOKUP(IA$2,Assumptions!$30:$30,Assumptions!31:31) -> 0 | IB29: =LOOKUP(IB$2,Assumptions!$30:$30,Assumptions!31:31) -> 0 | IC29: =LOOKUP(IC$2,Assumptions!$30:$30,Assumptions!31:31) -> 0 | ID29: =LOOKUP(ID$2,Assumptions!$30:$30,Assumptions!31:31) -> 0 | IE29: =LOOKUP(IE$2,Assumptions!$30:$30,Assumptions!31:31) -> 0 | IF29: =LOOKUP(IF$2,Assumptions!$30:$30,Assumptions!31:31) -> 0 | IG29: =LOOKUP(IG$2,Assumptions!$30:$30,Assumptions!31:31) -> 0 | IH29: =LOOKUP(IH$2,Assumptions!$30:$30,Assumptions!31:31) -> 0 | II29: =LOOKUP(II$2,Assumptions!$30:$30,Assumptions!31:31) -> 0 | IJ29: =LOOKUP(IJ$2,Assumptions!$30:$30,Assumptions!31:31) -> 0 | IK29: =LOOKUP(IK$2,Assumptions!$30:$30,Assumptions!31:31) -> 0 | IL29: =LOOKUP(IL$2,Assumptions!$30:$30,Assumptions!31:31) -> 0 | IM29: =LOOKUP(IM$2,Assumptions!$30:$30,Assumptions!31:31) -> 0 | IN29: =LOOKUP(IN$2,Assumptions!$30:$30,Assumptions!31:31) -> 0 | IO29: =LOOKUP(IO$2,Assumptions!$30:$30,Assumptions!31:31) -> 0 | IP29: =LOOKUP(IP$2,Assumptions!$30:$30,Assumptions!31:31) -> 0 | IQ29: =LOOKUP(IQ$2,Assumptions!$30:$30,Assumptions!31:31) -> 0 | IR29: =LOOKUP(IR$2,Assumptions!$30:$30,Assumptions!31:31) -> 0 | IS29: =LOOKUP(IS$2,Assumptions!$30:$30,Assumptions!31:31) -> 0 | IT29: =LOOKUP(IT$2,Assumptions!$30:$30,Assumptions!31:31) -> 0 | IU29: =LOOKUP(IU$2,Assumptions!$30:$30,Assumptions!31:31) -> 0 | IV29: =LOOKUP(IV$2,Assumptions!$30:$30,Assumptions!31:31) -> 0 | IW29: =LOOKUP(IW$2,Assumptions!$30:$30,Assumptions!31:31) -> 0 | IX29: =LOOKUP(IX$2,Assumptions!$30:$30,Assumptions!31:31) -> 0 | IY29: =LOOKUP(IY$2,Assumptions!$30:$30,Assumptions!31:31) -> 0 | IZ29: =LOOKUP(IZ$2,Assumptions!$30:$30,Assumptions!31:31) -> 0 | JA29: =LOOKUP(JA$2,Assumptions!$30:$30,Assumptions!31:31) -> 0 | JB29: =LOOKUP(JB$2,Assumptions!$30:$30,Assumptions!31:31) -> 0 | JC29: =LOOKUP(JC$2,Assumptions!$30:$30,Assumptions!31:31) -> 0 | JD29: =LOOKUP(JD$2,Assumptions!$30:$30,Assumptions!31:31) -> 0 | JE29: =LOOKUP(JE$2,Assumptions!$30:$30,Assumptions!31:31) -> 0 | JF29: =LOOKUP(JF$2,Assumptions!$30:$30,Assumptions!31:31) -> 0 | JG29: =LOOKUP(JG$2,Assumptions!$30:$30,Assumptions!31:31) -> 0 | JH29: =LOOKUP(JH$2,Assumptions!$30:$30,Assumptions!31:31) -> 0 | JI29: =LOOKUP(JI$2,Assumptions!$30:$30,Assumptions!31:31) -> 0 | JJ29: =LOOKUP(JJ$2,Assumptions!$30:$30,Assumptions!31:31) -> 0 | JK29: =LOOKUP(JK$2,Assumptions!$30:$30,Assumptions!31:31) -> 0 | JL29: =LOOKUP(JL$2,Assumptions!$30:$30,Assumptions!31:31) -> 0 | JM29: =LOOKUP(JM$2,Assumptions!$30:$30,Assumptions!31:31) -> 0 | JN29: =LOOKUP(JN$2,Assumptions!$30:$30,Assumptions!31:31) -> 0 | JO29: =LOOKUP(JO$2,Assumptions!$30:$30,Assumptions!31:31) -> 0 | JP29: =LOOKUP(JP$2,Assumptions!$30:$30,Assumptions!31:31) -> 0 | JQ29: =LOOKUP(JQ$2,Assumptions!$30:$30,Assumptions!31:31) -> 0 | JR29: =LOOKUP(JR$2,Assumptions!$30:$30,Assumptions!31:31) -> 0 | JS29: =LOOKUP(JS$2,Assumptions!$30:$30,Assumptions!31:31) -> 0 | JT29: =LOOKUP(JT$2,Assumptions!$30:$30,Assumptions!31:31) -> 0 | JU29: =LOOKUP(JU$2,Assumptions!$30:$30,Assumptions!31:31) -> 0 | JV29: =LOOKUP(JV$2,Assumptions!$30:$30,Assumptions!31:31) -> 0 | JW29: =LOOKUP(JW$2,Assumptions!$30:$30,Assumptions!31:31) -> 0 | JX29: =LOOKUP(JX$2,Assumptions!$30:$30,Assumptions!31:31) -> 0 | JY29: =LOOKUP(JY$2,Assumptions!$30:$30,Assumptions!31:31) -> 0 | JZ29: =LOOKUP(JZ$2,Assumptions!$30:$30,Assumptions!31:31) -> 0 | KA29: =LOOKUP(KA$2,Assumptions!$30:$30,Assumptions!31:31) -> 0 | KB29: =LOOKUP(KB$2,Assumptions!$30:$30,Assumptions!31:31) -> 0 | KC29: =LOOKUP(KC$2,Assumptions!$30:$30,Assumptions!31:31) -> 0 | KD29: =LOOKUP(KD$2,Assumptions!$30:$30,Assumptions!31:31) -> 0 | KE29: =LOOKUP(KE$2,Assumptions!$30:$30,Assumptions!31:31) -> 0 | KF29: =LOOKUP(KF$2,Assumptions!$30:$30,Assumptions!31:31) -> 0 | KG29: =LOOKUP(KG$2,Assumptions!$30:$30,Assumptions!31:31) -> 0 | KH29: =LOOKUP(KH$2,Assumptions!$30:$30,Assumptions!31:31) -> 0 | KI29: =LOOKUP(KI$2,Assumptions!$30:$30,Assumptions!31:31) -> 0 | KJ29: =LOOKUP(KJ$2,Assumptions!$30:$30,Assumptions!31:31) -> 0 | KK29: =LOOKUP(KK$2,Assumptions!$30:$30,Assumptions!31:31) -> 0 | KL29: =LOOKUP(KL$2,Assumptions!$30:$30,Assumptions!31:31) -> 0 | KM29: =LOOKUP(KM$2,Assumptions!$30:$30,Assumptions!31:31) -> 0 | KN29: =LOOKUP(KN$2,Assumptions!$30:$30,Assumptions!31:31) -> 0 | KO29: =LOOKUP(KO$2,Assumptions!$30:$30,Assumptions!31:31) -> 0 | KP29: =LOOKUP(KP$2,Assumptions!$30:$30,Assumptions!31:31) -> 0 | KQ29: =LOOKUP(KQ$2,Assumptions!$30:$30,Assumptions!31:31) -> 0 | KR29: =LOOKUP(KR$2,Assumptions!$30:$30,Assumptions!31:31) -> 0 | KS29: =LOOKUP(KS$2,Assumptions!$30:$30,Assumptions!31:31) -> 0 | KT29: =LOOKUP(KT$2,Assumptions!$30:$30,Assumptions!31:31) -> 0 | KU29: =LOOKUP(KU$2,Assumptions!$30:$30,Assumptions!31:31) -> 0
C30: Material Cost | E30: % | H30: =LOOKUP(H$2,Assumptions!$30:$30,Assumptions!32:32) -> 0.2 | I30: =LOOKUP(I$2,Assumptions!$30:$30,Assumptions!32:32) -> 0.3 | J30: =LOOKUP(J$2,Assumptions!$30:$30,Assumptions!32:32) -> 0.3 | K30: =LOOKUP(K$2,Assumptions!$30:$30,Assumptions!32:32) -> 0.1 | L30: =LOOKUP(L$2,Assumptions!$30:$30,Assumptions!32:32) -> 0.1 | M30: =LOOKUP(M$2,Assumptions!$30:$30,Assumptions!32:32) -> 0 | N30: =LOOKUP(N$2,Assumptions!$30:$30,Assumptions!32:32) -> 0 | O30: =LOOKUP(O$2,Assumptions!$30:$30,Assumptions!32:32) -> 0 | P30: =LOOKUP(P$2,Assumptions!$30:$30,Assumptions!32:32) -> 0 | Q30: =LOOKUP(Q$2,Assumptions!$30:$30,Assumptions!32:32) -> 0 | R30: =LOOKUP(R$2,Assumptions!$30:$30,Assumptions!32:32) -> 0 | S30: =LOOKUP(S$2,Assumptions!$30:$30,Assumptions!32:32) -> 0 | T30: =LOOKUP(T$2,Assumptions!$30:$30,Assumptions!32:32) -> 0 | U30: =LOOKUP(U$2,Assumptions!$30:$30,Assumptions!32:32) -> 0 | V30: =LOOKUP(V$2,Assumptions!$30:$30,Assumptions!32:32) -> 0 | W30: =LOOKUP(W$2,Assumptions!$30:$30,Assumptions!32:32) -> 0 | X30: =LOOKUP(X$2,Assumptions!$30:$30,Assumptions!32:32) -> 0 | Y30: =LOOKUP(Y$2,Assumptions!$30:$30,Assumptions!32:32) -> 0 | Z30: =LOOKUP(Z$2,Assumptions!$30:$30,Assumptions!32:32) -> 0 | AA30: =LOOKUP(AA$2,Assumptions!$30:$30,Assumptions!32:32) -> 0 | AB30: =LOOKUP(AB$2,Assumptions!$30:$30,Assumptions!32:32) -> 0 | AC30: =LOOKUP(AC$2,Assumptions!$30:$30,Assumptions!32:32) -> 0 | AD30: =LOOKUP(AD$2,Assumptions!$30:$30,Assumptions!32:32) -> 0 | AE30: =LOOKUP(AE$2,Assumptions!$30:$30,Assumptions!32:32) -> 0 | AF30: =LOOKUP(AF$2,Assumptions!$30:$30,Assumptions!32:32) -> 0 | AG30: =LOOKUP(AG$2,Assumptions!$30:$30,Assumptions!32:32) -> 0 | AH30: =LOOKUP(AH$2,Assumptions!$30:$30,Assumptions!32:32) -> 0 | AI30: =LOOKUP(AI$2,Assumptions!$30:$30,Assumptions!32:32) -> 0 | AJ30: =LOOKUP(AJ$2,Assumptions!$30:$30,Assumptions!32:32) -> 0 | AK30: =LOOKUP(AK$2,Assumptions!$30:$30,Assumptions!32:32) -> 0 | AL30: =LOOKUP(AL$2,Assumptions!$30:$30,Assumptions!32:32) -> 0 | AM30: =LOOKUP(AM$2,Assumptions!$30:$30,Assumptions!32:32) -> 0 | AN30: =LOOKUP(AN$2,Assumptions!$30:$30,Assumptions!32:32) -> 0 | AO30: =LOOKUP(AO$2,Assumptions!$30:$30,Assumptions!32:32) -> 0 | AP30: =LOOKUP(AP$2,Assumptions!$30:$30,Assumptions!32:32) -> 0 | AQ30: =LOOKUP(AQ$2,Assumptions!$30:$30,Assumptions!32:32) -> 0 | AR30: =LOOKUP(AR$2,Assumptions!$30:$30,Assumptions!32:32) -> 0 | AS30: =LOOKUP(AS$2,Assumptions!$30:$30,Assumptions!32:32) -> 0 | AT30: =LOOKUP(AT$2,Assumptions!$30:$30,Assumptions!32:32) -> 0 | AU30: =LOOKUP(AU$2,Assumptions!$30:$30,Assumptions!32:32) -> 0 | AV30: =LOOKUP(AV$2,Assumptions!$30:$30,Assumptions!32:32) -> 0 | AW30: =LOOKUP(AW$2,Assumptions!$30:$30,Assumptions!32:32) -> 0 | AX30: =LOOKUP(AX$2,Assumptions!$30:$30,Assumptions!32:32) -> 0 | AY30: =LOOKUP(AY$2,Assumptions!$30:$30,Assumptions!32:32) -> 0 | AZ30: =LOOKUP(AZ$2,Assumptions!$30:$30,Assumptions!32:32) -> 0 | BA30: =LOOKUP(BA$2,Assumptions!$30:$30,Assumptions!32:32) -> 0 | BB30: =LOOKUP(BB$2,Assumptions!$30:$30,Assumptions!32:32) -> 0 | BC30: =LOOKUP(BC$2,Assumptions!$30:$30,Assumptions!32:32) -> 0 | BD30: =LOOKUP(BD$2,Assumptions!$30:$30,Assumptions!32:32) -> 0 | BE30: =LOOKUP(BE$2,Assumptions!$30:$30,Assumptions!32:32) -> 0 | BF30: =LOOKUP(BF$2,Assumptions!$30:$30,Assumptions!32:32) -> 0 | BG30: =LOOKUP(BG$2,Assumptions!$30:$30,Assumptions!32:32) -> 0 | BH30: =LOOKUP(BH$2,Assumptions!$30:$30,Assumptions!32:32) -> 0 | BI30: =LOOKUP(BI$2,Assumptions!$30:$30,Assumptions!32:32) -> 0 | BJ30: =LOOKUP(BJ$2,Assumptions!$30:$30,Assumptions!32:32) -> 0 | BK30: =LOOKUP(BK$2,Assumptions!$30:$30,Assumptions!32:32) -> 0 | BL30: =LOOKUP(BL$2,Assumptions!$30:$30,Assumptions!32:32) -> 0 | BM30: =LOOKUP(BM$2,Assumptions!$30:$30,Assumptions!32:32) -> 0 | BN30: =LOOKUP(BN$2,Assumptions!$30:$30,Assumptions!32:32) -> 0 | BO30: =LOOKUP(BO$2,Assumptions!$30:$30,Assumptions!32:32) -> 0 | BP30: =LOOKUP(BP$2,Assumptions!$30:$30,Assumptions!32:32) -> 0 | BQ30: =LOOKUP(BQ$2,Assumptions!$30:$30,Assumptions!32:32) -> 0 | BR30: =LOOKUP(BR$2,Assumptions!$30:$30,Assumptions!32:32) -> 0 | BS30: =LOOKUP(BS$2,Assumptions!$30:$30,Assumptions!32:32) -> 0 | BT30: =LOOKUP(BT$2,Assumptions!$30:$30,Assumptions!32:32) -> 0 | BU30: =LOOKUP(BU$2,Assumptions!$30:$30,Assumptions!32:32) -> 0 | BV30: =LOOKUP(BV$2,Assumptions!$30:$30,Assumptions!32:32) -> 0 | BW30: =LOOKUP(BW$2,Assumptions!$30:$30,Assumptions!32:32) -> 0 | BX30: =LOOKUP(BX$2,Assumptions!$30:$30,Assumptions!32:32) -> 0 | BY30: =LOOKUP(BY$2,Assumptions!$30:$30,Assumptions!32:32) -> 0 | BZ30: =LOOKUP(BZ$2,Assumptions!$30:$30,Assumptions!32:32) -> 0 | CA30: =LOOKUP(CA$2,Assumptions!$30:$30,Assumptions!32:32) -> 0 | CB30: =LOOKUP(CB$2,Assumptions!$30:$30,Assumptions!32:32) -> 0 | CC30: =LOOKUP(CC$2,Assumptions!$30:$30,Assumptions!32:32) -> 0 | CD30: =LOOKUP(CD$2,Assumptions!$30:$30,Assumptions!32:32) -> 0 | CE30: =LOOKUP(CE$2,Assumptions!$30:$30,Assumptions!32:32) -> 0 | CF30: =LOOKUP(CF$2,Assumptions!$30:$30,Assumptions!32:32) -> 0 | CG30: =LOOKUP(CG$2,Assumptions!$30:$30,Assumptions!32:32) -> 0 | CH30: =LOOKUP(CH$2,Assumptions!$30:$30,Assumptions!32:32) -> 0 | CI30: =LOOKUP(CI$2,Assumptions!$30:$30,Assumptions!32:32) -> 0 | CJ30: =LOOKUP(CJ$2,Assumptions!$30:$30,Assumptions!32:32) -> 0 | CK30: =LOOKUP(CK$2,Assumptions!$30:$30,Assumptions!32:32) -> 0 | CL30: =LOOKUP(CL$2,Assumptions!$30:$30,Assumptions!32:32) -> 0 | CM30: =LOOKUP(CM$2,Assumptions!$30:$30,Assumptions!32:32) -> 0 | CN30: =LOOKUP(CN$2,Assumptions!$30:$30,Assumptions!32:32) -> 0 | CO30: =LOOKUP(CO$2,Assumptions!$30:$30,Assumptions!32:32) -> 0 | CP30: =LOOKUP(CP$2,Assumptions!$30:$30,Assumptions!32:32) -> 0 | CQ30: =LOOKUP(CQ$2,Assumptions!$30:$30,Assumptions!32:32) -> 0 | CR30: =LOOKUP(CR$2,Assumptions!$30:$30,Assumptions!32:32) -> 0 | CS30: =LOOKUP(CS$2,Assumptions!$30:$30,Assumptions!32:32) -> 0 | CT30: =LOOKUP(CT$2,Assumptions!$30:$30,Assumptions!32:32) -> 0 | CU30: =LOOKUP(CU$2,Assumptions!$30:$30,Assumptions!32:32) -> 0 | CV30: =LOOKUP(CV$2,Assumptions!$30:$30,Assumptions!32:32) -> 0 | CW30: =LOOKUP(CW$2,Assumptions!$30:$30,Assumptions!32:32) -> 0 | CX30: =LOOKUP(CX$2,Assumptions!$30:$30,Assumptions!32:32) -> 0 | CY30: =LOOKUP(CY$2,Assumptions!$30:$30,Assumptions!32:32) -> 0 | CZ30: =LOOKUP(CZ$2,Assumptions!$30:$30,Assumptions!32:32) -> 0 | DA30: =LOOKUP(DA$2,Assumptions!$30:$30,Assumptions!32:32) -> 0 | DB30: =LOOKUP(DB$2,Assumptions!$30:$30,Assumptions!32:32) -> 0 | DC30: =LOOKUP(DC$2,Assumptions!$30:$30,Assumptions!32:32) -> 0 | DD30: =LOOKUP(DD$2,Assumptions!$30:$30,Assumptions!32:32) -> 0 | DE30: =LOOKUP(DE$2,Assumptions!$30:$30,Assumptions!32:32) -> 0 | DF30: =LOOKUP(DF$2,Assumptions!$30:$30,Assumptions!32:32) -> 0 | DG30: =LOOKUP(DG$2,Assumptions!$30:$30,Assumptions!32:32) -> 0 | DH30: =LOOKUP(DH$2,Assumptions!$30:$30,Assumptions!32:32) -> 0 | DI30: =LOOKUP(DI$2,Assumptions!$30:$30,Assumptions!32:32) -> 0 | DJ30: =LOOKUP(DJ$2,Assumptions!$30:$30,Assumptions!32:32) -> 0 | DK30: =LOOKUP(DK$2,Assumptions!$30:$30,Assumptions!32:32) -> 0 | DL30: =LOOKUP(DL$2,Assumptions!$30:$30,Assumptions!32:32) -> 0 | DM30: =LOOKUP(DM$2,Assumptions!$30:$30,Assumptions!32:32) -> 0 | DN30: =LOOKUP(DN$2,Assumptions!$30:$30,Assumptions!32:32) -> 0 | DO30: =LOOKUP(DO$2,Assumptions!$30:$30,Assumptions!32:32) -> 0 | DP30: =LOOKUP(DP$2,Assumptions!$30:$30,Assumptions!32:32) -> 0 | DQ30: =LOOKUP(DQ$2,Assumptions!$30:$30,Assumptions!32:32) -> 0 | DR30: =LOOKUP(DR$2,Assumptions!$30:$30,Assumptions!32:32) -> 0 | DS30: =LOOKUP(DS$2,Assumptions!$30:$30,Assumptions!32:32) -> 0 | DT30: =LOOKUP(DT$2,Assumptions!$30:$30,Assumptions!32:32) -> 0 | DU30: =LOOKUP(DU$2,Assumptions!$30:$30,Assumptions!32:32) -> 0 | DV30: =LOOKUP(DV$2,Assumptions!$30:$30,Assumptions!32:32) -> 0 | DW30: =LOOKUP(DW$2,Assumptions!$30:$30,Assumptions!32:32) -> 0 | DX30: =LOOKUP(DX$2,Assumptions!$30:$30,Assumptions!32:32) -> 0 | DY30: =LOOKUP(DY$2,Assumptions!$30:$30,Assumptions!32:32) -> 0 | DZ30: =LOOKUP(DZ$2,Assumptions!$30:$30,Assumptions!32:32) -> 0 | EA30: =LOOKUP(EA$2,Assumptions!$30:$30,Assumptions!32:32) -> 0 | EB30: =LOOKUP(EB$2,Assumptions!$30:$30,Assumptions!32:32) -> 0 | EC30: =LOOKUP(EC$2,Assumptions!$30:$30,Assumptions!32:32) -> 0 | ED30: =LOOKUP(ED$2,Assumptions!$30:$30,Assumptions!32:32) -> 0 | EE30: =LOOKUP(EE$2,Assumptions!$30:$30,Assumptions!32:32) -> 0 | EF30: =LOOKUP(EF$2,Assumptions!$30:$30,Assumptions!32:32) -> 0 | EG30: =LOOKUP(EG$2,Assumptions!$30:$30,Assumptions!32:32) -> 0 | EH30: =LOOKUP(EH$2,Assumptions!$30:$30,Assumptions!32:32) -> 0 | EI30: =LOOKUP(EI$2,Assumptions!$30:$30,Assumptions!32:32) -> 0 | EJ30: =LOOKUP(EJ$2,Assumptions!$30:$30,Assumptions!32:32) -> 0 | EK30: =LOOKUP(EK$2,Assumptions!$30:$30,Assumptions!32:32) -> 0 | EL30: =LOOKUP(EL$2,Assumptions!$30:$30,Assumptions!32:32) -> 0 | EM30: =LOOKUP(EM$2,Assumptions!$30:$30,Assumptions!32:32) -> 0 | EN30: =LOOKUP(EN$2,Assumptions!$30:$30,Assumptions!32:32) -> 0 | EO30: =LOOKUP(EO$2,Assumptions!$30:$30,Assumptions!32:32) -> 0 | EP30: =LOOKUP(EP$2,Assumptions!$30:$30,Assumptions!32:32) -> 0 | EQ30: =LOOKUP(EQ$2,Assumptions!$30:$30,Assumptions!32:32) -> 0 | ER30: =LOOKUP(ER$2,Assumptions!$30:$30,Assumptions!32:32) -> 0 | ES30: =LOOKUP(ES$2,Assumptions!$30:$30,Assumptions!32:32) -> 0 | ET30: =LOOKUP(ET$2,Assumptions!$30:$30,Assumptions!32:32) -> 0 | EU30: =LOOKUP(EU$2,Assumptions!$30:$30,Assumptions!32:32) -> 0 | EV30: =LOOKUP(EV$2,Assumptions!$30:$30,Assumptions!32:32) -> 0 | EW30: =LOOKUP(EW$2,Assumptions!$30:$30,Assumptions!32:32) -> 0 | EX30: =LOOKUP(EX$2,Assumptions!$30:$30,Assumptions!32:32) -> 0 | EY30: =LOOKUP(EY$2,Assumptions!$30:$30,Assumptions!32:32) -> 0 | EZ30: =LOOKUP(EZ$2,Assumptions!$30:$30,Assumptions!32:32) -> 0 | FA30: =LOOKUP(FA$2,Assumptions!$30:$30,Assumptions!32:32) -> 0 | FB30: =LOOKUP(FB$2,Assumptions!$30:$30,Assumptions!32:32) -> 0 | FC30: =LOOKUP(FC$2,Assumptions!$30:$30,Assumptions!32:32) -> 0 | FD30: =LOOKUP(FD$2,Assumptions!$30:$30,Assumptions!32:32) -> 0 | FE30: =LOOKUP(FE$2,Assumptions!$30:$30,Assumptions!32:32) -> 0 | FF30: =LOOKUP(FF$2,Assumptions!$30:$30,Assumptions!32:32) -> 0 | FG30: =LOOKUP(FG$2,Assumptions!$30:$30,Assumptions!32:32) -> 0 | FH30: =LOOKUP(FH$2,Assumptions!$30:$30,Assumptions!32:32) -> 0 | FI30: =LOOKUP(FI$2,Assumptions!$30:$30,Assumptions!32:32) -> 0 | FJ30: =LOOKUP(FJ$2,Assumptions!$30:$30,Assumptions!32:32) -> 0 | FK30: =LOOKUP(FK$2,Assumptions!$30:$30,Assumptions!32:32) -> 0 | FL30: =LOOKUP(FL$2,Assumptions!$30:$30,Assumptions!32:32) -> 0 | FM30: =LOOKUP(FM$2,Assumptions!$30:$30,Assumptions!32:32) -> 0 | FN30: =LOOKUP(FN$2,Assumptions!$30:$30,Assumptions!32:32) -> 0 | FO30: =LOOKUP(FO$2,Assumptions!$30:$30,Assumptions!32:32) -> 0 | FP30: =LOOKUP(FP$2,Assumptions!$30:$30,Assumptions!32:32) -> 0 | FQ30: =LOOKUP(FQ$2,Assumptions!$30:$30,Assumptions!32:32) -> 0 | FR30: =LOOKUP(FR$2,Assumptions!$30:$30,Assumptions!32:32) -> 0 | FS30: =LOOKUP(FS$2,Assumptions!$30:$30,Assumptions!32:32) -> 0 | FT30: =LOOKUP(FT$2,Assumptions!$30:$30,Assumptions!32:32) -> 0 | FU30: =LOOKUP(FU$2,Assumptions!$30:$30,Assumptions!32:32) -> 0 | FV30: =LOOKUP(FV$2,Assumptions!$30:$30,Assumptions!32:32) -> 0 | FW30: =LOOKUP(FW$2,Assumptions!$30:$30,Assumptions!32:32) -> 0 | FX30: =LOOKUP(FX$2,Assumptions!$30:$30,Assumptions!32:32) -> 0 | FY30: =LOOKUP(FY$2,Assumptions!$30:$30,Assumptions!32:32) -> 0 | FZ30: =LOOKUP(FZ$2,Assumptions!$30:$30,Assumptions!32:32) -> 0 | GA30: =LOOKUP(GA$2,Assumptions!$30:$30,Assumptions!32:32) -> 0 | GB30: =LOOKUP(GB$2,Assumptions!$30:$30,Assumptions!32:32) -> 0 | GC30: =LOOKUP(GC$2,Assumptions!$30:$30,Assumptions!32:32) -> 0 | GD30: =LOOKUP(GD$2,Assumptions!$30:$30,Assumptions!32:32) -> 0 | GE30: =LOOKUP(GE$2,Assumptions!$30:$30,Assumptions!32:32) -> 0 | GF30: =LOOKUP(GF$2,Assumptions!$30:$30,Assumptions!32:32) -> 0 | GG30: =LOOKUP(GG$2,Assumptions!$30:$30,Assumptions!32:32) -> 0 | GH30: =LOOKUP(GH$2,Assumptions!$30:$30,Assumptions!32:32) -> 0 | GI30: =LOOKUP(GI$2,Assumptions!$30:$30,Assumptions!32:32) -> 0 | GJ30: =LOOKUP(GJ$2,Assumptions!$30:$30,Assumptions!32:32) -> 0 | GK30: =LOOKUP(GK$2,Assumptions!$30:$30,Assumptions!32:32) -> 0 | GL30: =LOOKUP(GL$2,Assumptions!$30:$30,Assumptions!32:32) -> 0 | GM30: =LOOKUP(GM$2,Assumptions!$30:$30,Assumptions!32:32) -> 0 | GN30: =LOOKUP(GN$2,Assumptions!$30:$30,Assumptions!32:32) -> 0 | GO30: =LOOKUP(GO$2,Assumptions!$30:$30,Assumptions!32:32) -> 0 | GP30: =LOOKUP(GP$2,Assumptions!$30:$30,Assumptions!32:32) -> 0 | GQ30: =LOOKUP(GQ$2,Assumptions!$30:$30,Assumptions!32:32) -> 0 | GR30: =LOOKUP(GR$2,Assumptions!$30:$30,Assumptions!32:32) -> 0 | GS30: =LOOKUP(GS$2,Assumptions!$30:$30,Assumptions!32:32) -> 0 | GT30: =LOOKUP(GT$2,Assumptions!$30:$30,Assumptions!32:32) -> 0 | GU30: =LOOKUP(GU$2,Assumptions!$30:$30,Assumptions!32:32) -> 0 | GV30: =LOOKUP(GV$2,Assumptions!$30:$30,Assumptions!32:32) -> 0 | GW30: =LOOKUP(GW$2,Assumptions!$30:$30,Assumptions!32:32) -> 0 | GX30: =LOOKUP(GX$2,Assumptions!$30:$30,Assumptions!32:32) -> 0 | GY30: =LOOKUP(GY$2,Assumptions!$30:$30,Assumptions!32:32) -> 0 | GZ30: =LOOKUP(GZ$2,Assumptions!$30:$30,Assumptions!32:32) -> 0 | HA30: =LOOKUP(HA$2,Assumptions!$30:$30,Assumptions!32:32) -> 0 | HB30: =LOOKUP(HB$2,Assumptions!$30:$30,Assumptions!32:32) -> 0 | HC30: =LOOKUP(HC$2,Assumptions!$30:$30,Assumptions!32:32) -> 0 | HD30: =LOOKUP(HD$2,Assumptions!$30:$30,Assumptions!32:32) -> 0 | HE30: =LOOKUP(HE$2,Assumptions!$30:$30,Assumptions!32:32) -> 0 | HF30: =LOOKUP(HF$2,Assumptions!$30:$30,Assumptions!32:32) -> 0 | HG30: =LOOKUP(HG$2,Assumptions!$30:$30,Assumptions!32:32) -> 0 | HH30: =LOOKUP(HH$2,Assumptions!$30:$30,Assumptions!32:32) -> 0 | HI30: =LOOKUP(HI$2,Assumptions!$30:$30,Assumptions!32:32) -> 0 | HJ30: =LOOKUP(HJ$2,Assumptions!$30:$30,Assumptions!32:32) -> 0 | HK30: =LOOKUP(HK$2,Assumptions!$30:$30,Assumptions!32:32) -> 0 | HL30: =LOOKUP(HL$2,Assumptions!$30:$30,Assumptions!32:32) -> 0 | HM30: =LOOKUP(HM$2,Assumptions!$30:$30,Assumptions!32:32) -> 0 | HN30: =LOOKUP(HN$2,Assumptions!$30:$30,Assumptions!32:32) -> 0 | HO30: =LOOKUP(HO$2,Assumptions!$30:$30,Assumptions!32:32) -> 0 | HP30: =LOOKUP(HP$2,Assumptions!$30:$30,Assumptions!32:32) -> 0 | HQ30: =LOOKUP(HQ$2,Assumptions!$30:$30,Assumptions!32:32) -> 0 | HR30: =LOOKUP(HR$2,Assumptions!$30:$30,Assumptions!32:32) -> 0 | HS30: =LOOKUP(HS$2,Assumptions!$30:$30,Assumptions!32:32) -> 0 | HT30: =LOOKUP(HT$2,Assumptions!$30:$30,Assumptions!32:32) -> 0 | HU30: =LOOKUP(HU$2,Assumptions!$30:$30,Assumptions!32:32) -> 0 | HV30: =LOOKUP(HV$2,Assumptions!$30:$30,Assumptions!32:32) -> 0 | HW30: =LOOKUP(HW$2,Assumptions!$30:$30,Assumptions!32:32) -> 0 | HX30: =LOOKUP(HX$2,Assumptions!$30:$30,Assumptions!32:32) -> 0 | HY30: =LOOKUP(HY$2,Assumptions!$30:$30,Assumptions!32:32) -> 0 | HZ30: =LOOKUP(HZ$2,Assumptions!$30:$30,Assumptions!32:32) -> 0 | IA30: =LOOKUP(IA$2,Assumptions!$30:$30,Assumptions!32:32) -> 0 | IB30: =LOOKUP(IB$2,Assumptions!$30:$30,Assumptions!32:32) -> 0 | IC30: =LOOKUP(IC$2,Assumptions!$30:$30,Assumptions!32:32) -> 0 | ID30: =LOOKUP(ID$2,Assumptions!$30:$30,Assumptions!32:32) -> 0 | IE30: =LOOKUP(IE$2,Assumptions!$30:$30,Assumptions!32:32) -> 0 | IF30: =LOOKUP(IF$2,Assumptions!$30:$30,Assumptions!32:32) -> 0 | IG30: =LOOKUP(IG$2,Assumptions!$30:$30,Assumptions!32:32) -> 0 | IH30: =LOOKUP(IH$2,Assumptions!$30:$30,Assumptions!32:32) -> 0 | II30: =LOOKUP(II$2,Assumptions!$30:$30,Assumptions!32:32) -> 0 | IJ30: =LOOKUP(IJ$2,Assumptions!$30:$30,Assumptions!32:32) -> 0 | IK30: =LOOKUP(IK$2,Assumptions!$30:$30,Assumptions!32:32) -> 0 | IL30: =LOOKUP(IL$2,Assumptions!$30:$30,Assumptions!32:32) -> 0 | IM30: =LOOKUP(IM$2,Assumptions!$30:$30,Assumptions!32:32) -> 0 | IN30: =LOOKUP(IN$2,Assumptions!$30:$30,Assumptions!32:32) -> 0 | IO30: =LOOKUP(IO$2,Assumptions!$30:$30,Assumptions!32:32) -> 0 | IP30: =LOOKUP(IP$2,Assumptions!$30:$30,Assumptions!32:32) -> 0 | IQ30: =LOOKUP(IQ$2,Assumptions!$30:$30,Assumptions!32:32) -> 0 | IR30: =LOOKUP(IR$2,Assumptions!$30:$30,Assumptions!32:32) -> 0 | IS30: =LOOKUP(IS$2,Assumptions!$30:$30,Assumptions!32:32) -> 0 | IT30: =LOOKUP(IT$2,Assumptions!$30:$30,Assumptions!32:32) -> 0 | IU30: =LOOKUP(IU$2,Assumptions!$30:$30,Assumptions!32:32) -> 0 | IV30: =LOOKUP(IV$2,Assumptions!$30:$30,Assumptions!32:32) -> 0 | IW30: =LOOKUP(IW$2,Assumptions!$30:$30,Assumptions!32:32) -> 0 | IX30: =LOOKUP(IX$2,Assumptions!$30:$30,Assumptions!32:32) -> 0 | IY30: =LOOKUP(IY$2,Assumptions!$30:$30,Assumptions!32:32) -> 0 | IZ30: =LOOKUP(IZ$2,Assumptions!$30:$30,Assumptions!32:32) -> 0 | JA30: =LOOKUP(JA$2,Assumptions!$30:$30,Assumptions!32:32) -> 0 | JB30: =LOOKUP(JB$2,Assumptions!$30:$30,Assumptions!32:32) -> 0 | JC30: =LOOKUP(JC$2,Assumptions!$30:$30,Assumptions!32:32) -> 0 | JD30: =LOOKUP(JD$2,Assumptions!$30:$30,Assumptions!32:32) -> 0 | JE30: =LOOKUP(JE$2,Assumptions!$30:$30,Assumptions!32:32) -> 0 | JF30: =LOOKUP(JF$2,Assumptions!$30:$30,Assumptions!32:32) -> 0 | JG30: =LOOKUP(JG$2,Assumptions!$30:$30,Assumptions!32:32) -> 0 | JH30: =LOOKUP(JH$2,Assumptions!$30:$30,Assumptions!32:32) -> 0 | JI30: =LOOKUP(JI$2,Assumptions!$30:$30,Assumptions!32:32) -> 0 | JJ30: =LOOKUP(JJ$2,Assumptions!$30:$30,Assumptions!32:32) -> 0 | JK30: =LOOKUP(JK$2,Assumptions!$30:$30,Assumptions!32:32) -> 0 | JL30: =LOOKUP(JL$2,Assumptions!$30:$30,Assumptions!32:32) -> 0 | JM30: =LOOKUP(JM$2,Assumptions!$30:$30,Assumptions!32:32) -> 0 | JN30: =LOOKUP(JN$2,Assumptions!$30:$30,Assumptions!32:32) -> 0 | JO30: =LOOKUP(JO$2,Assumptions!$30:$30,Assumptions!32:32) -> 0 | JP30: =LOOKUP(JP$2,Assumptions!$30:$30,Assumptions!32:32) -> 0 | JQ30: =LOOKUP(JQ$2,Assumptions!$30:$30,Assumptions!32:32) -> 0 | JR30: =LOOKUP(JR$2,Assumptions!$30:$30,Assumptions!32:32) -> 0 | JS30: =LOOKUP(JS$2,Assumptions!$30:$30,Assumptions!32:32) -> 0 | JT30: =LOOKUP(JT$2,Assumptions!$30:$30,Assumptions!32:32) -> 0 | JU30: =LOOKUP(JU$2,Assumptions!$30:$30,Assumptions!32:32) -> 0 | JV30: =LOOKUP(JV$2,Assumptions!$30:$30,Assumptions!32:32) -> 0 | JW30: =LOOKUP(JW$2,Assumptions!$30:$30,Assumptions!32:32) -> 0 | JX30: =LOOKUP(JX$2,Assumptions!$30:$30,Assumptions!32:32) -> 0 | JY30: =LOOKUP(JY$2,Assumptions!$30:$30,Assumptions!32:32) -> 0 | JZ30: =LOOKUP(JZ$2,Assumptions!$30:$30,Assumptions!32:32) -> 0 | KA30: =LOOKUP(KA$2,Assumptions!$30:$30,Assumptions!32:32) -> 0 | KB30: =LOOKUP(KB$2,Assumptions!$30:$30,Assumptions!32:32) -> 0 | KC30: =LOOKUP(KC$2,Assumptions!$30:$30,Assumptions!32:32) -> 0 | KD30: =LOOKUP(KD$2,Assumptions!$30:$30,Assumptions!32:32) -> 0 | KE30: =LOOKUP(KE$2,Assumptions!$30:$30,Assumptions!32:32) -> 0 | KF30: =LOOKUP(KF$2,Assumptions!$30:$30,Assumptions!32:32) -> 0 | KG30: =LOOKUP(KG$2,Assumptions!$30:$30,Assumptions!32:32) -> 0 | KH30: =LOOKUP(KH$2,Assumptions!$30:$30,Assumptions!32:32) -> 0 | KI30: =LOOKUP(KI$2,Assumptions!$30:$30,Assumptions!32:32) -> 0 | KJ30: =LOOKUP(KJ$2,Assumptions!$30:$30,Assumptions!32:32) -> 0 | KK30: =LOOKUP(KK$2,Assumptions!$30:$30,Assumptions!32:32) -> 0 | KL30: =LOOKUP(KL$2,Assumptions!$30:$30,Assumptions!32:32) -> 0 | KM30: =LOOKUP(KM$2,Assumptions!$30:$30,Assumptions!32:32) -> 0 | KN30: =LOOKUP(KN$2,Assumptions!$30:$30,Assumptions!32:32) -> 0 | KO30: =LOOKUP(KO$2,Assumptions!$30:$30,Assumptions!32:32) -> 0 | KP30: =LOOKUP(KP$2,Assumptions!$30:$30,Assumptions!32:32) -> 0 | KQ30: =LOOKUP(KQ$2,Assumptions!$30:$30,Assumptions!32:32) -> 0 | KR30: =LOOKUP(KR$2,Assumptions!$30:$30,Assumptions!32:32) -> 0 | KS30: =LOOKUP(KS$2,Assumptions!$30:$30,Assumptions!32:32) -> 0 | KT30: =LOOKUP(KT$2,Assumptions!$30:$30,Assumptions!32:32) -> 0 | KU30: =LOOKUP(KU$2,Assumptions!$30:$30,Assumptions!32:32) -> 0
C31: Services Cost | E31: % | H31: =LOOKUP(H$2,Assumptions!$30:$30,Assumptions!33:33) -> 0.2 | I31: =LOOKUP(I$2,Assumptions!$30:$30,Assumptions!33:33) -> 0.3 | J31: =LOOKUP(J$2,Assumptions!$30:$30,Assumptions!33:33) -> 0.3 | K31: =LOOKUP(K$2,Assumptions!$30:$30,Assumptions!33:33) -> 0.1 | L31: =LOOKUP(L$2,Assumptions!$30:$30,Assumptions!33:33) -> 0.1 | M31: =LOOKUP(M$2,Assumptions!$30:$30,Assumptions!33:33) -> 0 | N31: =LOOKUP(N$2,Assumptions!$30:$30,Assumptions!33:33) -> 0 | O31: =LOOKUP(O$2,Assumptions!$30:$30,Assumptions!33:33) -> 0 | P31: =LOOKUP(P$2,Assumptions!$30:$30,Assumptions!33:33) -> 0 | Q31: =LOOKUP(Q$2,Assumptions!$30:$30,Assumptions!33:33) -> 0 | R31: =LOOKUP(R$2,Assumptions!$30:$30,Assumptions!33:33) -> 0 | S31: =LOOKUP(S$2,Assumptions!$30:$30,Assumptions!33:33) -> 0 | T31: =LOOKUP(T$2,Assumptions!$30:$30,Assumptions!33:33) -> 0 | U31: =LOOKUP(U$2,Assumptions!$30:$30,Assumptions!33:33) -> 0 | V31: =LOOKUP(V$2,Assumptions!$30:$30,Assumptions!33:33) -> 0 | W31: =LOOKUP(W$2,Assumptions!$30:$30,Assumptions!33:33) -> 0 | X31: =LOOKUP(X$2,Assumptions!$30:$30,Assumptions!33:33) -> 0 | Y31: =LOOKUP(Y$2,Assumptions!$30:$30,Assumptions!33:33) -> 0 | Z31: =LOOKUP(Z$2,Assumptions!$30:$30,Assumptions!33:33) -> 0 | AA31: =LOOKUP(AA$2,Assumptions!$30:$30,Assumptions!33:33) -> 0 | AB31: =LOOKUP(AB$2,Assumptions!$30:$30,Assumptions!33:33) -> 0 | AC31: =LOOKUP(AC$2,Assumptions!$30:$30,Assumptions!33:33) -> 0 | AD31: =LOOKUP(AD$2,Assumptions!$30:$30,Assumptions!33:33) -> 0 | AE31: =LOOKUP(AE$2,Assumptions!$30:$30,Assumptions!33:33) -> 0 | AF31: =LOOKUP(AF$2,Assumptions!$30:$30,Assumptions!33:33) -> 0 | AG31: =LOOKUP(AG$2,Assumptions!$30:$30,Assumptions!33:33) -> 0 | AH31: =LOOKUP(AH$2,Assumptions!$30:$30,Assumptions!33:33) -> 0 | AI31: =LOOKUP(AI$2,Assumptions!$30:$30,Assumptions!33:33) -> 0 | AJ31: =LOOKUP(AJ$2,Assumptions!$30:$30,Assumptions!33:33) -> 0 | AK31: =LOOKUP(AK$2,Assumptions!$30:$30,Assumptions!33:33) -> 0 | AL31: =LOOKUP(AL$2,Assumptions!$30:$30,Assumptions!33:33) -> 0 | AM31: =LOOKUP(AM$2,Assumptions!$30:$30,Assumptions!33:33) -> 0 | AN31: =LOOKUP(AN$2,Assumptions!$30:$30,Assumptions!33:33) -> 0 | AO31: =LOOKUP(AO$2,Assumptions!$30:$30,Assumptions!33:33) -> 0 | AP31: =LOOKUP(AP$2,Assumptions!$30:$30,Assumptions!33:33) -> 0 | AQ31: =LOOKUP(AQ$2,Assumptions!$30:$30,Assumptions!33:33) -> 0 | AR31: =LOOKUP(AR$2,Assumptions!$30:$30,Assumptions!33:33) -> 0 | AS31: =LOOKUP(AS$2,Assumptions!$30:$30,Assumptions!33:33) -> 0 | AT31: =LOOKUP(AT$2,Assumptions!$30:$30,Assumptions!33:33) -> 0 | AU31: =LOOKUP(AU$2,Assumptions!$30:$30,Assumptions!33:33) -> 0 | AV31: =LOOKUP(AV$2,Assumptions!$30:$30,Assumptions!33:33) -> 0 | AW31: =LOOKUP(AW$2,Assumptions!$30:$30,Assumptions!33:33) -> 0 | AX31: =LOOKUP(AX$2,Assumptions!$30:$30,Assumptions!33:33) -> 0 | AY31: =LOOKUP(AY$2,Assumptions!$30:$30,Assumptions!33:33) -> 0 | AZ31: =LOOKUP(AZ$2,Assumptions!$30:$30,Assumptions!33:33) -> 0 | BA31: =LOOKUP(BA$2,Assumptions!$30:$30,Assumptions!33:33) -> 0 | BB31: =LOOKUP(BB$2,Assumptions!$30:$30,Assumptions!33:33) -> 0 | BC31: =LOOKUP(BC$2,Assumptions!$30:$30,Assumptions!33:33) -> 0 | BD31: =LOOKUP(BD$2,Assumptions!$30:$30,Assumptions!33:33) -> 0 | BE31: =LOOKUP(BE$2,Assumptions!$30:$30,Assumptions!33:33) -> 0 | BF31: =LOOKUP(BF$2,Assumptions!$30:$30,Assumptions!33:33) -> 0 | BG31: =LOOKUP(BG$2,Assumptions!$30:$30,Assumptions!33:33) -> 0 | BH31: =LOOKUP(BH$2,Assumptions!$30:$30,Assumptions!33:33) -> 0 | BI31: =LOOKUP(BI$2,Assumptions!$30:$30,Assumptions!33:33) -> 0 | BJ31: =LOOKUP(BJ$2,Assumptions!$30:$30,Assumptions!33:33) -> 0 | BK31: =LOOKUP(BK$2,Assumptions!$30:$30,Assumptions!33:33) -> 0 | BL31: =LOOKUP(BL$2,Assumptions!$30:$30,Assumptions!33:33) -> 0 | BM31: =LOOKUP(BM$2,Assumptions!$30:$30,Assumptions!33:33) -> 0 | BN31: =LOOKUP(BN$2,Assumptions!$30:$30,Assumptions!33:33) -> 0 | BO31: =LOOKUP(BO$2,Assumptions!$30:$30,Assumptions!33:33) -> 0 | BP31: =LOOKUP(BP$2,Assumptions!$30:$30,Assumptions!33:33) -> 0 | BQ31: =LOOKUP(BQ$2,Assumptions!$30:$30,Assumptions!33:33) -> 0 | BR31: =LOOKUP(BR$2,Assumptions!$30:$30,Assumptions!33:33) -> 0 | BS31: =LOOKUP(BS$2,Assumptions!$30:$30,Assumptions!33:33) -> 0 | BT31: =LOOKUP(BT$2,Assumptions!$30:$30,Assumptions!33:33) -> 0 | BU31: =LOOKUP(BU$2,Assumptions!$30:$30,Assumptions!33:33) -> 0 | BV31: =LOOKUP(BV$2,Assumptions!$30:$30,Assumptions!33:33) -> 0 | BW31: =LOOKUP(BW$2,Assumptions!$30:$30,Assumptions!33:33) -> 0 | BX31: =LOOKUP(BX$2,Assumptions!$30:$30,Assumptions!33:33) -> 0 | BY31: =LOOKUP(BY$2,Assumptions!$30:$30,Assumptions!33:33) -> 0 | BZ31: =LOOKUP(BZ$2,Assumptions!$30:$30,Assumptions!33:33) -> 0 | CA31: =LOOKUP(CA$2,Assumptions!$30:$30,Assumptions!33:33) -> 0 | CB31: =LOOKUP(CB$2,Assumptions!$30:$30,Assumptions!33:33) -> 0 | CC31: =LOOKUP(CC$2,Assumptions!$30:$30,Assumptions!33:33) -> 0 | CD31: =LOOKUP(CD$2,Assumptions!$30:$30,Assumptions!33:33) -> 0 | CE31: =LOOKUP(CE$2,Assumptions!$30:$30,Assumptions!33:33) -> 0 | CF31: =LOOKUP(CF$2,Assumptions!$30:$30,Assumptions!33:33) -> 0 | CG31: =LOOKUP(CG$2,Assumptions!$30:$30,Assumptions!33:33) -> 0 | CH31: =LOOKUP(CH$2,Assumptions!$30:$30,Assumptions!33:33) -> 0 | CI31: =LOOKUP(CI$2,Assumptions!$30:$30,Assumptions!33:33) -> 0 | CJ31: =LOOKUP(CJ$2,Assumptions!$30:$30,Assumptions!33:33) -> 0 | CK31: =LOOKUP(CK$2,Assumptions!$30:$30,Assumptions!33:33) -> 0 | CL31: =LOOKUP(CL$2,Assumptions!$30:$30,Assumptions!33:33) -> 0 | CM31: =LOOKUP(CM$2,Assumptions!$30:$30,Assumptions!33:33) -> 0 | CN31: =LOOKUP(CN$2,Assumptions!$30:$30,Assumptions!33:33) -> 0 | CO31: =LOOKUP(CO$2,Assumptions!$30:$30,Assumptions!33:33) -> 0 | CP31: =LOOKUP(CP$2,Assumptions!$30:$30,Assumptions!33:33) -> 0 | CQ31: =LOOKUP(CQ$2,Assumptions!$30:$30,Assumptions!33:33) -> 0 | CR31: =LOOKUP(CR$2,Assumptions!$30:$30,Assumptions!33:33) -> 0 | CS31: =LOOKUP(CS$2,Assumptions!$30:$30,Assumptions!33:33) -> 0 | CT31: =LOOKUP(CT$2,Assumptions!$30:$30,Assumptions!33:33) -> 0 | CU31: =LOOKUP(CU$2,Assumptions!$30:$30,Assumptions!33:33) -> 0 | CV31: =LOOKUP(CV$2,Assumptions!$30:$30,Assumptions!33:33) -> 0 | CW31: =LOOKUP(CW$2,Assumptions!$30:$30,Assumptions!33:33) -> 0 | CX31: =LOOKUP(CX$2,Assumptions!$30:$30,Assumptions!33:33) -> 0 | CY31: =LOOKUP(CY$2,Assumptions!$30:$30,Assumptions!33:33) -> 0 | CZ31: =LOOKUP(CZ$2,Assumptions!$30:$30,Assumptions!33:33) -> 0 | DA31: =LOOKUP(DA$2,Assumptions!$30:$30,Assumptions!33:33) -> 0 | DB31: =LOOKUP(DB$2,Assumptions!$30:$30,Assumptions!33:33) -> 0 | DC31: =LOOKUP(DC$2,Assumptions!$30:$30,Assumptions!33:33) -> 0 | DD31: =LOOKUP(DD$2,Assumptions!$30:$30,Assumptions!33:33) -> 0 | DE31: =LOOKUP(DE$2,Assumptions!$30:$30,Assumptions!33:33) -> 0 | DF31: =LOOKUP(DF$2,Assumptions!$30:$30,Assumptions!33:33) -> 0 | DG31: =LOOKUP(DG$2,Assumptions!$30:$30,Assumptions!33:33) -> 0 | DH31: =LOOKUP(DH$2,Assumptions!$30:$30,Assumptions!33:33) -> 0 | DI31: =LOOKUP(DI$2,Assumptions!$30:$30,Assumptions!33:33) -> 0 | DJ31: =LOOKUP(DJ$2,Assumptions!$30:$30,Assumptions!33:33) -> 0 | DK31: =LOOKUP(DK$2,Assumptions!$30:$30,Assumptions!33:33) -> 0 | DL31: =LOOKUP(DL$2,Assumptions!$30:$30,Assumptions!33:33) -> 0 | DM31: =LOOKUP(DM$2,Assumptions!$30:$30,Assumptions!33:33) -> 0 | DN31: =LOOKUP(DN$2,Assumptions!$30:$30,Assumptions!33:33) -> 0 | DO31: =LOOKUP(DO$2,Assumptions!$30:$30,Assumptions!33:33) -> 0 | DP31: =LOOKUP(DP$2,Assumptions!$30:$30,Assumptions!33:33) -> 0 | DQ31: =LOOKUP(DQ$2,Assumptions!$30:$30,Assumptions!33:33) -> 0 | DR31: =LOOKUP(DR$2,Assumptions!$30:$30,Assumptions!33:33) -> 0 | DS31: =LOOKUP(DS$2,Assumptions!$30:$30,Assumptions!33:33) -> 0 | DT31: =LOOKUP(DT$2,Assumptions!$30:$30,Assumptions!33:33) -> 0 | DU31: =LOOKUP(DU$2,Assumptions!$30:$30,Assumptions!33:33) -> 0 | DV31: =LOOKUP(DV$2,Assumptions!$30:$30,Assumptions!33:33) -> 0 | DW31: =LOOKUP(DW$2,Assumptions!$30:$30,Assumptions!33:33) -> 0 | DX31: =LOOKUP(DX$2,Assumptions!$30:$30,Assumptions!33:33) -> 0 | DY31: =LOOKUP(DY$2,Assumptions!$30:$30,Assumptions!33:33) -> 0 | DZ31: =LOOKUP(DZ$2,Assumptions!$30:$30,Assumptions!33:33) -> 0 | EA31: =LOOKUP(EA$2,Assumptions!$30:$30,Assumptions!33:33) -> 0 | EB31: =LOOKUP(EB$2,Assumptions!$30:$30,Assumptions!33:33) -> 0 | EC31: =LOOKUP(EC$2,Assumptions!$30:$30,Assumptions!33:33) -> 0 | ED31: =LOOKUP(ED$2,Assumptions!$30:$30,Assumptions!33:33) -> 0 | EE31: =LOOKUP(EE$2,Assumptions!$30:$30,Assumptions!33:33) -> 0 | EF31: =LOOKUP(EF$2,Assumptions!$30:$30,Assumptions!33:33) -> 0 | EG31: =LOOKUP(EG$2,Assumptions!$30:$30,Assumptions!33:33) -> 0 | EH31: =LOOKUP(EH$2,Assumptions!$30:$30,Assumptions!33:33) -> 0 | EI31: =LOOKUP(EI$2,Assumptions!$30:$30,Assumptions!33:33) -> 0 | EJ31: =LOOKUP(EJ$2,Assumptions!$30:$30,Assumptions!33:33) -> 0 | EK31: =LOOKUP(EK$2,Assumptions!$30:$30,Assumptions!33:33) -> 0 | EL31: =LOOKUP(EL$2,Assumptions!$30:$30,Assumptions!33:33) -> 0 | EM31: =LOOKUP(EM$2,Assumptions!$30:$30,Assumptions!33:33) -> 0 | EN31: =LOOKUP(EN$2,Assumptions!$30:$30,Assumptions!33:33) -> 0 | EO31: =LOOKUP(EO$2,Assumptions!$30:$30,Assumptions!33:33) -> 0 | EP31: =LOOKUP(EP$2,Assumptions!$30:$30,Assumptions!33:33) -> 0 | EQ31: =LOOKUP(EQ$2,Assumptions!$30:$30,Assumptions!33:33) -> 0 | ER31: =LOOKUP(ER$2,Assumptions!$30:$30,Assumptions!33:33) -> 0 | ES31: =LOOKUP(ES$2,Assumptions!$30:$30,Assumptions!33:33) -> 0 | ET31: =LOOKUP(ET$2,Assumptions!$30:$30,Assumptions!33:33) -> 0 | EU31: =LOOKUP(EU$2,Assumptions!$30:$30,Assumptions!33:33) -> 0 | EV31: =LOOKUP(EV$2,Assumptions!$30:$30,Assumptions!33:33) -> 0 | EW31: =LOOKUP(EW$2,Assumptions!$30:$30,Assumptions!33:33) -> 0 | EX31: =LOOKUP(EX$2,Assumptions!$30:$30,Assumptions!33:33) -> 0 | EY31: =LOOKUP(EY$2,Assumptions!$30:$30,Assumptions!33:33) -> 0 | EZ31: =LOOKUP(EZ$2,Assumptions!$30:$30,Assumptions!33:33) -> 0 | FA31: =LOOKUP(FA$2,Assumptions!$30:$30,Assumptions!33:33) -> 0 | FB31: =LOOKUP(FB$2,Assumptions!$30:$30,Assumptions!33:33) -> 0 | FC31: =LOOKUP(FC$2,Assumptions!$30:$30,Assumptions!33:33) -> 0 | FD31: =LOOKUP(FD$2,Assumptions!$30:$30,Assumptions!33:33) -> 0 | FE31: =LOOKUP(FE$2,Assumptions!$30:$30,Assumptions!33:33) -> 0 | FF31: =LOOKUP(FF$2,Assumptions!$30:$30,Assumptions!33:33) -> 0 | FG31: =LOOKUP(FG$2,Assumptions!$30:$30,Assumptions!33:33) -> 0 | FH31: =LOOKUP(FH$2,Assumptions!$30:$30,Assumptions!33:33) -> 0 | FI31: =LOOKUP(FI$2,Assumptions!$30:$30,Assumptions!33:33) -> 0 | FJ31: =LOOKUP(FJ$2,Assumptions!$30:$30,Assumptions!33:33) -> 0 | FK31: =LOOKUP(FK$2,Assumptions!$30:$30,Assumptions!33:33) -> 0 | FL31: =LOOKUP(FL$2,Assumptions!$30:$30,Assumptions!33:33) -> 0 | FM31: =LOOKUP(FM$2,Assumptions!$30:$30,Assumptions!33:33) -> 0 | FN31: =LOOKUP(FN$2,Assumptions!$30:$30,Assumptions!33:33) -> 0 | FO31: =LOOKUP(FO$2,Assumptions!$30:$30,Assumptions!33:33) -> 0 | FP31: =LOOKUP(FP$2,Assumptions!$30:$30,Assumptions!33:33) -> 0 | FQ31: =LOOKUP(FQ$2,Assumptions!$30:$30,Assumptions!33:33) -> 0 | FR31: =LOOKUP(FR$2,Assumptions!$30:$30,Assumptions!33:33) -> 0 | FS31: =LOOKUP(FS$2,Assumptions!$30:$30,Assumptions!33:33) -> 0 | FT31: =LOOKUP(FT$2,Assumptions!$30:$30,Assumptions!33:33) -> 0 | FU31: =LOOKUP(FU$2,Assumptions!$30:$30,Assumptions!33:33) -> 0 | FV31: =LOOKUP(FV$2,Assumptions!$30:$30,Assumptions!33:33) -> 0 | FW31: =LOOKUP(FW$2,Assumptions!$30:$30,Assumptions!33:33) -> 0 | FX31: =LOOKUP(FX$2,Assumptions!$30:$30,Assumptions!33:33) -> 0 | FY31: =LOOKUP(FY$2,Assumptions!$30:$30,Assumptions!33:33) -> 0 | FZ31: =LOOKUP(FZ$2,Assumptions!$30:$30,Assumptions!33:33) -> 0 | GA31: =LOOKUP(GA$2,Assumptions!$30:$30,Assumptions!33:33) -> 0 | GB31: =LOOKUP(GB$2,Assumptions!$30:$30,Assumptions!33:33) -> 0 | GC31: =LOOKUP(GC$2,Assumptions!$30:$30,Assumptions!33:33) -> 0 | GD31: =LOOKUP(GD$2,Assumptions!$30:$30,Assumptions!33:33) -> 0 | GE31: =LOOKUP(GE$2,Assumptions!$30:$30,Assumptions!33:33) -> 0 | GF31: =LOOKUP(GF$2,Assumptions!$30:$30,Assumptions!33:33) -> 0 | GG31: =LOOKUP(GG$2,Assumptions!$30:$30,Assumptions!33:33) -> 0 | GH31: =LOOKUP(GH$2,Assumptions!$30:$30,Assumptions!33:33) -> 0 | GI31: =LOOKUP(GI$2,Assumptions!$30:$30,Assumptions!33:33) -> 0 | GJ31: =LOOKUP(GJ$2,Assumptions!$30:$30,Assumptions!33:33) -> 0 | GK31: =LOOKUP(GK$2,Assumptions!$30:$30,Assumptions!33:33) -> 0 | GL31: =LOOKUP(GL$2,Assumptions!$30:$30,Assumptions!33:33) -> 0 | GM31: =LOOKUP(GM$2,Assumptions!$30:$30,Assumptions!33:33) -> 0 | GN31: =LOOKUP(GN$2,Assumptions!$30:$30,Assumptions!33:33) -> 0 | GO31: =LOOKUP(GO$2,Assumptions!$30:$30,Assumptions!33:33) -> 0 | GP31: =LOOKUP(GP$2,Assumptions!$30:$30,Assumptions!33:33) -> 0 | GQ31: =LOOKUP(GQ$2,Assumptions!$30:$30,Assumptions!33:33) -> 0 | GR31: =LOOKUP(GR$2,Assumptions!$30:$30,Assumptions!33:33) -> 0 | GS31: =LOOKUP(GS$2,Assumptions!$30:$30,Assumptions!33:33) -> 0 | GT31: =LOOKUP(GT$2,Assumptions!$30:$30,Assumptions!33:33) -> 0 | GU31: =LOOKUP(GU$2,Assumptions!$30:$30,Assumptions!33:33) -> 0 | GV31: =LOOKUP(GV$2,Assumptions!$30:$30,Assumptions!33:33) -> 0 | GW31: =LOOKUP(GW$2,Assumptions!$30:$30,Assumptions!33:33) -> 0 | GX31: =LOOKUP(GX$2,Assumptions!$30:$30,Assumptions!33:33) -> 0 | GY31: =LOOKUP(GY$2,Assumptions!$30:$30,Assumptions!33:33) -> 0 | GZ31: =LOOKUP(GZ$2,Assumptions!$30:$30,Assumptions!33:33) -> 0 | HA31: =LOOKUP(HA$2,Assumptions!$30:$30,Assumptions!33:33) -> 0 | HB31: =LOOKUP(HB$2,Assumptions!$30:$30,Assumptions!33:33) -> 0 | HC31: =LOOKUP(HC$2,Assumptions!$30:$30,Assumptions!33:33) -> 0 | HD31: =LOOKUP(HD$2,Assumptions!$30:$30,Assumptions!33:33) -> 0 | HE31: =LOOKUP(HE$2,Assumptions!$30:$30,Assumptions!33:33) -> 0 | HF31: =LOOKUP(HF$2,Assumptions!$30:$30,Assumptions!33:33) -> 0 | HG31: =LOOKUP(HG$2,Assumptions!$30:$30,Assumptions!33:33) -> 0 | HH31: =LOOKUP(HH$2,Assumptions!$30:$30,Assumptions!33:33) -> 0 | HI31: =LOOKUP(HI$2,Assumptions!$30:$30,Assumptions!33:33) -> 0 | HJ31: =LOOKUP(HJ$2,Assumptions!$30:$30,Assumptions!33:33) -> 0 | HK31: =LOOKUP(HK$2,Assumptions!$30:$30,Assumptions!33:33) -> 0 | HL31: =LOOKUP(HL$2,Assumptions!$30:$30,Assumptions!33:33) -> 0 | HM31: =LOOKUP(HM$2,Assumptions!$30:$30,Assumptions!33:33) -> 0 | HN31: =LOOKUP(HN$2,Assumptions!$30:$30,Assumptions!33:33) -> 0 | HO31: =LOOKUP(HO$2,Assumptions!$30:$30,Assumptions!33:33) -> 0 | HP31: =LOOKUP(HP$2,Assumptions!$30:$30,Assumptions!33:33) -> 0 | HQ31: =LOOKUP(HQ$2,Assumptions!$30:$30,Assumptions!33:33) -> 0 | HR31: =LOOKUP(HR$2,Assumptions!$30:$30,Assumptions!33:33) -> 0 | HS31: =LOOKUP(HS$2,Assumptions!$30:$30,Assumptions!33:33) -> 0 | HT31: =LOOKUP(HT$2,Assumptions!$30:$30,Assumptions!33:33) -> 0 | HU31: =LOOKUP(HU$2,Assumptions!$30:$30,Assumptions!33:33) -> 0 | HV31: =LOOKUP(HV$2,Assumptions!$30:$30,Assumptions!33:33) -> 0 | HW31: =LOOKUP(HW$2,Assumptions!$30:$30,Assumptions!33:33) -> 0 | HX31: =LOOKUP(HX$2,Assumptions!$30:$30,Assumptions!33:33) -> 0 | HY31: =LOOKUP(HY$2,Assumptions!$30:$30,Assumptions!33:33) -> 0 | HZ31: =LOOKUP(HZ$2,Assumptions!$30:$30,Assumptions!33:33) -> 0 | IA31: =LOOKUP(IA$2,Assumptions!$30:$30,Assumptions!33:33) -> 0 | IB31: =LOOKUP(IB$2,Assumptions!$30:$30,Assumptions!33:33) -> 0 | IC31: =LOOKUP(IC$2,Assumptions!$30:$30,Assumptions!33:33) -> 0 | ID31: =LOOKUP(ID$2,Assumptions!$30:$30,Assumptions!33:33) -> 0 | IE31: =LOOKUP(IE$2,Assumptions!$30:$30,Assumptions!33:33) -> 0 | IF31: =LOOKUP(IF$2,Assumptions!$30:$30,Assumptions!33:33) -> 0 | IG31: =LOOKUP(IG$2,Assumptions!$30:$30,Assumptions!33:33) -> 0 | IH31: =LOOKUP(IH$2,Assumptions!$30:$30,Assumptions!33:33) -> 0 | II31: =LOOKUP(II$2,Assumptions!$30:$30,Assumptions!33:33) -> 0 | IJ31: =LOOKUP(IJ$2,Assumptions!$30:$30,Assumptions!33:33) -> 0 | IK31: =LOOKUP(IK$2,Assumptions!$30:$30,Assumptions!33:33) -> 0 | IL31: =LOOKUP(IL$2,Assumptions!$30:$30,Assumptions!33:33) -> 0 | IM31: =LOOKUP(IM$2,Assumptions!$30:$30,Assumptions!33:33) -> 0 | IN31: =LOOKUP(IN$2,Assumptions!$30:$30,Assumptions!33:33) -> 0 | IO31: =LOOKUP(IO$2,Assumptions!$30:$30,Assumptions!33:33) -> 0 | IP31: =LOOKUP(IP$2,Assumptions!$30:$30,Assumptions!33:33) -> 0 | IQ31: =LOOKUP(IQ$2,Assumptions!$30:$30,Assumptions!33:33) -> 0 | IR31: =LOOKUP(IR$2,Assumptions!$30:$30,Assumptions!33:33) -> 0 | IS31: =LOOKUP(IS$2,Assumptions!$30:$30,Assumptions!33:33) -> 0 | IT31: =LOOKUP(IT$2,Assumptions!$30:$30,Assumptions!33:33) -> 0 | IU31: =LOOKUP(IU$2,Assumptions!$30:$30,Assumptions!33:33) -> 0 | IV31: =LOOKUP(IV$2,Assumptions!$30:$30,Assumptions!33:33) -> 0 | IW31: =LOOKUP(IW$2,Assumptions!$30:$30,Assumptions!33:33) -> 0 | IX31: =LOOKUP(IX$2,Assumptions!$30:$30,Assumptions!33:33) -> 0 | IY31: =LOOKUP(IY$2,Assumptions!$30:$30,Assumptions!33:33) -> 0 | IZ31: =LOOKUP(IZ$2,Assumptions!$30:$30,Assumptions!33:33) -> 0 | JA31: =LOOKUP(JA$2,Assumptions!$30:$30,Assumptions!33:33) -> 0 | JB31: =LOOKUP(JB$2,Assumptions!$30:$30,Assumptions!33:33) -> 0 | JC31: =LOOKUP(JC$2,Assumptions!$30:$30,Assumptions!33:33) -> 0 | JD31: =LOOKUP(JD$2,Assumptions!$30:$30,Assumptions!33:33) -> 0 | JE31: =LOOKUP(JE$2,Assumptions!$30:$30,Assumptions!33:33) -> 0 | JF31: =LOOKUP(JF$2,Assumptions!$30:$30,Assumptions!33:33) -> 0 | JG31: =LOOKUP(JG$2,Assumptions!$30:$30,Assumptions!33:33) -> 0 | JH31: =LOOKUP(JH$2,Assumptions!$30:$30,Assumptions!33:33) -> 0 | JI31: =LOOKUP(JI$2,Assumptions!$30:$30,Assumptions!33:33) -> 0 | JJ31: =LOOKUP(JJ$2,Assumptions!$30:$30,Assumptions!33:33) -> 0 | JK31: =LOOKUP(JK$2,Assumptions!$30:$30,Assumptions!33:33) -> 0 | JL31: =LOOKUP(JL$2,Assumptions!$30:$30,Assumptions!33:33) -> 0 | JM31: =LOOKUP(JM$2,Assumptions!$30:$30,Assumptions!33:33) -> 0 | JN31: =LOOKUP(JN$2,Assumptions!$30:$30,Assumptions!33:33) -> 0 | JO31: =LOOKUP(JO$2,Assumptions!$30:$30,Assumptions!33:33) -> 0 | JP31: =LOOKUP(JP$2,Assumptions!$30:$30,Assumptions!33:33) -> 0 | JQ31: =LOOKUP(JQ$2,Assumptions!$30:$30,Assumptions!33:33) -> 0 | JR31: =LOOKUP(JR$2,Assumptions!$30:$30,Assumptions!33:33) -> 0 | JS31: =LOOKUP(JS$2,Assumptions!$30:$30,Assumptions!33:33) -> 0 | JT31: =LOOKUP(JT$2,Assumptions!$30:$30,Assumptions!33:33) -> 0 | JU31: =LOOKUP(JU$2,Assumptions!$30:$30,Assumptions!33:33) -> 0 | JV31: =LOOKUP(JV$2,Assumptions!$30:$30,Assumptions!33:33) -> 0 | JW31: =LOOKUP(JW$2,Assumptions!$30:$30,Assumptions!33:33) -> 0 | JX31: =LOOKUP(JX$2,Assumptions!$30:$30,Assumptions!33:33) -> 0 | JY31: =LOOKUP(JY$2,Assumptions!$30:$30,Assumptions!33:33) -> 0 | JZ31: =LOOKUP(JZ$2,Assumptions!$30:$30,Assumptions!33:33) -> 0 | KA31: =LOOKUP(KA$2,Assumptions!$30:$30,Assumptions!33:33) -> 0 | KB31: =LOOKUP(KB$2,Assumptions!$30:$30,Assumptions!33:33) -> 0 | KC31: =LOOKUP(KC$2,Assumptions!$30:$30,Assumptions!33:33) -> 0 | KD31: =LOOKUP(KD$2,Assumptions!$30:$30,Assumptions!33:33) -> 0 | KE31: =LOOKUP(KE$2,Assumptions!$30:$30,Assumptions!33:33) -> 0 | KF31: =LOOKUP(KF$2,Assumptions!$30:$30,Assumptions!33:33) -> 0 | KG31: =LOOKUP(KG$2,Assumptions!$30:$30,Assumptions!33:33) -> 0 | KH31: =LOOKUP(KH$2,Assumptions!$30:$30,Assumptions!33:33) -> 0 | KI31: =LOOKUP(KI$2,Assumptions!$30:$30,Assumptions!33:33) -> 0 | KJ31: =LOOKUP(KJ$2,Assumptions!$30:$30,Assumptions!33:33) -> 0 | KK31: =LOOKUP(KK$2,Assumptions!$30:$30,Assumptions!33:33) -> 0 | KL31: =LOOKUP(KL$2,Assumptions!$30:$30,Assumptions!33:33) -> 0 | KM31: =LOOKUP(KM$2,Assumptions!$30:$30,Assumptions!33:33) -> 0 | KN31: =LOOKUP(KN$2,Assumptions!$30:$30,Assumptions!33:33) -> 0 | KO31: =LOOKUP(KO$2,Assumptions!$30:$30,Assumptions!33:33) -> 0 | KP31: =LOOKUP(KP$2,Assumptions!$30:$30,Assumptions!33:33) -> 0 | KQ31: =LOOKUP(KQ$2,Assumptions!$30:$30,Assumptions!33:33) -> 0 | KR31: =LOOKUP(KR$2,Assumptions!$30:$30,Assumptions!33:33) -> 0 | KS31: =LOOKUP(KS$2,Assumptions!$30:$30,Assumptions!33:33) -> 0 | KT31: =LOOKUP(KT$2,Assumptions!$30:$30,Assumptions!33:33) -> 0 | KU31: =LOOKUP(KU$2,Assumptions!$30:$30,Assumptions!33:33) -> 0
C32: Other Expenses | E32: % | H32: =LOOKUP(H$2,Assumptions!$30:$30,Assumptions!34:34) -> 0.2 | I32: =LOOKUP(I$2,Assumptions!$30:$30,Assumptions!34:34) -> 0.3 | J32: =LOOKUP(J$2,Assumptions!$30:$30,Assumptions!34:34) -> 0.3 | K32: =LOOKUP(K$2,Assumptions!$30:$30,Assumptions!34:34) -> 0.1 | L32: =LOOKUP(L$2,Assumptions!$30:$30,Assumptions!34:34) -> 0.1 | M32: =LOOKUP(M$2,Assumptions!$30:$30,Assumptions!34:34) -> 0 | N32: =LOOKUP(N$2,Assumptions!$30:$30,Assumptions!34:34) -> 0 | O32: =LOOKUP(O$2,Assumptions!$30:$30,Assumptions!34:34) -> 0 | P32: =LOOKUP(P$2,Assumptions!$30:$30,Assumptions!34:34) -> 0 | Q32: =LOOKUP(Q$2,Assumptions!$30:$30,Assumptions!34:34) -> 0 | R32: =LOOKUP(R$2,Assumptions!$30:$30,Assumptions!34:34) -> 0 | S32: =LOOKUP(S$2,Assumptions!$30:$30,Assumptions!34:34) -> 0 | T32: =LOOKUP(T$2,Assumptions!$30:$30,Assumptions!34:34) -> 0 | U32: =LOOKUP(U$2,Assumptions!$30:$30,Assumptions!34:34) -> 0 | V32: =LOOKUP(V$2,Assumptions!$30:$30,Assumptions!34:34) -> 0 | W32: =LOOKUP(W$2,Assumptions!$30:$30,Assumptions!34:34) -> 0 | X32: =LOOKUP(X$2,Assumptions!$30:$30,Assumptions!34:34) -> 0 | Y32: =LOOKUP(Y$2,Assumptions!$30:$30,Assumptions!34:34) -> 0 | Z32: =LOOKUP(Z$2,Assumptions!$30:$30,Assumptions!34:34) -> 0 | AA32: =LOOKUP(AA$2,Assumptions!$30:$30,Assumptions!34:34) -> 0 | AB32: =LOOKUP(AB$2,Assumptions!$30:$30,Assumptions!34:34) -> 0 | AC32: =LOOKUP(AC$2,Assumptions!$30:$30,Assumptions!34:34) -> 0 | AD32: =LOOKUP(AD$2,Assumptions!$30:$30,Assumptions!34:34) -> 0 | AE32: =LOOKUP(AE$2,Assumptions!$30:$30,Assumptions!34:34) -> 0 | AF32: =LOOKUP(AF$2,Assumptions!$30:$30,Assumptions!34:34) -> 0 | AG32: =LOOKUP(AG$2,Assumptions!$30:$30,Assumptions!34:34) -> 0 | AH32: =LOOKUP(AH$2,Assumptions!$30:$30,Assumptions!34:34) -> 0 | AI32: =LOOKUP(AI$2,Assumptions!$30:$30,Assumptions!34:34) -> 0 | AJ32: =LOOKUP(AJ$2,Assumptions!$30:$30,Assumptions!34:34) -> 0 | AK32: =LOOKUP(AK$2,Assumptions!$30:$30,Assumptions!34:34) -> 0 | AL32: =LOOKUP(AL$2,Assumptions!$30:$30,Assumptions!34:34) -> 0 | AM32: =LOOKUP(AM$2,Assumptions!$30:$30,Assumptions!34:34) -> 0 | AN32: =LOOKUP(AN$2,Assumptions!$30:$30,Assumptions!34:34) -> 0 | AO32: =LOOKUP(AO$2,Assumptions!$30:$30,Assumptions!34:34) -> 0 | AP32: =LOOKUP(AP$2,Assumptions!$30:$30,Assumptions!34:34) -> 0 | AQ32: =LOOKUP(AQ$2,Assumptions!$30:$30,Assumptions!34:34) -> 0 | AR32: =LOOKUP(AR$2,Assumptions!$30:$30,Assumptions!34:34) -> 0 | AS32: =LOOKUP(AS$2,Assumptions!$30:$30,Assumptions!34:34) -> 0 | AT32: =LOOKUP(AT$2,Assumptions!$30:$30,Assumptions!34:34) -> 0 | AU32: =LOOKUP(AU$2,Assumptions!$30:$30,Assumptions!34:34) -> 0 | AV32: =LOOKUP(AV$2,Assumptions!$30:$30,Assumptions!34:34) -> 0 | AW32: =LOOKUP(AW$2,Assumptions!$30:$30,Assumptions!34:34) -> 0 | AX32: =LOOKUP(AX$2,Assumptions!$30:$30,Assumptions!34:34) -> 0 | AY32: =LOOKUP(AY$2,Assumptions!$30:$30,Assumptions!34:34) -> 0 | AZ32: =LOOKUP(AZ$2,Assumptions!$30:$30,Assumptions!34:34) -> 0 | BA32: =LOOKUP(BA$2,Assumptions!$30:$30,Assumptions!34:34) -> 0 | BB32: =LOOKUP(BB$2,Assumptions!$30:$30,Assumptions!34:34) -> 0 | BC32: =LOOKUP(BC$2,Assumptions!$30:$30,Assumptions!34:34) -> 0 | BD32: =LOOKUP(BD$2,Assumptions!$30:$30,Assumptions!34:34) -> 0 | BE32: =LOOKUP(BE$2,Assumptions!$30:$30,Assumptions!34:34) -> 0 | BF32: =LOOKUP(BF$2,Assumptions!$30:$30,Assumptions!34:34) -> 0 | BG32: =LOOKUP(BG$2,Assumptions!$30:$30,Assumptions!34:34) -> 0 | BH32: =LOOKUP(BH$2,Assumptions!$30:$30,Assumptions!34:34) -> 0 | BI32: =LOOKUP(BI$2,Assumptions!$30:$30,Assumptions!34:34) -> 0 | BJ32: =LOOKUP(BJ$2,Assumptions!$30:$30,Assumptions!34:34) -> 0 | BK32: =LOOKUP(BK$2,Assumptions!$30:$30,Assumptions!34:34) -> 0 | BL32: =LOOKUP(BL$2,Assumptions!$30:$30,Assumptions!34:34) -> 0 | BM32: =LOOKUP(BM$2,Assumptions!$30:$30,Assumptions!34:34) -> 0 | BN32: =LOOKUP(BN$2,Assumptions!$30:$30,Assumptions!34:34) -> 0 | BO32: =LOOKUP(BO$2,Assumptions!$30:$30,Assumptions!34:34) -> 0 | BP32: =LOOKUP(BP$2,Assumptions!$30:$30,Assumptions!34:34) -> 0 | BQ32: =LOOKUP(BQ$2,Assumptions!$30:$30,Assumptions!34:34) -> 0 | BR32: =LOOKUP(BR$2,Assumptions!$30:$30,Assumptions!34:34) -> 0 | BS32: =LOOKUP(BS$2,Assumptions!$30:$30,Assumptions!34:34) -> 0 | BT32: =LOOKUP(BT$2,Assumptions!$30:$30,Assumptions!34:34) -> 0 | BU32: =LOOKUP(BU$2,Assumptions!$30:$30,Assumptions!34:34) -> 0 | BV32: =LOOKUP(BV$2,Assumptions!$30:$30,Assumptions!34:34) -> 0 | BW32: =LOOKUP(BW$2,Assumptions!$30:$30,Assumptions!34:34) -> 0 | BX32: =LOOKUP(BX$2,Assumptions!$30:$30,Assumptions!34:34) -> 0 | BY32: =LOOKUP(BY$2,Assumptions!$30:$30,Assumptions!34:34) -> 0 | BZ32: =LOOKUP(BZ$2,Assumptions!$30:$30,Assumptions!34:34) -> 0 | CA32: =LOOKUP(CA$2,Assumptions!$30:$30,Assumptions!34:34) -> 0 | CB32: =LOOKUP(CB$2,Assumptions!$30:$30,Assumptions!34:34) -> 0 | CC32: =LOOKUP(CC$2,Assumptions!$30:$30,Assumptions!34:34) -> 0 | CD32: =LOOKUP(CD$2,Assumptions!$30:$30,Assumptions!34:34) -> 0 | CE32: =LOOKUP(CE$2,Assumptions!$30:$30,Assumptions!34:34) -> 0 | CF32: =LOOKUP(CF$2,Assumptions!$30:$30,Assumptions!34:34) -> 0 | CG32: =LOOKUP(CG$2,Assumptions!$30:$30,Assumptions!34:34) -> 0 | CH32: =LOOKUP(CH$2,Assumptions!$30:$30,Assumptions!34:34) -> 0 | CI32: =LOOKUP(CI$2,Assumptions!$30:$30,Assumptions!34:34) -> 0 | CJ32: =LOOKUP(CJ$2,Assumptions!$30:$30,Assumptions!34:34) -> 0 | CK32: =LOOKUP(CK$2,Assumptions!$30:$30,Assumptions!34:34) -> 0 | CL32: =LOOKUP(CL$2,Assumptions!$30:$30,Assumptions!34:34) -> 0 | CM32: =LOOKUP(CM$2,Assumptions!$30:$30,Assumptions!34:34) -> 0 | CN32: =LOOKUP(CN$2,Assumptions!$30:$30,Assumptions!34:34) -> 0 | CO32: =LOOKUP(CO$2,Assumptions!$30:$30,Assumptions!34:34) -> 0 | CP32: =LOOKUP(CP$2,Assumptions!$30:$30,Assumptions!34:34) -> 0 | CQ32: =LOOKUP(CQ$2,Assumptions!$30:$30,Assumptions!34:34) -> 0 | CR32: =LOOKUP(CR$2,Assumptions!$30:$30,Assumptions!34:34) -> 0 | CS32: =LOOKUP(CS$2,Assumptions!$30:$30,Assumptions!34:34) -> 0 | CT32: =LOOKUP(CT$2,Assumptions!$30:$30,Assumptions!34:34) -> 0 | CU32: =LOOKUP(CU$2,Assumptions!$30:$30,Assumptions!34:34) -> 0 | CV32: =LOOKUP(CV$2,Assumptions!$30:$30,Assumptions!34:34) -> 0 | CW32: =LOOKUP(CW$2,Assumptions!$30:$30,Assumptions!34:34) -> 0 | CX32: =LOOKUP(CX$2,Assumptions!$30:$30,Assumptions!34:34) -> 0 | CY32: =LOOKUP(CY$2,Assumptions!$30:$30,Assumptions!34:34) -> 0 | CZ32: =LOOKUP(CZ$2,Assumptions!$30:$30,Assumptions!34:34) -> 0 | DA32: =LOOKUP(DA$2,Assumptions!$30:$30,Assumptions!34:34) -> 0 | DB32: =LOOKUP(DB$2,Assumptions!$30:$30,Assumptions!34:34) -> 0 | DC32: =LOOKUP(DC$2,Assumptions!$30:$30,Assumptions!34:34) -> 0 | DD32: =LOOKUP(DD$2,Assumptions!$30:$30,Assumptions!34:34) -> 0 | DE32: =LOOKUP(DE$2,Assumptions!$30:$30,Assumptions!34:34) -> 0 | DF32: =LOOKUP(DF$2,Assumptions!$30:$30,Assumptions!34:34) -> 0 | DG32: =LOOKUP(DG$2,Assumptions!$30:$30,Assumptions!34:34) -> 0 | DH32: =LOOKUP(DH$2,Assumptions!$30:$30,Assumptions!34:34) -> 0 | DI32: =LOOKUP(DI$2,Assumptions!$30:$30,Assumptions!34:34) -> 0 | DJ32: =LOOKUP(DJ$2,Assumptions!$30:$30,Assumptions!34:34) -> 0 | DK32: =LOOKUP(DK$2,Assumptions!$30:$30,Assumptions!34:34) -> 0 | DL32: =LOOKUP(DL$2,Assumptions!$30:$30,Assumptions!34:34) -> 0 | DM32: =LOOKUP(DM$2,Assumptions!$30:$30,Assumptions!34:34) -> 0 | DN32: =LOOKUP(DN$2,Assumptions!$30:$30,Assumptions!34:34) -> 0 | DO32: =LOOKUP(DO$2,Assumptions!$30:$30,Assumptions!34:34) -> 0 | DP32: =LOOKUP(DP$2,Assumptions!$30:$30,Assumptions!34:34) -> 0 | DQ32: =LOOKUP(DQ$2,Assumptions!$30:$30,Assumptions!34:34) -> 0 | DR32: =LOOKUP(DR$2,Assumptions!$30:$30,Assumptions!34:34) -> 0 | DS32: =LOOKUP(DS$2,Assumptions!$30:$30,Assumptions!34:34) -> 0 | DT32: =LOOKUP(DT$2,Assumptions!$30:$30,Assumptions!34:34) -> 0 | DU32: =LOOKUP(DU$2,Assumptions!$30:$30,Assumptions!34:34) -> 0 | DV32: =LOOKUP(DV$2,Assumptions!$30:$30,Assumptions!34:34) -> 0 | DW32: =LOOKUP(DW$2,Assumptions!$30:$30,Assumptions!34:34) -> 0 | DX32: =LOOKUP(DX$2,Assumptions!$30:$30,Assumptions!34:34) -> 0 | DY32: =LOOKUP(DY$2,Assumptions!$30:$30,Assumptions!34:34) -> 0 | DZ32: =LOOKUP(DZ$2,Assumptions!$30:$30,Assumptions!34:34) -> 0 | EA32: =LOOKUP(EA$2,Assumptions!$30:$30,Assumptions!34:34) -> 0 | EB32: =LOOKUP(EB$2,Assumptions!$30:$30,Assumptions!34:34) -> 0 | EC32: =LOOKUP(EC$2,Assumptions!$30:$30,Assumptions!34:34) -> 0 | ED32: =LOOKUP(ED$2,Assumptions!$30:$30,Assumptions!34:34) -> 0 | EE32: =LOOKUP(EE$2,Assumptions!$30:$30,Assumptions!34:34) -> 0 | EF32: =LOOKUP(EF$2,Assumptions!$30:$30,Assumptions!34:34) -> 0 | EG32: =LOOKUP(EG$2,Assumptions!$30:$30,Assumptions!34:34) -> 0 | EH32: =LOOKUP(EH$2,Assumptions!$30:$30,Assumptions!34:34) -> 0 | EI32: =LOOKUP(EI$2,Assumptions!$30:$30,Assumptions!34:34) -> 0 | EJ32: =LOOKUP(EJ$2,Assumptions!$30:$30,Assumptions!34:34) -> 0 | EK32: =LOOKUP(EK$2,Assumptions!$30:$30,Assumptions!34:34) -> 0 | EL32: =LOOKUP(EL$2,Assumptions!$30:$30,Assumptions!34:34) -> 0 | EM32: =LOOKUP(EM$2,Assumptions!$30:$30,Assumptions!34:34) -> 0 | EN32: =LOOKUP(EN$2,Assumptions!$30:$30,Assumptions!34:34) -> 0 | EO32: =LOOKUP(EO$2,Assumptions!$30:$30,Assumptions!34:34) -> 0 | EP32: =LOOKUP(EP$2,Assumptions!$30:$30,Assumptions!34:34) -> 0 | EQ32: =LOOKUP(EQ$2,Assumptions!$30:$30,Assumptions!34:34) -> 0 | ER32: =LOOKUP(ER$2,Assumptions!$30:$30,Assumptions!34:34) -> 0 | ES32: =LOOKUP(ES$2,Assumptions!$30:$30,Assumptions!34:34) -> 0 | ET32: =LOOKUP(ET$2,Assumptions!$30:$30,Assumptions!34:34) -> 0 | EU32: =LOOKUP(EU$2,Assumptions!$30:$30,Assumptions!34:34) -> 0 | EV32: =LOOKUP(EV$2,Assumptions!$30:$30,Assumptions!34:34) -> 0 | EW32: =LOOKUP(EW$2,Assumptions!$30:$30,Assumptions!34:34) -> 0 | EX32: =LOOKUP(EX$2,Assumptions!$30:$30,Assumptions!34:34) -> 0 | EY32: =LOOKUP(EY$2,Assumptions!$30:$30,Assumptions!34:34) -> 0 | EZ32: =LOOKUP(EZ$2,Assumptions!$30:$30,Assumptions!34:34) -> 0 | FA32: =LOOKUP(FA$2,Assumptions!$30:$30,Assumptions!34:34) -> 0 | FB32: =LOOKUP(FB$2,Assumptions!$30:$30,Assumptions!34:34) -> 0 | FC32: =LOOKUP(FC$2,Assumptions!$30:$30,Assumptions!34:34) -> 0 | FD32: =LOOKUP(FD$2,Assumptions!$30:$30,Assumptions!34:34) -> 0 | FE32: =LOOKUP(FE$2,Assumptions!$30:$30,Assumptions!34:34) -> 0 | FF32: =LOOKUP(FF$2,Assumptions!$30:$30,Assumptions!34:34) -> 0 | FG32: =LOOKUP(FG$2,Assumptions!$30:$30,Assumptions!34:34) -> 0 | FH32: =LOOKUP(FH$2,Assumptions!$30:$30,Assumptions!34:34) -> 0 | FI32: =LOOKUP(FI$2,Assumptions!$30:$30,Assumptions!34:34) -> 0 | FJ32: =LOOKUP(FJ$2,Assumptions!$30:$30,Assumptions!34:34) -> 0 | FK32: =LOOKUP(FK$2,Assumptions!$30:$30,Assumptions!34:34) -> 0 | FL32: =LOOKUP(FL$2,Assumptions!$30:$30,Assumptions!34:34) -> 0 | FM32: =LOOKUP(FM$2,Assumptions!$30:$30,Assumptions!34:34) -> 0 | FN32: =LOOKUP(FN$2,Assumptions!$30:$30,Assumptions!34:34) -> 0 | FO32: =LOOKUP(FO$2,Assumptions!$30:$30,Assumptions!34:34) -> 0 | FP32: =LOOKUP(FP$2,Assumptions!$30:$30,Assumptions!34:34) -> 0 | FQ32: =LOOKUP(FQ$2,Assumptions!$30:$30,Assumptions!34:34) -> 0 | FR32: =LOOKUP(FR$2,Assumptions!$30:$30,Assumptions!34:34) -> 0 | FS32: =LOOKUP(FS$2,Assumptions!$30:$30,Assumptions!34:34) -> 0 | FT32: =LOOKUP(FT$2,Assumptions!$30:$30,Assumptions!34:34) -> 0 | FU32: =LOOKUP(FU$2,Assumptions!$30:$30,Assumptions!34:34) -> 0 | FV32: =LOOKUP(FV$2,Assumptions!$30:$30,Assumptions!34:34) -> 0 | FW32: =LOOKUP(FW$2,Assumptions!$30:$30,Assumptions!34:34) -> 0 | FX32: =LOOKUP(FX$2,Assumptions!$30:$30,Assumptions!34:34) -> 0 | FY32: =LOOKUP(FY$2,Assumptions!$30:$30,Assumptions!34:34) -> 0 | FZ32: =LOOKUP(FZ$2,Assumptions!$30:$30,Assumptions!34:34) -> 0 | GA32: =LOOKUP(GA$2,Assumptions!$30:$30,Assumptions!34:34) -> 0 | GB32: =LOOKUP(GB$2,Assumptions!$30:$30,Assumptions!34:34) -> 0 | GC32: =LOOKUP(GC$2,Assumptions!$30:$30,Assumptions!34:34) -> 0 | GD32: =LOOKUP(GD$2,Assumptions!$30:$30,Assumptions!34:34) -> 0 | GE32: =LOOKUP(GE$2,Assumptions!$30:$30,Assumptions!34:34) -> 0 | GF32: =LOOKUP(GF$2,Assumptions!$30:$30,Assumptions!34:34) -> 0 | GG32: =LOOKUP(GG$2,Assumptions!$30:$30,Assumptions!34:34) -> 0 | GH32: =LOOKUP(GH$2,Assumptions!$30:$30,Assumptions!34:34) -> 0 | GI32: =LOOKUP(GI$2,Assumptions!$30:$30,Assumptions!34:34) -> 0 | GJ32: =LOOKUP(GJ$2,Assumptions!$30:$30,Assumptions!34:34) -> 0 | GK32: =LOOKUP(GK$2,Assumptions!$30:$30,Assumptions!34:34) -> 0 | GL32: =LOOKUP(GL$2,Assumptions!$30:$30,Assumptions!34:34) -> 0 | GM32: =LOOKUP(GM$2,Assumptions!$30:$30,Assumptions!34:34) -> 0 | GN32: =LOOKUP(GN$2,Assumptions!$30:$30,Assumptions!34:34) -> 0 | GO32: =LOOKUP(GO$2,Assumptions!$30:$30,Assumptions!34:34) -> 0 | GP32: =LOOKUP(GP$2,Assumptions!$30:$30,Assumptions!34:34) -> 0 | GQ32: =LOOKUP(GQ$2,Assumptions!$30:$30,Assumptions!34:34) -> 0 | GR32: =LOOKUP(GR$2,Assumptions!$30:$30,Assumptions!34:34) -> 0 | GS32: =LOOKUP(GS$2,Assumptions!$30:$30,Assumptions!34:34) -> 0 | GT32: =LOOKUP(GT$2,Assumptions!$30:$30,Assumptions!34:34) -> 0 | GU32: =LOOKUP(GU$2,Assumptions!$30:$30,Assumptions!34:34) -> 0 | GV32: =LOOKUP(GV$2,Assumptions!$30:$30,Assumptions!34:34) -> 0 | GW32: =LOOKUP(GW$2,Assumptions!$30:$30,Assumptions!34:34) -> 0 | GX32: =LOOKUP(GX$2,Assumptions!$30:$30,Assumptions!34:34) -> 0 | GY32: =LOOKUP(GY$2,Assumptions!$30:$30,Assumptions!34:34) -> 0 | GZ32: =LOOKUP(GZ$2,Assumptions!$30:$30,Assumptions!34:34) -> 0 | HA32: =LOOKUP(HA$2,Assumptions!$30:$30,Assumptions!34:34) -> 0 | HB32: =LOOKUP(HB$2,Assumptions!$30:$30,Assumptions!34:34) -> 0 | HC32: =LOOKUP(HC$2,Assumptions!$30:$30,Assumptions!34:34) -> 0 | HD32: =LOOKUP(HD$2,Assumptions!$30:$30,Assumptions!34:34) -> 0 | HE32: =LOOKUP(HE$2,Assumptions!$30:$30,Assumptions!34:34) -> 0 | HF32: =LOOKUP(HF$2,Assumptions!$30:$30,Assumptions!34:34) -> 0 | HG32: =LOOKUP(HG$2,Assumptions!$30:$30,Assumptions!34:34) -> 0 | HH32: =LOOKUP(HH$2,Assumptions!$30:$30,Assumptions!34:34) -> 0 | HI32: =LOOKUP(HI$2,Assumptions!$30:$30,Assumptions!34:34) -> 0 | HJ32: =LOOKUP(HJ$2,Assumptions!$30:$30,Assumptions!34:34) -> 0 | HK32: =LOOKUP(HK$2,Assumptions!$30:$30,Assumptions!34:34) -> 0 | HL32: =LOOKUP(HL$2,Assumptions!$30:$30,Assumptions!34:34) -> 0 | HM32: =LOOKUP(HM$2,Assumptions!$30:$30,Assumptions!34:34) -> 0 | HN32: =LOOKUP(HN$2,Assumptions!$30:$30,Assumptions!34:34) -> 0 | HO32: =LOOKUP(HO$2,Assumptions!$30:$30,Assumptions!34:34) -> 0 | HP32: =LOOKUP(HP$2,Assumptions!$30:$30,Assumptions!34:34) -> 0 | HQ32: =LOOKUP(HQ$2,Assumptions!$30:$30,Assumptions!34:34) -> 0 | HR32: =LOOKUP(HR$2,Assumptions!$30:$30,Assumptions!34:34) -> 0 | HS32: =LOOKUP(HS$2,Assumptions!$30:$30,Assumptions!34:34) -> 0 | HT32: =LOOKUP(HT$2,Assumptions!$30:$30,Assumptions!34:34) -> 0 | HU32: =LOOKUP(HU$2,Assumptions!$30:$30,Assumptions!34:34) -> 0 | HV32: =LOOKUP(HV$2,Assumptions!$30:$30,Assumptions!34:34) -> 0 | HW32: =LOOKUP(HW$2,Assumptions!$30:$30,Assumptions!34:34) -> 0 | HX32: =LOOKUP(HX$2,Assumptions!$30:$30,Assumptions!34:34) -> 0 | HY32: =LOOKUP(HY$2,Assumptions!$30:$30,Assumptions!34:34) -> 0 | HZ32: =LOOKUP(HZ$2,Assumptions!$30:$30,Assumptions!34:34) -> 0 | IA32: =LOOKUP(IA$2,Assumptions!$30:$30,Assumptions!34:34) -> 0 | IB32: =LOOKUP(IB$2,Assumptions!$30:$30,Assumptions!34:34) -> 0 | IC32: =LOOKUP(IC$2,Assumptions!$30:$30,Assumptions!34:34) -> 0 | ID32: =LOOKUP(ID$2,Assumptions!$30:$30,Assumptions!34:34) -> 0 | IE32: =LOOKUP(IE$2,Assumptions!$30:$30,Assumptions!34:34) -> 0 | IF32: =LOOKUP(IF$2,Assumptions!$30:$30,Assumptions!34:34) -> 0 | IG32: =LOOKUP(IG$2,Assumptions!$30:$30,Assumptions!34:34) -> 0 | IH32: =LOOKUP(IH$2,Assumptions!$30:$30,Assumptions!34:34) -> 0 | II32: =LOOKUP(II$2,Assumptions!$30:$30,Assumptions!34:34) -> 0 | IJ32: =LOOKUP(IJ$2,Assumptions!$30:$30,Assumptions!34:34) -> 0 | IK32: =LOOKUP(IK$2,Assumptions!$30:$30,Assumptions!34:34) -> 0 | IL32: =LOOKUP(IL$2,Assumptions!$30:$30,Assumptions!34:34) -> 0 | IM32: =LOOKUP(IM$2,Assumptions!$30:$30,Assumptions!34:34) -> 0 | IN32: =LOOKUP(IN$2,Assumptions!$30:$30,Assumptions!34:34) -> 0 | IO32: =LOOKUP(IO$2,Assumptions!$30:$30,Assumptions!34:34) -> 0 | IP32: =LOOKUP(IP$2,Assumptions!$30:$30,Assumptions!34:34) -> 0 | IQ32: =LOOKUP(IQ$2,Assumptions!$30:$30,Assumptions!34:34) -> 0 | IR32: =LOOKUP(IR$2,Assumptions!$30:$30,Assumptions!34:34) -> 0 | IS32: =LOOKUP(IS$2,Assumptions!$30:$30,Assumptions!34:34) -> 0 | IT32: =LOOKUP(IT$2,Assumptions!$30:$30,Assumptions!34:34) -> 0 | IU32: =LOOKUP(IU$2,Assumptions!$30:$30,Assumptions!34:34) -> 0 | IV32: =LOOKUP(IV$2,Assumptions!$30:$30,Assumptions!34:34) -> 0 | IW32: =LOOKUP(IW$2,Assumptions!$30:$30,Assumptions!34:34) -> 0 | IX32: =LOOKUP(IX$2,Assumptions!$30:$30,Assumptions!34:34) -> 0 | IY32: =LOOKUP(IY$2,Assumptions!$30:$30,Assumptions!34:34) -> 0 | IZ32: =LOOKUP(IZ$2,Assumptions!$30:$30,Assumptions!34:34) -> 0 | JA32: =LOOKUP(JA$2,Assumptions!$30:$30,Assumptions!34:34) -> 0 | JB32: =LOOKUP(JB$2,Assumptions!$30:$30,Assumptions!34:34) -> 0 | JC32: =LOOKUP(JC$2,Assumptions!$30:$30,Assumptions!34:34) -> 0 | JD32: =LOOKUP(JD$2,Assumptions!$30:$30,Assumptions!34:34) -> 0 | JE32: =LOOKUP(JE$2,Assumptions!$30:$30,Assumptions!34:34) -> 0 | JF32: =LOOKUP(JF$2,Assumptions!$30:$30,Assumptions!34:34) -> 0 | JG32: =LOOKUP(JG$2,Assumptions!$30:$30,Assumptions!34:34) -> 0 | JH32: =LOOKUP(JH$2,Assumptions!$30:$30,Assumptions!34:34) -> 0 | JI32: =LOOKUP(JI$2,Assumptions!$30:$30,Assumptions!34:34) -> 0 | JJ32: =LOOKUP(JJ$2,Assumptions!$30:$30,Assumptions!34:34) -> 0 | JK32: =LOOKUP(JK$2,Assumptions!$30:$30,Assumptions!34:34) -> 0 | JL32: =LOOKUP(JL$2,Assumptions!$30:$30,Assumptions!34:34) -> 0 | JM32: =LOOKUP(JM$2,Assumptions!$30:$30,Assumptions!34:34) -> 0 | JN32: =LOOKUP(JN$2,Assumptions!$30:$30,Assumptions!34:34) -> 0 | JO32: =LOOKUP(JO$2,Assumptions!$30:$30,Assumptions!34:34) -> 0 | JP32: =LOOKUP(JP$2,Assumptions!$30:$30,Assumptions!34:34) -> 0 | JQ32: =LOOKUP(JQ$2,Assumptions!$30:$30,Assumptions!34:34) -> 0 | JR32: =LOOKUP(JR$2,Assumptions!$30:$30,Assumptions!34:34) -> 0 | JS32: =LOOKUP(JS$2,Assumptions!$30:$30,Assumptions!34:34) -> 0 | JT32: =LOOKUP(JT$2,Assumptions!$30:$30,Assumptions!34:34) -> 0 | JU32: =LOOKUP(JU$2,Assumptions!$30:$30,Assumptions!34:34) -> 0 | JV32: =LOOKUP(JV$2,Assumptions!$30:$30,Assumptions!34:34) -> 0 | JW32: =LOOKUP(JW$2,Assumptions!$30:$30,Assumptions!34:34) -> 0 | JX32: =LOOKUP(JX$2,Assumptions!$30:$30,Assumptions!34:34) -> 0 | JY32: =LOOKUP(JY$2,Assumptions!$30:$30,Assumptions!34:34) -> 0 | JZ32: =LOOKUP(JZ$2,Assumptions!$30:$30,Assumptions!34:34) -> 0 | KA32: =LOOKUP(KA$2,Assumptions!$30:$30,Assumptions!34:34) -> 0 | KB32: =LOOKUP(KB$2,Assumptions!$30:$30,Assumptions!34:34) -> 0 | KC32: =LOOKUP(KC$2,Assumptions!$30:$30,Assumptions!34:34) -> 0 | KD32: =LOOKUP(KD$2,Assumptions!$30:$30,Assumptions!34:34) -> 0 | KE32: =LOOKUP(KE$2,Assumptions!$30:$30,Assumptions!34:34) -> 0 | KF32: =LOOKUP(KF$2,Assumptions!$30:$30,Assumptions!34:34) -> 0 | KG32: =LOOKUP(KG$2,Assumptions!$30:$30,Assumptions!34:34) -> 0 | KH32: =LOOKUP(KH$2,Assumptions!$30:$30,Assumptions!34:34) -> 0 | KI32: =LOOKUP(KI$2,Assumptions!$30:$30,Assumptions!34:34) -> 0 | KJ32: =LOOKUP(KJ$2,Assumptions!$30:$30,Assumptions!34:34) -> 0 | KK32: =LOOKUP(KK$2,Assumptions!$30:$30,Assumptions!34:34) -> 0 | KL32: =LOOKUP(KL$2,Assumptions!$30:$30,Assumptions!34:34) -> 0 | KM32: =LOOKUP(KM$2,Assumptions!$30:$30,Assumptions!34:34) -> 0 | KN32: =LOOKUP(KN$2,Assumptions!$30:$30,Assumptions!34:34) -> 0 | KO32: =LOOKUP(KO$2,Assumptions!$30:$30,Assumptions!34:34) -> 0 | KP32: =LOOKUP(KP$2,Assumptions!$30:$30,Assumptions!34:34) -> 0 | KQ32: =LOOKUP(KQ$2,Assumptions!$30:$30,Assumptions!34:34) -> 0 | KR32: =LOOKUP(KR$2,Assumptions!$30:$30,Assumptions!34:34) -> 0 | KS32: =LOOKUP(KS$2,Assumptions!$30:$30,Assumptions!34:34) -> 0 | KT32: =LOOKUP(KT$2,Assumptions!$30:$30,Assumptions!34:34) -> 0 | KU32: =LOOKUP(KU$2,Assumptions!$30:$30,Assumptions!34:34) -> 0
C33: Contingencies | H33: =LOOKUP(H$2,Assumptions!$30:$30,Assumptions!35:35) -> 0 | I33: =LOOKUP(I$2,Assumptions!$30:$30,Assumptions!35:35) -> 0 | J33: =LOOKUP(J$2,Assumptions!$30:$30,Assumptions!35:35) -> 0 | K33: =LOOKUP(K$2,Assumptions!$30:$30,Assumptions!35:35) -> 0 | L33: =LOOKUP(L$2,Assumptions!$30:$30,Assumptions!35:35) -> 0.5 | M33: =LOOKUP(M$2,Assumptions!$30:$30,Assumptions!35:35) -> 0.5 | N33: =LOOKUP(N$2,Assumptions!$30:$30,Assumptions!35:35) -> 0 | O33: =LOOKUP(O$2,Assumptions!$30:$30,Assumptions!35:35) -> 0 | P33: =LOOKUP(P$2,Assumptions!$30:$30,Assumptions!35:35) -> 0 | Q33: =LOOKUP(Q$2,Assumptions!$30:$30,Assumptions!35:35) -> 0 | R33: =LOOKUP(R$2,Assumptions!$30:$30,Assumptions!35:35) -> 0 | S33: =LOOKUP(S$2,Assumptions!$30:$30,Assumptions!35:35) -> 0 | T33: =LOOKUP(T$2,Assumptions!$30:$30,Assumptions!35:35) -> 0 | U33: =LOOKUP(U$2,Assumptions!$30:$30,Assumptions!35:35) -> 0 | V33: =LOOKUP(V$2,Assumptions!$30:$30,Assumptions!35:35) -> 0 | W33: =LOOKUP(W$2,Assumptions!$30:$30,Assumptions!35:35) -> 0 | X33: =LOOKUP(X$2,Assumptions!$30:$30,Assumptions!35:35) -> 0 | Y33: =LOOKUP(Y$2,Assumptions!$30:$30,Assumptions!35:35) -> 0 | Z33: =LOOKUP(Z$2,Assumptions!$30:$30,Assumptions!35:35) -> 0 | AA33: =LOOKUP(AA$2,Assumptions!$30:$30,Assumptions!35:35) -> 0 | AB33: =LOOKUP(AB$2,Assumptions!$30:$30,Assumptions!35:35) -> 0 | AC33: =LOOKUP(AC$2,Assumptions!$30:$30,Assumptions!35:35) -> 0 | AD33: =LOOKUP(AD$2,Assumptions!$30:$30,Assumptions!35:35) -> 0 | AE33: =LOOKUP(AE$2,Assumptions!$30:$30,Assumptions!35:35) -> 0 | AF33: =LOOKUP(AF$2,Assumptions!$30:$30,Assumptions!35:35) -> 0 | AG33: =LOOKUP(AG$2,Assumptions!$30:$30,Assumptions!35:35) -> 0 | AH33: =LOOKUP(AH$2,Assumptions!$30:$30,Assumptions!35:35) -> 0 | AI33: =LOOKUP(AI$2,Assumptions!$30:$30,Assumptions!35:35) -> 0 | AJ33: =LOOKUP(AJ$2,Assumptions!$30:$30,Assumptions!35:35) -> 0 | AK33: =LOOKUP(AK$2,Assumptions!$30:$30,Assumptions!35:35) -> 0 | AL33: =LOOKUP(AL$2,Assumptions!$30:$30,Assumptions!35:35) -> 0 | AM33: =LOOKUP(AM$2,Assumptions!$30:$30,Assumptions!35:35) -> 0 | AN33: =LOOKUP(AN$2,Assumptions!$30:$30,Assumptions!35:35) -> 0 | AO33: =LOOKUP(AO$2,Assumptions!$30:$30,Assumptions!35:35) -> 0 | AP33: =LOOKUP(AP$2,Assumptions!$30:$30,Assumptions!35:35) -> 0 | AQ33: =LOOKUP(AQ$2,Assumptions!$30:$30,Assumptions!35:35) -> 0 | AR33: =LOOKUP(AR$2,Assumptions!$30:$30,Assumptions!35:35) -> 0 | AS33: =LOOKUP(AS$2,Assumptions!$30:$30,Assumptions!35:35) -> 0 | AT33: =LOOKUP(AT$2,Assumptions!$30:$30,Assumptions!35:35) -> 0 | AU33: =LOOKUP(AU$2,Assumptions!$30:$30,Assumptions!35:35) -> 0 | AV33: =LOOKUP(AV$2,Assumptions!$30:$30,Assumptions!35:35) -> 0 | AW33: =LOOKUP(AW$2,Assumptions!$30:$30,Assumptions!35:35) -> 0 | AX33: =LOOKUP(AX$2,Assumptions!$30:$30,Assumptions!35:35) -> 0 | AY33: =LOOKUP(AY$2,Assumptions!$30:$30,Assumptions!35:35) -> 0 | AZ33: =LOOKUP(AZ$2,Assumptions!$30:$30,Assumptions!35:35) -> 0 | BA33: =LOOKUP(BA$2,Assumptions!$30:$30,Assumptions!35:35) -> 0 | BB33: =LOOKUP(BB$2,Assumptions!$30:$30,Assumptions!35:35) -> 0 | BC33: =LOOKUP(BC$2,Assumptions!$30:$30,Assumptions!35:35) -> 0 | BD33: =LOOKUP(BD$2,Assumptions!$30:$30,Assumptions!35:35) -> 0 | BE33: =LOOKUP(BE$2,Assumptions!$30:$30,Assumptions!35:35) -> 0 | BF33: =LOOKUP(BF$2,Assumptions!$30:$30,Assumptions!35:35) -> 0 | BG33: =LOOKUP(BG$2,Assumptions!$30:$30,Assumptions!35:35) -> 0 | BH33: =LOOKUP(BH$2,Assumptions!$30:$30,Assumptions!35:35) -> 0 | BI33: =LOOKUP(BI$2,Assumptions!$30:$30,Assumptions!35:35) -> 0 | BJ33: =LOOKUP(BJ$2,Assumptions!$30:$30,Assumptions!35:35) -> 0 | BK33: =LOOKUP(BK$2,Assumptions!$30:$30,Assumptions!35:35) -> 0 | BL33: =LOOKUP(BL$2,Assumptions!$30:$30,Assumptions!35:35) -> 0 | BM33: =LOOKUP(BM$2,Assumptions!$30:$30,Assumptions!35:35) -> 0 | BN33: =LOOKUP(BN$2,Assumptions!$30:$30,Assumptions!35:35) -> 0 | BO33: =LOOKUP(BO$2,Assumptions!$30:$30,Assumptions!35:35) -> 0 | BP33: =LOOKUP(BP$2,Assumptions!$30:$30,Assumptions!35:35) -> 0 | BQ33: =LOOKUP(BQ$2,Assumptions!$30:$30,Assumptions!35:35) -> 0 | BR33: =LOOKUP(BR$2,Assumptions!$30:$30,Assumptions!35:35) -> 0 | BS33: =LOOKUP(BS$2,Assumptions!$30:$30,Assumptions!35:35) -> 0 | BT33: =LOOKUP(BT$2,Assumptions!$30:$30,Assumptions!35:35) -> 0 | BU33: =LOOKUP(BU$2,Assumptions!$30:$30,Assumptions!35:35) -> 0 | BV33: =LOOKUP(BV$2,Assumptions!$30:$30,Assumptions!35:35) -> 0 | BW33: =LOOKUP(BW$2,Assumptions!$30:$30,Assumptions!35:35) -> 0 | BX33: =LOOKUP(BX$2,Assumptions!$30:$30,Assumptions!35:35) -> 0 | BY33: =LOOKUP(BY$2,Assumptions!$30:$30,Assumptions!35:35) -> 0 | BZ33: =LOOKUP(BZ$2,Assumptions!$30:$30,Assumptions!35:35) -> 0 | CA33: =LOOKUP(CA$2,Assumptions!$30:$30,Assumptions!35:35) -> 0 | CB33: =LOOKUP(CB$2,Assumptions!$30:$30,Assumptions!35:35) -> 0 | CC33: =LOOKUP(CC$2,Assumptions!$30:$30,Assumptions!35:35) -> 0 | CD33: =LOOKUP(CD$2,Assumptions!$30:$30,Assumptions!35:35) -> 0 | CE33: =LOOKUP(CE$2,Assumptions!$30:$30,Assumptions!35:35) -> 0 | CF33: =LOOKUP(CF$2,Assumptions!$30:$30,Assumptions!35:35) -> 0 | CG33: =LOOKUP(CG$2,Assumptions!$30:$30,Assumptions!35:35) -> 0 | CH33: =LOOKUP(CH$2,Assumptions!$30:$30,Assumptions!35:35) -> 0 | CI33: =LOOKUP(CI$2,Assumptions!$30:$30,Assumptions!35:35) -> 0 | CJ33: =LOOKUP(CJ$2,Assumptions!$30:$30,Assumptions!35:35) -> 0 | CK33: =LOOKUP(CK$2,Assumptions!$30:$30,Assumptions!35:35) -> 0 | CL33: =LOOKUP(CL$2,Assumptions!$30:$30,Assumptions!35:35) -> 0 | CM33: =LOOKUP(CM$2,Assumptions!$30:$30,Assumptions!35:35) -> 0 | CN33: =LOOKUP(CN$2,Assumptions!$30:$30,Assumptions!35:35) -> 0 | CO33: =LOOKUP(CO$2,Assumptions!$30:$30,Assumptions!35:35) -> 0 | CP33: =LOOKUP(CP$2,Assumptions!$30:$30,Assumptions!35:35) -> 0 | CQ33: =LOOKUP(CQ$2,Assumptions!$30:$30,Assumptions!35:35) -> 0 | CR33: =LOOKUP(CR$2,Assumptions!$30:$30,Assumptions!35:35) -> 0 | CS33: =LOOKUP(CS$2,Assumptions!$30:$30,Assumptions!35:35) -> 0 | CT33: =LOOKUP(CT$2,Assumptions!$30:$30,Assumptions!35:35) -> 0 | CU33: =LOOKUP(CU$2,Assumptions!$30:$30,Assumptions!35:35) -> 0 | CV33: =LOOKUP(CV$2,Assumptions!$30:$30,Assumptions!35:35) -> 0 | CW33: =LOOKUP(CW$2,Assumptions!$30:$30,Assumptions!35:35) -> 0 | CX33: =LOOKUP(CX$2,Assumptions!$30:$30,Assumptions!35:35) -> 0 | CY33: =LOOKUP(CY$2,Assumptions!$30:$30,Assumptions!35:35) -> 0 | CZ33: =LOOKUP(CZ$2,Assumptions!$30:$30,Assumptions!35:35) -> 0 | DA33: =LOOKUP(DA$2,Assumptions!$30:$30,Assumptions!35:35) -> 0 | DB33: =LOOKUP(DB$2,Assumptions!$30:$30,Assumptions!35:35) -> 0 | DC33: =LOOKUP(DC$2,Assumptions!$30:$30,Assumptions!35:35) -> 0 | DD33: =LOOKUP(DD$2,Assumptions!$30:$30,Assumptions!35:35) -> 0 | DE33: =LOOKUP(DE$2,Assumptions!$30:$30,Assumptions!35:35) -> 0 | DF33: =LOOKUP(DF$2,Assumptions!$30:$30,Assumptions!35:35) -> 0 | DG33: =LOOKUP(DG$2,Assumptions!$30:$30,Assumptions!35:35) -> 0 | DH33: =LOOKUP(DH$2,Assumptions!$30:$30,Assumptions!35:35) -> 0 | DI33: =LOOKUP(DI$2,Assumptions!$30:$30,Assumptions!35:35) -> 0 | DJ33: =LOOKUP(DJ$2,Assumptions!$30:$30,Assumptions!35:35) -> 0 | DK33: =LOOKUP(DK$2,Assumptions!$30:$30,Assumptions!35:35) -> 0 | DL33: =LOOKUP(DL$2,Assumptions!$30:$30,Assumptions!35:35) -> 0 | DM33: =LOOKUP(DM$2,Assumptions!$30:$30,Assumptions!35:35) -> 0 | DN33: =LOOKUP(DN$2,Assumptions!$30:$30,Assumptions!35:35) -> 0 | DO33: =LOOKUP(DO$2,Assumptions!$30:$30,Assumptions!35:35) -> 0 | DP33: =LOOKUP(DP$2,Assumptions!$30:$30,Assumptions!35:35) -> 0 | DQ33: =LOOKUP(DQ$2,Assumptions!$30:$30,Assumptions!35:35) -> 0 | DR33: =LOOKUP(DR$2,Assumptions!$30:$30,Assumptions!35:35) -> 0 | DS33: =LOOKUP(DS$2,Assumptions!$30:$30,Assumptions!35:35) -> 0 | DT33: =LOOKUP(DT$2,Assumptions!$30:$30,Assumptions!35:35) -> 0 | DU33: =LOOKUP(DU$2,Assumptions!$30:$30,Assumptions!35:35) -> 0 | DV33: =LOOKUP(DV$2,Assumptions!$30:$30,Assumptions!35:35) -> 0 | DW33: =LOOKUP(DW$2,Assumptions!$30:$30,Assumptions!35:35) -> 0 | DX33: =LOOKUP(DX$2,Assumptions!$30:$30,Assumptions!35:35) -> 0 | DY33: =LOOKUP(DY$2,Assumptions!$30:$30,Assumptions!35:35) -> 0 | DZ33: =LOOKUP(DZ$2,Assumptions!$30:$30,Assumptions!35:35) -> 0 | EA33: =LOOKUP(EA$2,Assumptions!$30:$30,Assumptions!35:35) -> 0 | EB33: =LOOKUP(EB$2,Assumptions!$30:$30,Assumptions!35:35) -> 0 | EC33: =LOOKUP(EC$2,Assumptions!$30:$30,Assumptions!35:35) -> 0 | ED33: =LOOKUP(ED$2,Assumptions!$30:$30,Assumptions!35:35) -> 0 | EE33: =LOOKUP(EE$2,Assumptions!$30:$30,Assumptions!35:35) -> 0 | EF33: =LOOKUP(EF$2,Assumptions!$30:$30,Assumptions!35:35) -> 0 | EG33: =LOOKUP(EG$2,Assumptions!$30:$30,Assumptions!35:35) -> 0 | EH33: =LOOKUP(EH$2,Assumptions!$30:$30,Assumptions!35:35) -> 0 | EI33: =LOOKUP(EI$2,Assumptions!$30:$30,Assumptions!35:35) -> 0 | EJ33: =LOOKUP(EJ$2,Assumptions!$30:$30,Assumptions!35:35) -> 0 | EK33: =LOOKUP(EK$2,Assumptions!$30:$30,Assumptions!35:35) -> 0 | EL33: =LOOKUP(EL$2,Assumptions!$30:$30,Assumptions!35:35) -> 0 | EM33: =LOOKUP(EM$2,Assumptions!$30:$30,Assumptions!35:35) -> 0 | EN33: =LOOKUP(EN$2,Assumptions!$30:$30,Assumptions!35:35) -> 0 | EO33: =LOOKUP(EO$2,Assumptions!$30:$30,Assumptions!35:35) -> 0 | EP33: =LOOKUP(EP$2,Assumptions!$30:$30,Assumptions!35:35) -> 0 | EQ33: =LOOKUP(EQ$2,Assumptions!$30:$30,Assumptions!35:35) -> 0 | ER33: =LOOKUP(ER$2,Assumptions!$30:$30,Assumptions!35:35) -> 0 | ES33: =LOOKUP(ES$2,Assumptions!$30:$30,Assumptions!35:35) -> 0 | ET33: =LOOKUP(ET$2,Assumptions!$30:$30,Assumptions!35:35) -> 0 | EU33: =LOOKUP(EU$2,Assumptions!$30:$30,Assumptions!35:35) -> 0 | EV33: =LOOKUP(EV$2,Assumptions!$30:$30,Assumptions!35:35) -> 0 | EW33: =LOOKUP(EW$2,Assumptions!$30:$30,Assumptions!35:35) -> 0 | EX33: =LOOKUP(EX$2,Assumptions!$30:$30,Assumptions!35:35) -> 0 | EY33: =LOOKUP(EY$2,Assumptions!$30:$30,Assumptions!35:35) -> 0 | EZ33: =LOOKUP(EZ$2,Assumptions!$30:$30,Assumptions!35:35) -> 0 | FA33: =LOOKUP(FA$2,Assumptions!$30:$30,Assumptions!35:35) -> 0 | FB33: =LOOKUP(FB$2,Assumptions!$30:$30,Assumptions!35:35) -> 0 | FC33: =LOOKUP(FC$2,Assumptions!$30:$30,Assumptions!35:35) -> 0 | FD33: =LOOKUP(FD$2,Assumptions!$30:$30,Assumptions!35:35) -> 0 | FE33: =LOOKUP(FE$2,Assumptions!$30:$30,Assumptions!35:35) -> 0 | FF33: =LOOKUP(FF$2,Assumptions!$30:$30,Assumptions!35:35) -> 0 | FG33: =LOOKUP(FG$2,Assumptions!$30:$30,Assumptions!35:35) -> 0 | FH33: =LOOKUP(FH$2,Assumptions!$30:$30,Assumptions!35:35) -> 0 | FI33: =LOOKUP(FI$2,Assumptions!$30:$30,Assumptions!35:35) -> 0 | FJ33: =LOOKUP(FJ$2,Assumptions!$30:$30,Assumptions!35:35) -> 0 | FK33: =LOOKUP(FK$2,Assumptions!$30:$30,Assumptions!35:35) -> 0 | FL33: =LOOKUP(FL$2,Assumptions!$30:$30,Assumptions!35:35) -> 0 | FM33: =LOOKUP(FM$2,Assumptions!$30:$30,Assumptions!35:35) -> 0 | FN33: =LOOKUP(FN$2,Assumptions!$30:$30,Assumptions!35:35) -> 0 | FO33: =LOOKUP(FO$2,Assumptions!$30:$30,Assumptions!35:35) -> 0 | FP33: =LOOKUP(FP$2,Assumptions!$30:$30,Assumptions!35:35) -> 0 | FQ33: =LOOKUP(FQ$2,Assumptions!$30:$30,Assumptions!35:35) -> 0 | FR33: =LOOKUP(FR$2,Assumptions!$30:$30,Assumptions!35:35) -> 0 | FS33: =LOOKUP(FS$2,Assumptions!$30:$30,Assumptions!35:35) -> 0 | FT33: =LOOKUP(FT$2,Assumptions!$30:$30,Assumptions!35:35) -> 0 | FU33: =LOOKUP(FU$2,Assumptions!$30:$30,Assumptions!35:35) -> 0 | FV33: =LOOKUP(FV$2,Assumptions!$30:$30,Assumptions!35:35) -> 0 | FW33: =LOOKUP(FW$2,Assumptions!$30:$30,Assumptions!35:35) -> 0 | FX33: =LOOKUP(FX$2,Assumptions!$30:$30,Assumptions!35:35) -> 0 | FY33: =LOOKUP(FY$2,Assumptions!$30:$30,Assumptions!35:35) -> 0 | FZ33: =LOOKUP(FZ$2,Assumptions!$30:$30,Assumptions!35:35) -> 0 | GA33: =LOOKUP(GA$2,Assumptions!$30:$30,Assumptions!35:35) -> 0 | GB33: =LOOKUP(GB$2,Assumptions!$30:$30,Assumptions!35:35) -> 0 | GC33: =LOOKUP(GC$2,Assumptions!$30:$30,Assumptions!35:35) -> 0 | GD33: =LOOKUP(GD$2,Assumptions!$30:$30,Assumptions!35:35) -> 0 | GE33: =LOOKUP(GE$2,Assumptions!$30:$30,Assumptions!35:35) -> 0 | GF33: =LOOKUP(GF$2,Assumptions!$30:$30,Assumptions!35:35) -> 0 | GG33: =LOOKUP(GG$2,Assumptions!$30:$30,Assumptions!35:35) -> 0 | GH33: =LOOKUP(GH$2,Assumptions!$30:$30,Assumptions!35:35) -> 0 | GI33: =LOOKUP(GI$2,Assumptions!$30:$30,Assumptions!35:35) -> 0 | GJ33: =LOOKUP(GJ$2,Assumptions!$30:$30,Assumptions!35:35) -> 0 | GK33: =LOOKUP(GK$2,Assumptions!$30:$30,Assumptions!35:35) -> 0 | GL33: =LOOKUP(GL$2,Assumptions!$30:$30,Assumptions!35:35) -> 0 | GM33: =LOOKUP(GM$2,Assumptions!$30:$30,Assumptions!35:35) -> 0 | GN33: =LOOKUP(GN$2,Assumptions!$30:$30,Assumptions!35:35) -> 0 | GO33: =LOOKUP(GO$2,Assumptions!$30:$30,Assumptions!35:35) -> 0 | GP33: =LOOKUP(GP$2,Assumptions!$30:$30,Assumptions!35:35) -> 0 | GQ33: =LOOKUP(GQ$2,Assumptions!$30:$30,Assumptions!35:35) -> 0 | GR33: =LOOKUP(GR$2,Assumptions!$30:$30,Assumptions!35:35) -> 0 | GS33: =LOOKUP(GS$2,Assumptions!$30:$30,Assumptions!35:35) -> 0 | GT33: =LOOKUP(GT$2,Assumptions!$30:$30,Assumptions!35:35) -> 0 | GU33: =LOOKUP(GU$2,Assumptions!$30:$30,Assumptions!35:35) -> 0 | GV33: =LOOKUP(GV$2,Assumptions!$30:$30,Assumptions!35:35) -> 0 | GW33: =LOOKUP(GW$2,Assumptions!$30:$30,Assumptions!35:35) -> 0 | GX33: =LOOKUP(GX$2,Assumptions!$30:$30,Assumptions!35:35) -> 0 | GY33: =LOOKUP(GY$2,Assumptions!$30:$30,Assumptions!35:35) -> 0 | GZ33: =LOOKUP(GZ$2,Assumptions!$30:$30,Assumptions!35:35) -> 0 | HA33: =LOOKUP(HA$2,Assumptions!$30:$30,Assumptions!35:35) -> 0 | HB33: =LOOKUP(HB$2,Assumptions!$30:$30,Assumptions!35:35) -> 0 | HC33: =LOOKUP(HC$2,Assumptions!$30:$30,Assumptions!35:35) -> 0 | HD33: =LOOKUP(HD$2,Assumptions!$30:$30,Assumptions!35:35) -> 0 | HE33: =LOOKUP(HE$2,Assumptions!$30:$30,Assumptions!35:35) -> 0 | HF33: =LOOKUP(HF$2,Assumptions!$30:$30,Assumptions!35:35) -> 0 | HG33: =LOOKUP(HG$2,Assumptions!$30:$30,Assumptions!35:35) -> 0 | HH33: =LOOKUP(HH$2,Assumptions!$30:$30,Assumptions!35:35) -> 0 | HI33: =LOOKUP(HI$2,Assumptions!$30:$30,Assumptions!35:35) -> 0 | HJ33: =LOOKUP(HJ$2,Assumptions!$30:$30,Assumptions!35:35) -> 0 | HK33: =LOOKUP(HK$2,Assumptions!$30:$30,Assumptions!35:35) -> 0 | HL33: =LOOKUP(HL$2,Assumptions!$30:$30,Assumptions!35:35) -> 0 | HM33: =LOOKUP(HM$2,Assumptions!$30:$30,Assumptions!35:35) -> 0 | HN33: =LOOKUP(HN$2,Assumptions!$30:$30,Assumptions!35:35) -> 0 | HO33: =LOOKUP(HO$2,Assumptions!$30:$30,Assumptions!35:35) -> 0 | HP33: =LOOKUP(HP$2,Assumptions!$30:$30,Assumptions!35:35) -> 0 | HQ33: =LOOKUP(HQ$2,Assumptions!$30:$30,Assumptions!35:35) -> 0 | HR33: =LOOKUP(HR$2,Assumptions!$30:$30,Assumptions!35:35) -> 0 | HS33: =LOOKUP(HS$2,Assumptions!$30:$30,Assumptions!35:35) -> 0 | HT33: =LOOKUP(HT$2,Assumptions!$30:$30,Assumptions!35:35) -> 0 | HU33: =LOOKUP(HU$2,Assumptions!$30:$30,Assumptions!35:35) -> 0 | HV33: =LOOKUP(HV$2,Assumptions!$30:$30,Assumptions!35:35) -> 0 | HW33: =LOOKUP(HW$2,Assumptions!$30:$30,Assumptions!35:35) -> 0 | HX33: =LOOKUP(HX$2,Assumptions!$30:$30,Assumptions!35:35) -> 0 | HY33: =LOOKUP(HY$2,Assumptions!$30:$30,Assumptions!35:35) -> 0 | HZ33: =LOOKUP(HZ$2,Assumptions!$30:$30,Assumptions!35:35) -> 0 | IA33: =LOOKUP(IA$2,Assumptions!$30:$30,Assumptions!35:35) -> 0 | IB33: =LOOKUP(IB$2,Assumptions!$30:$30,Assumptions!35:35) -> 0 | IC33: =LOOKUP(IC$2,Assumptions!$30:$30,Assumptions!35:35) -> 0 | ID33: =LOOKUP(ID$2,Assumptions!$30:$30,Assumptions!35:35) -> 0 | IE33: =LOOKUP(IE$2,Assumptions!$30:$30,Assumptions!35:35) -> 0 | IF33: =LOOKUP(IF$2,Assumptions!$30:$30,Assumptions!35:35) -> 0 | IG33: =LOOKUP(IG$2,Assumptions!$30:$30,Assumptions!35:35) -> 0 | IH33: =LOOKUP(IH$2,Assumptions!$30:$30,Assumptions!35:35) -> 0 | II33: =LOOKUP(II$2,Assumptions!$30:$30,Assumptions!35:35) -> 0 | IJ33: =LOOKUP(IJ$2,Assumptions!$30:$30,Assumptions!35:35) -> 0 | IK33: =LOOKUP(IK$2,Assumptions!$30:$30,Assumptions!35:35) -> 0 | IL33: =LOOKUP(IL$2,Assumptions!$30:$30,Assumptions!35:35) -> 0 | IM33: =LOOKUP(IM$2,Assumptions!$30:$30,Assumptions!35:35) -> 0 | IN33: =LOOKUP(IN$2,Assumptions!$30:$30,Assumptions!35:35) -> 0 | IO33: =LOOKUP(IO$2,Assumptions!$30:$30,Assumptions!35:35) -> 0 | IP33: =LOOKUP(IP$2,Assumptions!$30:$30,Assumptions!35:35) -> 0 | IQ33: =LOOKUP(IQ$2,Assumptions!$30:$30,Assumptions!35:35) -> 0 | IR33: =LOOKUP(IR$2,Assumptions!$30:$30,Assumptions!35:35) -> 0 | IS33: =LOOKUP(IS$2,Assumptions!$30:$30,Assumptions!35:35) -> 0 | IT33: =LOOKUP(IT$2,Assumptions!$30:$30,Assumptions!35:35) -> 0 | IU33: =LOOKUP(IU$2,Assumptions!$30:$30,Assumptions!35:35) -> 0 | IV33: =LOOKUP(IV$2,Assumptions!$30:$30,Assumptions!35:35) -> 0 | IW33: =LOOKUP(IW$2,Assumptions!$30:$30,Assumptions!35:35) -> 0 | IX33: =LOOKUP(IX$2,Assumptions!$30:$30,Assumptions!35:35) -> 0 | IY33: =LOOKUP(IY$2,Assumptions!$30:$30,Assumptions!35:35) -> 0 | IZ33: =LOOKUP(IZ$2,Assumptions!$30:$30,Assumptions!35:35) -> 0 | JA33: =LOOKUP(JA$2,Assumptions!$30:$30,Assumptions!35:35) -> 0 | JB33: =LOOKUP(JB$2,Assumptions!$30:$30,Assumptions!35:35) -> 0 | JC33: =LOOKUP(JC$2,Assumptions!$30:$30,Assumptions!35:35) -> 0 | JD33: =LOOKUP(JD$2,Assumptions!$30:$30,Assumptions!35:35) -> 0 | JE33: =LOOKUP(JE$2,Assumptions!$30:$30,Assumptions!35:35) -> 0 | JF33: =LOOKUP(JF$2,Assumptions!$30:$30,Assumptions!35:35) -> 0 | JG33: =LOOKUP(JG$2,Assumptions!$30:$30,Assumptions!35:35) -> 0 | JH33: =LOOKUP(JH$2,Assumptions!$30:$30,Assumptions!35:35) -> 0 | JI33: =LOOKUP(JI$2,Assumptions!$30:$30,Assumptions!35:35) -> 0 | JJ33: =LOOKUP(JJ$2,Assumptions!$30:$30,Assumptions!35:35) -> 0 | JK33: =LOOKUP(JK$2,Assumptions!$30:$30,Assumptions!35:35) -> 0 | JL33: =LOOKUP(JL$2,Assumptions!$30:$30,Assumptions!35:35) -> 0 | JM33: =LOOKUP(JM$2,Assumptions!$30:$30,Assumptions!35:35) -> 0 | JN33: =LOOKUP(JN$2,Assumptions!$30:$30,Assumptions!35:35) -> 0 | JO33: =LOOKUP(JO$2,Assumptions!$30:$30,Assumptions!35:35) -> 0 | JP33: =LOOKUP(JP$2,Assumptions!$30:$30,Assumptions!35:35) -> 0 | JQ33: =LOOKUP(JQ$2,Assumptions!$30:$30,Assumptions!35:35) -> 0 | JR33: =LOOKUP(JR$2,Assumptions!$30:$30,Assumptions!35:35) -> 0 | JS33: =LOOKUP(JS$2,Assumptions!$30:$30,Assumptions!35:35) -> 0 | JT33: =LOOKUP(JT$2,Assumptions!$30:$30,Assumptions!35:35) -> 0 | JU33: =LOOKUP(JU$2,Assumptions!$30:$30,Assumptions!35:35) -> 0 | JV33: =LOOKUP(JV$2,Assumptions!$30:$30,Assumptions!35:35) -> 0 | JW33: =LOOKUP(JW$2,Assumptions!$30:$30,Assumptions!35:35) -> 0 | JX33: =LOOKUP(JX$2,Assumptions!$30:$30,Assumptions!35:35) -> 0 | JY33: =LOOKUP(JY$2,Assumptions!$30:$30,Assumptions!35:35) -> 0 | JZ33: =LOOKUP(JZ$2,Assumptions!$30:$30,Assumptions!35:35) -> 0 | KA33: =LOOKUP(KA$2,Assumptions!$30:$30,Assumptions!35:35) -> 0 | KB33: =LOOKUP(KB$2,Assumptions!$30:$30,Assumptions!35:35) -> 0 | KC33: =LOOKUP(KC$2,Assumptions!$30:$30,Assumptions!35:35) -> 0 | KD33: =LOOKUP(KD$2,Assumptions!$30:$30,Assumptions!35:35) -> 0 | KE33: =LOOKUP(KE$2,Assumptions!$30:$30,Assumptions!35:35) -> 0 | KF33: =LOOKUP(KF$2,Assumptions!$30:$30,Assumptions!35:35) -> 0 | KG33: =LOOKUP(KG$2,Assumptions!$30:$30,Assumptions!35:35) -> 0 | KH33: =LOOKUP(KH$2,Assumptions!$30:$30,Assumptions!35:35) -> 0 | KI33: =LOOKUP(KI$2,Assumptions!$30:$30,Assumptions!35:35) -> 0 | KJ33: =LOOKUP(KJ$2,Assumptions!$30:$30,Assumptions!35:35) -> 0 | KK33: =LOOKUP(KK$2,Assumptions!$30:$30,Assumptions!35:35) -> 0 | KL33: =LOOKUP(KL$2,Assumptions!$30:$30,Assumptions!35:35) -> 0 | KM33: =LOOKUP(KM$2,Assumptions!$30:$30,Assumptions!35:35) -> 0 | KN33: =LOOKUP(KN$2,Assumptions!$30:$30,Assumptions!35:35) -> 0 | KO33: =LOOKUP(KO$2,Assumptions!$30:$30,Assumptions!35:35) -> 0 | KP33: =LOOKUP(KP$2,Assumptions!$30:$30,Assumptions!35:35) -> 0 | KQ33: =LOOKUP(KQ$2,Assumptions!$30:$30,Assumptions!35:35) -> 0 | KR33: =LOOKUP(KR$2,Assumptions!$30:$30,Assumptions!35:35) -> 0 | KS33: =LOOKUP(KS$2,Assumptions!$30:$30,Assumptions!35:35) -> 0 | KT33: =LOOKUP(KT$2,Assumptions!$30:$30,Assumptions!35:35) -> 0 | KU33: =LOOKUP(KU$2,Assumptions!$30:$30,Assumptions!35:35) -> 0
B35: Capital Expenditures
C36: Land | E36: USD 000's | F36: =Assumptions!G20 -> 0 | H36: =$F36*H29 -> 0 | I36: 0 | J36: 0 | K36: 0 | L36: 0 | M36: 0 | N36: 0 | O36: 0 | P36: 0 | Q36: 0 | R36: 0 | S36: 0 | T36: 0 | U36: 0 | V36: 0 | W36: 0 | X36: 0 | Y36: 0 | Z36: 0 | AA36: 0 | AB36: 0 | AC36: 0 | AD36: 0 | AE36: 0 | AF36: 0 | AG36: 0 | AH36: 0 | AI36: 0 | AJ36: 0 | AK36: 0 | AL36: 0 | AM36: 0 | AN36: 0 | AO36: 0 | AP36: 0 | AQ36: 0 | AR36: 0 | AS36: 0 | AT36: 0 | AU36: 0 | AV36: 0 | AW36: 0 | AX36: 0 | AY36: 0 | AZ36: 0 | BA36: 0 | BB36: 0 | BC36: 0 | BD36: 0 | BE36: 0 | BF36: 0 | BG36: 0 | BH36: 0 | BI36: 0 | BJ36: 0 | BK36: 0 | BL36: 0 | BM36: 0 | BN36: 0 | BO36: 0 | BP36: 0 | BQ36: 0 | BR36: 0 | BS36: 0 | BT36: =$F36*BT29 -> 0 | BU36: 0 | BV36: 0 | BW36: 0 | BX36: 0 | BY36: 0 | BZ36: 0 | CA36: 0 | CB36: 0 | CC36: 0 | CD36: 0 | CE36: 0 | CF36: 0 | CG36: 0 | CH36: 0 | CI36: 0 | CJ36: 0 | CK36: 0 | CL36: 0 | CM36: 0 | CN36: 0 | CO36: 0 | CP36: 0 | CQ36: 0 | CR36: 0 | CS36: 0 | CT36: 0 | CU36: 0 | CV36: 0 | CW36: 0 | CX36: 0 | CY36: 0 | CZ36: 0 | DA36: 0 | DB36: 0 | DC36: 0 | DD36: 0 | DE36: 0 | DF36: 0 | DG36: 0 | DH36: 0 | DI36: 0 | DJ36: 0 | DK36: 0 | DL36: 0 | DM36: 0 | DN36: 0 | DO36: 0 | DP36: 0 | DQ36: 0 | DR36: 0 | DS36: 0 | DT36: 0 | DU36: 0 | DV36: 0 | DW36: 0 | DX36: 0 | DY36: 0 | DZ36: 0 | EA36: 0 | EB36: 0 | EC36: 0 | ED36: 0 | EE36: 0 | EF36: =$F36*EF29 -> 0 | EG36: 0 | EH36: 0 | EI36: 0 | EJ36: 0 | EK36: 0 | EL36: 0 | EM36: 0 | EN36: 0 | EO36: 0 | EP36: 0 | EQ36: 0 | ER36: 0 | ES36: 0 | ET36: 0 | EU36: 0 | EV36: 0 | EW36: 0 | EX36: 0 | EY36: 0 | EZ36: 0 | FA36: 0 | FB36: 0 | FC36: 0 | FD36: 0 | FE36: 0 | FF36: 0 | FG36: 0 | FH36: 0 | FI36: 0 | FJ36: 0 | FK36: 0 | FL36: 0 | FM36: 0 | FN36: 0 | FO36: 0 | FP36: 0 | FQ36: 0 | FR36: 0 | FS36: 0 | FT36: 0 | FU36: 0 | FV36: 0 | FW36: 0 | FX36: 0 | FY36: 0 | FZ36: 0 | GA36: 0 | GB36: 0 | GC36: 0 | GD36: 0 | GE36: 0 | GF36: 0 | GG36: 0 | GH36: 0 | GI36: 0 | GJ36: 0 | GK36: 0 | GL36: 0 | GM36: 0 | GN36: 0 | GO36: 0 | GP36: 0 | GQ36: 0 | GR36: =$F36*GR29 -> 0 | GS36: 0 | GT36: 0 | GU36: 0 | GV36: 0 | GW36: 0 | GX36: 0 | GY36: 0 | GZ36: 0 | HA36: 0 | HB36: 0 | HC36: 0 | HD36: 0 | HE36: 0 | HF36: 0 | HG36: 0 | HH36: 0 | HI36: 0 | HJ36: 0 | HK36: 0 | HL36: 0 | HM36: 0 | HN36: 0 | HO36: 0 | HP36: 0 | HQ36: 0 | HR36: 0 | HS36: 0 | HT36: 0 | HU36: 0 | HV36: 0 | HW36: 0 | HX36: 0 | HY36: 0 | HZ36: 0 | IA36: 0 | IB36: 0 | IC36: 0 | ID36: 0 | IE36: 0 | IF36: 0 | IG36: 0 | IH36: 0 | II36: 0 | IJ36: 0 | IK36: 0 | IL36: 0 | IM36: 0 | IN36: 0 | IO36: 0 | IP36: 0 | IQ36: 0 | IR36: 0 | IS36: 0 | IT36: 0 | IU36: 0 | IV36: 0 | IW36: 0 | IX36: 0 | IY36: 0 | IZ36: 0 | JA36: 0 | JB36: 0 | JC36: 0 | JD36: =$F36*JD29 -> 0 | JE36: 0 | JF36: 0 | JG36: 0 | JH36: 0 | JI36: 0 | JJ36: 0 | JK36: 0 | JL36: 0 | JM36: 0 | JN36: 0 | JO36: 0 | JP36: 0 | JQ36: 0 | JR36: 0 | JS36: 0 | JT36: 0 | JU36: 0 | JV36: 0 | JW36: 0 | JX36: 0 | JY36: 0 | JZ36: 0 | KA36: 0 | KB36: 0 | KC36: 0 | KD36: 0 | KE36: 0 | KF36: 0 | KG36: 0 | KH36: 0 | KI36: 0 | KJ36: 0 | KK36: 0 | KL36: 0 | KM36: 0 | KN36: 0 | KO36: 0 | KP36: 0 | KQ36: 0 | KR36: 0 | KS36: 0 | KT36: 0 | KU36: 0
C37: Material Cost | E37: USD 000's | F37: =Assumptions!G21 -> 1673.144102 | H37: =$F37*H30 -> 334.6288205 | I37: 501.9432307 | J37: 501.9432307 | K37: 167.3144102 | L37: 167.3144102 | M37: 0 | N37: 0 | O37: 0 | P37: 0 | Q37: 0 | R37: 0 | S37: 0 | T37: 0 | U37: 0 | V37: 0 | W37: 0 | X37: 0 | Y37: 0 | Z37: 0 | AA37: 0 | AB37: 0 | AC37: 0 | AD37: 0 | AE37: 0 | AF37: 0 | AG37: 0 | AH37: 0 | AI37: 0 | AJ37: 0 | AK37: 0 | AL37: 0 | AM37: 0 | AN37: 0 | AO37: 0 | AP37: 0 | AQ37: 0 | AR37: 0 | AS37: 0 | AT37: 0 | AU37: 0 | AV37: 0 | AW37: 0 | AX37: 0 | AY37: 0 | AZ37: 0 | BA37: 0 | BB37: 0 | BC37: 0 | BD37: 0 | BE37: 0 | BF37: 0 | BG37: 0 | BH37: 0 | BI37: 0 | BJ37: 0 | BK37: 0 | BL37: 0 | BM37: 0 | BN37: 0 | BO37: 0 | BP37: 0 | BQ37: 0 | BR37: 0 | BS37: 0 | BT37: =$F37*BT30 -> 0 | BU37: 0 | BV37: 0 | BW37: 0 | BX37: 0 | BY37: 0 | BZ37: 0 | CA37: 0 | CB37: 0 | CC37: 0 | CD37: 0 | CE37: 0 | CF37: 0 | CG37: 0 | CH37: 0 | CI37: 0 | CJ37: 0 | CK37: 0 | CL37: 0 | CM37: 0 | CN37: 0 | CO37: 0 | CP37: 0 | CQ37: 0 | CR37: 0 | CS37: 0 | CT37: 0 | CU37: 0 | CV37: 0 | CW37: 0 | CX37: 0 | CY37: 0 | CZ37: 0 | DA37: 0 | DB37: 0 | DC37: 0 | DD37: 0 | DE37: 0 | DF37: 0 | DG37: 0 | DH37: 0 | DI37: 0 | DJ37: 0 | DK37: 0 | DL37: 0 | DM37: 0 | DN37: 0 | DO37: 0 | DP37: 0 | DQ37: 0 | DR37: 0 | DS37: 0 | DT37: 0 | DU37: 0 | DV37: 0 | DW37: 0 | DX37: 0 | DY37: 0 | DZ37: 0 | EA37: 0 | EB37: 0 | EC37: 0 | ED37: 0 | EE37: 0 | EF37: =$F37*EF30 -> 0 | EG37: 0 | EH37: 0 | EI37: 0 | EJ37: 0 | EK37: 0 | EL37: 0 | EM37: 0 | EN37: 0 | EO37: 0 | EP37: 0 | EQ37: 0 | ER37: 0 | ES37: 0 | ET37: 0 | EU37: 0 | EV37: 0 | EW37: 0 | EX37: 0 | EY37: 0 | EZ37: 0 | FA37: 0 | FB37: 0 | FC37: 0 | FD37: 0 | FE37: 0 | FF37: 0 | FG37: 0 | FH37: 0 | FI37: 0 | FJ37: 0 | FK37: 0 | FL37: 0 | FM37: 0 | FN37: 0 | FO37: 0 | FP37: 0 | FQ37: 0 | FR37: 0 | FS37: 0 | FT37: 0 | FU37: 0 | FV37: 0 | FW37: 0 | FX37: 0 | FY37: 0 | FZ37: 0 | GA37: 0 | GB37: 0 | GC37: 0 | GD37: 0 | GE37: 0 | GF37: 0 | GG37: 0 | GH37: 0 | GI37: 0 | GJ37: 0 | GK37: 0 | GL37: 0 | GM37: 0 | GN37: 0 | GO37: 0 | GP37: 0 | GQ37: 0 | GR37: =$F37*GR30 -> 0 | GS37: 0 | GT37: 0 | GU37: 0 | GV37: 0 | GW37: 0 | GX37: 0 | GY37: 0 | GZ37: 0 | HA37: 0 | HB37: 0 | HC37: 0 | HD37: 0 | HE37: 0 | HF37: 0 | HG37: 0 | HH37: 0 | HI37: 0 | HJ37: 0 | HK37: 0 | HL37: 0 | HM37: 0 | HN37: 0 | HO37: 0 | HP37: 0 | HQ37: 0 | HR37: 0 | HS37: 0 | HT37: 0 | HU37: 0 | HV37: 0 | HW37: 0 | HX37: 0 | HY37: 0 | HZ37: 0 | IA37: 0 | IB37: 0 | IC37: 0 | ID37: 0 | IE37: 0 | IF37: 0 | IG37: 0 | IH37: 0 | II37: 0 | IJ37: 0 | IK37: 0 | IL37: 0 | IM37: 0 | IN37: 0 | IO37: 0 | IP37: 0 | IQ37: 0 | IR37: 0 | IS37: 0 | IT37: 0 | IU37: 0 | IV37: 0 | IW37: 0 | IX37: 0 | IY37: 0 | IZ37: 0 | JA37: 0 | JB37: 0 | JC37: 0 | JD37: =$F37*JD30 -> 0 | JE37: 0 | JF37: 0 | JG37: 0 | JH37: 0 | JI37: 0 | JJ37: 0 | JK37: 0 | JL37: 0 | JM37: 0 | JN37: 0 | JO37: 0 | JP37: 0 | JQ37: 0 | JR37: 0 | JS37: 0 | JT37: 0 | JU37: 0 | JV37: 0 | JW37: 0 | JX37: 0 | JY37: 0 | JZ37: 0 | KA37: 0 | KB37: 0 | KC37: 0 | KD37: 0 | KE37: 0 | KF37: 0 | KG37: 0 | KH37: 0 | KI37: 0 | KJ37: 0 | KK37: 0 | KL37: 0 | KM37: 0 | KN37: 0 | KO37: 0 | KP37: 0 | KQ37: 0 | KR37: 0 | KS37: 0 | KT37: 0 | KU37: 0
C38: Services Cost | E38: USD 000's | F38: =Assumptions!G22 -> 177.9940535 | H38: =$F38*H31 -> 35.59881069 | I38: 53.39821604 | J38: 53.39821604 | K38: 17.79940535 | L38: 17.79940535 | M38: 0 | N38: 0 | O38: 0 | P38: 0 | Q38: 0 | R38: 0 | S38: 0 | T38: 0 | U38: 0 | V38: 0 | W38: 0 | X38: 0 | Y38: 0 | Z38: 0 | AA38: 0 | AB38: 0 | AC38: 0 | AD38: 0 | AE38: 0 | AF38: 0 | AG38: 0 | AH38: 0 | AI38: 0 | AJ38: 0 | AK38: 0 | AL38: 0 | AM38: 0 | AN38: 0 | AO38: 0 | AP38: 0 | AQ38: 0 | AR38: 0 | AS38: 0 | AT38: 0 | AU38: 0 | AV38: 0 | AW38: 0 | AX38: 0 | AY38: 0 | AZ38: 0 | BA38: 0 | BB38: 0 | BC38: 0 | BD38: 0 | BE38: 0 | BF38: 0 | BG38: 0 | BH38: 0 | BI38: 0 | BJ38: 0 | BK38: 0 | BL38: 0 | BM38: 0 | BN38: 0 | BO38: 0 | BP38: 0 | BQ38: 0 | BR38: 0 | BS38: 0 | BT38: =$F38*BT31 -> 0 | BU38: 0 | BV38: 0 | BW38: 0 | BX38: 0 | BY38: 0 | BZ38: 0 | CA38: 0 | CB38: 0 | CC38: 0 | CD38: 0 | CE38: 0 | CF38: 0 | CG38: 0 | CH38: 0 | CI38: 0 | CJ38: 0 | CK38: 0 | CL38: 0 | CM38: 0 | CN38: 0 | CO38: 0 | CP38: 0 | CQ38: 0 | CR38: 0 | CS38: 0 | CT38: 0 | CU38: 0 | CV38: 0 | CW38: 0 | CX38: 0 | CY38: 0 | CZ38: 0 | DA38: 0 | DB38: 0 | DC38: 0 | DD38: 0 | DE38: 0 | DF38: 0 | DG38: 0 | DH38: 0 | DI38: 0 | DJ38: 0 | DK38: 0 | DL38: 0 | DM38: 0 | DN38: 0 | DO38: 0 | DP38: 0 | DQ38: 0 | DR38: 0 | DS38: 0 | DT38: 0 | DU38: 0 | DV38: 0 | DW38: 0 | DX38: 0 | DY38: 0 | DZ38: 0 | EA38: 0 | EB38: 0 | EC38: 0 | ED38: 0 | EE38: 0 | EF38: =$F38*EF31 -> 0 | EG38: 0 | EH38: 0 | EI38: 0 | EJ38: 0 | EK38: 0 | EL38: 0 | EM38: 0 | EN38: 0 | EO38: 0 | EP38: 0 | EQ38: 0 | ER38: 0 | ES38: 0 | ET38: 0 | EU38: 0 | EV38: 0 | EW38: 0 | EX38: 0 | EY38: 0 | EZ38: 0 | FA38: 0 | FB38: 0 | FC38: 0 | FD38: 0 | FE38: 0 | FF38: 0 | FG38: 0 | FH38: 0 | FI38: 0 | FJ38: 0 | FK38: 0 | FL38: 0 | FM38: 0 | FN38: 0 | FO38: 0 | FP38: 0 | FQ38: 0 | FR38: 0 | FS38: 0 | FT38: 0 | FU38: 0 | FV38: 0 | FW38: 0 | FX38: 0 | FY38: 0 | FZ38: 0 | GA38: 0 | GB38: 0 | GC38: 0 | GD38: 0 | GE38: 0 | GF38: 0 | GG38: 0 | GH38: 0 | GI38: 0 | GJ38: 0 | GK38: 0 | GL38: 0 | GM38: 0 | GN38: 0 | GO38: 0 | GP38: 0 | GQ38: 0 | GR38: =$F38*GR31 -> 0 | GS38: 0 | GT38: 0 | GU38: 0 | GV38: 0 | GW38: 0 | GX38: 0 | GY38: 0 | GZ38: 0 | HA38: 0 | HB38: 0 | HC38: 0 | HD38: 0 | HE38: 0 | HF38: 0 | HG38: 0 | HH38: 0 | HI38: 0 | HJ38: 0 | HK38: 0 | HL38: 0 | HM38: 0 | HN38: 0 | HO38: 0 | HP38: 0 | HQ38: 0 | HR38: 0 | HS38: 0 | HT38: 0 | HU38: 0 | HV38: 0 | HW38: 0 | HX38: 0 | HY38: 0 | HZ38: 0 | IA38: 0 | IB38: 0 | IC38: 0 | ID38: 0 | IE38: 0 | IF38: 0 | IG38: 0 | IH38: 0 | II38: 0 | IJ38: 0 | IK38: 0 | IL38: 0 | IM38: 0 | IN38: 0 | IO38: 0 | IP38: 0 | IQ38: 0 | IR38: 0 | IS38: 0 | IT38: 0 | IU38: 0 | IV38: 0 | IW38: 0 | IX38: 0 | IY38: 0 | IZ38: 0 | JA38: 0 | JB38: 0 | JC38: 0 | JD38: =$F38*JD31 -> 0 | JE38: 0 | JF38: 0 | JG38: 0 | JH38: 0 | JI38: 0 | JJ38: 0 | JK38: 0 | JL38: 0 | JM38: 0 | JN38: 0 | JO38: 0 | JP38: 0 | JQ38: 0 | JR38: 0 | JS38: 0 | JT38: 0 | JU38: 0 | JV38: 0 | JW38: 0 | JX38: 0 | JY38: 0 | JZ38: 0 | KA38: 0 | KB38: 0 | KC38: 0 | KD38: 0 | KE38: 0 | KF38: 0 | KG38: 0 | KH38: 0 | KI38: 0 | KJ38: 0 | KK38: 0 | KL38: 0 | KM38: 0 | KN38: 0 | KO38: 0 | KP38: 0 | KQ38: 0 | KR38: 0 | KS38: 0 | KT38: 0 | KU38: 0
C39: Other Expenses | E39: USD 000's | F39: =Assumptions!G23 -> 0 | H39: =$F39*H32 -> 0 | I39: 0 | J39: 0 | K39: 0 | L39: 0 | M39: 0 | N39: 0 | O39: 0 | P39: 0 | Q39: 0 | R39: 0 | S39: 0 | T39: 0 | U39: 0 | V39: 0 | W39: 0 | X39: 0 | Y39: 0 | Z39: 0 | AA39: 0 | AB39: 0 | AC39: 0 | AD39: 0 | AE39: 0 | AF39: 0 | AG39: 0 | AH39: 0 | AI39: 0 | AJ39: 0 | AK39: 0 | AL39: 0 | AM39: 0 | AN39: 0 | AO39: 0 | AP39: 0 | AQ39: 0 | AR39: 0 | AS39: 0 | AT39: 0 | AU39: 0 | AV39: 0 | AW39: 0 | AX39: 0 | AY39: 0 | AZ39: 0 | BA39: 0 | BB39: 0 | BC39: 0 | BD39: 0 | BE39: 0 | BF39: 0 | BG39: 0 | BH39: 0 | BI39: 0 | BJ39: 0 | BK39: 0 | BL39: 0 | BM39: 0 | BN39: 0 | BO39: 0 | BP39: 0 | BQ39: 0 | BR39: 0 | BS39: 0 | BT39: =$F39*BT32 -> 0 | BU39: 0 | BV39: 0 | BW39: 0 | BX39: 0 | BY39: 0 | BZ39: 0 | CA39: 0 | CB39: 0 | CC39: 0 | CD39: 0 | CE39: 0 | CF39: 0 | CG39: 0 | CH39: 0 | CI39: 0 | CJ39: 0 | CK39: 0 | CL39: 0 | CM39: 0 | CN39: 0 | CO39: 0 | CP39: 0 | CQ39: 0 | CR39: 0 | CS39: 0 | CT39: 0 | CU39: 0 | CV39: 0 | CW39: 0 | CX39: 0 | CY39: 0 | CZ39: 0 | DA39: 0 | DB39: 0 | DC39: 0 | DD39: 0 | DE39: 0 | DF39: 0 | DG39: 0 | DH39: 0 | DI39: 0 | DJ39: 0 | DK39: 0 | DL39: 0 | DM39: 0 | DN39: 0 | DO39: 0 | DP39: 0 | DQ39: 0 | DR39: 0 | DS39: 0 | DT39: 0 | DU39: 0 | DV39: 0 | DW39: 0 | DX39: 0 | DY39: 0 | DZ39: 0 | EA39: 0 | EB39: 0 | EC39: 0 | ED39: 0 | EE39: 0 | EF39: =$F39*EF32 -> 0 | EG39: 0 | EH39: 0 | EI39: 0 | EJ39: 0 | EK39: 0 | EL39: 0 | EM39: 0 | EN39: 0 | EO39: 0 | EP39: 0 | EQ39: 0 | ER39: 0 | ES39: 0 | ET39: 0 | EU39: 0 | EV39: 0 | EW39: 0 | EX39: 0 | EY39: 0 | EZ39: 0 | FA39: 0 | FB39: 0 | FC39: 0 | FD39: 0 | FE39: 0 | FF39: 0 | FG39: 0 | FH39: 0 | FI39: 0 | FJ39: 0 | FK39: 0 | FL39: 0 | FM39: 0 | FN39: 0 | FO39: 0 | FP39: 0 | FQ39: 0 | FR39: 0 | FS39: 0 | FT39: 0 | FU39: 0 | FV39: 0 | FW39: 0 | FX39: 0 | FY39: 0 | FZ39: 0 | GA39: 0 | GB39: 0 | GC39: 0 | GD39: 0 | GE39: 0 | GF39: 0 | GG39: 0 | GH39: 0 | GI39: 0 | GJ39: 0 | GK39: 0 | GL39: 0 | GM39: 0 | GN39: 0 | GO39: 0 | GP39: 0 | GQ39: 0 | GR39: =$F39*GR32 -> 0 | GS39: 0 | GT39: 0 | GU39: 0 | GV39: 0 | GW39: 0 | GX39: 0 | GY39: 0 | GZ39: 0 | HA39: 0 | HB39: 0 | HC39: 0 | HD39: 0 | HE39: 0 | HF39: 0 | HG39: 0 | HH39: 0 | HI39: 0 | HJ39: 0 | HK39: 0 | HL39: 0 | HM39: 0 | HN39: 0 | HO39: 0 | HP39: 0 | HQ39: 0 | HR39: 0 | HS39: 0 | HT39: 0 | HU39: 0 | HV39: 0 | HW39: 0 | HX39: 0 | HY39: 0 | HZ39: 0 | IA39: 0 | IB39: 0 | IC39: 0 | ID39: 0 | IE39: 0 | IF39: 0 | IG39: 0 | IH39: 0 | II39: 0 | IJ39: 0 | IK39: 0 | IL39: 0 | IM39: 0 | IN39: 0 | IO39: 0 | IP39: 0 | IQ39: 0 | IR39: 0 | IS39: 0 | IT39: 0 | IU39: 0 | IV39: 0 | IW39: 0 | IX39: 0 | IY39: 0 | IZ39: 0 | JA39: 0 | JB39: 0 | JC39: 0 | JD39: =$F39*JD32 -> 0 | JE39: 0 | JF39: 0 | JG39: 0 | JH39: 0 | JI39: 0 | JJ39: 0 | JK39: 0 | JL39: 0 | JM39: 0 | JN39: 0 | JO39: 0 | JP39: 0 | JQ39: 0 | JR39: 0 | JS39: 0 | JT39: 0 | JU39: 0 | JV39: 0 | JW39: 0 | JX39: 0 | JY39: 0 | JZ39: 0 | KA39: 0 | KB39: 0 | KC39: 0 | KD39: 0 | KE39: 0 | KF39: 0 | KG39: 0 | KH39: 0 | KI39: 0 | KJ39: 0 | KK39: 0 | KL39: 0 | KM39: 0 | KN39: 0 | KO39: 0 | KP39: 0 | KQ39: 0 | KR39: 0 | KS39: 0 | KT39: 0 | KU39: 0
C40: Contingencies | E40: USD 000's | F40: =Assumptions!G25 -> 57.25169554 | H40: =$F40*H33 -> 0 | I40: 0 | J40: 0 | K40: 0 | L40: 28.62584777 | M40: 28.62584777 | N40: 0 | O40: 0 | P40: 0 | Q40: 0 | R40: 0 | S40: 0 | T40: 0 | U40: 0 | V40: 0 | W40: 0 | X40: 0 | Y40: 0 | Z40: 0 | AA40: 0 | AB40: 0 | AC40: 0 | AD40: 0 | AE40: 0 | AF40: 0 | AG40: 0 | AH40: 0 | AI40: 0 | AJ40: 0 | AK40: 0 | AL40: 0 | AM40: 0 | AN40: 0 | AO40: 0 | AP40: 0 | AQ40: 0 | AR40: 0 | AS40: 0 | AT40: 0 | AU40: 0 | AV40: 0 | AW40: 0 | AX40: 0 | AY40: 0 | AZ40: 0 | BA40: 0 | BB40: 0 | BC40: 0 | BD40: 0 | BE40: 0 | BF40: 0 | BG40: 0 | BH40: 0 | BI40: 0 | BJ40: 0 | BK40: 0 | BL40: 0 | BM40: 0 | BN40: 0 | BO40: 0 | BP40: 0 | BQ40: 0 | BR40: 0 | BS40: 0 | BT40: =$F40*BT33 -> 0 | BU40: 0 | BV40: 0 | BW40: 0 | BX40: 0 | BY40: 0 | BZ40: 0 | CA40: 0 | CB40: 0 | CC40: 0 | CD40: 0 | CE40: 0 | CF40: 0 | CG40: 0 | CH40: 0 | CI40: 0 | CJ40: 0 | CK40: 0 | CL40: 0 | CM40: 0 | CN40: 0 | CO40: 0 | CP40: 0 | CQ40: 0 | CR40: 0 | CS40: 0 | CT40: 0 | CU40: 0 | CV40: 0 | CW40: 0 | CX40: 0 | CY40: 0 | CZ40: 0 | DA40: 0 | DB40: 0 | DC40: 0 | DD40: 0 | DE40: 0 | DF40: 0 | DG40: 0 | DH40: 0 | DI40: 0 | DJ40: 0 | DK40: 0 | DL40: 0 | DM40: 0 | DN40: 0 | DO40: 0 | DP40: 0 | DQ40: 0 | DR40: 0 | DS40: 0 | DT40: 0 | DU40: 0 | DV40: 0 | DW40: 0 | DX40: 0 | DY40: 0 | DZ40: 0 | EA40: 0 | EB40: 0 | EC40: 0 | ED40: 0 | EE40: 0 | EF40: =$F40*EF33 -> 0 | EG40: 0 | EH40: 0 | EI40: 0 | EJ40: 0 | EK40: 0 | EL40: 0 | EM40: 0 | EN40: 0 | EO40: 0 | EP40: 0 | EQ40: 0 | ER40: 0 | ES40: 0 | ET40: 0 | EU40: 0 | EV40: 0 | EW40: 0 | EX40: 0 | EY40: 0 | EZ40: 0 | FA40: 0 | FB40: 0 | FC40: 0 | FD40: 0 | FE40: 0 | FF40: 0 | FG40: 0 | FH40: 0 | FI40: 0 | FJ40: 0 | FK40: 0 | FL40: 0 | FM40: 0 | FN40: 0 | FO40: 0 | FP40: 0 | FQ40: 0 | FR40: 0 | FS40: 0 | FT40: 0 | FU40: 0 | FV40: 0 | FW40: 0 | FX40: 0 | FY40: 0 | FZ40: 0 | GA40: 0 | GB40: 0 | GC40: 0 | GD40: 0 | GE40: 0 | GF40: 0 | GG40: 0 | GH40: 0 | GI40: 0 | GJ40: 0 | GK40: 0 | GL40: 0 | GM40: 0 | GN40: 0 | GO40: 0 | GP40: 0 | GQ40: 0 | GR40: =$F40*GR33 -> 0 | GS40: 0 | GT40: 0 | GU40: 0 | GV40: 0 | GW40: 0 | GX40: 0 | GY40: 0 | GZ40: 0 | HA40: 0 | HB40: 0 | HC40: 0 | HD40: 0 | HE40: 0 | HF40: 0 | HG40: 0 | HH40: 0 | HI40: 0 | HJ40: 0 | HK40: 0 | HL40: 0 | HM40: 0 | HN40: 0 | HO40: 0 | HP40: 0 | HQ40: 0 | HR40: 0 | HS40: 0 | HT40: 0 | HU40: 0 | HV40: 0 | HW40: 0 | HX40: 0 | HY40: 0 | HZ40: 0 | IA40: 0 | IB40: 0 | IC40: 0 | ID40: 0 | IE40: 0 | IF40: 0 | IG40: 0 | IH40: 0 | II40: 0 | IJ40: 0 | IK40: 0 | IL40: 0 | IM40: 0 | IN40: 0 | IO40: 0 | IP40: 0 | IQ40: 0 | IR40: 0 | IS40: 0 | IT40: 0 | IU40: 0 | IV40: 0 | IW40: 0 | IX40: 0 | IY40: 0 | IZ40: 0 | JA40: 0 | JB40: 0 | JC40: 0 | JD40: =$F40*JD33 -> 0 | JE40: 0 | JF40: 0 | JG40: 0 | JH40: 0 | JI40: 0 | JJ40: 0 | JK40: 0 | JL40: 0 | JM40: 0 | JN40: 0 | JO40: 0 | JP40: 0 | JQ40: 0 | JR40: 0 | JS40: 0 | JT40: 0 | JU40: 0 | JV40: 0 | JW40: 0 | JX40: 0 | JY40: 0 | JZ40: 0 | KA40: 0 | KB40: 0 | KC40: 0 | KD40: 0 | KE40: 0 | KF40: 0 | KG40: 0 | KH40: 0 | KI40: 0 | KJ40: 0 | KK40: 0 | KL40: 0 | KM40: 0 | KN40: 0 | KO40: 0 | KP40: 0 | KQ40: 0 | KR40: 0 | KS40: 0 | KT40: 0 | KU40: 0
D41: Total | E41: USD 000's | H41: =SUM(H36:H40) -> 370.2276312 | I41: 555.3414468 | J41: 555.3414468 | K41: 185.1138156 | L41: 213.7396634 | M41: 28.62584777 | N41: 0 | O41: 0 | P41: 0 | Q41: 0 | R41: 0 | S41: 0 | T41: 0 | U41: 0 | V41: 0 | W41: 0 | X41: 0 | Y41: 0 | Z41: 0 | AA41: 0 | AB41: 0 | AC41: 0 | AD41: 0 | AE41: 0 | AF41: 0 | AG41: 0 | AH41: 0 | AI41: 0 | AJ41: 0 | AK41: 0 | AL41: 0 | AM41: 0 | AN41: 0 | AO41: 0 | AP41: 0 | AQ41: 0 | AR41: 0 | AS41: 0 | AT41: 0 | AU41: 0 | AV41: 0 | AW41: 0 | AX41: 0 | AY41: 0 | AZ41: 0 | BA41: 0 | BB41: 0 | BC41: 0 | BD41: 0 | BE41: 0 | BF41: 0 | BG41: 0 | BH41: 0 | BI41: 0 | BJ41: 0 | BK41: 0 | BL41: 0 | BM41: 0 | BN41: 0 | BO41: 0 | BP41: 0 | BQ41: 0 | BR41: 0 | BS41: 0 | BT41: =SUM(BT36:BT40) -> 0 | BU41: 0 | BV41: 0 | BW41: 0 | BX41: 0 | BY41: 0 | BZ41: 0 | CA41: 0 | CB41: 0 | CC41: 0 | CD41: 0 | CE41: 0 | CF41: 0 | CG41: 0 | CH41: 0 | CI41: 0 | CJ41: 0 | CK41: 0 | CL41: 0 | CM41: 0 | CN41: 0 | CO41: 0 | CP41: 0 | CQ41: 0 | CR41: 0 | CS41: 0 | CT41: 0 | CU41: 0 | CV41: 0 | CW41: 0 | CX41: 0 | CY41: 0 | CZ41: 0 | DA41: 0 | DB41: 0 | DC41: 0 | DD41: 0 | DE41: 0 | DF41: 0 | DG41: 0 | DH41: 0 | DI41: 0 | DJ41: 0 | DK41: 0 | DL41: 0 | DM41: 0 | DN41: 0 | DO41: 0 | DP41: 0 | DQ41: 0 | DR41: 0 | DS41: 0 | DT41: 0 | DU41: 0 | DV41: 0 | DW41: 0 | DX41: 0 | DY41: 0 | DZ41: 0 | EA41: 0 | EB41: 0 | EC41: 0 | ED41: 0 | EE41: 0 | EF41: =SUM(EF36:EF40) -> 0 | EG41: 0 | EH41: 0 | EI41: 0 | EJ41: 0 | EK41: 0 | EL41: 0 | EM41: 0 | EN41: 0 | EO41: 0 | EP41: 0 | EQ41: 0 | ER41: 0 | ES41: 0 | ET41: 0 | EU41: 0 | EV41: 0 | EW41: 0 | EX41: 0 | EY41: 0 | EZ41: 0 | FA41: 0 | FB41: 0 | FC41: 0 | FD41: 0 | FE41: 0 | FF41: 0 | FG41: 0 | FH41: 0 | FI41: 0 | FJ41: 0 | FK41: 0 | FL41: 0 | FM41: 0 | FN41: 0 | FO41: 0 | FP41: 0 | FQ41: 0 | FR41: 0 | FS41: 0 | FT41: 0 | FU41: 0 | FV41: 0 | FW41: 0 | FX41: 0 | FY41: 0 | FZ41: 0 | GA41: 0 | GB41: 0 | GC41: 0 | GD41: 0 | GE41: 0 | GF41: 0 | GG41: 0 | GH41: 0 | GI41: 0 | GJ41: 0 | GK41: 0 | GL41: 0 | GM41: 0 | GN41: 0 | GO41: 0 | GP41: 0 | GQ41: 0 | GR41: =SUM(GR36:GR40) -> 0 | GS41: 0 | GT41: 0 | GU41: 0 | GV41: 0 | GW41: 0 | GX41: 0 | GY41: 0 | GZ41: 0 | HA41: 0 | HB41: 0 | HC41: 0 | HD41: 0 | HE41: 0 | HF41: 0 | HG41: 0 | HH41: 0 | HI41: 0 | HJ41: 0 | HK41: 0 | HL41: 0 | HM41: 0 | HN41: 0 | HO41: 0 | HP41: 0 | HQ41: 0 | HR41: 0 | HS41: 0 | HT41: 0 | HU41: 0 | HV41: 0 | HW41: 0 | HX41: 0 | HY41: 0 | HZ41: 0 | IA41: 0 | IB41: 0 | IC41: 0 | ID41: 0 | IE41: 0 | IF41: 0 | IG41: 0 | IH41: 0 | II41: 0 | IJ41: 0 | IK41: 0 | IL41: 0 | IM41: 0 | IN41: 0 | IO41: 0 | IP41: 0 | IQ41: 0 | IR41: 0 | IS41: 0 | IT41: 0 | IU41: 0 | IV41: 0 | IW41: 0 | IX41: 0 | IY41: 0 | IZ41: 0 | JA41: 0 | JB41: 0 | JC41: 0 | JD41: =SUM(JD36:JD40) -> 0 | JE41: 0 | JF41: 0 | JG41: 0 | JH41: 0 | JI41: 0 | JJ41: 0 | JK41: 0 | JL41: 0 | JM41: 0 | JN41: 0 | JO41: 0 | JP41: 0 | JQ41: 0 | JR41: 0 | JS41: 0 | JT41: 0 | JU41: 0 | JV41: 0 | JW41: 0 | JX41: 0 | JY41: 0 | JZ41: 0 | KA41: 0 | KB41: 0 | KC41: 0 | KD41: 0 | KE41: 0 | KF41: 0 | KG41: 0 | KH41: 0 | KI41: 0 | KJ41: 0 | KK41: 0 | KL41: 0 | KM41: 0 | KN41: 0 | KO41: 0 | KP41: 0 | KQ41: 0 | KR41: 0 | KS41: 0 | KT41: 0 | KU41: 0
A43: Revenues
B44: Inflation Rate | E44: % p.a. | F44: =Assumptions!F38 -> 0.02 | H44: =$F$44 -> 0.02 | I44: 0.02 | J44: 0.02 | K44: 0.02 | L44: 0.02 | M44: 0.02 | N44: 0.02 | O44: 0.02 | P44: 0.02 | Q44: 0.02 | R44: 0.02 | S44: 0.02 | T44: 0.02 | U44: 0.02 | V44: 0.02 | W44: 0.02 | X44: 0.02 | Y44: 0.02 | Z44: 0.02 | AA44: 0.02 | AB44: 0.02 | AC44: 0.02 | AD44: 0.02 | AE44: 0.02 | AF44: 0.02 | AG44: 0.02 | AH44: 0.02 | AI44: 0.02 | AJ44: 0.02 | AK44: 0.02 | AL44: 0.02 | AM44: 0.02 | AN44: 0.02 | AO44: 0.02 | AP44: 0.02 | AQ44: 0.02 | AR44: 0.02 | AS44: 0.02 | AT44: 0.02 | AU44: 0.02 | AV44: 0.02 | AW44: 0.02 | AX44: 0.02 | AY44: 0.02 | AZ44: 0.02 | BA44: 0.02 | BB44: 0.02 | BC44: 0.02 | BD44: 0.02 | BE44: 0.02 | BF44: 0.02 | BG44: 0.02 | BH44: 0.02 | BI44: 0.02 | BJ44: 0.02 | BK44: 0.02 | BL44: 0.02 | BM44: 0.02 | BN44: 0.02 | BO44: 0.02 | BP44: 0.02 | BQ44: 0.02 | BR44: 0.02 | BS44: 0.02 | BT44: =$F$44 -> 0.02 | BU44: 0.02 | BV44: 0.02 | BW44: 0.02 | BX44: 0.02 | BY44: 0.02 | BZ44: 0.02 | CA44: 0.02 | CB44: 0.02 | CC44: 0.02 | CD44: 0.02 | CE44: 0.02 | CF44: 0.02 | CG44: 0.02 | CH44: 0.02 | CI44: 0.02 | CJ44: 0.02 | CK44: 0.02 | CL44: 0.02 | CM44: 0.02 | CN44: 0.02 | CO44: 0.02 | CP44: 0.02 | CQ44: 0.02 | CR44: 0.02 | CS44: 0.02 | CT44: 0.02 | CU44: 0.02 | CV44: 0.02 | CW44: 0.02 | CX44: 0.02 | CY44: 0.02 | CZ44: 0.02 | DA44: 0.02 | DB44: 0.02 | DC44: 0.02 | DD44: 0.02 | DE44: 0.02 | DF44: 0.02 | DG44: 0.02 | DH44: 0.02 | DI44: 0.02 | DJ44: 0.02 | DK44: 0.02 | DL44: 0.02 | DM44: 0.02 | DN44: 0.02 | DO44: 0.02 | DP44: 0.02 | DQ44: 0.02 | DR44: 0.02 | DS44: 0.02 | DT44: 0.02 | DU44: 0.02 | DV44: 0.02 | DW44: 0.02 | DX44: 0.02 | DY44: 0.02 | DZ44: 0.02 | EA44: 0.02 | EB44: 0.02 | EC44: 0.02 | ED44: 0.02 | EE44: 0.02 | EF44: =$F$44 -> 0.02 | EG44: 0.02 | EH44: 0.02 | EI44: 0.02 | EJ44: 0.02 | EK44: 0.02 | EL44: 0.02 | EM44: 0.02 | EN44: 0.02 | EO44: 0.02 | EP44: 0.02 | EQ44: 0.02 | ER44: 0.02 | ES44: 0.02 | ET44: 0.02 | EU44: 0.02 | EV44: 0.02 | EW44: 0.02 | EX44: 0.02 | EY44: 0.02 | EZ44: 0.02 | FA44: 0.02 | FB44: 0.02 | FC44: 0.02 | FD44: 0.02 | FE44: 0.02 | FF44: 0.02 | FG44: 0.02 | FH44: 0.02 | FI44: 0.02 | FJ44: 0.02 | FK44: 0.02 | FL44: 0.02 | FM44: 0.02 | FN44: 0.02 | FO44: 0.02 | FP44: 0.02 | FQ44: 0.02 | FR44: 0.02 | FS44: 0.02 | FT44: 0.02 | FU44: 0.02 | FV44: 0.02 | FW44: 0.02 | FX44: 0.02 | FY44: 0.02 | FZ44: 0.02 | GA44: 0.02 | GB44: 0.02 | GC44: 0.02 | GD44: 0.02 | GE44: 0.02 | GF44: 0.02 | GG44: 0.02 | GH44: 0.02 | GI44: 0.02 | GJ44: 0.02 | GK44: 0.02 | GL44: 0.02 | GM44: 0.02 | GN44: 0.02 | GO44: 0.02 | GP44: 0.02 | GQ44: 0.02 | GR44: =$F$44 -> 0.02 | GS44: 0.02 | GT44: 0.02 | GU44: 0.02 | GV44: 0.02 | GW44: 0.02 | GX44: 0.02 | GY44: 0.02 | GZ44: 0.02 | HA44: 0.02 | HB44: 0.02 | HC44: 0.02 | HD44: 0.02 | HE44: 0.02 | HF44: 0.02 | HG44: 0.02 | HH44: 0.02 | HI44: 0.02 | HJ44: 0.02 | HK44: 0.02 | HL44: 0.02 | HM44: 0.02 | HN44: 0.02 | HO44: 0.02 | HP44: 0.02 | HQ44: 0.02 | HR44: 0.02 | HS44: 0.02 | HT44: 0.02 | HU44: 0.02 | HV44: 0.02 | HW44: 0.02 | HX44: 0.02 | HY44: 0.02 | HZ44: 0.02 | IA44: 0.02 | IB44: 0.02 | IC44: 0.02 | ID44: 0.02 | IE44: 0.02 | IF44: 0.02 | IG44: 0.02 | IH44: 0.02 | II44: 0.02 | IJ44: 0.02 | IK44: 0.02 | IL44: 0.02 | IM44: 0.02 | IN44: 0.02 | IO44: 0.02 | IP44: 0.02 | IQ44: 0.02 | IR44: 0.02 | IS44: 0.02 | IT44: 0.02 | IU44: 0.02 | IV44: 0.02 | IW44: 0.02 | IX44: 0.02 | IY44: 0.02 | IZ44: 0.02 | JA44: 0.02 | JB44: 0.02 | JC44: 0.02 | JD44: =$F$44 -> 0.02 | JE44: 0.02 | JF44: 0.02 | JG44: 0.02 | JH44: 0.02 | JI44: 0.02 | JJ44: 0.02 | JK44: 0.02 | JL44: 0.02 | JM44: 0.02 | JN44: 0.02 | JO44: 0.02 | JP44: 0.02 | JQ44: 0.02 | JR44: 0.02 | JS44: 0.02 | JT44: 0.02 | JU44: 0.02 | JV44: 0.02 | JW44: 0.02 | JX44: 0.02 | JY44: 0.02 | JZ44: 0.02 | KA44: 0.02 | KB44: 0.02 | KC44: 0.02 | KD44: 0.02 | KE44: 0.02 | KF44: 0.02 | KG44: 0.02 | KH44: 0.02 | KI44: 0.02 | KJ44: 0.02 | KK44: 0.02 | KL44: 0.02 | KM44: 0.02 | KN44: 0.02 | KO44: 0.02 | KP44: 0.02 | KQ44: 0.02 | KR44: 0.02 | KS44: 0.02 | KT44: 0.02 | KU44: 0.02
B45: Inflation Period | E45: Switch | F45: =MONTH(F9) -> 4 | H45: =AND(H6>$F$9,MONTH(H6)=$F$45) -> FALSE | I45: FALSE | J45: FALSE | K45: FALSE | L45: FALSE | M45: FALSE | N45: FALSE | O45: FALSE | P45: FALSE | Q45: FALSE | R45: TRUE | S45: FALSE | T45: FALSE | U45: FALSE | V45: TRUE | W45: FALSE | X45: FALSE | Y45: FALSE | Z45: TRUE | AA45: FALSE | AB45: FALSE | AC45: FALSE | AD45: TRUE | AE45: FALSE | AF45: FALSE | AG45: FALSE | AH45: TRUE | AI45: FALSE | AJ45: FALSE | AK45: FALSE | AL45: TRUE | AM45: FALSE | AN45: FALSE | AO45: FALSE | AP45: TRUE | AQ45: FALSE | AR45: FALSE | AS45: FALSE | AT45: TRUE | AU45: FALSE | AV45: FALSE | AW45: FALSE | AX45: TRUE | AY45: FALSE | AZ45: FALSE | BA45: FALSE | BB45: TRUE | BC45: FALSE | BD45: FALSE | BE45: FALSE | BF45: TRUE | BG45: FALSE | BH45: FALSE | BI45: FALSE | BJ45: TRUE | BK45: FALSE | BL45: FALSE | BM45: FALSE | BN45: TRUE | BO45: FALSE | BP45: FALSE | BQ45: FALSE | BR45: TRUE | BS45: FALSE | BT45: =AND(BT6>$F$9,MONTH(BT6)=$F$45) -> FALSE | BU45: FALSE | BV45: TRUE | BW45: FALSE | BX45: FALSE | BY45: FALSE | BZ45: TRUE | CA45: FALSE | CB45: FALSE | CC45: FALSE | CD45: TRUE | CE45: FALSE | CF45: FALSE | CG45: FALSE | CH45: TRUE | CI45: FALSE | CJ45: FALSE | CK45: FALSE | CL45: TRUE | CM45: FALSE | CN45: FALSE | CO45: FALSE | CP45: TRUE | CQ45: FALSE | CR45: FALSE | CS45: FALSE | CT45: TRUE | CU45: FALSE | CV45: FALSE | CW45: FALSE | CX45: TRUE | CY45: FALSE | CZ45: FALSE | DA45: FALSE | DB45: TRUE | DC45: FALSE | DD45: FALSE | DE45: FALSE | DF45: TRUE | DG45: FALSE | DH45: FALSE | DI45: FALSE | DJ45: TRUE | DK45: FALSE | DL45: FALSE | DM45: FALSE | DN45: TRUE | DO45: FALSE | DP45: FALSE | DQ45: FALSE | DR45: TRUE | DS45: FALSE | DT45: FALSE | DU45: FALSE | DV45: TRUE | DW45: FALSE | DX45: FALSE | DY45: FALSE | DZ45: TRUE | EA45: FALSE | EB45: FALSE | EC45: FALSE | ED45: TRUE | EE45: FALSE | EF45: =AND(EF6>$F$9,MONTH(EF6)=$F$45) -> FALSE | EG45: FALSE | EH45: TRUE | EI45: FALSE | EJ45: FALSE | EK45: FALSE | EL45: TRUE | EM45: FALSE | EN45: FALSE | EO45: FALSE | EP45: TRUE | EQ45: FALSE | ER45: FALSE | ES45: FALSE | ET45: TRUE | EU45: FALSE | EV45: FALSE | EW45: FALSE | EX45: TRUE | EY45: FALSE | EZ45: FALSE | FA45: FALSE | FB45: TRUE | FC45: FALSE | FD45: FALSE | FE45: FALSE | FF45: TRUE | FG45: FALSE | FH45: FALSE | FI45: FALSE | FJ45: TRUE | FK45: FALSE | FL45: FALSE | FM45: FALSE | FN45: TRUE | FO45: FALSE | FP45: FALSE | FQ45: FALSE | FR45: TRUE | FS45: FALSE | FT45: FALSE | FU45: FALSE | FV45: TRUE | FW45: FALSE | FX45: FALSE | FY45: FALSE | FZ45: TRUE | GA45: FALSE | GB45: FALSE | GC45: FALSE | GD45: TRUE | GE45: FALSE | GF45: FALSE | GG45: FALSE | GH45: TRUE | GI45: FALSE | GJ45: FALSE | GK45: FALSE | GL45: TRUE | GM45: FALSE | GN45: FALSE | GO45: FALSE | GP45: TRUE | GQ45: FALSE | GR45: =AND(GR6>$F$9,MONTH(GR6)=$F$45) -> FALSE | GS45: FALSE | GT45: TRUE | GU45: FALSE | GV45: FALSE | GW45: FALSE | GX45: TRUE | GY45: FALSE | GZ45: FALSE | HA45: FALSE | HB45: TRUE | HC45: FALSE | HD45: FALSE | HE45: FALSE | HF45: TRUE | HG45: FALSE | HH45: FALSE | HI45: FALSE | HJ45: TRUE | HK45: FALSE | HL45: FALSE | HM45: FALSE | HN45: TRUE | HO45: FALSE | HP45: FALSE | HQ45: FALSE | HR45: TRUE | HS45: FALSE | HT45: FALSE | HU45: FALSE | HV45: TRUE | HW45: FALSE | HX45: FALSE | HY45: FALSE | HZ45: TRUE | IA45: FALSE | IB45: FALSE | IC45: FALSE | ID45: TRUE | IE45: FALSE | IF45: FALSE | IG45: FALSE | IH45: TRUE | II45: FALSE | IJ45: FALSE | IK45: FALSE | IL45: TRUE | IM45: FALSE | IN45: FALSE | IO45: FALSE | IP45: TRUE | IQ45: FALSE | IR45: FALSE | IS45: FALSE | IT45: TRUE | IU45: FALSE | IV45: FALSE | IW45: FALSE | IX45: TRUE | IY45: FALSE | IZ45: FALSE | JA45: FALSE | JB45: TRUE | JC45: FALSE | JD45: =AND(JD6>$F$9,MONTH(JD6)=$F$45) -> FALSE | JE45: FALSE | JF45: TRUE | JG45: FALSE | JH45: FALSE | JI45: FALSE | JJ45: TRUE | JK45: FALSE | JL45: FALSE | JM45: FALSE | JN45: TRUE | JO45: FALSE | JP45: FALSE | JQ45: FALSE | JR45: TRUE | JS45: FALSE | JT45: FALSE | JU45: FALSE | JV45: TRUE | JW45: FALSE | JX45: FALSE | JY45: FALSE | JZ45: TRUE | KA45: FALSE | KB45: FALSE | KC45: FALSE | KD45: TRUE | KE45: FALSE | KF45: FALSE | KG45: FALSE | KH45: TRUE | KI45: FALSE | KJ45: FALSE | KK45: FALSE | KL45: TRUE | KM45: FALSE | KN45: FALSE | KO45: FALSE | KP45: TRUE | KQ45: FALSE | KR45: FALSE | KS45: FALSE | KT45: TRUE | KU45: FALSE
B46: Inflation Applied | E46: % | H46: =H44*H45 -> 0 | I46: =I44*I45 -> 0 | J46: 0 | K46: 0 | L46: 0 | M46: 0 | N46: 0 | O46: 0 | P46: 0 | Q46: 0 | R46: 0.02 | S46: 0 | T46: 0 | U46: 0 | V46: 0.02 | W46: 0 | X46: 0 | Y46: 0 | Z46: 0.02 | AA46: 0 | AB46: 0 | AC46: 0 | AD46: 0.02 | AE46: 0 | AF46: 0 | AG46: 0 | AH46: 0.02 | AI46: 0 | AJ46: 0 | AK46: 0 | AL46: 0.02 | AM46: 0 | AN46: 0 | AO46: 0 | AP46: 0.02 | AQ46: 0 | AR46: 0 | AS46: 0 | AT46: 0.02 | AU46: 0 | AV46: 0 | AW46: 0 | AX46: 0.02 | AY46: 0 | AZ46: 0 | BA46: 0 | BB46: 0.02 | BC46: 0 | BD46: 0 | BE46: 0 | BF46: 0.02 | BG46: 0 | BH46: 0 | BI46: 0 | BJ46: 0.02 | BK46: 0 | BL46: 0 | BM46: 0 | BN46: 0.02 | BO46: 0 | BP46: 0 | BQ46: 0 | BR46: 0.02 | BS46: 0 | BT46: 0 | BU46: =BU44*BU45 -> 0 | BV46: 0.02 | BW46: 0 | BX46: 0 | BY46: 0 | BZ46: 0.02 | CA46: 0 | CB46: 0 | CC46: 0 | CD46: 0.02 | CE46: 0 | CF46: 0 | CG46: 0 | CH46: 0.02 | CI46: 0 | CJ46: 0 | CK46: 0 | CL46: 0.02 | CM46: 0 | CN46: 0 | CO46: 0 | CP46: 0.02 | CQ46: 0 | CR46: 0 | CS46: 0 | CT46: 0.02 | CU46: 0 | CV46: 0 | CW46: 0 | CX46: 0.02 | CY46: 0 | CZ46: 0 | DA46: 0 | DB46: 0.02 | DC46: 0 | DD46: 0 | DE46: 0 | DF46: 0.02 | DG46: 0 | DH46: 0 | DI46: 0 | DJ46: 0.02 | DK46: 0 | DL46: 0 | DM46: 0 | DN46: 0.02 | DO46: 0 | DP46: 0 | DQ46: 0 | DR46: 0.02 | DS46: 0 | DT46: 0 | DU46: 0 | DV46: 0.02 | DW46: 0 | DX46: 0 | DY46: 0 | DZ46: 0.02 | EA46: 0 | EB46: 0 | EC46: 0 | ED46: 0.02 | EE46: 0 | EF46: 0 | EG46: =EG44*EG45 -> 0 | EH46: 0.02 | EI46: 0 | EJ46: 0 | EK46: 0 | EL46: 0.02 | EM46: 0 | EN46: 0 | EO46: 0 | EP46: 0.02 | EQ46: 0 | ER46: 0 | ES46: 0 | ET46: 0.02 | EU46: 0 | EV46: 0 | EW46: 0 | EX46: 0.02 | EY46: 0 | EZ46: 0 | FA46: 0 | FB46: 0.02 | FC46: 0 | FD46: 0 | FE46: 0 | FF46: 0.02 | FG46: 0 | FH46: 0 | FI46: 0 | FJ46: 0.02 | FK46: 0 | FL46: 0 | FM46: 0 | FN46: 0.02 | FO46: 0 | FP46: 0 | FQ46: 0 | FR46: 0.02 | FS46: 0 | FT46: 0 | FU46: 0 | FV46: 0.02 | FW46: 0 | FX46: 0 | FY46: 0 | FZ46: 0.02 | GA46: 0 | GB46: 0 | GC46: 0 | GD46: 0.02 | GE46: 0 | GF46: 0 | GG46: 0 | GH46: 0.02 | GI46: 0 | GJ46: 0 | GK46: 0 | GL46: 0.02 | GM46: 0 | GN46: 0 | GO46: 0 | GP46: 0.02 | GQ46: 0 | GR46: 0 | GS46: =GS44*GS45 -> 0 | GT46: 0.02 | GU46: 0 | GV46: 0 | GW46: 0 | GX46: 0.02 | GY46: 0 | GZ46: 0 | HA46: 0 | HB46: 0.02 | HC46: 0 | HD46: 0 | HE46: 0 | HF46: 0.02 | HG46: 0 | HH46: 0 | HI46: 0 | HJ46: 0.02 | HK46: 0 | HL46: 0 | HM46: 0 | HN46: 0.02 | HO46: 0 | HP46: 0 | HQ46: 0 | HR46: 0.02 | HS46: 0 | HT46: 0 | HU46: 0 | HV46: 0.02 | HW46: 0 | HX46: 0 | HY46: 0 | HZ46: 0.02 | IA46: 0 | IB46: 0 | IC46: 0 | ID46: 0.02 | IE46: 0 | IF46: 0 | IG46: 0 | IH46: 0.02 | II46: 0 | IJ46: 0 | IK46: 0 | IL46: 0.02 | IM46: 0 | IN46: 0 | IO46: 0 | IP46: 0.02 | IQ46: 0 | IR46: 0 | IS46: 0 | IT46: 0.02 | IU46: 0 | IV46: 0 | IW46: 0 | IX46: 0.02 | IY46: 0 | IZ46: 0 | JA46: 0 | JB46: 0.02 | JC46: 0 | JD46: 0 | JE46: =JE44*JE45 -> 0 | JF46: 0.02 | JG46: 0 | JH46: 0 | JI46: 0 | JJ46: 0.02 | JK46: 0 | JL46: 0 | JM46: 0 | JN46: 0.02 | JO46: 0 | JP46: 0 | JQ46: 0 | JR46: 0.02 | JS46: 0 | JT46: 0 | JU46: 0 | JV46: 0.02 | JW46: 0 | JX46: 0 | JY46: 0 | JZ46: 0.02 | KA46: 0 | KB46: 0 | KC46: 0 | KD46: 0.02 | KE46: 0 | KF46: 0 | KG46: 0 | KH46: 0.02 | KI46: 0 | KJ46: 0 | KK46: 0 | KL46: 0.02 | KM46: 0 | KN46: 0 | KO46: 0 | KP46: 0.02 | KQ46: 0 | KR46: 0 | KS46: 0 | KT46: 0.02 | KU46: 0
B47: Inflation Index | E47: Index | G47: 1 | H47: =G47*(1+H46) -> 1 | I47: 1 | J47: 1 | K47: 1 | L47: 1 | M47: 1 | N47: 1 | O47: 1 | P47: 1 | Q47: 1 | R47: 1.02 | S47: 1.02 | T47: 1.02 | U47: 1.02 | V47: 1.0404 | W47: 1.0404 | X47: 1.0404 | Y47: 1.0404 | Z47: 1.061208 | AA47: 1.061208 | AB47: 1.061208 | AC47: 1.061208 | AD47: 1.08243216 | AE47: 1.08243216 | AF47: 1.08243216 | AG47: 1.08243216 | AH47: 1.104080803 | AI47: 1.104080803 | AJ47: 1.104080803 | AK47: 1.104080803 | AL47: 1.126162419 | AM47: 1.126162419 | AN47: 1.126162419 | AO47: 1.126162419 | AP47: 1.148685668 | AQ47: 1.148685668 | AR47: 1.148685668 | AS47: 1.148685668 | AT47: 1.171659381 | AU47: 1.171659381 | AV47: 1.171659381 | AW47: 1.171659381 | AX47: 1.195092569 | AY47: 1.195092569 | AZ47: 1.195092569 | BA47: 1.195092569 | BB47: 1.21899442 | BC47: 1.21899442 | BD47: 1.21899442 | BE47: 1.21899442 | BF47: 1.243374308 | BG47: 1.243374308 | BH47: 1.243374308 | BI47: 1.243374308 | BJ47: 1.268241795 | BK47: 1.268241795 | BL47: 1.268241795 | BM47: 1.268241795 | BN47: 1.29360663 | BO47: 1.29360663 | BP47: 1.29360663 | BQ47: 1.29360663 | BR47: 1.319478763 | BS47: 1.319478763 | BT47: =BS47*(1+BT46) -> 1.319478763 | BU47: 1.319478763 | BV47: 1.345868338 | BW47: 1.345868338 | BX47: 1.345868338 | BY47: 1.345868338 | BZ47: 1.372785705 | CA47: 1.372785705 | CB47: 1.372785705 | CC47: 1.372785705 | CD47: 1.400241419 | CE47: 1.400241419 | CF47: 1.400241419 | CG47: 1.400241419 | CH47: 1.428246248 | CI47: 1.428246248 | CJ47: 1.428246248 | CK47: 1.428246248 | CL47: 1.456811173 | CM47: 1.456811173 | CN47: 1.456811173 | CO47: 1.456811173 | CP47: 1.485947396 | CQ47: 1.485947396 | CR47: 1.485947396 | CS47: 1.485947396 | CT47: 1.515666344 | CU47: 1.515666344 | CV47: 1.515666344 | CW47: 1.515666344 | CX47: 1.545979671 | CY47: 1.545979671 | CZ47: 1.545979671 | DA47: 1.545979671 | DB47: 1.576899264 | DC47: 1.576899264 | DD47: 1.576899264 | DE47: 1.576899264 | DF47: 1.608437249 | DG47: 1.608437249 | DH47: 1.608437249 | DI47: 1.608437249 | DJ47: 1.640605994 | DK47: 1.640605994 | DL47: 1.640605994 | DM47: 1.640605994 | DN47: 1.673418114 | DO47: 1.673418114 | DP47: 1.673418114 | DQ47: 1.673418114 | DR47: 1.706886477 | DS47: 1.706886477 | DT47: 1.706886477 | DU47: 1.706886477 | DV47: 1.741024206 | DW47: 1.741024206 | DX47: 1.741024206 | DY47: 1.741024206 | DZ47: 1.77584469 | EA47: 1.77584469 | EB47: 1.77584469 | EC47: 1.77584469 | ED47: 1.811361584 | EE47: 1.811361584 | EF47: =EE47*(1+EF46) -> 1.811361584 | EG47: 1.811361584 | EH47: 1.847588816 | EI47: 1.847588816 | EJ47: 1.847588816 | EK47: 1.847588816 | EL47: 1.884540592 | EM47: 1.884540592 | EN47: 1.884540592 | EO47: 1.884540592 | EP47: 1.922231404 | EQ47: 1.922231404 | ER47: 1.922231404 | ES47: 1.922231404 | ET47: 1.960676032 | EU47: 1.960676032 | EV47: 1.960676032 | EW47: 1.960676032 | EX47: 1.999889553 | EY47: 1.999889553 | EZ47: 1.999889553 | FA47: 1.999889553 | FB47: 2.039887344 | FC47: 2.039887344 | FD47: 2.039887344 | FE47: 2.039887344 | FF47: 2.080685091 | FG47: 2.080685091 | FH47: 2.080685091 | FI47: 2.080685091 | FJ47: 2.122298792 | FK47: 2.122298792 | FL47: 2.122298792 | FM47: 2.122298792 | FN47: 2.164744768 | FO47: 2.164744768 | FP47: 2.164744768 | FQ47: 2.164744768 | FR47: 2.208039664 | FS47: 2.208039664 | FT47: 2.208039664 | FU47: 2.208039664 | FV47: 2.252200457 | FW47: 2.252200457 | FX47: 2.252200457 | FY47: 2.252200457 | FZ47: 2.297244466 | GA47: 2.297244466 | GB47: 2.297244466 | GC47: 2.297244466 | GD47: 2.343189355 | GE47: 2.343189355 | GF47: 2.343189355 | GG47: 2.343189355 | GH47: 2.390053142 | GI47: 2.390053142 | GJ47: 2.390053142 | GK47: 2.390053142 | GL47: 2.437854205 | GM47: 2.437854205 | GN47: 2.437854205 | GO47: 2.437854205 | GP47: 2.486611289 | GQ47: 2.486611289 | GR47: =GQ47*(1+GR46) -> 2.486611289 | GS47: 2.486611289 | GT47: 2.536343515 | GU47: 2.536343515 | GV47: 2.536343515 | GW47: 2.536343515 | GX47: 2.587070385 | GY47: 2.587070385 | GZ47: 2.587070385 | HA47: 2.587070385 | HB47: 2.638811793 | HC47: 2.638811793 | HD47: 2.638811793 | HE47: 2.638811793 | HF47: 2.691588029 | HG47: 2.691588029 | HH47: 2.691588029 | HI47: 2.691588029 | HJ47: 2.74541979 | HK47: 2.74541979 | HL47: 2.74541979 | HM47: 2.74541979 | HN47: 2.800328185 | HO47: 2.800328185 | HP47: 2.800328185 | HQ47: 2.800328185 | HR47: 2.856334749 | HS47: 2.856334749 | HT47: 2.856334749 | HU47: 2.856334749 | HV47: 2.913461444 | HW47: 2.913461444 | HX47: 2.913461444 | HY47: 2.913461444 | HZ47: 2.971730673 | IA47: 2.971730673 | IB47: 2.971730673 | IC47: 2.971730673 | ID47: 3.031165286 | IE47: 3.031165286 | IF47: 3.031165286 | IG47: 3.031165286 | IH47: 3.091788592 | II47: 3.091788592 | IJ47: 3.091788592 | IK47: 3.091788592 | IL47: 3.153624364 | IM47: 3.153624364 | IN47: 3.153624364 | IO47: 3.153624364 | IP47: 3.216696851 | IQ47: 3.216696851 | IR47: 3.216696851 | IS47: 3.216696851 | IT47: 3.281030788 | IU47: 3.281030788 | IV47: 3.281030788 | IW47: 3.281030788 | IX47: 3.346651404 | IY47: 3.346651404 | IZ47: 3.346651404 | JA47: 3.346651404 | JB47: 3.413584432 | JC47: 3.413584432 | JD47: =JC47*(1+JD46) -> 3.413584432 | JE47: 3.413584432 | JF47: 3.481856121 | JG47: 3.481856121 | JH47: 3.481856121 | JI47: 3.481856121 | JJ47: 3.551493243 | JK47: 3.551493243 | JL47: 3.551493243 | JM47: 3.551493243 | JN47: 3.622523108 | JO47: 3.622523108 | JP47: 3.622523108 | JQ47: 3.622523108 | JR47: 3.69497357 | JS47: 3.69497357 | JT47: 3.69497357 | JU47: 3.69497357 | JV47: 3.768873042 | JW47: 3.768873042 | JX47: 3.768873042 | JY47: 3.768873042 | JZ47: 3.844250503 | KA47: 3.844250503 | KB47: 3.844250503 | KC47: 3.844250503 | KD47: 3.921135513 | KE47: 3.921135513 | KF47: 3.921135513 | KG47: 3.921135513 | KH47: 3.999558223 | KI47: 3.999558223 | KJ47: 3.999558223 | KK47: 3.999558223 | KL47: 4.079549387 | KM47: 4.079549387 | KN47: 4.079549387 | KO47: 4.079549387 | KP47: 4.161140375 | KQ47: 4.161140375 | KR47: 4.161140375 | KS47: 4.161140375 | KT47: 4.244363183 | KU47: 4.244363183
B49: Tariff | E49: USD/MWH | F49: =Assumptions!F42*10 -> 87.4 | H49: =$F$49*H47 -> 87.4 | I49: =$F$49*I47 -> 87.4 | J49: 87.4 | K49: 87.4 | L49: 87.4 | M49: 87.4 | N49: 87.4 | O49: 87.4 | P49: 87.4 | Q49: 87.4 | R49: 89.148 | S49: 89.148 | T49: 89.148 | U49: 89.148 | V49: 90.93096 | W49: 90.93096 | X49: 90.93096 | Y49: 90.93096 | Z49: 92.7495792 | AA49: 92.7495792 | AB49: 92.7495792 | AC49: 92.7495792 | AD49: 94.60457078 | AE49: 94.60457078 | AF49: 94.60457078 | AG49: 94.60457078 | AH49: 96.4966622 | AI49: 96.4966622 | AJ49: 96.4966622 | AK49: 96.4966622 | AL49: 98.42659544 | AM49: 98.42659544 | AN49: 98.42659544 | AO49: 98.42659544 | AP49: 100.3951274 | AQ49: 100.3951274 | AR49: 100.3951274 | AS49: 100.3951274 | AT49: 102.4030299 | AU49: 102.4030299 | AV49: 102.4030299 | AW49: 102.4030299 | AX49: 104.4510905 | AY49: 104.4510905 | AZ49: 104.4510905 | BA49: 104.4510905 | BB49: 106.5401123 | BC49: 106.5401123 | BD49: 106.5401123 | BE49: 106.5401123 | BF49: 108.6709146 | BG49: 108.6709146 | BH49: 108.6709146 | BI49: 108.6709146 | BJ49: 110.8443328 | BK49: 110.8443328 | BL49: 110.8443328 | BM49: 110.8443328 | BN49: 113.0612195 | BO49: 113.0612195 | BP49: 113.0612195 | BQ49: 113.0612195 | BR49: 115.3224439 | BS49: 115.3224439 | BT49: 115.3224439 | BU49: =$F$49*BU47 -> 115.3224439 | BV49: 117.6288928 | BW49: 117.6288928 | BX49: 117.6288928 | BY49: 117.6288928 | BZ49: 119.9814706 | CA49: 119.9814706 | CB49: 119.9814706 | CC49: 119.9814706 | CD49: 122.3811 | CE49: 122.3811 | CF49: 122.3811 | CG49: 122.3811 | CH49: 124.828722 | CI49: 124.828722 | CJ49: 124.828722 | CK49: 124.828722 | CL49: 127.3252965 | CM49: 127.3252965 | CN49: 127.3252965 | CO49: 127.3252965 | CP49: 129.8718024 | CQ49: 129.8718024 | CR49: 129.8718024 | CS49: 129.8718024 | CT49: 132.4692385 | CU49: 132.4692385 | CV49: 132.4692385 | CW49: 132.4692385 | CX49: 135.1186232 | CY49: 135.1186232 | CZ49: 135.1186232 | DA49: 135.1186232 | DB49: 137.8209957 | DC49: 137.8209957 | DD49: 137.8209957 | DE49: 137.8209957 | DF49: 140.5774156 | DG49: 140.5774156 | DH49: 140.5774156 | DI49: 140.5774156 | DJ49: 143.3889639 | DK49: 143.3889639 | DL49: 143.3889639 | DM49: 143.3889639 | DN49: 146.2567432 | DO49: 146.2567432 | DP49: 146.2567432 | DQ49: 146.2567432 | DR49: 149.1818781 | DS49: 149.1818781 | DT49: 149.1818781 | DU49: 149.1818781 | DV49: 152.1655156 | DW49: 152.1655156 | DX49: 152.1655156 | DY49: 152.1655156 | DZ49: 155.2088259 | EA49: 155.2088259 | EB49: 155.2088259 | EC49: 155.2088259 | ED49: 158.3130025 | EE49: 158.3130025 | EF49: 158.3130025 | EG49: =$F$49*EG47 -> 158.3130025 | EH49: 161.4792625 | EI49: 161.4792625 | EJ49: 161.4792625 | EK49: 161.4792625 | EL49: 164.7088477 | EM49: 164.7088477 | EN49: 164.7088477 | EO49: 164.7088477 | EP49: 168.0030247 | EQ49: 168.0030247 | ER49: 168.0030247 | ES49: 168.0030247 | ET49: 171.3630852 | EU49: 171.3630852 | EV49: 171.3630852 | EW49: 171.3630852 | EX49: 174.7903469 | EY49: 174.7903469 | EZ49: 174.7903469 | FA49: 174.7903469 | FB49: 178.2861538 | FC49: 178.2861538 | FD49: 178.2861538 | FE49: 178.2861538 | FF49: 181.8518769 | FG49: 181.8518769 | FH49: 181.8518769 | FI49: 181.8518769 | FJ49: 185.4889145 | FK49: 185.4889145 | FL49: 185.4889145 | FM49: 185.4889145 | FN49: 189.1986927 | FO49: 189.1986927 | FP49: 189.1986927 | FQ49: 189.1986927 | FR49: 192.9826666 | FS49: 192.9826666 | FT49: 192.9826666 | FU49: 192.9826666 | FV49: 196.8423199 | FW49: 196.8423199 | FX49: 196.8423199 | FY49: 196.8423199 | FZ49: 200.7791663 | GA49: 200.7791663 | GB49: 200.7791663 | GC49: 200.7791663 | GD49: 204.7947497 | GE49: 204.7947497 | GF49: 204.7947497 | GG49: 204.7947497 | GH49: 208.8906447 | GI49: 208.8906447 | GJ49: 208.8906447 | GK49: 208.8906447 | GL49: 213.0684575 | GM49: 213.0684575 | GN49: 213.0684575 | GO49: 213.0684575 | GP49: 217.3298267 | GQ49: 217.3298267 | GR49: 217.3298267 | GS49: =$F$49*GS47 -> 217.3298267 | GT49: 221.6764232 | GU49: 221.6764232 | GV49: 221.6764232 | GW49: 221.6764232 | GX49: 226.1099517 | GY49: 226.1099517 | GZ49: 226.1099517 | HA49: 226.1099517 | HB49: 230.6321507 | HC49: 230.6321507 | HD49: 230.6321507 | HE49: 230.6321507 | HF49: 235.2447937 | HG49: 235.2447937 | HH49: 235.2447937 | HI49: 235.2447937 | HJ49: 239.9496896 | HK49: 239.9496896 | HL49: 239.9496896 | HM49: 239.9496896 | HN49: 244.7486834 | HO49: 244.7486834 | HP49: 244.7486834 | HQ49: 244.7486834 | HR49: 249.6436571 | HS49: 249.6436571 | HT49: 249.6436571 | HU49: 249.6436571 | HV49: 254.6365302 | HW49: 254.6365302 | HX49: 254.6365302 | HY49: 254.6365302 | HZ49: 259.7292608 | IA49: 259.7292608 | IB49: 259.7292608 | IC49: 259.7292608 | ID49: 264.923846 | IE49: 264.923846 | IF49: 264.923846 | IG49: 264.923846 | IH49: 270.222323 | II49: 270.222323 | IJ49: 270.222323 | IK49: 270.222323 | IL49: 275.6267694 | IM49: 275.6267694 | IN49: 275.6267694 | IO49: 275.6267694 | IP49: 281.1393048 | IQ49: 281.1393048 | IR49: 281.1393048 | IS49: 281.1393048 | IT49: 286.7620909 | IU49: 286.7620909 | IV49: 286.7620909 | IW49: 286.7620909 | IX49: 292.4973327 | IY49: 292.4973327 | IZ49: 292.4973327 | JA49: 292.4973327 | JB49: 298.3472794 | JC49: 298.3472794 | JD49: 298.3472794 | JE49: =$F$49*JE47 -> 298.3472794 | JF49: 304.314225 | JG49: 304.314225 | JH49: 304.314225 | JI49: 304.314225 | JJ49: 310.4005095 | JK49: 310.4005095 | JL49: 310.4005095 | JM49: 310.4005095 | JN49: 316.6085197 | JO49: 316.6085197 | JP49: 316.6085197 | JQ49: 316.6085197 | JR49: 322.94069 | JS49: 322.94069 | JT49: 322.94069 | JU49: 322.94069 | JV49: 329.3995038 | JW49: 329.3995038 | JX49: 329.3995038 | JY49: 329.3995038 | JZ49: 335.9874939 | KA49: 335.9874939 | KB49: 335.9874939 | KC49: 335.9874939 | KD49: 342.7072438 | KE49: 342.7072438 | KF49: 342.7072438 | KG49: 342.7072438 | KH49: 349.5613887 | KI49: 349.5613887 | KJ49: 349.5613887 | KK49: 349.5613887 | KL49: 356.5526165 | KM49: 356.5526165 | KN49: 356.5526165 | KO49: 356.5526165 | KP49: 363.6836688 | KQ49: 363.6836688 | KR49: 363.6836688 | KS49: 363.6836688 | KT49: 370.9573422 | KU49: 370.9573422
B50: Revenues from PPA | E50: USD 000's | H50: =H49*H25/1000 -> 0 | I50: 0 | J50: 0 | K50: 0 | L50: 0 | M50: 0 | N50: 71.12248416 | O50: 71.90404992 | P50: 71.90404992 | Q50: 70.3409184 | R50: 72.54493384 | S50: 73.34213092 | T50: 73.34213092 | U50: 71.74773677 | V50: 73.99583252 | W50: 74.80897354 | X50: 74.80897354 | Y50: 73.99583252 | Z50: 75.47574917 | AA50: 76.30515301 | AB50: 76.30515301 | AC50: 74.64634533 | AD50: 76.98526415 | AE50: 77.83125607 | AF50: 77.83125607 | AG50: 76.13927224 | AH50: 78.52496944 | AI50: 79.38788119 | AJ50: 79.38788119 | AK50: 77.66205768 | AL50: 80.09546883 | AM50: 80.97563881 | AN50: 80.97563881 | AO50: 80.09546883 | AP50: 81.6973782 | AQ50: 82.59515159 | AR50: 82.59515159 | AS50: 80.79960482 | AT50: 83.33132577 | AU50: 84.24705462 | AV50: 84.24705462 | AW50: 82.41559691 | AX50: 84.99795228 | AY50: 85.93199571 | AZ50: 85.93199571 | BA50: 84.06390885 | BB50: 86.69791133 | BC50: 87.65063563 | BD50: 87.65063563 | BE50: 86.69791133 | BF50: 88.43186955 | BG50: 89.40364834 | BH50: 89.40364834 | BI50: 87.46009077 | BJ50: 90.20050694 | BK50: 91.19172131 | BL50: 91.19172131 | BM50: 89.20929258 | BN50: 92.00451708 | BO50: 93.01555573 | BP50: 93.01555573 | BQ50: 90.99347843 | BR50: 93.84460743 | BS50: 94.87586685 | BT50: =BT49*BT25/1000 -> 94.87586685 | BU50: 93.84460743 | BV50: 95.72149957 | BW50: 96.77338418 | BX50: 96.77338418 | BY50: 94.66961496 | BZ50: 97.63592957 | CA50: 98.70885187 | CB50: 98.70885187 | CC50: 96.56300726 | CD50: 99.58864816 | CE50: 100.6830289 | CF50: 100.6830289 | CG50: 98.49426741 | CH50: 101.5804211 | CI50: 102.6966895 | CJ50: 102.6966895 | CK50: 101.5804211 | CL50: 103.6120295 | CM50: 104.7506233 | CN50: 104.7506233 | CO50: 102.4734358 | CP50: 105.6842701 | CQ50: 106.8456357 | CR50: 106.8456357 | CS50: 104.5229045 | CT50: 107.7979555 | CU50: 108.9825485 | CV50: 108.9825485 | CW50: 106.6133626 | CX50: 109.9539146 | CY50: 111.1621994 | CZ50: 111.1621994 | DA50: 109.9539146 | DB50: 112.1529929 | DC50: 113.3854434 | DD50: 113.3854434 | DE50: 110.9205425 | DF50: 114.3960528 | DG50: 115.6531523 | DH50: 115.6531523 | DI50: 113.1389533 | DJ50: 0 | DK50: 0 | DL50: 0 | DM50: 0 | DN50: 0 | DO50: 0 | DP50: 0 | DQ50: 0 | DR50: 0 | DS50: 0 | DT50: 0 | DU50: 0 | DV50: 0 | DW50: 0 | DX50: 0 | DY50: 0 | DZ50: 0 | EA50: 0 | EB50: 0 | EC50: 0 | ED50: 0 | EE50: 0 | EF50: =EF49*EF25/1000 -> 0 | EG50: 0 | EH50: 0 | EI50: 0 | EJ50: 0 | EK50: 0 | EL50: 0 | EM50: 0 | EN50: 0 | EO50: 0 | EP50: 0 | EQ50: 0 | ER50: 0 | ES50: 0 | ET50: 0 | EU50: 0 | EV50: 0 | EW50: 0 | EX50: 0 | EY50: 0 | EZ50: 0 | FA50: 0 | FB50: 0 | FC50: 0 | FD50: 0 | FE50: 0 | FF50: 0 | FG50: 0 | FH50: 0 | FI50: 0 | FJ50: 0 | FK50: 0 | FL50: 0 | FM50: 0 | FN50: 0 | FO50: 0 | FP50: 0 | FQ50: 0 | FR50: 0 | FS50: 0 | FT50: 0 | FU50: 0 | FV50: 0 | FW50: 0 | FX50: 0 | FY50: 0 | FZ50: 0 | GA50: 0 | GB50: 0 | GC50: 0 | GD50: 0 | GE50: 0 | GF50: 0 | GG50: 0 | GH50: 0 | GI50: 0 | GJ50: 0 | GK50: 0 | GL50: 0 | GM50: 0 | GN50: 0 | GO50: 0 | GP50: 0 | GQ50: 0 | GR50: =GR49*GR25/1000 -> 0 | GS50: 0 | GT50: 0 | GU50: 0 | GV50: 0 | GW50: 0 | GX50: 0 | GY50: 0 | GZ50: 0 | HA50: 0 | HB50: 0 | HC50: 0 | HD50: 0 | HE50: 0 | HF50: 0 | HG50: 0 | HH50: 0 | HI50: 0 | HJ50: 0 | HK50: 0 | HL50: 0 | HM50: 0 | HN50: 0 | HO50: 0 | HP50: 0 | HQ50: 0 | HR50: 0 | HS50: 0 | HT50: 0 | HU50: 0 | HV50: 0 | HW50: 0 | HX50: 0 | HY50: 0 | HZ50: 0 | IA50: 0 | IB50: 0 | IC50: 0 | ID50: 0 | IE50: 0 | IF50: 0 | IG50: 0 | IH50: 0 | II50: 0 | IJ50: 0 | IK50: 0 | IL50: 0 | IM50: 0 | IN50: 0 | IO50: 0 | IP50: 0 | IQ50: 0 | IR50: 0 | IS50: 0 | IT50: 0 | IU50: 0 | IV50: 0 | IW50: 0 | IX50: 0 | IY50: 0 | IZ50: 0 | JA50: 0 | JB50: 0 | JC50: 0 | JD50: =JD49*JD25/1000 -> 0 | JE50: 0 | JF50: 0 | JG50: 0 | JH50: 0 | JI50: 0 | JJ50: 0 | JK50: 0 | JL50: 0 | JM50: 0 | JN50: 0 | JO50: 0 | JP50: 0 | JQ50: 0 | JR50: 0 | JS50: 0 | JT50: 0 | JU50: 0 | JV50: 0 | JW50: 0 | JX50: 0 | JY50: 0 | JZ50: 0 | KA50: 0 | KB50: 0 | KC50: 0 | KD50: 0 | KE50: 0 | KF50: 0 | KG50: 0 | KH50: 0 | KI50: 0 | KJ50: 0 | KK50: 0 | KL50: 0 | KM50: 0 | KN50: 0 | KO50: 0 | KP50: 0 | KQ50: 0 | KR50: 0 | KS50: 0 | KT50: 0 | KU50: 0
A52: Operating Expenses
B53: Inflation Rate | E53: % | F53: =Assumptions!F57 -> 0.02 | H53: =$F$53*H9 -> 0 | I53: =$F$53*I9 -> 0 | J53: 0 | K53: 0 | L53: 0 | M53: 0 | N53: 0.02 | O53: 0.02 | P53: 0.02 | Q53: 0.02 | R53: 0.02 | S53: 0.02 | T53: 0.02 | U53: 0.02 | V53: 0.02 | W53: 0.02 | X53: 0.02 | Y53: 0.02 | Z53: 0.02 | AA53: 0.02 | AB53: 0.02 | AC53: 0.02 | AD53: 0.02 | AE53: 0.02 | AF53: 0.02 | AG53: 0.02 | AH53: 0.02 | AI53: 0.02 | AJ53: 0.02 | AK53: 0.02 | AL53: 0.02 | AM53: 0.02 | AN53: 0.02 | AO53: 0.02 | AP53: 0.02 | AQ53: 0.02 | AR53: 0.02 | AS53: 0.02 | AT53: 0.02 | AU53: 0.02 | AV53: 0.02 | AW53: 0.02 | AX53: 0.02 | AY53: 0.02 | AZ53: 0.02 | BA53: 0.02 | BB53: 0.02 | BC53: 0.02 | BD53: 0.02 | BE53: 0.02 | BF53: 0.02 | BG53: 0.02 | BH53: 0.02 | BI53: 0.02 | BJ53: 0.02 | BK53: 0.02 | BL53: 0.02 | BM53: 0.02 | BN53: 0.02 | BO53: 0.02 | BP53: 0.02 | BQ53: 0.02 | BR53: 0.02 | BS53: 0.02 | BT53: =$F$53*BT9 -> 0.02 | BU53: 0.02 | BV53: 0.02 | BW53: 0.02 | BX53: 0.02 | BY53: 0.02 | BZ53: 0.02 | CA53: 0.02 | CB53: 0.02 | CC53: 0.02 | CD53: 0.02 | CE53: 0.02 | CF53: 0.02 | CG53: 0.02 | CH53: 0.02 | CI53: 0.02 | CJ53: 0.02 | CK53: 0.02 | CL53: 0.02 | CM53: 0.02 | CN53: 0.02 | CO53: 0.02 | CP53: 0.02 | CQ53: 0.02 | CR53: 0.02 | CS53: 0.02 | CT53: 0.02 | CU53: 0.02 | CV53: 0.02 | CW53: 0.02 | CX53: 0.02 | CY53: 0.02 | CZ53: 0.02 | DA53: 0.02 | DB53: 0.02 | DC53: 0.02 | DD53: 0.02 | DE53: 0.02 | DF53: 0.02 | DG53: 0.02 | DH53: 0.02 | DI53: 0.02 | DJ53: 0 | DK53: 0 | DL53: 0 | DM53: 0 | DN53: 0 | DO53: 0 | DP53: 0 | DQ53: 0 | DR53: 0 | DS53: 0 | DT53: 0 | DU53: 0 | DV53: 0 | DW53: 0 | DX53: 0 | DY53: 0 | DZ53: 0 | EA53: 0 | EB53: 0 | EC53: 0 | ED53: 0 | EE53: 0 | EF53: =$F$53*EF9 -> 0 | EG53: 0 | EH53: 0 | EI53: 0 | EJ53: 0 | EK53: 0 | EL53: 0 | EM53: 0 | EN53: 0 | EO53: 0 | EP53: 0 | EQ53: 0 | ER53: 0 | ES53: 0 | ET53: 0 | EU53: 0 | EV53: 0 | EW53: 0 | EX53: 0 | EY53: 0 | EZ53: 0 | FA53: 0 | FB53: 0 | FC53: 0 | FD53: 0 | FE53: 0 | FF53: 0 | FG53: 0 | FH53: 0 | FI53: 0 | FJ53: 0 | FK53: 0 | FL53: 0 | FM53: 0 | FN53: 0 | FO53: 0 | FP53: 0 | FQ53: 0 | FR53: 0 | FS53: 0 | FT53: 0 | FU53: 0 | FV53: 0 | FW53: 0 | FX53: 0 | FY53: 0 | FZ53: 0 | GA53: 0 | GB53: 0 | GC53: 0 | GD53: 0 | GE53: 0 | GF53: 0 | GG53: 0 | GH53: 0 | GI53: 0 | GJ53: 0 | GK53: 0 | GL53: 0 | GM53: 0 | GN53: 0 | GO53: 0 | GP53: 0 | GQ53: 0 | GR53: =$F$53*GR9 -> 0 | GS53: 0 | GT53: 0 | GU53: 0 | GV53: 0 | GW53: 0 | GX53: 0 | GY53: 0 | GZ53: 0 | HA53: 0 | HB53: 0 | HC53: 0 | HD53: 0 | HE53: 0 | HF53: 0 | HG53: 0 | HH53: 0 | HI53: 0 | HJ53: 0 | HK53: 0 | HL53: 0 | HM53: 0 | HN53: 0 | HO53: 0 | HP53: 0 | HQ53: 0 | HR53: 0 | HS53: 0 | HT53: 0 | HU53: 0 | HV53: 0 | HW53: 0 | HX53: 0 | HY53: 0 | HZ53: 0 | IA53: 0 | IB53: 0 | IC53: 0 | ID53: 0 | IE53: 0 | IF53: 0 | IG53: 0 | IH53: 0 | II53: 0 | IJ53: 0 | IK53: 0 | IL53: 0 | IM53: 0 | IN53: 0 | IO53: 0 | IP53: 0 | IQ53: 0 | IR53: 0 | IS53: 0 | IT53: 0 | IU53: 0 | IV53: 0 | IW53: 0 | IX53: 0 | IY53: 0 | IZ53: 0 | JA53: 0 | JB53: 0 | JC53: 0 | JD53: =$F$53*JD9 -> 0 | JE53: 0 | JF53: 0 | JG53: 0 | JH53: 0 | JI53: 0 | JJ53: 0 | JK53: 0 | JL53: 0 | JM53: 0 | JN53: 0 | JO53: 0 | JP53: 0 | JQ53: 0 | JR53: 0 | JS53: 0 | JT53: 0 | JU53: 0 | JV53: 0 | JW53: 0 | JX53: 0 | JY53: 0 | JZ53: 0 | KA53: 0 | KB53: 0 | KC53: 0 | KD53: 0 | KE53: 0 | KF53: 0 | KG53: 0 | KH53: 0 | KI53: 0 | KJ53: 0 | KK53: 0 | KL53: 0 | KM53: 0 | KN53: 0 | KO53: 0 | KP53: 0 | KQ53: 0 | KR53: 0 | KS53: 0 | KT53: 0 | KU53: 0
B54: Periodic Inflation | E54: % | H54: =(1+H53)^(H4/12)-1 -> 0 | I54: 0 | J54: 0 | K54: 0 | L54: 0 | M54: 0 | N54: 0.004962931573 | O54: 0.004962931573 | P54: 0.004962931573 | Q54: 0.004962931573 | R54: 0.004962931573 | S54: 0.004962931573 | T54: 0.004962931573 | U54: 0.004962931573 | V54: 0.004962931573 | W54: 0.004962931573 | X54: 0.004962931573 | Y54: 0.004962931573 | Z54: 0.004962931573 | AA54: 0.004962931573 | AB54: 0.004962931573 | AC54: 0.004962931573 | AD54: 0.004962931573 | AE54: 0.004962931573 | AF54: 0.004962931573 | AG54: 0.004962931573 | AH54: 0.004962931573 | AI54: 0.004962931573 | AJ54: 0.004962931573 | AK54: 0.004962931573 | AL54: 0.004962931573 | AM54: 0.004962931573 | AN54: 0.004962931573 | AO54: 0.004962931573 | AP54: 0.004962931573 | AQ54: 0.004962931573 | AR54: 0.004962931573 | AS54: 0.004962931573 | AT54: 0.004962931573 | AU54: 0.004962931573 | AV54: 0.004962931573 | AW54: 0.004962931573 | AX54: 0.004962931573 | AY54: 0.004962931573 | AZ54: 0.004962931573 | BA54: 0.004962931573 | BB54: 0.004962931573 | BC54: 0.004962931573 | BD54: 0.004962931573 | BE54: 0.004962931573 | BF54: 0.004962931573 | BG54: 0.004962931573 | BH54: 0.004962931573 | BI54: 0.004962931573 | BJ54: 0.004962931573 | BK54: 0.004962931573 | BL54: 0.004962931573 | BM54: 0.004962931573 | BN54: 0.004962931573 | BO54: 0.004962931573 | BP54: 0.004962931573 | BQ54: 0.004962931573 | BR54: 0.004962931573 | BS54: 0.004962931573 | BT54: =(1+BT53)^(BT4/12)-1 -> 0.004962931573 | BU54: 0.004962931573 | BV54: 0.004962931573 | BW54: 0.004962931573 | BX54: 0.004962931573 | BY54: 0.004962931573 | BZ54: 0.004962931573 | CA54: 0.004962931573 | CB54: 0.004962931573 | CC54: 0.004962931573 | CD54: 0.004962931573 | CE54: 0.004962931573 | CF54: 0.004962931573 | CG54: 0.004962931573 | CH54: 0.004962931573 | CI54: 0.004962931573 | CJ54: 0.004962931573 | CK54: 0.004962931573 | CL54: 0.004962931573 | CM54: 0.004962931573 | CN54: 0.004962931573 | CO54: 0.004962931573 | CP54: 0.004962931573 | CQ54: 0.004962931573 | CR54: 0.004962931573 | CS54: 0.004962931573 | CT54: 0.004962931573 | CU54: 0.004962931573 | CV54: 0.004962931573 | CW54: 0.004962931573 | CX54: 0.004962931573 | CY54: 0.004962931573 | CZ54: 0.004962931573 | DA54: 0.004962931573 | DB54: 0.004962931573 | DC54: 0.004962931573 | DD54: 0.004962931573 | DE54: 0.004962931573 | DF54: 0.004962931573 | DG54: 0.004962931573 | DH54: 0.004962931573 | DI54: 0.004962931573 | DJ54: 0 | DK54: 0 | DL54: 0 | DM54: 0 | DN54: 0 | DO54: 0 | DP54: 0 | DQ54: 0 | DR54: 0 | DS54: 0 | DT54: 0 | DU54: 0 | DV54: 0 | DW54: 0 | DX54: 0 | DY54: 0 | DZ54: 0 | EA54: 0 | EB54: 0 | EC54: 0 | ED54: 0 | EE54: 0 | EF54: =(1+EF53)^(EF4/12)-1 -> 0 | EG54: 0 | EH54: 0 | EI54: 0 | EJ54: 0 | EK54: 0 | EL54: 0 | EM54: 0 | EN54: 0 | EO54: 0 | EP54: 0 | EQ54: 0 | ER54: 0 | ES54: 0 | ET54: 0 | EU54: 0 | EV54: 0 | EW54: 0 | EX54: 0 | EY54: 0 | EZ54: 0 | FA54: 0 | FB54: 0 | FC54: 0 | FD54: 0 | FE54: 0 | FF54: 0 | FG54: 0 | FH54: 0 | FI54: 0 | FJ54: 0 | FK54: 0 | FL54: 0 | FM54: 0 | FN54: 0 | FO54: 0 | FP54: 0 | FQ54: 0 | FR54: 0 | FS54: 0 | FT54: 0 | FU54: 0 | FV54: 0 | FW54: 0 | FX54: 0 | FY54: 0 | FZ54: 0 | GA54: 0 | GB54: 0 | GC54: 0 | GD54: 0 | GE54: 0 | GF54: 0 | GG54: 0 | GH54: 0 | GI54: 0 | GJ54: 0 | GK54: 0 | GL54: 0 | GM54: 0 | GN54: 0 | GO54: 0 | GP54: 0 | GQ54: 0 | GR54: =(1+GR53)^(GR4/12)-1 -> 0 | GS54: 0 | GT54: 0 | GU54: 0 | GV54: 0 | GW54: 0 | GX54: 0 | GY54: 0 | GZ54: 0 | HA54: 0 | HB54: 0 | HC54: 0 | HD54: 0 | HE54: 0 | HF54: 0 | HG54: 0 | HH54: 0 | HI54: 0 | HJ54: 0 | HK54: 0 | HL54: 0 | HM54: 0 | HN54: 0 | HO54: 0 | HP54: 0 | HQ54: 0 | HR54: 0 | HS54: 0 | HT54: 0 | HU54: 0 | HV54: 0 | HW54: 0 | HX54: 0 | HY54: 0 | HZ54: 0 | IA54: 0 | IB54: 0 | IC54: 0 | ID54: 0 | IE54: 0 | IF54: 0 | IG54: 0 | IH54: 0 | II54: 0 | IJ54: 0 | IK54: 0 | IL54: 0 | IM54: 0 | IN54: 0 | IO54: 0 | IP54: 0 | IQ54: 0 | IR54: 0 | IS54: 0 | IT54: 0 | IU54: 0 | IV54: 0 | IW54: 0 | IX54: 0 | IY54: 0 | IZ54: 0 | JA54: 0 | JB54: 0 | JC54: 0 | JD54: =(1+JD53)^(JD4/12)-1 -> 0 | JE54: 0 | JF54: 0 | JG54: 0 | JH54: 0 | JI54: 0 | JJ54: 0 | JK54: 0 | JL54: 0 | JM54: 0 | JN54: 0 | JO54: 0 | JP54: 0 | JQ54: 0 | JR54: 0 | JS54: 0 | JT54: 0 | JU54: 0 | JV54: 0 | JW54: 0 | JX54: 0 | JY54: 0 | JZ54: 0 | KA54: 0 | KB54: 0 | KC54: 0 | KD54: 0 | KE54: 0 | KF54: 0 | KG54: 0 | KH54: 0 | KI54: 0 | KJ54: 0 | KK54: 0 | KL54: 0 | KM54: 0 | KN54: 0 | KO54: 0 | KP54: 0 | KQ54: 0 | KR54: 0 | KS54: 0 | KT54: 0 | KU54: 0
B55: Inflation Index | E55: Index | G55: 1 | H55: =G55*(1+H54) -> 1 | I55: 1 | J55: 1 | K55: 1 | L55: 1 | M55: 1 | N55: 1.004962932 | O55: 1.009950494 | P55: 1.014962809 | Q55: 1.02 | R55: 1.02506219 | S55: 1.030149504 | T55: 1.035262065 | U55: 1.0404 | V55: 1.045563434 | W55: 1.050752494 | X55: 1.055967307 | Y55: 1.061208 | Z55: 1.066474703 | AA55: 1.071767544 | AB55: 1.077086653 | AC55: 1.08243216 | AD55: 1.087804197 | AE55: 1.093202895 | AF55: 1.098628386 | AG55: 1.104080803 | AH55: 1.109560281 | AI55: 1.115066952 | AJ55: 1.120600953 | AK55: 1.126162419 | AL55: 1.131751486 | AM55: 1.137368291 | AN55: 1.143012972 | AO55: 1.148685668 | AP55: 1.154386516 | AQ55: 1.160115657 | AR55: 1.165873232 | AS55: 1.171659381 | AT55: 1.177474246 | AU55: 1.18331797 | AV55: 1.189190697 | AW55: 1.195092569 | AX55: 1.201023731 | AY55: 1.20698433 | AZ55: 1.21297451 | BA55: 1.21899442 | BB55: 1.225044206 | BC55: 1.231124016 | BD55: 1.237234001 | BE55: 1.243374308 | BF55: 1.24954509 | BG55: 1.255746497 | BH55: 1.261978681 | BI55: 1.268241795 | BJ55: 1.274535992 | BK55: 1.280861427 | BL55: 1.287218254 | BM55: 1.29360663 | BN55: 1.300026712 | BO55: 1.306478655 | BP55: 1.312962619 | BQ55: 1.319478763 | BR55: 1.326027246 | BS55: 1.332608228 | BT55: =BS55*(1+BT54) -> 1.339221872 | BU55: 1.345868338 | BV55: 1.352547791 | BW55: 1.359260393 | BX55: 1.366006309 | BY55: 1.372785705 | BZ55: 1.379598747 | CA55: 1.386445601 | CB55: 1.393326435 | CC55: 1.400241419 | CD55: 1.407190722 | CE55: 1.414174513 | CF55: 1.421192964 | CG55: 1.428246248 | CH55: 1.435334536 | CI55: 1.442458003 | CJ55: 1.449616823 | CK55: 1.456811173 | CL55: 1.464041227 | CM55: 1.471307163 | CN55: 1.47860916 | CO55: 1.485947396 | CP55: 1.493322051 | CQ55: 1.500733306 | CR55: 1.508181343 | CS55: 1.515666344 | CT55: 1.523188492 | CU55: 1.530747973 | CV55: 1.53834497 | CW55: 1.545979671 | CX55: 1.553652262 | CY55: 1.561362932 | CZ55: 1.569111869 | DA55: 1.576899264 | DB55: 1.584725307 | DC55: 1.592590191 | DD55: 1.600494107 | DE55: 1.608437249 | DF55: 1.616419813 | DG55: 1.624441994 | DH55: 1.632503989 | DI55: 1.640605994 | DJ55: 1.640605994 | DK55: 1.640605994 | DL55: 1.640605994 | DM55: 1.640605994 | DN55: 1.640605994 | DO55: 1.640605994 | DP55: 1.640605994 | DQ55: 1.640605994 | DR55: 1.640605994 | DS55: 1.640605994 | DT55: 1.640605994 | DU55: 1.640605994 | DV55: 1.640605994 | DW55: 1.640605994 | DX55: 1.640605994 | DY55: 1.640605994 | DZ55: 1.640605994 | EA55: 1.640605994 | EB55: 1.640605994 | EC55: 1.640605994 | ED55: 1.640605994 | EE55: 1.640605994 | EF55: =EE55*(1+EF54) -> 1.640605994 | EG55: 1.640605994 | EH55: 1.640605994 | EI55: 1.640605994 | EJ55: 1.640605994 | EK55: 1.640605994 | EL55: 1.640605994 | EM55: 1.640605994 | EN55: 1.640605994 | EO55: 1.640605994 | EP55: 1.640605994 | EQ55: 1.640605994 | ER55: 1.640605994 | ES55: 1.640605994 | ET55: 1.640605994 | EU55: 1.640605994 | EV55: 1.640605994 | EW55: 1.640605994 | EX55: 1.640605994 | EY55: 1.640605994 | EZ55: 1.640605994 | FA55: 1.640605994 | FB55: 1.640605994 | FC55: 1.640605994 | FD55: 1.640605994 | FE55: 1.640605994 | FF55: 1.640605994 | FG55: 1.640605994 | FH55: 1.640605994 | FI55: 1.640605994 | FJ55: 1.640605994 | FK55: 1.640605994 | FL55: 1.640605994 | FM55: 1.640605994 | FN55: 1.640605994 | FO55: 1.640605994 | FP55: 1.640605994 | FQ55: 1.640605994 | FR55: 1.640605994 | FS55: 1.640605994 | FT55: 1.640605994 | FU55: 1.640605994 | FV55: 1.640605994 | FW55: 1.640605994 | FX55: 1.640605994 | FY55: 1.640605994 | FZ55: 1.640605994 | GA55: 1.640605994 | GB55: 1.640605994 | GC55: 1.640605994 | GD55: 1.640605994 | GE55: 1.640605994 | GF55: 1.640605994 | GG55: 1.640605994 | GH55: 1.640605994 | GI55: 1.640605994 | GJ55: 1.640605994 | GK55: 1.640605994 | GL55: 1.640605994 | GM55: 1.640605994 | GN55: 1.640605994 | GO55: 1.640605994 | GP55: 1.640605994 | GQ55: 1.640605994 | GR55: =GQ55*(1+GR54) -> 1.640605994 | GS55: 1.640605994 | GT55: 1.640605994 | GU55: 1.640605994 | GV55: 1.640605994 | GW55: 1.640605994 | GX55: 1.640605994 | GY55: 1.640605994 | GZ55: 1.640605994 | HA55: 1.640605994 | HB55: 1.640605994 | HC55: 1.640605994 | HD55: 1.640605994 | HE55: 1.640605994 | HF55: 1.640605994 | HG55: 1.640605994 | HH55: 1.640605994 | HI55: 1.640605994 | HJ55: 1.640605994 | HK55: 1.640605994 | HL55: 1.640605994 | HM55: 1.640605994 | HN55: 1.640605994 | HO55: 1.640605994 | HP55: 1.640605994 | HQ55: 1.640605994 | HR55: 1.640605994 | HS55: 1.640605994 | HT55: 1.640605994 | HU55: 1.640605994 | HV55: 1.640605994 | HW55: 1.640605994 | HX55: 1.640605994 | HY55: 1.640605994 | HZ55: 1.640605994 | IA55: 1.640605994 | IB55: 1.640605994 | IC55: 1.640605994 | ID55: 1.640605994 | IE55: 1.640605994 | IF55: 1.640605994 | IG55: 1.640605994 | IH55: 1.640605994 | II55: 1.640605994 | IJ55: 1.640605994 | IK55: 1.640605994 | IL55: 1.640605994 | IM55: 1.640605994 | IN55: 1.640605994 | IO55: 1.640605994 | IP55: 1.640605994 | IQ55: 1.640605994 | IR55: 1.640605994 | IS55: 1.640605994 | IT55: 1.640605994 | IU55: 1.640605994 | IV55: 1.640605994 | IW55: 1.640605994 | IX55: 1.640605994 | IY55: 1.640605994 | IZ55: 1.640605994 | JA55: 1.640605994 | JB55: 1.640605994 | JC55: 1.640605994 | JD55: =JC55*(1+JD54) -> 1.640605994 | JE55: 1.640605994 | JF55: 1.640605994 | JG55: 1.640605994 | JH55: 1.640605994 | JI55: 1.640605994 | JJ55: 1.640605994 | JK55: 1.640605994 | JL55: 1.640605994 | JM55: 1.640605994 | JN55: 1.640605994 | JO55: 1.640605994 | JP55: 1.640605994 | JQ55: 1.640605994 | JR55: 1.640605994 | JS55: 1.640605994 | JT55: 1.640605994 | JU55: 1.640605994 | JV55: 1.640605994 | JW55: 1.640605994 | JX55: 1.640605994 | JY55: 1.640605994 | JZ55: 1.640605994 | KA55: 1.640605994 | KB55: 1.640605994 | KC55: 1.640605994 | KD55: 1.640605994 | KE55: 1.640605994 | KF55: 1.640605994 | KG55: 1.640605994 | KH55: 1.640605994 | KI55: 1.640605994 | KJ55: 1.640605994 | KK55: 1.640605994 | KL55: 1.640605994 | KM55: 1.640605994 | KN55: 1.640605994 | KO55: 1.640605994 | KP55: 1.640605994 | KQ55: 1.640605994 | KR55: 1.640605994 | KS55: 1.640605994 | KT55: 1.640605994 | KU55: 1.640605994
B57: Percent of Period | H57: =H4/12*H9 -> 0 | I57: 0 | J57: 0 | K57: 0 | L57: 0 | M57: 0 | N57: 0.25 | O57: 0.25 | P57: 0.25 | Q57: 0.25 | R57: 0.25 | S57: 0.25 | T57: 0.25 | U57: 0.25 | V57: 0.25 | W57: 0.25 | X57: 0.25 | Y57: 0.25 | Z57: 0.25 | AA57: 0.25 | AB57: 0.25 | AC57: 0.25 | AD57: 0.25 | AE57: 0.25 | AF57: 0.25 | AG57: 0.25 | AH57: 0.25 | AI57: 0.25 | AJ57: 0.25 | AK57: 0.25 | AL57: 0.25 | AM57: 0.25 | AN57: 0.25 | AO57: 0.25 | AP57: 0.25 | AQ57: 0.25 | AR57: 0.25 | AS57: 0.25 | AT57: 0.25 | AU57: 0.25 | AV57: 0.25 | AW57: 0.25 | AX57: 0.25 | AY57: 0.25 | AZ57: 0.25 | BA57: 0.25 | BB57: 0.25 | BC57: 0.25 | BD57: 0.25 | BE57: 0.25 | BF57: 0.25 | BG57: 0.25 | BH57: 0.25 | BI57: 0.25 | BJ57: 0.25 | BK57: 0.25 | BL57: 0.25 | BM57: 0.25 | BN57: 0.25 | BO57: 0.25 | BP57: 0.25 | BQ57: 0.25 | BR57: 0.25 | BS57: 0.25 | BT57: =BT4/12*BT9 -> 0.25 | BU57: 0.25 | BV57: 0.25 | BW57: 0.25 | BX57: 0.25 | BY57: 0.25 | BZ57: 0.25 | CA57: 0.25 | CB57: 0.25 | CC57: 0.25 | CD57: 0.25 | CE57: 0.25 | CF57: 0.25 | CG57: 0.25 | CH57: 0.25 | CI57: 0.25 | CJ57: 0.25 | CK57: 0.25 | CL57: 0.25 | CM57: 0.25 | CN57: 0.25 | CO57: 0.25 | CP57: 0.25 | CQ57: 0.25 | CR57: 0.25 | CS57: 0.25 | CT57: 0.25 | CU57: 0.25 | CV57: 0.25 | CW57: 0.25 | CX57: 0.25 | CY57: 0.25 | CZ57: 0.25 | DA57: 0.25 | DB57: 0.25 | DC57: 0.25 | DD57: 0.25 | DE57: 0.25 | DF57: 0.25 | DG57: 0.25 | DH57: 0.25 | DI57: 0.25 | DJ57: 0 | DK57: 0 | DL57: 0 | DM57: 0 | DN57: 0 | DO57: 0 | DP57: 0 | DQ57: 0 | DR57: 0 | DS57: 0 | DT57: 0 | DU57: 0 | DV57: 0 | DW57: 0 | DX57: 0 | DY57: 0 | DZ57: 0 | EA57: 0 | EB57: 0 | EC57: 0 | ED57: 0 | EE57: 0 | EF57: =EF4/12*EF9 -> 0 | EG57: 0 | EH57: 0 | EI57: 0 | EJ57: 0 | EK57: 0 | EL57: 0 | EM57: 0 | EN57: 0 | EO57: 0 | EP57: 0 | EQ57: 0 | ER57: 0 | ES57: 0 | ET57: 0 | EU57: 0 | EV57: 0 | EW57: 0 | EX57: 0 | EY57: 0 | EZ57: 0 | FA57: 0 | FB57: 0 | FC57: 0 | FD57: 0 | FE57: 0 | FF57: 0 | FG57: 0 | FH57: 0 | FI57: 0 | FJ57: 0 | FK57: 0 | FL57: 0 | FM57: 0 | FN57: 0 | FO57: 0 | FP57: 0 | FQ57: 0 | FR57: 0 | FS57: 0 | FT57: 0 | FU57: 0 | FV57: 0 | FW57: 0 | FX57: 0 | FY57: 0 | FZ57: 0 | GA57: 0 | GB57: 0 | GC57: 0 | GD57: 0 | GE57: 0 | GF57: 0 | GG57: 0 | GH57: 0 | GI57: 0 | GJ57: 0 | GK57: 0 | GL57: 0 | GM57: 0 | GN57: 0 | GO57: 0 | GP57: 0 | GQ57: 0 | GR57: =GR4/12*GR9 -> 0 | GS57: 0 | GT57: 0 | GU57: 0 | GV57: 0 | GW57: 0 | GX57: 0 | GY57: 0 | GZ57: 0 | HA57: 0 | HB57: 0 | HC57: 0 | HD57: 0 | HE57: 0 | HF57: 0 | HG57: 0 | HH57: 0 | HI57: 0 | HJ57: 0 | HK57: 0 | HL57: 0 | HM57: 0 | HN57: 0 | HO57: 0 | HP57: 0 | HQ57: 0 | HR57: 0 | HS57: 0 | HT57: 0 | HU57: 0 | HV57: 0 | HW57: 0 | HX57: 0 | HY57: 0 | HZ57: 0 | IA57: 0 | IB57: 0 | IC57: 0 | ID57: 0 | IE57: 0 | IF57: 0 | IG57: 0 | IH57: 0 | II57: 0 | IJ57: 0 | IK57: 0 | IL57: 0 | IM57: 0 | IN57: 0 | IO57: 0 | IP57: 0 | IQ57: 0 | IR57: 0 | IS57: 0 | IT57: 0 | IU57: 0 | IV57: 0 | IW57: 0 | IX57: 0 | IY57: 0 | IZ57: 0 | JA57: 0 | JB57: 0 | JC57: 0 | JD57: =JD4/12*JD9 -> 0 | JE57: 0 | JF57: 0 | JG57: 0 | JH57: 0 | JI57: 0 | JJ57: 0 | JK57: 0 | JL57: 0 | JM57: 0 | JN57: 0 | JO57: 0 | JP57: 0 | JQ57: 0 | JR57: 0 | JS57: 0 | JT57: 0 | JU57: 0 | JV57: 0 | JW57: 0 | JX57: 0 | JY57: 0 | JZ57: 0 | KA57: 0 | KB57: 0 | KC57: 0 | KD57: 0 | KE57: 0 | KF57: 0 | KG57: 0 | KH57: 0 | KI57: 0 | KJ57: 0 | KK57: 0 | KL57: 0 | KM57: 0 | KN57: 0 | KO57: 0 | KP57: 0 | KQ57: 0 | KR57: 0 | KS57: 0 | KT57: 0 | KU57: 0
B58: O&M without Inflation | E58: USD 000's | F58: =Assumptions!F55 -> 21359.28641 | H58: =$F$58*H57/1000 -> 0 | I58: 0 | J58: 0 | K58: 0 | L58: 0 | M58: 0 | N58: 5.339821604 | O58: 5.339821604 | P58: 5.339821604 | Q58: 5.339821604 | R58: 5.339821604 | S58: 5.339821604 | T58: 5.339821604 | U58: 5.339821604 | V58: 5.339821604 | W58: 5.339821604 | X58: 5.339821604 | Y58: 5.339821604 | Z58: 5.339821604 | AA58: 5.339821604 | AB58: 5.339821604 | AC58: 5.339821604 | AD58: 5.339821604 | AE58: 5.339821604 | AF58: 5.339821604 | AG58: 5.339821604 | AH58: 5.339821604 | AI58: 5.339821604 | AJ58: 5.339821604 | AK58: 5.339821604 | AL58: 5.339821604 | AM58: 5.339821604 | AN58: 5.339821604 | AO58: 5.339821604 | AP58: 5.339821604 | AQ58: 5.339821604 | AR58: 5.339821604 | AS58: 5.339821604 | AT58: 5.339821604 | AU58: 5.339821604 | AV58: 5.339821604 | AW58: 5.339821604 | AX58: 5.339821604 | AY58: 5.339821604 | AZ58: 5.339821604 | BA58: 5.339821604 | BB58: 5.339821604 | BC58: 5.339821604 | BD58: 5.339821604 | BE58: 5.339821604 | BF58: 5.339821604 | BG58: 5.339821604 | BH58: 5.339821604 | BI58: 5.339821604 | BJ58: 5.339821604 | BK58: 5.339821604 | BL58: 5.339821604 | BM58: 5.339821604 | BN58: 5.339821604 | BO58: 5.339821604 | BP58: 5.339821604 | BQ58: 5.339821604 | BR58: 5.339821604 | BS58: 5.339821604 | BT58: =$F$58*BT57/1000 -> 5.339821604 | BU58: 5.339821604 | BV58: 5.339821604 | BW58: 5.339821604 | BX58: 5.339821604 | BY58: 5.339821604 | BZ58: 5.339821604 | CA58: 5.339821604 | CB58: 5.339821604 | CC58: 5.339821604 | CD58: 5.339821604 | CE58: 5.339821604 | CF58: 5.339821604 | CG58: 5.339821604 | CH58: 5.339821604 | CI58: 5.339821604 | CJ58: 5.339821604 | CK58: 5.339821604 | CL58: 5.339821604 | CM58: 5.339821604 | CN58: 5.339821604 | CO58: 5.339821604 | CP58: 5.339821604 | CQ58: 5.339821604 | CR58: 5.339821604 | CS58: 5.339821604 | CT58: 5.339821604 | CU58: 5.339821604 | CV58: 5.339821604 | CW58: 5.339821604 | CX58: 5.339821604 | CY58: 5.339821604 | CZ58: 5.339821604 | DA58: 5.339821604 | DB58: 5.339821604 | DC58: 5.339821604 | DD58: 5.339821604 | DE58: 5.339821604 | DF58: 5.339821604 | DG58: 5.339821604 | DH58: 5.339821604 | DI58: 5.339821604 | DJ58: 0 | DK58: 0 | DL58: 0 | DM58: 0 | DN58: 0 | DO58: 0 | DP58: 0 | DQ58: 0 | DR58: 0 | DS58: 0 | DT58: 0 | DU58: 0 | DV58: 0 | DW58: 0 | DX58: 0 | DY58: 0 | DZ58: 0 | EA58: 0 | EB58: 0 | EC58: 0 | ED58: 0 | EE58: 0 | EF58: =$F$58*EF57/1000 -> 0 | EG58: 0 | EH58: 0 | EI58: 0 | EJ58: 0 | EK58: 0 | EL58: 0 | EM58: 0 | EN58: 0 | EO58: 0 | EP58: 0 | EQ58: 0 | ER58: 0 | ES58: 0 | ET58: 0 | EU58: 0 | EV58: 0 | EW58: 0 | EX58: 0 | EY58: 0 | EZ58: 0 | FA58: 0 | FB58: 0 | FC58: 0 | FD58: 0 | FE58: 0 | FF58: 0 | FG58: 0 | FH58: 0 | FI58: 0 | FJ58: 0 | FK58: 0 | FL58: 0 | FM58: 0 | FN58: 0 | FO58: 0 | FP58: 0 | FQ58: 0 | FR58: 0 | FS58: 0 | FT58: 0 | FU58: 0 | FV58: 0 | FW58: 0 | FX58: 0 | FY58: 0 | FZ58: 0 | GA58: 0 | GB58: 0 | GC58: 0 | GD58: 0 | GE58: 0 | GF58: 0 | GG58: 0 | GH58: 0 | GI58: 0 | GJ58: 0 | GK58: 0 | GL58: 0 | GM58: 0 | GN58: 0 | GO58: 0 | GP58: 0 | GQ58: 0 | GR58: =$F$58*GR57/1000 -> 0 | GS58: 0 | GT58: 0 | GU58: 0 | GV58: 0 | GW58: 0 | GX58: 0 | GY58: 0 | GZ58: 0 | HA58: 0 | HB58: 0 | HC58: 0 | HD58: 0 | HE58: 0 | HF58: 0 | HG58: 0 | HH58: 0 | HI58: 0 | HJ58: 0 | HK58: 0 | HL58: 0 | HM58: 0 | HN58: 0 | HO58: 0 | HP58: 0 | HQ58: 0 | HR58: 0 | HS58: 0 | HT58: 0 | HU58: 0 | HV58: 0 | HW58: 0 | HX58: 0 | HY58: 0 | HZ58: 0 | IA58: 0 | IB58: 0 | IC58: 0 | ID58: 0 | IE58: 0 | IF58: 0 | IG58: 0 | IH58: 0 | II58: 0 | IJ58: 0 | IK58: 0 | IL58: 0 | IM58: 0 | IN58: 0 | IO58: 0 | IP58: 0 | IQ58: 0 | IR58: 0 | IS58: 0 | IT58: 0 | IU58: 0 | IV58: 0 | IW58: 0 | IX58: 0 | IY58: 0 | IZ58: 0 | JA58: 0 | JB58: 0 | JC58: 0 | JD58: =$F$58*JD57/1000 -> 0 | JE58: 0 | JF58: 0 | JG58: 0 | JH58: 0 | JI58: 0 | JJ58: 0 | JK58: 0 | JL58: 0 | JM58: 0 | JN58: 0 | JO58: 0 | JP58: 0 | JQ58: 0 | JR58: 0 | JS58: 0 | JT58: 0 | JU58: 0 | JV58: 0 | JW58: 0 | JX58: 0 | JY58: 0 | JZ58: 0 | KA58: 0 | KB58: 0 | KC58: 0 | KD58: 0 | KE58: 0 | KF58: 0 | KG58: 0 | KH58: 0 | KI58: 0 | KJ58: 0 | KK58: 0 | KL58: 0 | KM58: 0 | KN58: 0 | KO58: 0 | KP58: 0 | KQ58: 0 | KR58: 0 | KS58: 0 | KT58: 0 | KU58: 0
B59: Nominal O&M | E59: USD 000's | H59: =H58*H55 -> 0 | I59: 0 | J59: 0 | K59: 0 | L59: 0 | M59: 0 | N59: 5.366322773 | O59: 5.392955465 | P59: 5.419720334 | Q59: 5.446618036 | R59: 5.473649228 | S59: 5.500814575 | T59: 5.528114741 | U59: 5.555550396 | V59: 5.583122213 | W59: 5.610830866 | X59: 5.638677036 | Y59: 5.666661404 | Z59: 5.694784657 | AA59: 5.723047484 | AB59: 5.751450577 | AC59: 5.779994632 | AD59: 5.80868035 | AE59: 5.837508433 | AF59: 5.866479588 | AG59: 5.895594525 | AH59: 5.924853957 | AI59: 5.954258602 | AJ59: 5.98380918 | AK59: 6.013506415 | AL59: 6.043351036 | AM59: 6.073343774 | AN59: 6.103485364 | AO59: 6.133776544 | AP59: 6.164218057 | AQ59: 6.194810649 | AR59: 6.225555071 | AS59: 6.256452075 | AT59: 6.287502418 | AU59: 6.318706862 | AV59: 6.350066172 | AW59: 6.381581116 | AX59: 6.413252467 | AY59: 6.445081 | AZ59: 6.477067496 | BA59: 6.509212738 | BB59: 6.541517516 | BC59: 6.57398262 | BD59: 6.606608846 | BE59: 6.639396993 | BF59: 6.672347866 | BG59: 6.705462272 | BH59: 6.738741023 | BI59: 6.772184933 | BJ59: 6.805794824 | BK59: 6.839571518 | BL59: 6.873515843 | BM59: 6.907628632 | BN59: 6.94191072 | BO59: 6.976362948 | BP59: 7.01098616 | BQ59: 7.045781204 | BR59: 7.080748934 | BS59: 7.115890207 | BT59: =BT58*BT55 -> 7.151205883 | BU59: 7.186696828 | BV59: 7.222363913 | BW59: 7.258208011 | BX59: 7.294230001 | BY59: 7.330430765 | BZ59: 7.366811191 | CA59: 7.403372171 | CB59: 7.440114601 | CC59: 7.47703938 | CD59: 7.514147415 | CE59: 7.551439615 | CF59: 7.588916893 | CG59: 7.626580168 | CH59: 7.664430363 | CI59: 7.702468407 | CJ59: 7.740695231 | CK59: 7.779111771 | CL59: 7.817718971 | CM59: 7.856517775 | CN59: 7.895509135 | CO59: 7.934694007 | CP59: 7.97407335 | CQ59: 8.013648131 | CR59: 8.053419318 | CS59: 8.093387887 | CT59: 8.133554817 | CU59: 8.173921093 | CV59: 8.214487704 | CW59: 8.255255645 | CX59: 8.296225914 | CY59: 8.337399515 | CZ59: 8.378777458 | DA59: 8.420360758 | DB59: 8.462150432 | DC59: 8.504147505 | DD59: 8.546353007 | DE59: 8.588767973 | DF59: 8.63139344 | DG59: 8.674230455 | DH59: 8.717280068 | DI59: 8.760543332 | DJ59: 0 | DK59: 0 | DL59: 0 | DM59: 0 | DN59: 0 | DO59: 0 | DP59: 0 | DQ59: 0 | DR59: 0 | DS59: 0 | DT59: 0 | DU59: 0 | DV59: 0 | DW59: 0 | DX59: 0 | DY59: 0 | DZ59: 0 | EA59: 0 | EB59: 0 | EC59: 0 | ED59: 0 | EE59: 0 | EF59: =EF58*EF55 -> 0 | EG59: 0 | EH59: 0 | EI59: 0 | EJ59: 0 | EK59: 0 | EL59: 0 | EM59: 0 | EN59: 0 | EO59: 0 | EP59: 0 | EQ59: 0 | ER59: 0 | ES59: 0 | ET59: 0 | EU59: 0 | EV59: 0 | EW59: 0 | EX59: 0 | EY59: 0 | EZ59: 0 | FA59: 0 | FB59: 0 | FC59: 0 | FD59: 0 | FE59: 0 | FF59: 0 | FG59: 0 | FH59: 0 | FI59: 0 | FJ59: 0 | FK59: 0 | FL59: 0 | FM59: 0 | FN59: 0 | FO59: 0 | FP59: 0 | FQ59: 0 | FR59: 0 | FS59: 0 | FT59: 0 | FU59: 0 | FV59: 0 | FW59: 0 | FX59: 0 | FY59: 0 | FZ59: 0 | GA59: 0 | GB59: 0 | GC59: 0 | GD59: 0 | GE59: 0 | GF59: 0 | GG59: 0 | GH59: 0 | GI59: 0 | GJ59: 0 | GK59: 0 | GL59: 0 | GM59: 0 | GN59: 0 | GO59: 0 | GP59: 0 | GQ59: 0 | GR59: =GR58*GR55 -> 0 | GS59: 0 | GT59: 0 | GU59: 0 | GV59: 0 | GW59: 0 | GX59: 0 | GY59: 0 | GZ59: 0 | HA59: 0 | HB59: 0 | HC59: 0 | HD59: 0 | HE59: 0 | HF59: 0 | HG59: 0 | HH59: 0 | HI59: 0 | HJ59: 0 | HK59: 0 | HL59: 0 | HM59: 0 | HN59: 0 | HO59: 0 | HP59: 0 | HQ59: 0 | HR59: 0 | HS59: 0 | HT59: 0 | HU59: 0 | HV59: 0 | HW59: 0 | HX59: 0 | HY59: 0 | HZ59: 0 | IA59: 0 | IB59: 0 | IC59: 0 | ID59: 0 | IE59: 0 | IF59: 0 | IG59: 0 | IH59: 0 | II59: 0 | IJ59: 0 | IK59: 0 | IL59: 0 | IM59: 0 | IN59: 0 | IO59: 0 | IP59: 0 | IQ59: 0 | IR59: 0 | IS59: 0 | IT59: 0 | IU59: 0 | IV59: 0 | IW59: 0 | IX59: 0 | IY59: 0 | IZ59: 0 | JA59: 0 | JB59: 0 | JC59: 0 | JD59: =JD58*JD55 -> 0 | JE59: 0 | JF59: 0 | JG59: 0 | JH59: 0 | JI59: 0 | JJ59: 0 | JK59: 0 | JL59: 0 | JM59: 0 | JN59: 0 | JO59: 0 | JP59: 0 | JQ59: 0 | JR59: 0 | JS59: 0 | JT59: 0 | JU59: 0 | JV59: 0 | JW59: 0 | JX59: 0 | JY59: 0 | JZ59: 0 | KA59: 0 | KB59: 0 | KC59: 0 | KD59: 0 | KE59: 0 | KF59: 0 | KG59: 0 | KH59: 0 | KI59: 0 | KJ59: 0 | KK59: 0 | KL59: 0 | KM59: 0 | KN59: 0 | KO59: 0 | KP59: 0 | KQ59: 0 | KR59: 0 | KS59: 0 | KT59: 0 | KU59: 0
B61: Gross Plant | E61: USD 000's | H61: =G61+H41 -> 370.2276312 | I61: 925.5690779 | J61: 1480.910525 | K61: 1666.02434 | L61: 1879.764004 | M61: 1908.389851 | N61: 1908.389851 | O61: 1908.389851 | P61: 1908.389851 | Q61: 1908.389851 | R61: 1908.389851 | S61: 1908.389851 | T61: 1908.389851 | U61: 1908.389851 | V61: 1908.389851 | W61: 1908.389851 | X61: 1908.389851 | Y61: 1908.389851 | Z61: 1908.389851 | AA61: 1908.389851 | AB61: 1908.389851 | AC61: 1908.389851 | AD61: 1908.389851 | AE61: 1908.389851 | AF61: 1908.389851 | AG61: 1908.389851 | AH61: 1908.389851 | AI61: 1908.389851 | AJ61: 1908.389851 | AK61: 1908.389851 | AL61: 1908.389851 | AM61: 1908.389851 | AN61: 1908.389851 | AO61: 1908.389851 | AP61: 1908.389851 | AQ61: 1908.389851 | AR61: 1908.389851 | AS61: 1908.389851 | AT61: 1908.389851 | AU61: 1908.389851 | AV61: 1908.389851 | AW61: 1908.389851 | AX61: 1908.389851 | AY61: 1908.389851 | AZ61: 1908.389851 | BA61: 1908.389851 | BB61: 1908.389851 | BC61: 1908.389851 | BD61: 1908.389851 | BE61: 1908.389851 | BF61: 1908.389851 | BG61: 1908.389851 | BH61: 1908.389851 | BI61: 1908.389851 | BJ61: 1908.389851 | BK61: 1908.389851 | BL61: 1908.389851 | BM61: 1908.389851 | BN61: 1908.389851 | BO61: 1908.389851 | BP61: 1908.389851 | BQ61: 1908.389851 | BR61: 1908.389851 | BS61: 1908.389851 | BT61: =BS61+BT41 -> 1908.389851 | BU61: 1908.389851 | BV61: 1908.389851 | BW61: 1908.389851 | BX61: 1908.389851 | BY61: 1908.389851 | BZ61: 1908.389851 | CA61: 1908.389851 | CB61: 1908.389851 | CC61: 1908.389851 | CD61: 1908.389851 | CE61: 1908.389851 | CF61: 1908.389851 | CG61: 1908.389851 | CH61: 1908.389851 | CI61: 1908.389851 | CJ61: 1908.389851 | CK61: 1908.389851 | CL61: 1908.389851 | CM61: 1908.389851 | CN61: 1908.389851 | CO61: 1908.389851 | CP61: 1908.389851 | CQ61: 1908.389851 | CR61: 1908.389851 | CS61: 1908.389851 | CT61: 1908.389851 | CU61: 1908.389851 | CV61: 1908.389851 | CW61: 1908.389851 | CX61: 1908.389851 | CY61: 1908.389851 | CZ61: 1908.389851 | DA61: 1908.389851 | DB61: 1908.389851 | DC61: 1908.389851 | DD61: 1908.389851 | DE61: 1908.389851 | DF61: 1908.389851 | DG61: 1908.389851 | DH61: 1908.389851 | DI61: 1908.389851 | DJ61: 1908.389851 | DK61: 1908.389851 | DL61: 1908.389851 | DM61: 1908.389851 | DN61: 1908.389851 | DO61: 1908.389851 | DP61: 1908.389851 | DQ61: 1908.389851 | DR61: 1908.389851 | DS61: 1908.389851 | DT61: 1908.389851 | DU61: 1908.389851 | DV61: 1908.389851 | DW61: 1908.389851 | DX61: 1908.389851 | DY61: 1908.389851 | DZ61: 1908.389851 | EA61: 1908.389851 | EB61: 1908.389851 | EC61: 1908.389851 | ED61: 1908.389851 | EE61: 1908.389851 | EF61: =EE61+EF41 -> 1908.389851 | EG61: 1908.389851 | EH61: 1908.389851 | EI61: 1908.389851 | EJ61: 1908.389851 | EK61: 1908.389851 | EL61: 1908.389851 | EM61: 1908.389851 | EN61: 1908.389851 | EO61: 1908.389851 | EP61: 1908.389851 | EQ61: 1908.389851 | ER61: 1908.389851 | ES61: 1908.389851 | ET61: 1908.389851 | EU61: 1908.389851 | EV61: 1908.389851 | EW61: 1908.389851 | EX61: 1908.389851 | EY61: 1908.389851 | EZ61: 1908.389851 | FA61: 1908.389851 | FB61: 1908.389851 | FC61: 1908.389851 | FD61: 1908.389851 | FE61: 1908.389851 | FF61: 1908.389851 | FG61: 1908.389851 | FH61: 1908.389851 | FI61: 1908.389851 | FJ61: 1908.389851 | FK61: 1908.389851 | FL61: 1908.389851 | FM61: 1908.389851 | FN61: 1908.389851 | FO61: 1908.389851 | FP61: 1908.389851 | FQ61: 1908.389851 | FR61: 1908.389851 | FS61: 1908.389851 | FT61: 1908.389851 | FU61: 1908.389851 | FV61: 1908.389851 | FW61: 1908.389851 | FX61: 1908.389851 | FY61: 1908.389851 | FZ61: 1908.389851 | GA61: 1908.389851 | GB61: 1908.389851 | GC61: 1908.389851 | GD61: 1908.389851 | GE61: 1908.389851 | GF61: 1908.389851 | GG61: 1908.389851 | GH61: 1908.389851 | GI61: 1908.389851 | GJ61: 1908.389851 | GK61: 1908.389851 | GL61: 1908.389851 | GM61: 1908.389851 | GN61: 1908.389851 | GO61: 1908.389851 | GP61: 1908.389851 | GQ61: 1908.389851 | GR61: =GQ61+GR41 -> 1908.389851 | GS61: 1908.389851 | GT61: 1908.389851 | GU61: 1908.389851 | GV61: 1908.389851 | GW61: 1908.389851 | GX61: 1908.389851 | GY61: 1908.389851 | GZ61: 1908.389851 | HA61: 1908.389851 | HB61: 1908.389851 | HC61: 1908.389851 | HD61: 1908.389851 | HE61: 1908.389851 | HF61: 1908.389851 | HG61: 1908.389851 | HH61: 1908.389851 | HI61: 1908.389851 | HJ61: 1908.389851 | HK61: 1908.389851 | HL61: 1908.389851 | HM61: 1908.389851 | HN61: 1908.389851 | HO61: 1908.389851 | HP61: 1908.389851 | HQ61: 1908.389851 | HR61: 1908.389851 | HS61: 1908.389851 | HT61: 1908.389851 | HU61: 1908.389851 | HV61: 1908.389851 | HW61: 1908.389851 | HX61: 1908.389851 | HY61: 1908.389851 | HZ61: 1908.389851 | IA61: 1908.389851 | IB61: 1908.389851 | IC61: 1908.389851 | ID61: 1908.389851 | IE61: 1908.389851 | IF61: 1908.389851 | IG61: 1908.389851 | IH61: 1908.389851 | II61: 1908.389851 | IJ61: 1908.389851 | IK61: 1908.389851 | IL61: 1908.389851 | IM61: 1908.389851 | IN61: 1908.389851 | IO61: 1908.389851 | IP61: 1908.389851 | IQ61: 1908.389851 | IR61: 1908.389851 | IS61: 1908.389851 | IT61: 1908.389851 | IU61: 1908.389851 | IV61: 1908.389851 | IW61: 1908.389851 | IX61: 1908.389851 | IY61: 1908.389851 | IZ61: 1908.389851 | JA61: 1908.389851 | JB61: 1908.389851 | JC61: 1908.389851 | JD61: =JC61+JD41 -> 1908.389851 | JE61: 1908.389851 | JF61: 1908.389851 | JG61: 1908.389851 | JH61: 1908.389851 | JI61: 1908.389851 | JJ61: 1908.389851 | JK61: 1908.389851 | JL61: 1908.389851 | JM61: 1908.389851 | JN61: 1908.389851 | JO61: 1908.389851 | JP61: 1908.389851 | JQ61: 1908.389851 | JR61: 1908.389851 | JS61: 1908.389851 | JT61: 1908.389851 | JU61: 1908.389851 | JV61: 1908.389851 | JW61: 1908.389851 | JX61: 1908.389851 | JY61: 1908.389851 | JZ61: 1908.389851 | KA61: 1908.389851 | KB61: 1908.389851 | KC61: 1908.389851 | KD61: 1908.389851 | KE61: 1908.389851 | KF61: 1908.389851 | KG61: 1908.389851 | KH61: 1908.389851 | KI61: 1908.389851 | KJ61: 1908.389851 | KK61: 1908.389851 | KL61: 1908.389851 | KM61: 1908.389851 | KN61: 1908.389851 | KO61: 1908.389851 | KP61: 1908.389851 | KQ61: 1908.389851 | KR61: 1908.389851 | KS61: 1908.389851 | KT61: 1908.389851 | KU61: 1908.389851
B62: Total Land | E62: USD 000's | H62: =G62+H36 -> 0 | I62: 0 | J62: 0 | K62: 0 | L62: 0 | M62: 0 | N62: 0 | O62: 0 | P62: 0 | Q62: 0 | R62: 0 | S62: 0 | T62: 0 | U62: 0 | V62: 0 | W62: 0 | X62: 0 | Y62: 0 | Z62: 0 | AA62: 0 | AB62: 0 | AC62: 0 | AD62: 0 | AE62: 0 | AF62: 0 | AG62: 0 | AH62: 0 | AI62: 0 | AJ62: 0 | AK62: 0 | AL62: 0 | AM62: 0 | AN62: 0 | AO62: 0 | AP62: 0 | AQ62: 0 | AR62: 0 | AS62: 0 | AT62: 0 | AU62: 0 | AV62: 0 | AW62: 0 | AX62: 0 | AY62: 0 | AZ62: 0 | BA62: 0 | BB62: 0 | BC62: 0 | BD62: 0 | BE62: 0 | BF62: 0 | BG62: 0 | BH62: 0 | BI62: 0 | BJ62: 0 | BK62: 0 | BL62: 0 | BM62: 0 | BN62: 0 | BO62: 0 | BP62: 0 | BQ62: 0 | BR62: 0 | BS62: 0 | BT62: =BS62+BT36 -> 0 | BU62: 0 | BV62: 0 | BW62: 0 | BX62: 0 | BY62: 0 | BZ62: 0 | CA62: 0 | CB62: 0 | CC62: 0 | CD62: 0 | CE62: 0 | CF62: 0 | CG62: 0 | CH62: 0 | CI62: 0 | CJ62: 0 | CK62: 0 | CL62: 0 | CM62: 0 | CN62: 0 | CO62: 0 | CP62: 0 | CQ62: 0 | CR62: 0 | CS62: 0 | CT62: 0 | CU62: 0 | CV62: 0 | CW62: 0 | CX62: 0 | CY62: 0 | CZ62: 0 | DA62: 0 | DB62: 0 | DC62: 0 | DD62: 0 | DE62: 0 | DF62: 0 | DG62: 0 | DH62: 0 | DI62: 0 | DJ62: 0 | DK62: 0 | DL62: 0 | DM62: 0 | DN62: 0 | DO62: 0 | DP62: 0 | DQ62: 0 | DR62: 0 | DS62: 0 | DT62: 0 | DU62: 0 | DV62: 0 | DW62: 0 | DX62: 0 | DY62: 0 | DZ62: 0 | EA62: 0 | EB62: 0 | EC62: 0 | ED62: 0 | EE62: 0 | EF62: =EE62+EF36 -> 0 | EG62: 0 | EH62: 0 | EI62: 0 | EJ62: 0 | EK62: 0 | EL62: 0 | EM62: 0 | EN62: 0 | EO62: 0 | EP62: 0 | EQ62: 0 | ER62: 0 | ES62: 0 | ET62: 0 | EU62: 0 | EV62: 0 | EW62: 0 | EX62: 0 | EY62: 0 | EZ62: 0 | FA62: 0 | FB62: 0 | FC62: 0 | FD62: 0 | FE62: 0 | FF62: 0 | FG62: 0 | FH62: 0 | FI62: 0 | FJ62: 0 | FK62: 0 | FL62: 0 | FM62: 0 | FN62: 0 | FO62: 0 | FP62: 0 | FQ62: 0 | FR62: 0 | FS62: 0 | FT62: 0 | FU62: 0 | FV62: 0 | FW62: 0 | FX62: 0 | FY62: 0 | FZ62: 0 | GA62: 0 | GB62: 0 | GC62: 0 | GD62: 0 | GE62: 0 | GF62: 0 | GG62: 0 | GH62: 0 | GI62: 0 | GJ62: 0 | GK62: 0 | GL62: 0 | GM62: 0 | GN62: 0 | GO62: 0 | GP62: 0 | GQ62: 0 | GR62: =GQ62+GR36 -> 0 | GS62: 0 | GT62: 0 | GU62: 0 | GV62: 0 | GW62: 0 | GX62: 0 | GY62: 0 | GZ62: 0 | HA62: 0 | HB62: 0 | HC62: 0 | HD62: 0 | HE62: 0 | HF62: 0 | HG62: 0 | HH62: 0 | HI62: 0 | HJ62: 0 | HK62: 0 | HL62: 0 | HM62: 0 | HN62: 0 | HO62: 0 | HP62: 0 | HQ62: 0 | HR62: 0 | HS62: 0 | HT62: 0 | HU62: 0 | HV62: 0 | HW62: 0 | HX62: 0 | HY62: 0 | HZ62: 0 | IA62: 0 | IB62: 0 | IC62: 0 | ID62: 0 | IE62: 0 | IF62: 0 | IG62: 0 | IH62: 0 | II62: 0 | IJ62: 0 | IK62: 0 | IL62: 0 | IM62: 0 | IN62: 0 | IO62: 0 | IP62: 0 | IQ62: 0 | IR62: 0 | IS62: 0 | IT62: 0 | IU62: 0 | IV62: 0 | IW62: 0 | IX62: 0 | IY62: 0 | IZ62: 0 | JA62: 0 | JB62: 0 | JC62: 0 | JD62: =JC62+JD36 -> 0 | JE62: 0 | JF62: 0 | JG62: 0 | JH62: 0 | JI62: 0 | JJ62: 0 | JK62: 0 | JL62: 0 | JM62: 0 | JN62: 0 | JO62: 0 | JP62: 0 | JQ62: 0 | JR62: 0 | JS62: 0 | JT62: 0 | JU62: 0 | JV62: 0 | JW62: 0 | JX62: 0 | JY62: 0 | JZ62: 0 | KA62: 0 | KB62: 0 | KC62: 0 | KD62: 0 | KE62: 0 | KF62: 0 | KG62: 0 | KH62: 0 | KI62: 0 | KJ62: 0 | KK62: 0 | KL62: 0 | KM62: 0 | KN62: 0 | KO62: 0 | KP62: 0 | KQ62: 0 | KR62: 0 | KS62: 0 | KT62: 0 | KU62: 0
B63: Net Depreciable Plant | E63: USD 000's | H63: =H61-H62 -> 370.2276312 | I63: 925.5690779 | J63: 1480.910525 | K63: 1666.02434 | L63: 1879.764004 | M63: 1908.389851 | N63: 1908.389851 | O63: 1908.389851 | P63: 1908.389851 | Q63: 1908.389851 | R63: 1908.389851 | S63: 1908.389851 | T63: 1908.389851 | U63: 1908.389851 | V63: 1908.389851 | W63: 1908.389851 | X63: 1908.389851 | Y63: 1908.389851 | Z63: 1908.389851 | AA63: 1908.389851 | AB63: 1908.389851 | AC63: 1908.389851 | AD63: 1908.389851 | AE63: 1908.389851 | AF63: 1908.389851 | AG63: 1908.389851 | AH63: 1908.389851 | AI63: 1908.389851 | AJ63: 1908.389851 | AK63: 1908.389851 | AL63: 1908.389851 | AM63: 1908.389851 | AN63: 1908.389851 | AO63: 1908.389851 | AP63: 1908.389851 | AQ63: 1908.389851 | AR63: 1908.389851 | AS63: 1908.389851 | AT63: 1908.389851 | AU63: 1908.389851 | AV63: 1908.389851 | AW63: 1908.389851 | AX63: 1908.389851 | AY63: 1908.389851 | AZ63: 1908.389851 | BA63: 1908.389851 | BB63: 1908.389851 | BC63: 1908.389851 | BD63: 1908.389851 | BE63: 1908.389851 | BF63: 1908.389851 | BG63: 1908.389851 | BH63: 1908.389851 | BI63: 1908.389851 | BJ63: 1908.389851 | BK63: 1908.389851 | BL63: 1908.389851 | BM63: 1908.389851 | BN63: 1908.389851 | BO63: 1908.389851 | BP63: 1908.389851 | BQ63: 1908.389851 | BR63: 1908.389851 | BS63: 1908.389851 | BT63: =BT61-BT62 -> 1908.389851 | BU63: 1908.389851 | BV63: 1908.389851 | BW63: 1908.389851 | BX63: 1908.389851 | BY63: 1908.389851 | BZ63: 1908.389851 | CA63: 1908.389851 | CB63: 1908.389851 | CC63: 1908.389851 | CD63: 1908.389851 | CE63: 1908.389851 | CF63: 1908.389851 | CG63: 1908.389851 | CH63: 1908.389851 | CI63: 1908.389851 | CJ63: 1908.389851 | CK63: 1908.389851 | CL63: 1908.389851 | CM63: 1908.389851 | CN63: 1908.389851 | CO63: 1908.389851 | CP63: 1908.389851 | CQ63: 1908.389851 | CR63: 1908.389851 | CS63: 1908.389851 | CT63: 1908.389851 | CU63: 1908.389851 | CV63: 1908.389851 | CW63: 1908.389851 | CX63: 1908.389851 | CY63: 1908.389851 | CZ63: 1908.389851 | DA63: 1908.389851 | DB63: 1908.389851 | DC63: 1908.389851 | DD63: 1908.389851 | DE63: 1908.389851 | DF63: 1908.389851 | DG63: 1908.389851 | DH63: 1908.389851 | DI63: 1908.389851 | DJ63: 1908.389851 | DK63: 1908.389851 | DL63: 1908.389851 | DM63: 1908.389851 | DN63: 1908.389851 | DO63: 1908.389851 | DP63: 1908.389851 | DQ63: 1908.389851 | DR63: 1908.389851 | DS63: 1908.389851 | DT63: 1908.389851 | DU63: 1908.389851 | DV63: 1908.389851 | DW63: 1908.389851 | DX63: 1908.389851 | DY63: 1908.389851 | DZ63: 1908.389851 | EA63: 1908.389851 | EB63: 1908.389851 | EC63: 1908.389851 | ED63: 1908.389851 | EE63: 1908.389851 | EF63: =EF61-EF62 -> 1908.389851 | EG63: 1908.389851 | EH63: 1908.389851 | EI63: 1908.389851 | EJ63: 1908.389851 | EK63: 1908.389851 | EL63: 1908.389851 | EM63: 1908.389851 | EN63: 1908.389851 | EO63: 1908.389851 | EP63: 1908.389851 | EQ63: 1908.389851 | ER63: 1908.389851 | ES63: 1908.389851 | ET63: 1908.389851 | EU63: 1908.389851 | EV63: 1908.389851 | EW63: 1908.389851 | EX63: 1908.389851 | EY63: 1908.389851 | EZ63: 1908.389851 | FA63: 1908.389851 | FB63: 1908.389851 | FC63: 1908.389851 | FD63: 1908.389851 | FE63: 1908.389851 | FF63: 1908.389851 | FG63: 1908.389851 | FH63: 1908.389851 | FI63: 1908.389851 | FJ63: 1908.389851 | FK63: 1908.389851 | FL63: 1908.389851 | FM63: 1908.389851 | FN63: 1908.389851 | FO63: 1908.389851 | FP63: 1908.389851 | FQ63: 1908.389851 | FR63: 1908.389851 | FS63: 1908.389851 | FT63: 1908.389851 | FU63: 1908.389851 | FV63: 1908.389851 | FW63: 1908.389851 | FX63: 1908.389851 | FY63: 1908.389851 | FZ63: 1908.389851 | GA63: 1908.389851 | GB63: 1908.389851 | GC63: 1908.389851 | GD63: 1908.389851 | GE63: 1908.389851 | GF63: 1908.389851 | GG63: 1908.389851 | GH63: 1908.389851 | GI63: 1908.389851 | GJ63: 1908.389851 | GK63: 1908.389851 | GL63: 1908.389851 | GM63: 1908.389851 | GN63: 1908.389851 | GO63: 1908.389851 | GP63: 1908.389851 | GQ63: 1908.389851 | GR63: =GR61-GR62 -> 1908.389851 | GS63: 1908.389851 | GT63: 1908.389851 | GU63: 1908.389851 | GV63: 1908.389851 | GW63: 1908.389851 | GX63: 1908.389851 | GY63: 1908.389851 | GZ63: 1908.389851 | HA63: 1908.389851 | HB63: 1908.389851 | HC63: 1908.389851 | HD63: 1908.389851 | HE63: 1908.389851 | HF63: 1908.389851 | HG63: 1908.389851 | HH63: 1908.389851 | HI63: 1908.389851 | HJ63: 1908.389851 | HK63: 1908.389851 | HL63: 1908.389851 | HM63: 1908.389851 | HN63: 1908.389851 | HO63: 1908.389851 | HP63: 1908.389851 | HQ63: 1908.389851 | HR63: 1908.389851 | HS63: 1908.389851 | HT63: 1908.389851 | HU63: 1908.389851 | HV63: 1908.389851 | HW63: 1908.389851 | HX63: 1908.389851 | HY63: 1908.389851 | HZ63: 1908.389851 | IA63: 1908.389851 | IB63: 1908.389851 | IC63: 1908.389851 | ID63: 1908.389851 | IE63: 1908.389851 | IF63: 1908.389851 | IG63: 1908.389851 | IH63: 1908.389851 | II63: 1908.389851 | IJ63: 1908.389851 | IK63: 1908.389851 | IL63: 1908.389851 | IM63: 1908.389851 | IN63: 1908.389851 | IO63: 1908.389851 | IP63: 1908.389851 | IQ63: 1908.389851 | IR63: 1908.389851 | IS63: 1908.389851 | IT63: 1908.389851 | IU63: 1908.389851 | IV63: 1908.389851 | IW63: 1908.389851 | IX63: 1908.389851 | IY63: 1908.389851 | IZ63: 1908.389851 | JA63: 1908.389851 | JB63: 1908.389851 | JC63: 1908.389851 | JD63: =JD61-JD62 -> 1908.389851 | JE63: 1908.389851 | JF63: 1908.389851 | JG63: 1908.389851 | JH63: 1908.389851 | JI63: 1908.389851 | JJ63: 1908.389851 | JK63: 1908.389851 | JL63: 1908.389851 | JM63: 1908.389851 | JN63: 1908.389851 | JO63: 1908.389851 | JP63: 1908.389851 | JQ63: 1908.389851 | JR63: 1908.389851 | JS63: 1908.389851 | JT63: 1908.389851 | JU63: 1908.389851 | JV63: 1908.389851 | JW63: 1908.389851 | JX63: 1908.389851 | JY63: 1908.389851 | JZ63: 1908.389851 | KA63: 1908.389851 | KB63: 1908.389851 | KC63: 1908.389851 | KD63: 1908.389851 | KE63: 1908.389851 | KF63: 1908.389851 | KG63: 1908.389851 | KH63: 1908.389851 | KI63: 1908.389851 | KJ63: 1908.389851 | KK63: 1908.389851 | KL63: 1908.389851 | KM63: 1908.389851 | KN63: 1908.389851 | KO63: 1908.389851 | KP63: 1908.389851 | KQ63: 1908.389851 | KR63: 1908.389851 | KS63: 1908.389851 | KT63: 1908.389851 | KU63: 1908.389851
B64: Depreciable Percent | E64: % | F64: =Assumptions!F71 -> 0.95 | H64: =$F$64 -> 0.95 | I64: 0.95 | J64: 0.95 | K64: 0.95 | L64: 0.95 | M64: 0.95 | N64: 0.95 | O64: 0.95 | P64: 0.95 | Q64: 0.95 | R64: 0.95 | S64: 0.95 | T64: 0.95 | U64: 0.95 | V64: 0.95 | W64: 0.95 | X64: 0.95 | Y64: 0.95 | Z64: 0.95 | AA64: 0.95 | AB64: 0.95 | AC64: 0.95 | AD64: 0.95 | AE64: 0.95 | AF64: 0.95 | AG64: 0.95 | AH64: 0.95 | AI64: 0.95 | AJ64: 0.95 | AK64: 0.95 | AL64: 0.95 | AM64: 0.95 | AN64: 0.95 | AO64: 0.95 | AP64: 0.95 | AQ64: 0.95 | AR64: 0.95 | AS64: 0.95 | AT64: 0.95 | AU64: 0.95 | AV64: 0.95 | AW64: 0.95 | AX64: 0.95 | AY64: 0.95 | AZ64: 0.95 | BA64: 0.95 | BB64: 0.95 | BC64: 0.95 | BD64: 0.95 | BE64: 0.95 | BF64: 0.95 | BG64: 0.95 | BH64: 0.95 | BI64: 0.95 | BJ64: 0.95 | BK64: 0.95 | BL64: 0.95 | BM64: 0.95 | BN64: 0.95 | BO64: 0.95 | BP64: 0.95 | BQ64: 0.95 | BR64: 0.95 | BS64: 0.95 | BT64: =$F$64 -> 0.95 | BU64: 0.95 | BV64: 0.95 | BW64: 0.95 | BX64: 0.95 | BY64: 0.95 | BZ64: 0.95 | CA64: 0.95 | CB64: 0.95 | CC64: 0.95 | CD64: 0.95 | CE64: 0.95 | CF64: 0.95 | CG64: 0.95 | CH64: 0.95 | CI64: 0.95 | CJ64: 0.95 | CK64: 0.95 | CL64: 0.95 | CM64: 0.95 | CN64: 0.95 | CO64: 0.95 | CP64: 0.95 | CQ64: 0.95 | CR64: 0.95 | CS64: 0.95 | CT64: 0.95 | CU64: 0.95 | CV64: 0.95 | CW64: 0.95 | CX64: 0.95 | CY64: 0.95 | CZ64: 0.95 | DA64: 0.95 | DB64: 0.95 | DC64: 0.95 | DD64: 0.95 | DE64: 0.95 | DF64: 0.95 | DG64: 0.95 | DH64: 0.95 | DI64: 0.95 | DJ64: 0.95 | DK64: 0.95 | DL64: 0.95 | DM64: 0.95 | DN64: 0.95 | DO64: 0.95 | DP64: 0.95 | DQ64: 0.95 | DR64: 0.95 | DS64: 0.95 | DT64: 0.95 | DU64: 0.95 | DV64: 0.95 | DW64: 0.95 | DX64: 0.95 | DY64: 0.95 | DZ64: 0.95 | EA64: 0.95 | EB64: 0.95 | EC64: 0.95 | ED64: 0.95 | EE64: 0.95 | EF64: =$F$64 -> 0.95 | EG64: 0.95 | EH64: 0.95 | EI64: 0.95 | EJ64: 0.95 | EK64: 0.95 | EL64: 0.95 | EM64: 0.95 | EN64: 0.95 | EO64: 0.95 | EP64: 0.95 | EQ64: 0.95 | ER64: 0.95 | ES64: 0.95 | ET64: 0.95 | EU64: 0.95 | EV64: 0.95 | EW64: 0.95 | EX64: 0.95 | EY64: 0.95 | EZ64: 0.95 | FA64: 0.95 | FB64: 0.95 | FC64: 0.95 | FD64: 0.95 | FE64: 0.95 | FF64: 0.95 | FG64: 0.95 | FH64: 0.95 | FI64: 0.95 | FJ64: 0.95 | FK64: 0.95 | FL64: 0.95 | FM64: 0.95 | FN64: 0.95 | FO64: 0.95 | FP64: 0.95 | FQ64: 0.95 | FR64: 0.95 | FS64: 0.95 | FT64: 0.95 | FU64: 0.95 | FV64: 0.95 | FW64: 0.95 | FX64: 0.95 | FY64: 0.95 | FZ64: 0.95 | GA64: 0.95 | GB64: 0.95 | GC64: 0.95 | GD64: 0.95 | GE64: 0.95 | GF64: 0.95 | GG64: 0.95 | GH64: 0.95 | GI64: 0.95 | GJ64: 0.95 | GK64: 0.95 | GL64: 0.95 | GM64: 0.95 | GN64: 0.95 | GO64: 0.95 | GP64: 0.95 | GQ64: 0.95 | GR64: =$F$64 -> 0.95 | GS64: 0.95 | GT64: 0.95 | GU64: 0.95 | GV64: 0.95 | GW64: 0.95 | GX64: 0.95 | GY64: 0.95 | GZ64: 0.95 | HA64: 0.95 | HB64: 0.95 | HC64: 0.95 | HD64: 0.95 | HE64: 0.95 | HF64: 0.95 | HG64: 0.95 | HH64: 0.95 | HI64: 0.95 | HJ64: 0.95 | HK64: 0.95 | HL64: 0.95 | HM64: 0.95 | HN64: 0.95 | HO64: 0.95 | HP64: 0.95 | HQ64: 0.95 | HR64: 0.95 | HS64: 0.95 | HT64: 0.95 | HU64: 0.95 | HV64: 0.95 | HW64: 0.95 | HX64: 0.95 | HY64: 0.95 | HZ64: 0.95 | IA64: 0.95 | IB64: 0.95 | IC64: 0.95 | ID64: 0.95 | IE64: 0.95 | IF64: 0.95 | IG64: 0.95 | IH64: 0.95 | II64: 0.95 | IJ64: 0.95 | IK64: 0.95 | IL64: 0.95 | IM64: 0.95 | IN64: 0.95 | IO64: 0.95 | IP64: 0.95 | IQ64: 0.95 | IR64: 0.95 | IS64: 0.95 | IT64: 0.95 | IU64: 0.95 | IV64: 0.95 | IW64: 0.95 | IX64: 0.95 | IY64: 0.95 | IZ64: 0.95 | JA64: 0.95 | JB64: 0.95 | JC64: 0.95 | JD64: =$F$64 -> 0.95 | JE64: 0.95 | JF64: 0.95 | JG64: 0.95 | JH64: 0.95 | JI64: 0.95 | JJ64: 0.95 | JK64: 0.95 | JL64: 0.95 | JM64: 0.95 | JN64: 0.95 | JO64: 0.95 | JP64: 0.95 | JQ64: 0.95 | JR64: 0.95 | JS64: 0.95 | JT64: 0.95 | JU64: 0.95 | JV64: 0.95 | JW64: 0.95 | JX64: 0.95 | JY64: 0.95 | JZ64: 0.95 | KA64: 0.95 | KB64: 0.95 | KC64: 0.95 | KD64: 0.95 | KE64: 0.95 | KF64: 0.95 | KG64: 0.95 | KH64: 0.95 | KI64: 0.95 | KJ64: 0.95 | KK64: 0.95 | KL64: 0.95 | KM64: 0.95 | KN64: 0.95 | KO64: 0.95 | KP64: 0.95 | KQ64: 0.95 | KR64: 0.95 | KS64: 0.95 | KT64: 0.95 | KU64: 0.95
B65: Depreciable Base | H65: =H63*H64 -> 351.7162496 | I65: 879.290624 | J65: 1406.864998 | K65: 1582.723123 | L65: 1785.775803 | M65: 1812.970359 | N65: 1812.970359 | O65: 1812.970359 | P65: 1812.970359 | Q65: 1812.970359 | R65: 1812.970359 | S65: 1812.970359 | T65: 1812.970359 | U65: 1812.970359 | V65: 1812.970359 | W65: 1812.970359 | X65: 1812.970359 | Y65: 1812.970359 | Z65: 1812.970359 | AA65: 1812.970359 | AB65: 1812.970359 | AC65: 1812.970359 | AD65: 1812.970359 | AE65: 1812.970359 | AF65: 1812.970359 | AG65: 1812.970359 | AH65: 1812.970359 | AI65: 1812.970359 | AJ65: 1812.970359 | AK65: 1812.970359 | AL65: 1812.970359 | AM65: 1812.970359 | AN65: 1812.970359 | AO65: 1812.970359 | AP65: 1812.970359 | AQ65: 1812.970359 | AR65: 1812.970359 | AS65: 1812.970359 | AT65: 1812.970359 | AU65: 1812.970359 | AV65: 1812.970359 | AW65: 1812.970359 | AX65: 1812.970359 | AY65: 1812.970359 | AZ65: 1812.970359 | BA65: 1812.970359 | BB65: 1812.970359 | BC65: 1812.970359 | BD65: 1812.970359 | BE65: 1812.970359 | BF65: 1812.970359 | BG65: 1812.970359 | BH65: 1812.970359 | BI65: 1812.970359 | BJ65: 1812.970359 | BK65: 1812.970359 | BL65: 1812.970359 | BM65: 1812.970359 | BN65: 1812.970359 | BO65: 1812.970359 | BP65: 1812.970359 | BQ65: 1812.970359 | BR65: 1812.970359 | BS65: 1812.970359 | BT65: =BT63*BT64 -> 1812.970359 | BU65: 1812.970359 | BV65: 1812.970359 | BW65: 1812.970359 | BX65: 1812.970359 | BY65: 1812.970359 | BZ65: 1812.970359 | CA65: 1812.970359 | CB65: 1812.970359 | CC65: 1812.970359 | CD65: 1812.970359 | CE65: 1812.970359 | CF65: 1812.970359 | CG65: 1812.970359 | CH65: 1812.970359 | CI65: 1812.970359 | CJ65: 1812.970359 | CK65: 1812.970359 | CL65: 1812.970359 | CM65: 1812.970359 | CN65: 1812.970359 | CO65: 1812.970359 | CP65: 1812.970359 | CQ65: 1812.970359 | CR65: 1812.970359 | CS65: 1812.970359 | CT65: 1812.970359 | CU65: 1812.970359 | CV65: 1812.970359 | CW65: 1812.970359 | CX65: 1812.970359 | CY65: 1812.970359 | CZ65: 1812.970359 | DA65: 1812.970359 | DB65: 1812.970359 | DC65: 1812.970359 | DD65: 1812.970359 | DE65: 1812.970359 | DF65: 1812.970359 | DG65: 1812.970359 | DH65: 1812.970359 | DI65: 1812.970359 | DJ65: 1812.970359 | DK65: 1812.970359 | DL65: 1812.970359 | DM65: 1812.970359 | DN65: 1812.970359 | DO65: 1812.970359 | DP65: 1812.970359 | DQ65: 1812.970359 | DR65: 1812.970359 | DS65: 1812.970359 | DT65: 1812.970359 | DU65: 1812.970359 | DV65: 1812.970359 | DW65: 1812.970359 | DX65: 1812.970359 | DY65: 1812.970359 | DZ65: 1812.970359 | EA65: 1812.970359 | EB65: 1812.970359 | EC65: 1812.970359 | ED65: 1812.970359 | EE65: 1812.970359 | EF65: =EF63*EF64 -> 1812.970359 | EG65: 1812.970359 | EH65: 1812.970359 | EI65: 1812.970359 | EJ65: 1812.970359 | EK65: 1812.970359 | EL65: 1812.970359 | EM65: 1812.970359 | EN65: 1812.970359 | EO65: 1812.970359 | EP65: 1812.970359 | EQ65: 1812.970359 | ER65: 1812.970359 | ES65: 1812.970359 | ET65: 1812.970359 | EU65: 1812.970359 | EV65: 1812.970359 | EW65: 1812.970359 | EX65: 1812.970359 | EY65: 1812.970359 | EZ65: 1812.970359 | FA65: 1812.970359 | FB65: 1812.970359 | FC65: 1812.970359 | FD65: 1812.970359 | FE65: 1812.970359 | FF65: 1812.970359 | FG65: 1812.970359 | FH65: 1812.970359 | FI65: 1812.970359 | FJ65: 1812.970359 | FK65: 1812.970359 | FL65: 1812.970359 | FM65: 1812.970359 | FN65: 1812.970359 | FO65: 1812.970359 | FP65: 1812.970359 | FQ65: 1812.970359 | FR65: 1812.970359 | FS65: 1812.970359 | FT65: 1812.970359 | FU65: 1812.970359 | FV65: 1812.970359 | FW65: 1812.970359 | FX65: 1812.970359 | FY65: 1812.970359 | FZ65: 1812.970359 | GA65: 1812.970359 | GB65: 1812.970359 | GC65: 1812.970359 | GD65: 1812.970359 | GE65: 1812.970359 | GF65: 1812.970359 | GG65: 1812.970359 | GH65: 1812.970359 | GI65: 1812.970359 | GJ65: 1812.970359 | GK65: 1812.970359 | GL65: 1812.970359 | GM65: 1812.970359 | GN65: 1812.970359 | GO65: 1812.970359 | GP65: 1812.970359 | GQ65: 1812.970359 | GR65: =GR63*GR64 -> 1812.970359 | GS65: 1812.970359 | GT65: 1812.970359 | GU65: 1812.970359 | GV65: 1812.970359 | GW65: 1812.970359 | GX65: 1812.970359 | GY65: 1812.970359 | GZ65: 1812.970359 | HA65: 1812.970359 | HB65: 1812.970359 | HC65: 1812.970359 | HD65: 1812.970359 | HE65: 1812.970359 | HF65: 1812.970359 | HG65: 1812.970359 | HH65: 1812.970359 | HI65: 1812.970359 | HJ65: 1812.970359 | HK65: 1812.970359 | HL65: 1812.970359 | HM65: 1812.970359 | HN65: 1812.970359 | HO65: 1812.970359 | HP65: 1812.970359 | HQ65: 1812.970359 | HR65: 1812.970359 | HS65: 1812.970359 | HT65: 1812.970359 | HU65: 1812.970359 | HV65: 1812.970359 | HW65: 1812.970359 | HX65: 1812.970359 | HY65: 1812.970359 | HZ65: 1812.970359 | IA65: 1812.970359 | IB65: 1812.970359 | IC65: 1812.970359 | ID65: 1812.970359 | IE65: 1812.970359 | IF65: 1812.970359 | IG65: 1812.970359 | IH65: 1812.970359 | II65: 1812.970359 | IJ65: 1812.970359 | IK65: 1812.970359 | IL65: 1812.970359 | IM65: 1812.970359 | IN65: 1812.970359 | IO65: 1812.970359 | IP65: 1812.970359 | IQ65: 1812.970359 | IR65: 1812.970359 | IS65: 1812.970359 | IT65: 1812.970359 | IU65: 1812.970359 | IV65: 1812.970359 | IW65: 1812.970359 | IX65: 1812.970359 | IY65: 1812.970359 | IZ65: 1812.970359 | JA65: 1812.970359 | JB65: 1812.970359 | JC65: 1812.970359 | JD65: =JD63*JD64 -> 1812.970359 | JE65: 1812.970359 | JF65: 1812.970359 | JG65: 1812.970359 | JH65: 1812.970359 | JI65: 1812.970359 | JJ65: 1812.970359 | JK65: 1812.970359 | JL65: 1812.970359 | JM65: 1812.970359 | JN65: 1812.970359 | JO65: 1812.970359 | JP65: 1812.970359 | JQ65: 1812.970359 | JR65: 1812.970359 | JS65: 1812.970359 | JT65: 1812.970359 | JU65: 1812.970359 | JV65: 1812.970359 | JW65: 1812.970359 | JX65: 1812.970359 | JY65: 1812.970359 | JZ65: 1812.970359 | KA65: 1812.970359 | KB65: 1812.970359 | KC65: 1812.970359 | KD65: 1812.970359 | KE65: 1812.970359 | KF65: 1812.970359 | KG65: 1812.970359 | KH65: 1812.970359 | KI65: 1812.970359 | KJ65: 1812.970359 | KK65: 1812.970359 | KL65: 1812.970359 | KM65: 1812.970359 | KN65: 1812.970359 | KO65: 1812.970359 | KP65: 1812.970359 | KQ65: 1812.970359 | KR65: 1812.970359 | KS65: 1812.970359 | KT65: 1812.970359 | KU65: 1812.970359
B66: Depreciation Expense SL | E66: USD 000's | F66: =Assumptions!F70 -> 0.0528 | G66: =F66/3 -> 0.0176 | H66: =MIN($G$66*H65,G68)*H9 -> 0 | I66: 0 | J66: 0 | K66: 0 | L66: 0 | M66: 0 | N66: 31.90827832 | O66: 31.90827832 | P66: 31.90827832 | Q66: 31.90827832 | R66: 31.90827832 | S66: 31.90827832 | T66: 31.90827832 | U66: 31.90827832 | V66: 31.90827832 | W66: 31.90827832 | X66: 31.90827832 | Y66: 31.90827832 | Z66: 31.90827832 | AA66: 31.90827832 | AB66: 31.90827832 | AC66: 31.90827832 | AD66: 31.90827832 | AE66: 31.90827832 | AF66: 31.90827832 | AG66: 31.90827832 | AH66: 31.90827832 | AI66: 31.90827832 | AJ66: 31.90827832 | AK66: 31.90827832 | AL66: 31.90827832 | AM66: 31.90827832 | AN66: 31.90827832 | AO66: 31.90827832 | AP66: 31.90827832 | AQ66: 31.90827832 | AR66: 31.90827832 | AS66: 31.90827832 | AT66: 31.90827832 | AU66: 31.90827832 | AV66: 31.90827832 | AW66: 31.90827832 | AX66: 31.90827832 | AY66: 31.90827832 | AZ66: 31.90827832 | BA66: 31.90827832 | BB66: 31.90827832 | BC66: 31.90827832 | BD66: 31.90827832 | BE66: 31.90827832 | BF66: 31.90827832 | BG66: 31.90827832 | BH66: 31.90827832 | BI66: 31.90827832 | BJ66: 31.90827832 | BK66: 31.90827832 | BL66: 31.90827832 | BM66: 31.90827832 | BN66: 31.90827832 | BO66: 31.90827832 | BP66: 31.90827832 | BQ66: 31.90827832 | BR66: 26.10677317 | BS66: 0 | BT66: =MIN($G$66*BT65,BS68)*BT9 -> 0 | BU66: 0 | BV66: 0 | BW66: 0 | BX66: 0 | BY66: 0 | BZ66: 0 | CA66: 0 | CB66: 0 | CC66: 0 | CD66: 0 | CE66: 0 | CF66: 0 | CG66: 0 | CH66: 0 | CI66: 0 | CJ66: 0 | CK66: 0 | CL66: 0 | CM66: 0 | CN66: 0 | CO66: 0 | CP66: 0 | CQ66: 0 | CR66: 0 | CS66: 0 | CT66: 0 | CU66: 0 | CV66: 0 | CW66: 0 | CX66: 0 | CY66: 0 | CZ66: 0 | DA66: 0 | DB66: 0 | DC66: 0 | DD66: 0 | DE66: 0 | DF66: 0 | DG66: 0 | DH66: 0 | DI66: 0 | DJ66: 0 | DK66: 0 | DL66: 0 | DM66: 0 | DN66: 0 | DO66: 0 | DP66: 0 | DQ66: 0 | DR66: 0 | DS66: 0 | DT66: 0 | DU66: 0 | DV66: 0 | DW66: 0 | DX66: 0 | DY66: 0 | DZ66: 0 | EA66: 0 | EB66: 0 | EC66: 0 | ED66: 0 | EE66: 0 | EF66: =MIN($G$66*EF65,EE68)*EF9 -> 0 | EG66: 0 | EH66: 0 | EI66: 0 | EJ66: 0 | EK66: 0 | EL66: 0 | EM66: 0 | EN66: 0 | EO66: 0 | EP66: 0 | EQ66: 0 | ER66: 0 | ES66: 0 | ET66: 0 | EU66: 0 | EV66: 0 | EW66: 0 | EX66: 0 | EY66: 0 | EZ66: 0 | FA66: 0 | FB66: 0 | FC66: 0 | FD66: 0 | FE66: 0 | FF66: 0 | FG66: 0 | FH66: 0 | FI66: 0 | FJ66: 0 | FK66: 0 | FL66: 0 | FM66: 0 | FN66: 0 | FO66: 0 | FP66: 0 | FQ66: 0 | FR66: 0 | FS66: 0 | FT66: 0 | FU66: 0 | FV66: 0 | FW66: 0 | FX66: 0 | FY66: 0 | FZ66: 0 | GA66: 0 | GB66: 0 | GC66: 0 | GD66: 0 | GE66: 0 | GF66: 0 | GG66: 0 | GH66: 0 | GI66: 0 | GJ66: 0 | GK66: 0 | GL66: 0 | GM66: 0 | GN66: 0 | GO66: 0 | GP66: 0 | GQ66: 0 | GR66: =MIN($G$66*GR65,GQ68)*GR9 -> 0 | GS66: 0 | GT66: 0 | GU66: 0 | GV66: 0 | GW66: 0 | GX66: 0 | GY66: 0 | GZ66: 0 | HA66: 0 | HB66: 0 | HC66: 0 | HD66: 0 | HE66: 0 | HF66: 0 | HG66: 0 | HH66: 0 | HI66: 0 | HJ66: 0 | HK66: 0 | HL66: 0 | HM66: 0 | HN66: 0 | HO66: 0 | HP66: 0 | HQ66: 0 | HR66: 0 | HS66: 0 | HT66: 0 | HU66: 0 | HV66: 0 | HW66: 0 | HX66: 0 | HY66: 0 | HZ66: 0 | IA66: 0 | IB66: 0 | IC66: 0 | ID66: 0 | IE66: 0 | IF66: 0 | IG66: 0 | IH66: 0 | II66: 0 | IJ66: 0 | IK66: 0 | IL66: 0 | IM66: 0 | IN66: 0 | IO66: 0 | IP66: 0 | IQ66: 0 | IR66: 0 | IS66: 0 | IT66: 0 | IU66: 0 | IV66: 0 | IW66: 0 | IX66: 0 | IY66: 0 | IZ66: 0 | JA66: 0 | JB66: 0 | JC66: 0 | JD66: =MIN($G$66*JD65,JC68)*JD9 -> 0 | JE66: 0 | JF66: 0 | JG66: 0 | JH66: 0 | JI66: 0 | JJ66: 0 | JK66: 0 | JL66: 0 | JM66: 0 | JN66: 0 | JO66: 0 | JP66: 0 | JQ66: 0 | JR66: 0 | JS66: 0 | JT66: 0 | JU66: 0 | JV66: 0 | JW66: 0 | JX66: 0 | JY66: 0 | JZ66: 0 | KA66: 0 | KB66: 0 | KC66: 0 | KD66: 0 | KE66: 0 | KF66: 0 | KG66: 0 | KH66: 0 | KI66: 0 | KJ66: 0 | KK66: 0 | KL66: 0 | KM66: 0 | KN66: 0 | KO66: 0 | KP66: 0 | KQ66: 0 | KR66: 0 | KS66: 0 | KT66: 0 | KU66: 0
B67: Accumulated Depreciation | E67: USD 000's | H67: =G67+H66 -> 0 | I67: 0 | J67: 0 | K67: 0 | L67: 0 | M67: 0 | N67: 31.90827832 | O67: 63.81655663 | P67: 95.72483495 | Q67: 127.6331133 | R67: 159.5413916 | S67: 191.4496699 | T67: 223.3579482 | U67: 255.2662265 | V67: 287.1745048 | W67: 319.0827832 | X67: 350.9910615 | Y67: 382.8993398 | Z67: 414.8076181 | AA67: 446.7158964 | AB67: 478.6241747 | AC67: 510.5324531 | AD67: 542.4407314 | AE67: 574.3490097 | AF67: 606.257288 | AG67: 638.1655663 | AH67: 670.0738446 | AI67: 701.982123 | AJ67: 733.8904013 | AK67: 765.7986796 | AL67: 797.7069579 | AM67: 829.6152362 | AN67: 861.5235145 | AO67: 893.4317928 | AP67: 925.3400712 | AQ67: 957.2483495 | AR67: 989.1566278 | AS67: 1021.064906 | AT67: 1052.973184 | AU67: 1084.881463 | AV67: 1116.789741 | AW67: 1148.698019 | AX67: 1180.606298 | AY67: 1212.514576 | AZ67: 1244.422854 | BA67: 1276.331133 | BB67: 1308.239411 | BC67: 1340.147689 | BD67: 1372.055968 | BE67: 1403.964246 | BF67: 1435.872524 | BG67: 1467.780803 | BH67: 1499.689081 | BI67: 1531.597359 | BJ67: 1563.505637 | BK67: 1595.413916 | BL67: 1627.322194 | BM67: 1659.230472 | BN67: 1691.138751 | BO67: 1723.047029 | BP67: 1754.955307 | BQ67: 1786.863586 | BR67: 1812.970359 | BS67: 1812.970359 | BT67: =BS67+BT66 -> 1812.970359 | BU67: 1812.970359 | BV67: 1812.970359 | BW67: 1812.970359 | BX67: 1812.970359 | BY67: 1812.970359 | BZ67: 1812.970359 | CA67: 1812.970359 | CB67: 1812.970359 | CC67: 1812.970359 | CD67: 1812.970359 | CE67: 1812.970359 | CF67: 1812.970359 | CG67: 1812.970359 | CH67: 1812.970359 | CI67: 1812.970359 | CJ67: 1812.970359 | CK67: 1812.970359 | CL67: 1812.970359 | CM67: 1812.970359 | CN67: 1812.970359 | CO67: 1812.970359 | CP67: 1812.970359 | CQ67: 1812.970359 | CR67: 1812.970359 | CS67: 1812.970359 | CT67: 1812.970359 | CU67: 1812.970359 | CV67: 1812.970359 | CW67: 1812.970359 | CX67: 1812.970359 | CY67: 1812.970359 | CZ67: 1812.970359 | DA67: 1812.970359 | DB67: 1812.970359 | DC67: 1812.970359 | DD67: 1812.970359 | DE67: 1812.970359 | DF67: 1812.970359 | DG67: 1812.970359 | DH67: 1812.970359 | DI67: 1812.970359 | DJ67: 1812.970359 | DK67: 1812.970359 | DL67: 1812.970359 | DM67: 1812.970359 | DN67: 1812.970359 | DO67: 1812.970359 | DP67: 1812.970359 | DQ67: 1812.970359 | DR67: 1812.970359 | DS67: 1812.970359 | DT67: 1812.970359 | DU67: 1812.970359 | DV67: 1812.970359 | DW67: 1812.970359 | DX67: 1812.970359 | DY67: 1812.970359 | DZ67: 1812.970359 | EA67: 1812.970359 | EB67: 1812.970359 | EC67: 1812.970359 | ED67: 1812.970359 | EE67: 1812.970359 | EF67: =EE67+EF66 -> 1812.970359 | EG67: 1812.970359 | EH67: 1812.970359 | EI67: 1812.970359 | EJ67: 1812.970359 | EK67: 1812.970359 | EL67: 1812.970359 | EM67: 1812.970359 | EN67: 1812.970359 | EO67: 1812.970359 | EP67: 1812.970359 | EQ67: 1812.970359 | ER67: 1812.970359 | ES67: 1812.970359 | ET67: 1812.970359 | EU67: 1812.970359 | EV67: 1812.970359 | EW67: 1812.970359 | EX67: 1812.970359 | EY67: 1812.970359 | EZ67: 1812.970359 | FA67: 1812.970359 | FB67: 1812.970359 | FC67: 1812.970359 | FD67: 1812.970359 | FE67: 1812.970359 | FF67: 1812.970359 | FG67: 1812.970359 | FH67: 1812.970359 | FI67: 1812.970359 | FJ67: 1812.970359 | FK67: 1812.970359 | FL67: 1812.970359 | FM67: 1812.970359 | FN67: 1812.970359 | FO67: 1812.970359 | FP67: 1812.970359 | FQ67: 1812.970359 | FR67: 1812.970359 | FS67: 1812.970359 | FT67: 1812.970359 | FU67: 1812.970359 | FV67: 1812.970359 | FW67: 1812.970359 | FX67: 1812.970359 | FY67: 1812.970359 | FZ67: 1812.970359 | GA67: 1812.970359 | GB67: 1812.970359 | GC67: 1812.970359 | GD67: 1812.970359 | GE67: 1812.970359 | GF67: 1812.970359 | GG67: 1812.970359 | GH67: 1812.970359 | GI67: 1812.970359 | GJ67: 1812.970359 | GK67: 1812.970359 | GL67: 1812.970359 | GM67: 1812.970359 | GN67: 1812.970359 | GO67: 1812.970359 | GP67: 1812.970359 | GQ67: 1812.970359 | GR67: =GQ67+GR66 -> 1812.970359 | GS67: 1812.970359 | GT67: 1812.970359 | GU67: 1812.970359 | GV67: 1812.970359 | GW67: 1812.970359 | GX67: 1812.970359 | GY67: 1812.970359 | GZ67: 1812.970359 | HA67: 1812.970359 | HB67: 1812.970359 | HC67: 1812.970359 | HD67: 1812.970359 | HE67: 1812.970359 | HF67: 1812.970359 | HG67: 1812.970359 | HH67: 1812.970359 | HI67: 1812.970359 | HJ67: 1812.970359 | HK67: 1812.970359 | HL67: 1812.970359 | HM67: 1812.970359 | HN67: 1812.970359 | HO67: 1812.970359 | HP67: 1812.970359 | HQ67: 1812.970359 | HR67: 1812.970359 | HS67: 1812.970359 | HT67: 1812.970359 | HU67: 1812.970359 | HV67: 1812.970359 | HW67: 1812.970359 | HX67: 1812.970359 | HY67: 1812.970359 | HZ67: 1812.970359 | IA67: 1812.970359 | IB67: 1812.970359 | IC67: 1812.970359 | ID67: 1812.970359 | IE67: 1812.970359 | IF67: 1812.970359 | IG67: 1812.970359 | IH67: 1812.970359 | II67: 1812.970359 | IJ67: 1812.970359 | IK67: 1812.970359 | IL67: 1812.970359 | IM67: 1812.970359 | IN67: 1812.970359 | IO67: 1812.970359 | IP67: 1812.970359 | IQ67: 1812.970359 | IR67: 1812.970359 | IS67: 1812.970359 | IT67: 1812.970359 | IU67: 1812.970359 | IV67: 1812.970359 | IW67: 1812.970359 | IX67: 1812.970359 | IY67: 1812.970359 | IZ67: 1812.970359 | JA67: 1812.970359 | JB67: 1812.970359 | JC67: 1812.970359 | JD67: =JC67+JD66 -> 1812.970359 | JE67: 1812.970359 | JF67: 1812.970359 | JG67: 1812.970359 | JH67: 1812.970359 | JI67: 1812.970359 | JJ67: 1812.970359 | JK67: 1812.970359 | JL67: 1812.970359 | JM67: 1812.970359 | JN67: 1812.970359 | JO67: 1812.970359 | JP67: 1812.970359 | JQ67: 1812.970359 | JR67: 1812.970359 | JS67: 1812.970359 | JT67: 1812.970359 | JU67: 1812.970359 | JV67: 1812.970359 | JW67: 1812.970359 | JX67: 1812.970359 | JY67: 1812.970359 | JZ67: 1812.970359 | KA67: 1812.970359 | KB67: 1812.970359 | KC67: 1812.970359 | KD67: 1812.970359 | KE67: 1812.970359 | KF67: 1812.970359 | KG67: 1812.970359 | KH67: 1812.970359 | KI67: 1812.970359 | KJ67: 1812.970359 | KK67: 1812.970359 | KL67: 1812.970359 | KM67: 1812.970359 | KN67: 1812.970359 | KO67: 1812.970359 | KP67: 1812.970359 | KQ67: 1812.970359 | KR67: 1812.970359 | KS67: 1812.970359 | KT67: 1812.970359 | KU67: 1812.970359
B68: Net Depreciable Plant | E68: USD 000's | H68: =H65-H67 -> 351.7162496 | I68: 879.290624 | J68: 1406.864998 | K68: 1582.723123 | L68: 1785.775803 | M68: 1812.970359 | N68: 1781.062081 | O68: 1749.153802 | P68: 1717.245524 | Q68: 1685.337246 | R68: 1653.428967 | S68: 1621.520689 | T68: 1589.612411 | U68: 1557.704132 | V68: 1525.795854 | W68: 1493.887576 | X68: 1461.979297 | Y68: 1430.071019 | Z68: 1398.162741 | AA68: 1366.254462 | AB68: 1334.346184 | AC68: 1302.437906 | AD68: 1270.529627 | AE68: 1238.621349 | AF68: 1206.713071 | AG68: 1174.804793 | AH68: 1142.896514 | AI68: 1110.988236 | AJ68: 1079.079958 | AK68: 1047.171679 | AL68: 1015.263401 | AM68: 983.3551226 | AN68: 951.4468443 | AO68: 919.538566 | AP68: 887.6302877 | AQ68: 855.7220094 | AR68: 823.8137311 | AS68: 791.9054528 | AT68: 759.9971744 | AU68: 728.0888961 | AV68: 696.1806178 | AW68: 664.2723395 | AX68: 632.3640612 | AY68: 600.4557829 | AZ68: 568.5475045 | BA68: 536.6392262 | BB68: 504.7309479 | BC68: 472.8226696 | BD68: 440.9143913 | BE68: 409.006113 | BF68: 377.0978346 | BG68: 345.1895563 | BH68: 313.281278 | BI68: 281.3729997 | BJ68: 249.4647214 | BK68: 217.5564431 | BL68: 185.6481647 | BM68: 153.7398864 | BN68: 121.8316081 | BO68: 89.9233298 | BP68: 58.01505148 | BQ68: 26.10677317 | BR68: 0 | BS68: 0 | BT68: =BT65-BT67 -> 0 | BU68: 0 | BV68: 0 | BW68: 0 | BX68: 0 | BY68: 0 | BZ68: 0 | CA68: 0 | CB68: 0 | CC68: 0 | CD68: 0 | CE68: 0 | CF68: 0 | CG68: 0 | CH68: 0 | CI68: 0 | CJ68: 0 | CK68: 0 | CL68: 0 | CM68: 0 | CN68: 0 | CO68: 0 | CP68: 0 | CQ68: 0 | CR68: 0 | CS68: 0 | CT68: 0 | CU68: 0 | CV68: 0 | CW68: 0 | CX68: 0 | CY68: 0 | CZ68: 0 | DA68: 0 | DB68: 0 | DC68: 0 | DD68: 0 | DE68: 0 | DF68: 0 | DG68: 0 | DH68: 0 | DI68: 0 | DJ68: 0 | DK68: 0 | DL68: 0 | DM68: 0 | DN68: 0 | DO68: 0 | DP68: 0 | DQ68: 0 | DR68: 0 | DS68: 0 | DT68: 0 | DU68: 0 | DV68: 0 | DW68: 0 | DX68: 0 | DY68: 0 | DZ68: 0 | EA68: 0 | EB68: 0 | EC68: 0 | ED68: 0 | EE68: 0 | EF68: =EF65-EF67 -> 0 | EG68: 0 | EH68: 0 | EI68: 0 | EJ68: 0 | EK68: 0 | EL68: 0 | EM68: 0 | EN68: 0 | EO68: 0 | EP68: 0 | EQ68: 0 | ER68: 0 | ES68: 0 | ET68: 0 | EU68: 0 | EV68: 0 | EW68: 0 | EX68: 0 | EY68: 0 | EZ68: 0 | FA68: 0 | FB68: 0 | FC68: 0 | FD68: 0 | FE68: 0 | FF68: 0 | FG68: 0 | FH68: 0 | FI68: 0 | FJ68: 0 | FK68: 0 | FL68: 0 | FM68: 0 | FN68: 0 | FO68: 0 | FP68: 0 | FQ68: 0 | FR68: 0 | FS68: 0 | FT68: 0 | FU68: 0 | FV68: 0 | FW68: 0 | FX68: 0 | FY68: 0 | FZ68: 0 | GA68: 0 | GB68: 0 | GC68: 0 | GD68: 0 | GE68: 0 | GF68: 0 | GG68: 0 | GH68: 0 | GI68: 0 | GJ68: 0 | GK68: 0 | GL68: 0 | GM68: 0 | GN68: 0 | GO68: 0 | GP68: 0 | GQ68: 0 | GR68: =GR65-GR67 -> 0 | GS68: 0 | GT68: 0 | GU68: 0 | GV68: 0 | GW68: 0 | GX68: 0 | GY68: 0 | GZ68: 0 | HA68: 0 | HB68: 0 | HC68: 0 | HD68: 0 | HE68: 0 | HF68: 0 | HG68: 0 | HH68: 0 | HI68: 0 | HJ68: 0 | HK68: 0 | HL68: 0 | HM68: 0 | HN68: 0 | HO68: 0 | HP68: 0 | HQ68: 0 | HR68: 0 | HS68: 0 | HT68: 0 | HU68: 0 | HV68: 0 | HW68: 0 | HX68: 0 | HY68: 0 | HZ68: 0 | IA68: 0 | IB68: 0 | IC68: 0 | ID68: 0 | IE68: 0 | IF68: 0 | IG68: 0 | IH68: 0 | II68: 0 | IJ68: 0 | IK68: 0 | IL68: 0 | IM68: 0 | IN68: 0 | IO68: 0 | IP68: 0 | IQ68: 0 | IR68: 0 | IS68: 0 | IT68: 0 | IU68: 0 | IV68: 0 | IW68: 0 | IX68: 0 | IY68: 0 | IZ68: 0 | JA68: 0 | JB68: 0 | JC68: 0 | JD68: =JD65-JD67 -> 0 | JE68: 0 | JF68: 0 | JG68: 0 | JH68: 0 | JI68: 0 | JJ68: 0 | JK68: 0 | JL68: 0 | JM68: 0 | JN68: 0 | JO68: 0 | JP68: 0 | JQ68: 0 | JR68: 0 | JS68: 0 | JT68: 0 | JU68: 0 | JV68: 0 | JW68: 0 | JX68: 0 | JY68: 0 | JZ68: 0 | KA68: 0 | KB68: 0 | KC68: 0 | KD68: 0 | KE68: 0 | KF68: 0 | KG68: 0 | KH68: 0 | KI68: 0 | KJ68: 0 | KK68: 0 | KL68: 0 | KM68: 0 | KN68: 0 | KO68: 0 | KP68: 0 | KQ68: 0 | KR68: 0 | KS68: 0 | KT68: 0 | KU68: 0
B69: Net Plant | E69: USD 000's | H69: =H61-H67 -> 370.2276312 | I69: 925.5690779 | J69: 1480.910525 | K69: 1666.02434 | L69: 1879.764004 | M69: 1908.389851 | N69: 1876.481573 | O69: 1844.573295 | P69: 1812.665016 | Q69: 1780.756738 | R69: 1748.84846 | S69: 1716.940182 | T69: 1685.031903 | U69: 1653.123625 | V69: 1621.215347 | W69: 1589.307068 | X69: 1557.39879 | Y69: 1525.490512 | Z69: 1493.582233 | AA69: 1461.673955 | AB69: 1429.765677 | AC69: 1397.857398 | AD69: 1365.94912 | AE69: 1334.040842 | AF69: 1302.132563 | AG69: 1270.224285 | AH69: 1238.316007 | AI69: 1206.407728 | AJ69: 1174.49945 | AK69: 1142.591172 | AL69: 1110.682894 | AM69: 1078.774615 | AN69: 1046.866337 | AO69: 1014.958059 | AP69: 983.0497803 | AQ69: 951.141502 | AR69: 919.2332236 | AS69: 887.3249453 | AT69: 855.416667 | AU69: 823.5083887 | AV69: 791.6001104 | AW69: 759.6918321 | AX69: 727.7835537 | AY69: 695.8752754 | AZ69: 663.9669971 | BA69: 632.0587188 | BB69: 600.1504405 | BC69: 568.2421622 | BD69: 536.3338838 | BE69: 504.4256055 | BF69: 472.5173272 | BG69: 440.6090489 | BH69: 408.7007706 | BI69: 376.7924923 | BJ69: 344.884214 | BK69: 312.9759356 | BL69: 281.0676573 | BM69: 249.159379 | BN69: 217.2511007 | BO69: 185.3428224 | BP69: 153.4345441 | BQ69: 121.5262657 | BR69: 95.41949257 | BS69: 95.41949257 | BT69: =BT61-BT67 -> 95.41949257 | BU69: 95.41949257 | BV69: 95.41949257 | BW69: 95.41949257 | BX69: 95.41949257 | BY69: 95.41949257 | BZ69: 95.41949257 | CA69: 95.41949257 | CB69: 95.41949257 | CC69: 95.41949257 | CD69: 95.41949257 | CE69: 95.41949257 | CF69: 95.41949257 | CG69: 95.41949257 | CH69: 95.41949257 | CI69: 95.41949257 | CJ69: 95.41949257 | CK69: 95.41949257 | CL69: 95.41949257 | CM69: 95.41949257 | CN69: 95.41949257 | CO69: 95.41949257 | CP69: 95.41949257 | CQ69: 95.41949257 | CR69: 95.41949257 | CS69: 95.41949257 | CT69: 95.41949257 | CU69: 95.41949257 | CV69: 95.41949257 | CW69: 95.41949257 | CX69: 95.41949257 | CY69: 95.41949257 | CZ69: 95.41949257 | DA69: 95.41949257 | DB69: 95.41949257 | DC69: 95.41949257 | DD69: 95.41949257 | DE69: 95.41949257 | DF69: 95.41949257 | DG69: 95.41949257 | DH69: 95.41949257 | DI69: 95.41949257 | DJ69: 95.41949257 | DK69: 95.41949257 | DL69: 95.41949257 | DM69: 95.41949257 | DN69: 95.41949257 | DO69: 95.41949257 | DP69: 95.41949257 | DQ69: 95.41949257 | DR69: 95.41949257 | DS69: 95.41949257 | DT69: 95.41949257 | DU69: 95.41949257 | DV69: 95.41949257 | DW69: 95.41949257 | DX69: 95.41949257 | DY69: 95.41949257 | DZ69: 95.41949257 | EA69: 95.41949257 | EB69: 95.41949257 | EC69: 95.41949257 | ED69: 95.41949257 | EE69: 95.41949257 | EF69: =EF61-EF67 -> 95.41949257 | EG69: 95.41949257 | EH69: 95.41949257 | EI69: 95.41949257 | EJ69: 95.41949257 | EK69: 95.41949257 | EL69: 95.41949257 | EM69: 95.41949257 | EN69: 95.41949257 | EO69: 95.41949257 | EP69: 95.41949257 | EQ69: 95.41949257 | ER69: 95.41949257 | ES69: 95.41949257 | ET69: 95.41949257 | EU69: 95.41949257 | EV69: 95.41949257 | EW69: 95.41949257 | EX69: 95.41949257 | EY69: 95.41949257 | EZ69: 95.41949257 | FA69: 95.41949257 | FB69: 95.41949257 | FC69: 95.41949257 | FD69: 95.41949257 | FE69: 95.41949257 | FF69: 95.41949257 | FG69: 95.41949257 | FH69: 95.41949257 | FI69: 95.41949257 | FJ69: 95.41949257 | FK69: 95.41949257 | FL69: 95.41949257 | FM69: 95.41949257 | FN69: 95.41949257 | FO69: 95.41949257 | FP69: 95.41949257 | FQ69: 95.41949257 | FR69: 95.41949257 | FS69: 95.41949257 | FT69: 95.41949257 | FU69: 95.41949257 | FV69: 95.41949257 | FW69: 95.41949257 | FX69: 95.41949257 | FY69: 95.41949257 | FZ69: 95.41949257 | GA69: 95.41949257 | GB69: 95.41949257 | GC69: 95.41949257 | GD69: 95.41949257 | GE69: 95.41949257 | GF69: 95.41949257 | GG69: 95.41949257 | GH69: 95.41949257 | GI69: 95.41949257 | GJ69: 95.41949257 | GK69: 95.41949257 | GL69: 95.41949257 | GM69: 95.41949257 | GN69: 95.41949257 | GO69: 95.41949257 | GP69: 95.41949257 | GQ69: 95.41949257 | GR69: =GR61-GR67 -> 95.41949257 | GS69: 95.41949257 | GT69: 95.41949257 | GU69: 95.41949257 | GV69: 95.41949257 | GW69: 95.41949257 | GX69: 95.41949257 | GY69: 95.41949257 | GZ69: 95.41949257 | HA69: 95.41949257 | HB69: 95.41949257 | HC69: 95.41949257 | HD69: 95.41949257 | HE69: 95.41949257 | HF69: 95.41949257 | HG69: 95.41949257 | HH69: 95.41949257 | HI69: 95.41949257 | HJ69: 95.41949257 | HK69: 95.41949257 | HL69: 95.41949257 | HM69: 95.41949257 | HN69: 95.41949257 | HO69: 95.41949257 | HP69: 95.41949257 | HQ69: 95.41949257 | HR69: 95.41949257 | HS69: 95.41949257 | HT69: 95.41949257 | HU69: 95.41949257 | HV69: 95.41949257 | HW69: 95.41949257 | HX69: 95.41949257 | HY69: 95.41949257 | HZ69: 95.41949257 | IA69: 95.41949257 | IB69: 95.41949257 | IC69: 95.41949257 | ID69: 95.41949257 | IE69: 95.41949257 | IF69: 95.41949257 | IG69: 95.41949257 | IH69: 95.41949257 | II69: 95.41949257 | IJ69: 95.41949257 | IK69: 95.41949257 | IL69: 95.41949257 | IM69: 95.41949257 | IN69: 95.41949257 | IO69: 95.41949257 | IP69: 95.41949257 | IQ69: 95.41949257 | IR69: 95.41949257 | IS69: 95.41949257 | IT69: 95.41949257 | IU69: 95.41949257 | IV69: 95.41949257 | IW69: 95.41949257 | IX69: 95.41949257 | IY69: 95.41949257 | IZ69: 95.41949257 | JA69: 95.41949257 | JB69: 95.41949257 | JC69: 95.41949257 | JD69: =JD61-JD67 -> 95.41949257 | JE69: 95.41949257 | JF69: 95.41949257 | JG69: 95.41949257 | JH69: 95.41949257 | JI69: 95.41949257 | JJ69: 95.41949257 | JK69: 95.41949257 | JL69: 95.41949257 | JM69: 95.41949257 | JN69: 95.41949257 | JO69: 95.41949257 | JP69: 95.41949257 | JQ69: 95.41949257 | JR69: 95.41949257 | JS69: 95.41949257 | JT69: 95.41949257 | JU69: 95.41949257 | JV69: 95.41949257 | JW69: 95.41949257 | JX69: 95.41949257 | JY69: 95.41949257 | JZ69: 95.41949257 | KA69: 95.41949257 | KB69: 95.41949257 | KC69: 95.41949257 | KD69: 95.41949257 | KE69: 95.41949257 | KF69: 95.41949257 | KG69: 95.41949257 | KH69: 95.41949257 | KI69: 95.41949257 | KJ69: 95.41949257 | KK69: 95.41949257 | KL69: 95.41949257 | KM69: 95.41949257 | KN69: 95.41949257 | KO69: 95.41949257 | KP69: 95.41949257 | KQ69: 95.41949257 | KR69: 95.41949257 | KS69: 95.41949257 | KT69: 95.41949257 | KU69: 95.41949257
